Workbook

Sheet ＴＯＰ
B5: 基本情報 | D5: 給与の入力 | H5: 賞与の入力 | J5: 明細の印刷 | L5: 年末調整 | N5: 補助機能
J11: 各種台帳の印刷
N19: 提供：小林敬幸税理士事務所
N20: Ver. 1.0
B21: ★当事務所の税理士の著書
C23: 帳簿初心者な方向けに、パソコン会計で徹底的に簡単に青色申告を行うためのTipsを詰め込んだ、自信の一作です！
C24: ★参考
C25: このファイルの保護パスワードは、こちらの本の背面の２つめのバーコードの数字（1922で始まる１３ケタの数字（半角））になっています。
C26: マクロを有効にすると、保護を解除しなくともすべての機能は使えますが、保護を解除して改造等挑戦される方は是非本書もお求めください。
C33: 個人事業を会社にした場合の税金や社会保険料の変化が、誰でも簡単にシミュレーションできるソフトが付録についた、法人成りのノウハウ満載のマニュアル本です！

Sheet 基本情報
C7: 会社名 | E7: 株式会社今野デザイン
G8: =E9&"/1/1" -> 2020/1/1 | H8: =DATEVALUE(G8) -> 43831
C9: 年度 | E9: 2020 | F9: 年度
G10: =YEAR(H8) -> 2020 | H10: =G10-2018 -> 2
C11: 会社の住所 | E11: 兵庫県神戸市東灘区御影○－○－○
G12: =YEAR(H10) -> 1900 | H12: =G12-1988 -> -88
C13: 会社の電話番号 | E13: 078-999-9999
C15: 法人番号 | E15: 9876543210987

Sheet 社員情報
H4: 1 | I4: 2 | J4: 3 | K4: 4 | L4: 5 | M4: 6 | N4: 7 | O4: 8 | P4: 9 | Q4: 10 | R4: 11 | S4: 12
B5: 整理番号 | C5: 名前 | D5: 役員／ 従業員 | E5: 甲欄／ 乙欄 | F5: 生年月日 | G5: 性別 | H5: =基本情報!H8 -> 2020-01-01 | I5: =EOMONTH(H5,0)+1 -> 2020-02-01 | J5: =EOMONTH(I5,0)+1 -> 2020-03-01 | K5: 2020-04-01 | L5: 2020-05-01 | M5: 2020-06-01 | N5: 2020-07-01 | O5: 2020-08-01 | P5: 2020-09-01 | Q5: 2020-10-01 | R5: 2020-11-01 | S5: 2020-12-01 | T5: =EOMONTH(S5,0) -> 2020-12-31 | U5: 社保加入の有無 | W5: =EOMONTH(X5,-13)+1 -> 2019-04-01 | X5: =EOMONTH(J5,0)+1 -> 2020-04-01
B6: 1 | C6: 今野 友夫 | D6: 役員 | E6: 甲欄 | F6: 1975-04-01 | G6: 男 | H6: =IF(F6="","",DATEDIF($F6,H$5,"y")) -> 44 | I6: =IF(H6="","",DATEDIF($F6,I$5,"y")) -> 44 | J6: 44 | K6: 45 | L6: 45 | M6: 45 | N6: 45 | O6: 45 | P6: 45 | Q6: 45 | R6: 45 | S6: 45 | T6: 45 | U6: 加入 | W6: =IF(S6="","",DATEDIF($F6,W$5,"y")) -> 44 | X6: =IF(S6="","",DATEDIF($F6,X$5,"y")) -> 45
B7: 2 | C7: 今野 朝子 | D7: 役員 | E7: 甲欄 | F7: 1980-06-04 | G7: 女 | H7: 39 | I7: =IF(H7="","",DATEDIF($F7,I$5,"y")) -> 39 | J7: 39 | K7: 39 | L7: 39 | M7: 39 | N7: 40 | O7: 40 | P7: 40 | Q7: 40 | R7: 40 | S7: 40 | T7: =IF(S7="","",DATEDIF($F7,T$5,"y")) -> 40 | U7: 加入 | W7: =IF(S7="","",DATEDIF($F7,W$5,"y")) -> 38 | X7: =IF(S7="","",DATEDIF($F7,X$5,"y")) -> 39
B8: 3 | C8: 今野 祥子 | D8: 役員 | E8: 甲欄 | F8: 1949-03-13 | G8: 女 | H8: 70 | I8: =IF(H8="","",DATEDIF($F8,I$5,"y")) -> 70 | J8: 70 | K8: 71 | L8: 71 | M8: 71 | N8: 71 | O8: 71 | P8: 71 | Q8: 71 | R8: 71 | S8: 71 | T8: 71 | U8: 非加入 | W8: 70 | X8: 71
B9: 4 | C9: 川西 めぐみ | D9: 従業員（雇保加入） | E9: 甲欄 | F9: 1971-04-01 | G9: 女 | H9: 48 | I9: =IF(H9="","",DATEDIF($F9,I$5,"y")) -> 48 | J9: 48 | K9: 49 | L9: 49 | M9: 49 | N9: 49 | O9: 49 | P9: 49 | Q9: 49 | R9: 49 | S9: 49 | T9: 49 | U9: 加入 | W9: 48 | X9: 49
B10: 5 | C10: 鳥居 雅之 | D10: 従業員（雇保非加入） | E10: 乙欄 | F10: 1985-03-21 | G10: 男 | H10: 34 | I10: =IF(H10="","",DATEDIF($F10,I$5,"y")) -> 34 | J10: 34 | K10: 35 | L10: 35 | M10: 35 | N10: 35 | O10: 35 | P10: 35 | Q10: 35 | R10: 35 | S10: 35 | T10: 35 | U10: 非加入 | W10: 34 | X10: 35
B11: 6 | C11: 笹部 菜穂美 | D11: 従業員（雇保加入） | E11: 甲欄 | F11: 1989-04-11 | G11: 女 | H11: 30 | I11: =IF(H11="","",DATEDIF($F11,I$5,"y")) -> 30 | J11: 30 | K11: 30 | L11: 31 | M11: 31 | N11: 31 | O11: 31 | P11: 31 | Q11: 31 | R11: 31 | S11: 31 | T11: 31 | U11: 加入 | W11: 29 | X11: 30
B12: 7 | C12: 絹延橋 みつ子 | D12: 従業員（雇保加入） | E12: 甲欄 | F12: 1973-08-23 | G12: 女 | H12: 46 | I12: =IF(H12="","",DATEDIF($F12,I$5,"y")) -> 46 | J12: 46 | K12: 46 | L12: 46 | M12: 46 | N12: 46 | O12: 46 | P12: 47 | Q12: 47 | R12: 47 | S12: 47 | T12: 47 | U12: 加入 | W12: 45 | X12: 46
B13: 8 | C13: 山下 崇 | D13: 従業員（雇保加入） | E13: 甲欄 | F13: 1986-04-21 | G13: 男 | H13: 33 | I13: =IF(H13="","",DATEDIF($F13,I$5,"y")) -> 33 | J13: 33 | K13: 33 | L13: 34 | M13: 34 | N13: 34 | O13: 34 | P13: 34 | Q13: 34 | R13: 34 | S13: 34 | T13: 34 | U13: 加入 | W13: 32 | X13: 33
B14: 9 | I14: =IF(H14="","",DATEDIF($F14,I$5,"y")) -> 
B15: 10 | I15: =IF(H15="","",DATEDIF($F15,I$5,"y")) -> 
B16: 11 | I16: =IF(H16="","",DATEDIF($F16,I$5,"y")) -> 
B17: 12 | I17: =IF(H17="","",DATEDIF($F17,I$5,"y")) -> 
B18: 13 | H18: =IF(F18="","",DATEDIF($F18,H$5,"y")) ->  | I18: =IF(H18="","",DATEDIF($F18,I$5,"y")) ->  | J18: =IF(I18="","",DATEDIF($F18,J$5,"y")) ->  | K18: =IF(J18="","",DATEDIF($F18,K$5,"y")) ->  | L18: =IF(K18="","",DATEDIF($F18,L$5,"y")) ->  | M18: =IF(L18="","",DATEDIF($F18,M$5,"y")) ->  | N18: =IF(M18="","",DATEDIF($F18,N$5,"y")) ->  | O18: =IF(N18="","",DATEDIF($F18,O$5,"y")) ->  | P18: =IF(O18="","",DATEDIF($F18,P$5,"y")) ->  | Q18: =IF(P18="","",DATEDIF($F18,Q$5,"y")) ->  | R18: =IF(Q18="","",DATEDIF($F18,R$5,"y")) ->  | S18: =IF(R18="","",DATEDIF($F18,S$5,"y")) -> 
B19: 14
B20: 15
B21: 16
B22: 17
B23: 18

Sheet 明細書項目
B6: 給与 | G6: 賞与
D7: 課税／ 非課税 | E7: 雇保 対象 | I7: 課税／ 非課税 | J7: 雇保 対象
B8: 勤怠 | C8: 労働日数
C9: 労働時間
C10: 時間内残業時間
C11: 時間外残業時間
C12: 休日労働時間
C13: 時間内深夜労働時間
C14: 時間外深夜労働時間
C15: 休日深夜時間
B16: 支給 | C16: 役員報酬 | D16: 課税 | E16: 雇保対象 | G16: 支給 | H16: 賞与 | I16: 課税 | J16: 雇保対象
C17: 基本給 | D17: 課税 | E17: 雇保対象 | I17: 課税 | J17: 雇保対象
C18: 時間外手当 | D18: 課税 | E18: 雇保対象 | I18: 課税 | J18: 雇保対象
I19: 課税 | J19: 雇保対象
I20: 課税 | J20: 雇保対象
C24: 通勤手当 | D24: 非課税 | E24: 雇保対象
B26: 控除 | C26: 健康保険 | G26: 控除 | H26: 健康保険
C27: 介護保険 | H27: 介護保険
C28: 厚生年金保険 | H28: 厚生年金保険
C29: 雇用保険 | H29: 雇用保険
C31: 所得税 | H31: 所得税
C32: 住民税

Sheet 支給日
B8: １、給与の支給日の入力 | H8: ２、賞与の支給日の入力
B10: 月度 | C10: 日 | H10: 回数 | I10: 月 | K10: 日
B11: １月 | C11: 10 | D11: 日 | H11: １回 | I11: =IF(賞与台帳1回!R4="","",賞与台帳1回!R4) -> 9 | J11: 月 | K11: 30 | L11: 日
B12: ２月 | C12: 10 | D12: 日 | H12: ２回 | I12: =IF(賞与台帳2回!R4="","",賞与台帳2回!R4) -> 12 | J12: 月 | K12: 20 | L12: 日
B13: ３月 | C13: 10 | D13: 日 | H13: ３回 | I13: =IF(賞与台帳3回!R4="","",賞与台帳3回!R4) -> 1 | J13: 月 | K13: 20 | L13: 日
B14: ４月 | C14: 10 | D14: 日
B15: ５月 | C15: 10 | D15: 日
B16: ６月 | C16: 10 | D16: 日
B17: ７月 | C17: 10 | D17: 日
B18: ８月 | C18: 10 | D18: 日
B19: ９月 | C19: 10 | D19: 日
B20: １０月 | C20: 10 | D20: 日
B21: １１月 | C21: 10 | D21: 日
B22: １２月 | C22: 10 | D22: 日

Sheet 給料ＤＢ (hidden)
A3: 給与明細作成基礎ＤＢ
K5: 勤怠 | S5: 支給 | AE5: 総支給額 | AF5: 社会保険控除額 | AK5: ④社会保険料控除後の金額 ①－③ | AL5: その他控除金額 | AR5: ③－⑤+② 差引支給額 | AS5: 年末調整額 | AT5: 支給額 | AU5: 給与明細摘要
B6: 月度 | C6: 社員番号 | D6: 氏名 | E6: 役員／従業員 | F6: 甲欄／乙欄 | G6: １日時点での年齢 | H6: 扶養家族数 | I6: 健康保険標準報酬月額 | J6: 厚生年金標準報酬月額 | K6: =明細書項目!C8 -> 労働日数 | L6: =明細書項目!C9 -> 労働時間 | M6: =明細書項目!C10 -> 時間内残業時間 | N6: =明細書項目!C11 -> 時間外残業時間 | O6: =明細書項目!C12 -> 休日労働時間 | P6: =明細書項目!C13 -> 時間内深夜労働時間 | Q6: =明細書項目!C14 -> 時間外深夜労働時間 | R6: =明細書項目!C15 -> 休日深夜時間 | S6: =IF(明細書項目!C16="","",明細書項目!C16) -> 役員報酬 | T6: =IF(明細書項目!C17="","",明細書項目!C17) -> 基本給 | U6: =IF(明細書項目!C18="","",明細書項目!C18) -> 時間外手当 | V6: =IF(明細書項目!C19="","",明細書項目!C19) ->  | W6: =IF(明細書項目!C20="","",明細書項目!C20) ->  | X6: =IF(明細書項目!C21="","",明細書項目!C21) ->  | Y6: =IF(明細書項目!C22="","",明細書項目!C22) ->  | Z6: =IF(明細書項目!C23="","",明細書項目!C23) ->  | AA6: =IF(明細書項目!C24="","",明細書項目!C24) -> 通勤手当 | AB6: =IF(明細書項目!C25="","",明細書項目!C25) ->  | AC6: 課税支給額 | AD6: 非課税支給額 | AF6: =明細書項目!C26 -> 健康保険 | AG6: =明細書項目!C27 -> 介護保険 | AH6: =明細書項目!C28 -> 厚生年金保険 | AI6: =明細書項目!C29 -> 雇用保険 | AJ6: ③ 保険料合計 | AL6: =IF(明細書項目!C31="","",明細書項目!C31) -> 所得税 | AM6: =IF(明細書項目!C32="","",明細書項目!C32) -> 住民税 | AN6: =IF(明細書項目!C33="","",明細書項目!C33) ->  | AO6: =IF(明細書項目!C34="","",明細書項目!C34) ->  | AP6: =IF(明細書項目!C35="","",明細書項目!C35) ->  | AQ6: ⑤ その他控除額計
B7: 1 | C7: =給与台帳1月!F$8 -> 1 | D7: =給与台帳1月!F$9 -> 今野 友夫 | E7: =給与台帳1月!F$10 -> 役員 | F7: =給与台帳1月!F$11 -> 甲欄 | G7: =給与台帳1月!F$12 -> 44 | H7: =給与台帳1月!F$13 -> 1 | I7: =給与台帳1月!F$14 -> 500000 | J7: =給与台帳1月!F$15 -> 500000 | K7: =給与台帳1月!F$16 -> 0 | L7: =給与台帳1月!F$17 -> 0 | M7: =給与台帳1月!F$18 -> 0 | N7: =給与台帳1月!F$19 -> 0 | O7: =給与台帳1月!F$20 -> 0 | P7: =給与台帳1月!F$21 -> 0 | Q7: =給与台帳1月!F$22 -> 0 | R7: =給与台帳1月!F$23 -> 0 | S7: =給与台帳1月!F$24 -> 500000 | T7: =給与台帳1月!F$25 -> 0 | U7: =給与台帳1月!F$26 -> 0 | V7: =給与台帳1月!F$27 -> 0 | W7: =給与台帳1月!F$28 -> 0 | X7: =給与台帳1月!F$29 -> 0 | Y7: =給与台帳1月!F$30 -> 0 | Z7: =給与台帳1月!F$31 -> 0 | AA7: =給与台帳1月!F$32 -> 10000 | AB7: =給与台帳1月!F$33 -> 0 | AC7: =給与台帳1月!F$34 -> 500000 | AD7: =給与台帳1月!F$35 -> 10000 | AE7: =給与台帳1月!F$36 -> 510000 | AF7: =給与台帳1月!F$37 -> 23800 | AG7: =給与台帳1月!F$38 -> 0 | AH7: =給与台帳1月!F$39 -> 41030 | AI7: =給与台帳1月!F$40 -> 0 | AJ7: =給与台帳1月!F$41 -> 64830 | AK7: =給与台帳1月!F$42 -> 435170 | AL7: =給与台帳1月!F$43 -> 16210 | AM7: =給与台帳1月!F$44 -> 22300 | AN7: =給与台帳1月!F$45 -> 0 | AO7: =給与台帳1月!F$46 -> 0 | AP7: =給与台帳1月!F$47 -> 0 | AQ7: =給与台帳1月!F$48 -> 38510 | AR7: =給与台帳1月!F$49 -> 406660 | AS7: =給与台帳1月!F$50 -> 0 | AT7: =給与台帳1月!F$51 -> 406660 | AU7: =給与台帳1月!F$52 -> 一月もお疲れ様でした
B8: 1 | C8: =給与台帳1月!L$8 -> 2 | D8: =給与台帳1月!L$9 -> 今野 朝子 | E8: =給与台帳1月!L$10 -> 役員 | F8: =給与台帳1月!L$11 -> 甲欄 | G8: =給与台帳1月!L$12 -> 39 | H8: =給与台帳1月!L$13 -> 0 | I8: =給与台帳1月!L$14 -> 300000 | J8: =給与台帳1月!L$15 -> 300000 | K8: =給与台帳1月!L$16 -> 0 | L8: =給与台帳1月!L$17 -> 0 | M8: =給与台帳1月!L$18 -> 0 | N8: =給与台帳1月!L$19 -> 0 | O8: =給与台帳1月!L$20 -> 0 | P8: =給与台帳1月!L$21 -> 0 | Q8: =給与台帳1月!L$22 -> 0 | R8: =給与台帳1月!L$23 -> 0 | S8: =給与台帳1月!L$24 -> 300000 | T8: =給与台帳1月!L$25 -> 0 | U8: =給与台帳1月!L$26 -> 0 | V8: =給与台帳1月!L$27 -> 0 | W8: =給与台帳1月!L$28 -> 0 | X8: =給与台帳1月!L$29 -> 0 | Y8: =給与台帳1月!L$30 -> 0 | Z8: =給与台帳1月!L$31 -> 0 | AA8: =給与台帳1月!L$32 -> 10000 | AB8: =給与台帳1月!L$33 -> 0 | AC8: =給与台帳1月!L$34 -> 300000 | AD8: =給与台帳1月!L$35 -> 10000 | AE8: =給与台帳1月!L$36 -> 310000 | AF8: =給与台帳1月!L$37 -> 14280 | AG8: =給与台帳1月!L$38 -> 0 | AH8: =給与台帳1月!L$39 -> 24618 | AI8: =給与台帳1月!L$40 -> 0 | AJ8: =給与台帳1月!L$41 -> 38898 | AK8: =給与台帳1月!L$42 -> 261102 | AL8: =給与台帳1月!L$43 -> 6960 | AM8: =給与台帳1月!L$44 -> 12400 | AN8: =給与台帳1月!L$45 -> 0 | AO8: =給与台帳1月!L$46 -> 0 | AP8: =給与台帳1月!L$47 -> 0 | AQ8: =給与台帳1月!L$48 -> 19360 | AR8: =給与台帳1月!L$49 -> 251742 | AS8: =給与台帳1月!L$50 -> 0 | AT8: =給与台帳1月!L$51 -> 251742 | AU8: =給与台帳1月!L$52 -> 一月もお疲れ様でした
B9: 1 | C9: =給与台帳1月!R$8 -> 3 | D9: =給与台帳1月!R$9 -> 今野 祥子 | E9: =給与台帳1月!R$10 -> 役員 | F9: =給与台帳1月!R$11 -> 甲欄 | G9: =給与台帳1月!R$12 -> 70 | H9: =給与台帳1月!R$13 -> 0 | I9: =給与台帳1月!R$14 -> 0 | J9: =給与台帳1月!R$15 -> 0 | K9: =給与台帳1月!R$16 -> 0 | L9: =給与台帳1月!R$17 -> 0 | M9: =給与台帳1月!R$18 -> 0 | N9: =給与台帳1月!R$19 -> 0 | O9: =給与台帳1月!R$20 -> 0 | P9: =給与台帳1月!R$21 -> 0 | Q9: =給与台帳1月!R$22 -> 0 | R9: =給与台帳1月!R$23 -> 0 | S9: =給与台帳1月!R$24 -> 80000 | T9: =給与台帳1月!R$25 -> 0 | U9: =給与台帳1月!R$26 -> 0 | V9: =給与台帳1月!R$27 -> 0 | W9: =給与台帳1月!R$28 -> 0 | X9: =給与台帳1月!R$29 -> 0 | Y9: =給与台帳1月!R$30 -> 0 | Z9: =給与台帳1月!R$31 -> 0 | AA9: =給与台帳1月!R$32 -> 0 | AB9: =給与台帳1月!R$33 -> 0 | AC9: =給与台帳1月!R$34 -> 80000 | AD9: =給与台帳1月!R$35 -> 0 | AE9: =給与台帳1月!R$36 -> 80000 | AF9: =給与台帳1月!R$37 -> 0 | AG9: =給与台帳1月!R$38 -> 0 | AH9: =給与台帳1月!R$39 -> 0 | AI9: =給与台帳1月!R$40 -> 0 | AJ9: =給与台帳1月!R$41 -> 0 | AK9: =給与台帳1月!R$42 -> 80000 | AL9: =給与台帳1月!R$43 -> 0 | AM9: =給与台帳1月!R$44 -> 0 | AN9: =給与台帳1月!R$45 -> 0 | AO9: =給与台帳1月!R$46 -> 0 | AP9: =給与台帳1月!R$47 -> 0 | AQ9: =給与台帳1月!R$48 -> 0 | AR9: =給与台帳1月!R$49 -> 80000 | AS9: =給与台帳1月!R$50 -> 0 | AT9: =給与台帳1月!R$51 -> 80000 | AU9: =給与台帳1月!R$52 -> 一月もお疲れ様でした
B10: 1 | C10: =給与台帳1月!X$8 -> 4 | D10: =給与台帳1月!X$9 -> 川西 めぐみ | E10: =給与台帳1月!X$10 -> 従業員（雇保加入） | F10: =給与台帳1月!X$11 -> 甲欄 | G10: =給与台帳1月!X$12 -> 48 | H10: =給与台帳1月!X$13 -> 1 | I10: =給与台帳1月!X$14 -> 220000 | J10: =給与台帳1月!X$15 -> 220000 | K10: =給与台帳1月!X$16 -> 21日 | L10: =給与台帳1月!X$17 -> 151時間 | M10: =給与台帳1月!X$18 -> 8時間 | N10: =給与台帳1月!X$19 -> 6時間 | O10: =給与台帳1月!X$20 -> 3時間 | P10: =給与台帳1月!X$21 -> 0 | Q10: =給与台帳1月!X$22 -> 1時間 | R10: =給与台帳1月!X$23 -> 0 | S10: =給与台帳1月!X$24 -> 0 | T10: =給与台帳1月!X$25 -> 225000 | U10: =給与台帳1月!X$26 -> 33597 | V10: =給与台帳1月!X$27 -> 0 | W10: =給与台帳1月!X$28 -> 0 | X10: =給与台帳1月!X$29 -> 0 | Y10: =給与台帳1月!X$30 -> 0 | Z10: =給与台帳1月!X$31 -> 0 | AA10: =給与台帳1月!X$32 -> 18370 | AB10: =給与台帳1月!X$33 -> 0 | AC10: =給与台帳1月!X$34 -> 258597 | AD10: =給与台帳1月!X$35 -> 18370 | AE10: =給与台帳1月!X$36 -> 276967 | AF10: =給与台帳1月!X$37 -> 10472 | AG10: =給与台帳1月!X$38 -> 1661 | AH10: =給与台帳1月!X$39 -> 18053 | AI10: =給与台帳1月!X$40 -> 1384 | AJ10: =給与台帳1月!X$41 -> 31570 | AK10: =給与台帳1月!X$42 -> 227027 | AL10: =給与台帳1月!X$43 -> 4170 | AM10: =給与台帳1月!X$44 -> 8500 | AN10: =給与台帳1月!X$45 -> 0 | AO10: =給与台帳1月!X$46 -> 0 | AP10: =給与台帳1月!X$47 -> 0 | AQ10: =給与台帳1月!X$48 -> 12670 | AR10: =給与台帳1月!X$49 -> 232727 | AS10: =給与台帳1月!X$50 -> 0 | AT10: =給与台帳1月!X$51 -> 232727 | AU10: =給与台帳1月!X$52 -> 一月もお疲れ様でした
B11: 1 | C11: =給与台帳1月!AD$8 -> 5 | D11: =給与台帳1月!AD$9 -> 鳥居 雅之 | E11: =給与台帳1月!AD$10 -> 従業員（雇保非加入） | F11: =給与台帳1月!AD$11 -> 乙欄 | G11: =給与台帳1月!AD$12 -> 34 | H11: =給与台帳1月!AD$13 -> 0 | I11: =給与台帳1月!AD$14 -> 0 | J11: =給与台帳1月!AD$15 -> 0 | K11: =給与台帳1月!AD$16 -> 9日 | L11: =給与台帳1月!AD$17 -> 36時間 | M11: =給与台帳1月!AD$18 -> 0 | N11: =給与台帳1月!AD$19 -> 0 | O11: =給与台帳1月!AD$20 -> 0 | P11: =給与台帳1月!AD$21 -> 0 | Q11: =給与台帳1月!AD$22 -> 0 | R11: =給与台帳1月!AD$23 -> 0 | S11: =給与台帳1月!AD$24 -> 0 | T11: =給与台帳1月!AD$25 -> 45000 | U11: =給与台帳1月!AD$26 -> 0 | V11: =給与台帳1月!AD$27 -> 0 | W11: =給与台帳1月!AD$28 -> 0 | X11: =給与台帳1月!AD$29 -> 0 | Y11: =給与台帳1月!AD$30 -> 0 | Z11: =給与台帳1月!AD$31 -> 0 | AA11: =給与台帳1月!AD$32 -> 10300 | AB11: =給与台帳1月!AD$33 -> 0 | AC11: =給与台帳1月!AD$34 -> 45000 | AD11: =給与台帳1月!AD$35 -> 10300 | AE11: =給与台帳1月!AD$36 -> 55300 | AF11: =給与台帳1月!AD$37 -> 0 | AG11: =給与台帳1月!AD$38 -> 0 | AH11: =給与台帳1月!AD$39 -> 0 | AI11: =給与台帳1月!AD$40 -> 0 | AJ11: =給与台帳1月!AD$41 -> 0 | AK11: =給与台帳1月!AD$42 -> 45000 | AL11: =給与台帳1月!AD$43 -> 1378 | AM11: =給与台帳1月!AD$44 -> 0 | AN11: =給与台帳1月!AD$45 -> 0 | AO11: =給与台帳1月!AD$46 -> 0 | AP11: =給与台帳1月!AD$47 -> 0 | AQ11: =給与台帳1月!AD$48 -> 1378 | AR11: =給与台帳1月!AD$49 -> 53922 | AS11: =給与台帳1月!AD$50 -> 0 | AT11: =給与台帳1月!AD$51 -> 53922 | AU11: =給与台帳1月!AD$52 -> 一月もお疲れ様でした
B12: 1 | C12: =給与台帳1月!AJ$8 -> 6 | D12: =給与台帳1月!AJ$9 -> 笹部 菜穂美 | E12: =給与台帳1月!AJ$10 -> 従業員（雇保加入） | F12: =給与台帳1月!AJ$11 -> 甲欄 | G12: =給与台帳1月!AJ$12 -> 30 | H12: =給与台帳1月!AJ$13 -> 0 | I12: =給与台帳1月!AJ$14 -> 0 | J12: =給与台帳1月!AJ$15 -> 0 | K12: =給与台帳1月!AJ$16 -> 0 | L12: =給与台帳1月!AJ$17 -> 0 | M12: =給与台帳1月!AJ$18 -> 0 | N12: =給与台帳1月!AJ$19 -> 0 | O12: =給与台帳1月!AJ$20 -> 0 | P12: =給与台帳1月!AJ$21 -> 0 | Q12: =給与台帳1月!AJ$22 -> 0 | R12: =給与台帳1月!AJ$23 -> 0 | S12: =給与台帳1月!AJ$24 -> 0 | T12: =給与台帳1月!AJ$25 -> 0 | U12: =給与台帳1月!AJ$26 -> 0 | V12: =給与台帳1月!AJ$27 -> 0 | W12: =給与台帳1月!AJ$28 -> 0 | X12: =給与台帳1月!AJ$29 -> 0 | Y12: =給与台帳1月!AJ$30 -> 0 | Z12: =給与台帳1月!AJ$31 -> 0 | AA12: =給与台帳1月!AJ$32 -> 0 | AB12: =給与台帳1月!AJ$33 -> 0 | AC12: =給与台帳1月!AJ$34 -> 0 | AD12: =給与台帳1月!AJ$35 -> 0 | AE12: =給与台帳1月!AJ$36 -> 0 | AF12: =給与台帳1月!AJ$37 -> 0 | AG12: =給与台帳1月!AJ$38 -> 0 | AH12: =給与台帳1月!AJ$39 -> 0 | AI12: =給与台帳1月!AJ$40 -> 0 | AJ12: =給与台帳1月!AJ$41 -> 0 | AK12: =給与台帳1月!AJ$42 -> 0 | AL12: =給与台帳1月!AJ$43 -> 0 | AM12: =給与台帳1月!AJ$44 -> 0 | AN12: =給与台帳1月!AJ$45 -> 0 | AO12: =給与台帳1月!AJ$46 -> 0 | AP12: =給与台帳1月!AJ$47 -> 0 | AQ12: =給与台帳1月!AJ$48 -> 0 | AR12: =給与台帳1月!AJ$49 -> 0 | AS12: =給与台帳1月!AJ$50 -> 0 | AT12: =給与台帳1月!AJ$51 -> 0 | AU12: =給与台帳1月!AJ$52 -> 一月もお疲れ様でした
B13: 1 | C13: =給与台帳1月!AP$8 -> 7 | D13: =給与台帳1月!AP$9 -> 絹延橋 みつ子 | E13: =給与台帳1月!AP$10 -> 従業員（雇保加入） | F13: =給与台帳1月!AP$11 -> 甲欄 | G13: =給与台帳1月!AP$12 -> 46 | H13: =給与台帳1月!AP$13 -> 1 | I13: =給与台帳1月!AP$14 -> 300000 | J13: =給与台帳1月!AP$15 -> 300000 | K13: =給与台帳1月!AP$16 -> 21日 | L13: =給与台帳1月!AP$17 -> 136時間 | M13: =給与台帳1月!AP$18 -> 0 | N13: =給与台帳1月!AP$19 -> 0 | O13: =給与台帳1月!AP$20 -> 0 | P13: =給与台帳1月!AP$21 -> 0 | Q13: =給与台帳1月!AP$22 -> 0 | R13: =給与台帳1月!AP$23 -> 0 | S13: =給与台帳1月!AP$24 -> 0 | T13: =給与台帳1月!AP$25 -> 300000 | U13: =給与台帳1月!AP$26 -> 0 | V13: =給与台帳1月!AP$27 -> 0 | W13: =給与台帳1月!AP$28 -> 0 | X13: =給与台帳1月!AP$29 -> 0 | Y13: =給与台帳1月!AP$30 -> 0 | Z13: =給与台帳1月!AP$31 -> 0 | AA13: =給与台帳1月!AP$32 -> 0 | AB13: =給与台帳1月!AP$33 -> 0 | AC13: =給与台帳1月!AP$34 -> 300000 | AD13: =給与台帳1月!AP$35 -> 0 | AE13: =給与台帳1月!AP$36 -> 300000 | AF13: =給与台帳1月!AP$37 -> 14280 | AG13: =給与台帳1月!AP$38 -> 0 | AH13: =給与台帳1月!AP$39 -> 24618 | AI13: =給与台帳1月!AP$40 -> 1500 | AJ13: =給与台帳1月!AP$41 -> 40398 | AK13: =給与台帳1月!AP$42 -> 259602 | AL13: =給与台帳1月!AP$43 -> 5240 | AM13: =給与台帳1月!AP$44 -> 11300 | AN13: =給与台帳1月!AP$45 -> 0 | AO13: =給与台帳1月!AP$46 -> 0 | AP13: =給与台帳1月!AP$47 -> 0 | AQ13: =給与台帳1月!AP$48 -> 16540 | AR13: =給与台帳1月!AP$49 -> 243062 | AS13: =給与台帳1月!AP$50 -> 0 | AT13: =給与台帳1月!AP$51 -> 243062 | AU13: =給与台帳1月!AP$52 -> 一月もお疲れ様でした
B14: 1 | C14: =給与台帳1月!AV$8 -> 8 | D14: =給与台帳1月!AV$9 -> 山下 崇 | E14: =給与台帳1月!AV$10 -> 従業員（雇保加入） | F14: =給与台帳1月!AV$11 -> 甲欄 | G14: =給与台帳1月!AV$12 -> 33 | H14: =給与台帳1月!AV$13 -> 0 | I14: =給与台帳1月!AV$14 -> 0 | J14: =給与台帳1月!AV$15 -> 0 | K14: =給与台帳1月!AV$16 -> 0 | L14: =給与台帳1月!AV$17 -> 0 | M14: =給与台帳1月!AV$18 -> 0 | N14: =給与台帳1月!AV$19 -> 0 | O14: =給与台帳1月!AV$20 -> 0 | P14: =給与台帳1月!AV$21 -> 0 | Q14: =給与台帳1月!AV$22 -> 0 | R14: =給与台帳1月!AV$23 -> 0 | S14: =給与台帳1月!AV$24 -> 0 | T14: =給与台帳1月!AV$25 -> 0 | U14: =給与台帳1月!AV$26 -> 0 | V14: =給与台帳1月!AV$27 -> 0 | W14: =給与台帳1月!AV$28 -> 0 | X14: =給与台帳1月!AV$29 -> 0 | Y14: =給与台帳1月!AV$30 -> 0 | Z14: =給与台帳1月!AV$31 -> 0 | AA14: =給与台帳1月!AV$32 -> 0 | AB14: =給与台帳1月!AV$33 -> 0 | AC14: =給与台帳1月!AV$34 -> 0 | AD14: =給与台帳1月!AV$35 -> 0 | AE14: =給与台帳1月!AV$36 -> 0 | AF14: =給与台帳1月!AV$37 -> 0 | AG14: =給与台帳1月!AV$38 -> 0 | AH14: =給与台帳1月!AV$39 -> 0 | AI14: =給与台帳1月!AV$40 -> 0 | AJ14: =給与台帳1月!AV$41 -> 0 | AK14: =給与台帳1月!AV$42 -> 0 | AL14: =給与台帳1月!AV$43 -> 0 | AM14: =給与台帳1月!AV$44 -> 0 | AN14: =給与台帳1月!AV$45 -> 0 | AO14: =給与台帳1月!AV$46 -> 0 | AP14: =給与台帳1月!AV$47 -> 0 | AQ14: =給与台帳1月!AV$48 -> 0 | AR14: =給与台帳1月!AV$49 -> 0 | AS14: =給与台帳1月!AV$50 -> 0 | AT14: =給与台帳1月!AV$51 -> 0 | AU14: =給与台帳1月!AV$52 -> 一月もお疲れ様でした
B15: 1 | C15: =給与台帳1月!BB$8 -> 9 | D15: =給与台帳1月!BB$9 ->  | E15: =給与台帳1月!BB$10 ->  | F15: =給与台帳1月!BB$11 ->  | G15: =給与台帳1月!BB$12 ->  | H15: =給与台帳1月!BB$13 -> 0 | I15: =給与台帳1月!BB$14 -> 0 | J15: =給与台帳1月!BB$15 -> 0 | K15: =給与台帳1月!BB$16 -> 0 | L15: =給与台帳1月!BB$17 -> 0 | M15: =給与台帳1月!BB$18 -> 0 | N15: =給与台帳1月!BB$19 -> 0 | O15: =給与台帳1月!BB$20 -> 0 | P15: =給与台帳1月!BB$21 -> 0 | Q15: =給与台帳1月!BB$22 -> 0 | R15: =給与台帳1月!BB$23 -> 0 | S15: =給与台帳1月!BB$24 -> 0 | T15: =給与台帳1月!BB$25 -> 0 | U15: =給与台帳1月!BB$26 -> 0 | V15: =給与台帳1月!BB$27 -> 0 | W15: =給与台帳1月!BB$28 -> 0 | X15: =給与台帳1月!BB$29 -> 0 | Y15: =給与台帳1月!BB$30 -> 0 | Z15: =給与台帳1月!BB$31 -> 0 | AA15: =給与台帳1月!BB$32 -> 0 | AB15: =給与台帳1月!BB$33 -> 0 | AC15: =給与台帳1月!BB$34 -> 0 | AD15: =給与台帳1月!BB$35 -> 0 | AE15: =給与台帳1月!BB$36 -> 0 | AF15: =給与台帳1月!BB$37 -> 0 | AG15: =給与台帳1月!BB$38 -> 0 | AH15: =給与台帳1月!BB$39 -> 0 | AI15: =給与台帳1月!BB$40 -> 0 | AJ15: =給与台帳1月!BB$41 -> 0 | AK15: =給与台帳1月!BB$42 -> 0 | AL15: =給与台帳1月!BB$43 -> 0 | AM15: =給与台帳1月!BB$44 -> 0 | AN15: =給与台帳1月!BB$45 -> 0 | AO15: =給与台帳1月!BB$46 -> 0 | AP15: =給与台帳1月!BB$47 -> 0 | AQ15: =給与台帳1月!BB$48 -> 0 | AR15: =給与台帳1月!BB$49 -> 0 | AS15: =給与台帳1月!BB$50 -> 0 | AT15: =給与台帳1月!BB$51 -> 0 | AU15: =給与台帳1月!BB$52 -> 一月もお疲れ様でした
B16: 1 | C16: =給与台帳1月!BH$8 -> 10 | D16: =給与台帳1月!BH$9 ->  | E16: =給与台帳1月!BH$10 ->  | F16: =給与台帳1月!BH$11 ->  | G16: =給与台帳1月!BH$12 ->  | H16: =給与台帳1月!BH$13 -> 0 | I16: =給与台帳1月!BH$14 -> 0 | J16: =給与台帳1月!BH$15 -> 0 | K16: =給与台帳1月!BH$16 -> 0 | L16: =給与台帳1月!BH$17 -> 0 | M16: =給与台帳1月!BH$18 -> 0 | N16: =給与台帳1月!BH$19 -> 0 | O16: =給与台帳1月!BH$20 -> 0 | P16: =給与台帳1月!BH$21 -> 0 | Q16: =給与台帳1月!BH$22 -> 0 | R16: =給与台帳1月!BH$23 -> 0 | S16: =給与台帳1月!BH$24 -> 0 | T16: =給与台帳1月!BH$25 -> 0 | U16: =給与台帳1月!BH$26 -> 0 | V16: =給与台帳1月!BH$27 -> 0 | W16: =給与台帳1月!BH$28 -> 0 | X16: =給与台帳1月!BH$29 -> 0 | Y16: =給与台帳1月!BH$30 -> 0 | Z16: =給与台帳1月!BH$31 -> 0 | AA16: =給与台帳1月!BH$32 -> 0 | AB16: =給与台帳1月!BH$33 -> 0 | AC16: =給与台帳1月!BH$34 -> 0 | AD16: =給与台帳1月!BH$35 -> 0 | AE16: =給与台帳1月!BH$36 -> 0 | AF16: =給与台帳1月!BH$37 -> 0 | AG16: =給与台帳1月!BH$38 -> 0 | AH16: =給与台帳1月!BH$39 -> 0 | AI16: =給与台帳1月!BH$40 -> 0 | AJ16: =給与台帳1月!BH$41 -> 0 | AK16: =給与台帳1月!BH$42 -> 0 | AL16: =給与台帳1月!BH$43 -> 0 | AM16: =給与台帳1月!BH$44 -> 0 | AN16: =給与台帳1月!BH$45 -> 0 | AO16: =給与台帳1月!BH$46 -> 0 | AP16: =給与台帳1月!BH$47 -> 0 | AQ16: =給与台帳1月!BH$48 -> 0 | AR16: =給与台帳1月!BH$49 -> 0 | AS16: =給与台帳1月!BH$50 -> 0 | AT16: =給与台帳1月!BH$51 -> 0 | AU16: =給与台帳1月!BH$52 -> 一月もお疲れ様でした
B17: 1 | C17: =給与台帳1月!BN$8 -> 11 | D17: =給与台帳1月!BN$9 ->  | E17: =給与台帳1月!BN$10 ->  | F17: =給与台帳1月!BN$11 ->  | G17: =給与台帳1月!BN$12 ->  | H17: =給与台帳1月!BN$13 -> 0 | I17: =給与台帳1月!BN$14 -> 0 | J17: =給与台帳1月!BN$15 -> 0 | K17: =給与台帳1月!BN$16 -> 0 | L17: =給与台帳1月!BN$17 -> 0 | M17: =給与台帳1月!BN$18 -> 0 | N17: =給与台帳1月!BN$19 -> 0 | O17: =給与台帳1月!BN$20 -> 0 | P17: =給与台帳1月!BN$21 -> 0 | Q17: =給与台帳1月!BN$22 -> 0 | R17: =給与台帳1月!BN$23 -> 0 | S17: =給与台帳1月!BN$24 -> 0 | T17: =給与台帳1月!BN$25 -> 0 | U17: =給与台帳1月!BN$26 -> 0 | V17: =給与台帳1月!BN$27 -> 0 | W17: =給与台帳1月!BN$28 -> 0 | X17: =給与台帳1月!BN$29 -> 0 | Y17: =給与台帳1月!BN$30 -> 0 | Z17: =給与台帳1月!BN$31 -> 0 | AA17: =給与台帳1月!BN$32 -> 0 | AB17: =給与台帳1月!BN$33 -> 0 | AC17: =給与台帳1月!BN$34 -> 0 | AD17: =給与台帳1月!BN$35 -> 0 | AE17: =給与台帳1月!BN$36 -> 0 | AF17: =給与台帳1月!BN$37 -> 0 | AG17: =給与台帳1月!BN$38 -> 0 | AH17: =給与台帳1月!BN$39 -> 0 | AI17: =給与台帳1月!BN$40 -> 0 | AJ17: =給与台帳1月!BN$41 -> 0 | AK17: =給与台帳1月!BN$42 -> 0 | AL17: =給与台帳1月!BN$43 -> 0 | AM17: =給与台帳1月!BN$44 -> 0 | AN17: =給与台帳1月!BN$45 -> 0 | AO17: =給与台帳1月!BN$46 -> 0 | AP17: =給与台帳1月!BN$47 -> 0 | AQ17: =給与台帳1月!BN$48 -> 0 | AR17: =給与台帳1月!BN$49 -> 0 | AS17: =給与台帳1月!BN$50 -> 0 | AT17: =給与台帳1月!BN$51 -> 0 | AU17: =給与台帳1月!BN$52 -> 一月もお疲れ様でした
B18: 1 | C18: =給与台帳1月!BT$8 -> 12 | D18: =給与台帳1月!BT$9 ->  | E18: =給与台帳1月!BT$10 ->  | F18: =給与台帳1月!BT$11 ->  | G18: =給与台帳1月!BT$12 ->  | H18: =給与台帳1月!BT$13 -> 0 | I18: =給与台帳1月!BT$14 -> 0 | J18: =給与台帳1月!BT$15 -> 0 | K18: =給与台帳1月!BT$16 -> 0 | L18: =給与台帳1月!BT$17 -> 0 | M18: =給与台帳1月!BT$18 -> 0 | N18: =給与台帳1月!BT$19 -> 0 | O18: =給与台帳1月!BT$20 -> 0 | P18: =給与台帳1月!BT$21 -> 0 | Q18: =給与台帳1月!BT$22 -> 0 | R18: =給与台帳1月!BT$23 -> 0 | S18: =給与台帳1月!BT$24 -> 0 | T18: =給与台帳1月!BT$25 -> 0 | U18: =給与台帳1月!BT$26 -> 0 | V18: =給与台帳1月!BT$27 -> 0 | W18: =給与台帳1月!BT$28 -> 0 | X18: =給与台帳1月!BT$29 -> 0 | Y18: =給与台帳1月!BT$30 -> 0 | Z18: =給与台帳1月!BT$31 -> 0 | AA18: =給与台帳1月!BT$32 -> 0 | AB18: =給与台帳1月!BT$33 -> 0 | AC18: =給与台帳1月!BT$34 -> 0 | AD18: =給与台帳1月!BT$35 -> 0 | AE18: =給与台帳1月!BT$36 -> 0 | AF18: =給与台帳1月!BT$37 -> 0 | AG18: =給与台帳1月!BT$38 -> 0 | AH18: =給与台帳1月!BT$39 -> 0 | AI18: =給与台帳1月!BT$40 -> 0 | AJ18: =給与台帳1月!BT$41 -> 0 | AK18: =給与台帳1月!BT$42 -> 0 | AL18: =給与台帳1月!BT$43 -> 0 | AM18: =給与台帳1月!BT$44 -> 0 | AN18: =給与台帳1月!BT$45 -> 0 | AO18: =給与台帳1月!BT$46 -> 0 | AP18: =給与台帳1月!BT$47 -> 0 | AQ18: =給与台帳1月!BT$48 -> 0 | AR18: =給与台帳1月!BT$49 -> 0 | AS18: =給与台帳1月!BT$50 -> 0 | AT18: =給与台帳1月!BT$51 -> 0 | AU18: =給与台帳1月!BT$52 -> 一月もお疲れ様でした
B19: 1 | C19: =給与台帳1月!BZ$8 -> 13 | D19: =給与台帳1月!BZ$9 ->  | E19: =給与台帳1月!BZ$10 ->  | F19: =給与台帳1月!BZ$11 ->  | G19: =給与台帳1月!BZ$12 ->  | H19: =給与台帳1月!BZ$13 -> 0 | I19: =給与台帳1月!BZ$14 -> 0 | J19: =給与台帳1月!BZ$15 -> 0 | K19: =給与台帳1月!BZ$16 -> 0 | L19: =給与台帳1月!BZ$17 -> 0 | M19: =給与台帳1月!BZ$18 -> 0 | N19: =給与台帳1月!BZ$19 -> 0 | O19: =給与台帳1月!BZ$20 -> 0 | P19: =給与台帳1月!BZ$21 -> 0 | Q19: =給与台帳1月!BZ$22 -> 0 | R19: =給与台帳1月!BZ$23 -> 0 | S19: =給与台帳1月!BZ$24 -> 0 | T19: =給与台帳1月!BZ$25 -> 0 | U19: =給与台帳1月!BZ$26 -> 0 | V19: =給与台帳1月!BZ$27 -> 0 | W19: =給与台帳1月!BZ$28 -> 0 | X19: =給与台帳1月!BZ$29 -> 0 | Y19: =給与台帳1月!BZ$30 -> 0 | Z19: =給与台帳1月!BZ$31 -> 0 | AA19: =給与台帳1月!BZ$32 -> 0 | AB19: =給与台帳1月!BZ$33 -> 0 | AC19: =給与台帳1月!BZ$34 -> 0 | AD19: =給与台帳1月!BZ$35 -> 0 | AE19: =給与台帳1月!BZ$36 -> 0 | AF19: =給与台帳1月!BZ$37 -> 0 | AG19: =給与台帳1月!BZ$38 -> 0 | AH19: =給与台帳1月!BZ$39 -> 0 | AI19: =給与台帳1月!BZ$40 -> 0 | AJ19: =給与台帳1月!BZ$41 -> 0 | AK19: =給与台帳1月!BZ$42 -> 0 | AL19: =給与台帳1月!BZ$43 -> 0 | AM19: =給与台帳1月!BZ$44 -> 0 | AN19: =給与台帳1月!BZ$45 -> 0 | AO19: =給与台帳1月!BZ$46 -> 0 | AP19: =給与台帳1月!BZ$47 -> 0 | AQ19: =給与台帳1月!BZ$48 -> 0 | AR19: =給与台帳1月!BZ$49 -> 0 | AS19: =給与台帳1月!BZ$50 -> 0 | AT19: =給与台帳1月!BZ$51 -> 0 | AU19: =給与台帳1月!BZ$52 -> 一月もお疲れ様でした
B20: 1 | C20: =給与台帳1月!CF$8 -> 14 | D20: =給与台帳1月!CF$9 ->  | E20: =給与台帳1月!CF$10 ->  | F20: =給与台帳1月!CF$11 ->  | G20: =給与台帳1月!CF$12 ->  | H20: =給与台帳1月!CF$13 -> 0 | I20: =給与台帳1月!CF$14 -> 0 | J20: =給与台帳1月!CF$15 -> 0 | K20: =給与台帳1月!CF$16 -> 0 | L20: =給与台帳1月!CF$17 -> 0 | M20: =給与台帳1月!CF$18 -> 0 | N20: =給与台帳1月!CF$19 -> 0 | O20: =給与台帳1月!CF$20 -> 0 | P20: =給与台帳1月!CF$21 -> 0 | Q20: =給与台帳1月!CF$22 -> 0 | R20: =給与台帳1月!CF$23 -> 0 | S20: =給与台帳1月!CF$24 -> 0 | T20: =給与台帳1月!CF$25 -> 0 | U20: =給与台帳1月!CF$26 -> 0 | V20: =給与台帳1月!CF$27 -> 0 | W20: =給与台帳1月!CF$28 -> 0 | X20: =給与台帳1月!CF$29 -> 0 | Y20: =給与台帳1月!CF$30 -> 0 | Z20: =給与台帳1月!CF$31 -> 0 | AA20: =給与台帳1月!CF$32 -> 0 | AB20: =給与台帳1月!CF$33 -> 0 | AC20: =給与台帳1月!CF$34 -> 0 | AD20: =給与台帳1月!CF$35 -> 0 | AE20: =給与台帳1月!CF$36 -> 0 | AF20: =給与台帳1月!CF$37 -> 0 | AG20: =給与台帳1月!CF$38 -> 0 | AH20: =給与台帳1月!CF$39 -> 0 | AI20: =給与台帳1月!CF$40 -> 0 | AJ20: =給与台帳1月!CF$41 -> 0 | AK20: =給与台帳1月!CF$42 -> 0 | AL20: =給与台帳1月!CF$43 -> 0 | AM20: =給与台帳1月!CF$44 -> 0 | AN20: =給与台帳1月!CF$45 -> 0 | AO20: =給与台帳1月!CF$46 -> 0 | AP20: =給与台帳1月!CF$47 -> 0 | AQ20: =給与台帳1月!CF$48 -> 0 | AR20: =給与台帳1月!CF$49 -> 0 | AS20: =給与台帳1月!CF$50 -> 0 | AT20: =給与台帳1月!CF$51 -> 0 | AU20: =給与台帳1月!CF$52 -> 一月もお疲れ様でした
B21: 1 | C21: =給与台帳1月!CL$8 -> 15 | D21: =給与台帳1月!CL$9 ->  | E21: =給与台帳1月!CL$10 ->  | F21: =給与台帳1月!CL$11 ->  | G21: =給与台帳1月!CL$12 ->  | H21: =給与台帳1月!CL$13 -> 0 | I21: =給与台帳1月!CL$14 -> 0 | J21: =給与台帳1月!CL$15 -> 0 | K21: =給与台帳1月!CL$16 -> 0 | L21: =給与台帳1月!CL$17 -> 0 | M21: =給与台帳1月!CL$18 -> 0 | N21: =給与台帳1月!CL$19 -> 0 | O21: =給与台帳1月!CL$20 -> 0 | P21: =給与台帳1月!CL$21 -> 0 | Q21: =給与台帳1月!CL$22 -> 0 | R21: =給与台帳1月!CL$23 -> 0 | S21: =給与台帳1月!CL$24 -> 0 | T21: =給与台帳1月!CL$25 -> 0 | U21: =給与台帳1月!CL$26 -> 0 | V21: =給与台帳1月!CL$27 -> 0 | W21: =給与台帳1月!CL$28 -> 0 | X21: =給与台帳1月!CL$29 -> 0 | Y21: =給与台帳1月!CL$30 -> 0 | Z21: =給与台帳1月!CL$31 -> 0 | AA21: =給与台帳1月!CL$32 -> 0 | AB21: =給与台帳1月!CL$33 -> 0 | AC21: =給与台帳1月!CL$34 -> 0 | AD21: =給与台帳1月!CL$35 -> 0 | AE21: =給与台帳1月!CL$36 -> 0 | AF21: =給与台帳1月!CL$37 -> 0 | AG21: =給与台帳1月!CL$38 -> 0 | AH21: =給与台帳1月!CL$39 -> 0 | AI21: =給与台帳1月!CL$40 -> 0 | AJ21: =給与台帳1月!CL$41 -> 0 | AK21: =給与台帳1月!CL$42 -> 0 | AL21: =給与台帳1月!CL$43 -> 0 | AM21: =給与台帳1月!CL$44 -> 0 | AN21: =給与台帳1月!CL$45 -> 0 | AO21: =給与台帳1月!CL$46 -> 0 | AP21: =給与台帳1月!CL$47 -> 0 | AQ21: =給与台帳1月!CL$48 -> 0 | AR21: =給与台帳1月!CL$49 -> 0 | AS21: =給与台帳1月!CL$50 -> 0 | AT21: =給与台帳1月!CL$51 -> 0 | AU21: =給与台帳1月!CL$52 -> 一月もお疲れ様でした
B22: 1 | C22: =給与台帳1月!CR$8 -> 16 | D22: =給与台帳1月!CR$9 ->  | E22: =給与台帳1月!CR$10 ->  | F22: =給与台帳1月!CR$11 ->  | G22: =給与台帳1月!CR$12 ->  | H22: =給与台帳1月!CR$13 -> 0 | I22: =給与台帳1月!CR$14 -> 0 | J22: =給与台帳1月!CR$15 -> 0 | K22: =給与台帳1月!CR$16 -> 0 | L22: =給与台帳1月!CR$17 -> 0 | M22: =給与台帳1月!CR$18 -> 0 | N22: =給与台帳1月!CR$19 -> 0 | O22: =給与台帳1月!CR$20 -> 0 | P22: =給与台帳1月!CR$21 -> 0 | Q22: =給与台帳1月!CR$22 -> 0 | R22: =給与台帳1月!CR$23 -> 0 | S22: =給与台帳1月!CR$24 -> 0 | T22: =給与台帳1月!CR$25 -> 0 | U22: =給与台帳1月!CR$26 -> 0 | V22: =給与台帳1月!CR$27 -> 0 | W22: =給与台帳1月!CR$28 -> 0 | X22: =給与台帳1月!CR$29 -> 0 | Y22: =給与台帳1月!CR$30 -> 0 | Z22: =給与台帳1月!CR$31 -> 0 | AA22: =給与台帳1月!CR$32 -> 0 | AB22: =給与台帳1月!CR$33 -> 0 | AC22: =給与台帳1月!CR$34 -> 0 | AD22: =給与台帳1月!CR$35 -> 0 | AE22: =給与台帳1月!CR$36 -> 0 | AF22: =給与台帳1月!CR$37 -> 0 | AG22: =給与台帳1月!CR$38 -> 0 | AH22: =給与台帳1月!CR$39 -> 0 | AI22: =給与台帳1月!CR$40 -> 0 | AJ22: =給与台帳1月!CR$41 -> 0 | AK22: =給与台帳1月!CR$42 -> 0 | AL22: =給与台帳1月!CR$43 -> 0 | AM22: =給与台帳1月!CR$44 -> 0 | AN22: =給与台帳1月!CR$45 -> 0 | AO22: =給与台帳1月!CR$46 -> 0 | AP22: =給与台帳1月!CR$47 -> 0 | AQ22: =給与台帳1月!CR$48 -> 0 | AR22: =給与台帳1月!CR$49 -> 0 | AS22: =給与台帳1月!CR$50 -> 0 | AT22: =給与台帳1月!CR$51 -> 0 | AU22: =給与台帳1月!CR$52 -> 一月もお疲れ様でした
B23: 1 | C23: =給与台帳1月!CX$8 -> 17 | D23: =給与台帳1月!CX$9 ->  | E23: =給与台帳1月!CX$10 ->  | F23: =給与台帳1月!CX$11 ->  | G23: =給与台帳1月!CX$12 ->  | H23: =給与台帳1月!CX$13 -> 0 | I23: =給与台帳1月!CX$14 -> 0 | J23: =給与台帳1月!CX$15 -> 0 | K23: =給与台帳1月!CX$16 -> 0 | L23: =給与台帳1月!CX$17 -> 0 | M23: =給与台帳1月!CX$18 -> 0 | N23: =給与台帳1月!CX$19 -> 0 | O23: =給与台帳1月!CX$20 -> 0 | P23: =給与台帳1月!CX$21 -> 0 | Q23: =給与台帳1月!CX$22 -> 0 | R23: =給与台帳1月!CX$23 -> 0 | S23: =給与台帳1月!CX$24 -> 0 | T23: =給与台帳1月!CX$25 -> 0 | U23: =給与台帳1月!CX$26 -> 0 | V23: =給与台帳1月!CX$27 -> 0 | W23: =給与台帳1月!CX$28 -> 0 | X23: =給与台帳1月!CX$29 -> 0 | Y23: =給与台帳1月!CX$30 -> 0 | Z23: =給与台帳1月!CX$31 -> 0 | AA23: =給与台帳1月!CX$32 -> 0 | AB23: =給与台帳1月!CX$33 -> 0 | AC23: =給与台帳1月!CX$34 -> 0 | AD23: =給与台帳1月!CX$35 -> 0 | AE23: =給与台帳1月!CX$36 -> 0 | AF23: =給与台帳1月!CX$37 -> 0 | AG23: =給与台帳1月!CX$38 -> 0 | AH23: =給与台帳1月!CX$39 -> 0 | AI23: =給与台帳1月!CX$40 -> 0 | AJ23: =給与台帳1月!CX$41 -> 0 | AK23: =給与台帳1月!CX$42 -> 0 | AL23: =給与台帳1月!CX$43 -> 0 | AM23: =給与台帳1月!CX$44 -> 0 | AN23: =給与台帳1月!CX$45 -> 0 | AO23: =給与台帳1月!CX$46 -> 0 | AP23: =給与台帳1月!CX$47 -> 0 | AQ23: =給与台帳1月!CX$48 -> 0 | AR23: =給与台帳1月!CX$49 -> 0 | AS23: =給与台帳1月!CX$50 -> 0 | AT23: =給与台帳1月!CX$51 -> 0 | AU23: =給与台帳1月!CX$52 -> 一月もお疲れ様でした
B24: 1 | C24: =給与台帳1月!DD$8 -> 18 | D24: =給与台帳1月!DD$9 ->  | E24: =給与台帳1月!DD$10 ->  | F24: =給与台帳1月!DD$11 ->  | G24: =給与台帳1月!DD$12 ->  | H24: =給与台帳1月!DD$13 -> 0 | I24: =給与台帳1月!DD$14 -> 0 | J24: =給与台帳1月!DD$15 -> 0 | K24: =給与台帳1月!DD$16 -> 0 | L24: =給与台帳1月!DD$17 -> 0 | M24: =給与台帳1月!DD$18 -> 0 | N24: =給与台帳1月!DD$19 -> 0 | O24: =給与台帳1月!DD$20 -> 0 | P24: =給与台帳1月!DD$21 -> 0 | Q24: =給与台帳1月!DD$22 -> 0 | R24: =給与台帳1月!DD$23 -> 0 | S24: =給与台帳1月!DD$24 -> 0 | T24: =給与台帳1月!DD$25 -> 0 | U24: =給与台帳1月!DD$26 -> 0 | V24: =給与台帳1月!DD$27 -> 0 | W24: =給与台帳1月!DD$28 -> 0 | X24: =給与台帳1月!DD$29 -> 0 | Y24: =給与台帳1月!DD$30 -> 0 | Z24: =給与台帳1月!DD$31 -> 0 | AA24: =給与台帳1月!DD$32 -> 0 | AB24: =給与台帳1月!DD$33 -> 0 | AC24: =給与台帳1月!DD$34 -> 0 | AD24: =給与台帳1月!DD$35 -> 0 | AE24: =給与台帳1月!DD$36 -> 0 | AF24: =給与台帳1月!DD$37 -> 0 | AG24: =給与台帳1月!DD$38 -> 0 | AH24: =給与台帳1月!DD$39 -> 0 | AI24: =給与台帳1月!DD$40 -> 0 | AJ24: =給与台帳1月!DD$41 -> 0 | AK24: =給与台帳1月!DD$42 -> 0 | AL24: =給与台帳1月!DD$43 -> 0 | AM24: =給与台帳1月!DD$44 -> 0 | AN24: =給与台帳1月!DD$45 -> 0 | AO24: =給与台帳1月!DD$46 -> 0 | AP24: =給与台帳1月!DD$47 -> 0 | AQ24: =給与台帳1月!DD$48 -> 0 | AR24: =給与台帳1月!DD$49 -> 0 | AS24: =給与台帳1月!DD$50 -> 0 | AT24: =給与台帳1月!DD$51 -> 0 | AU24: =給与台帳1月!DD$52 -> 一月もお疲れ様でした
B25: 1
B26: 1
B27: 2 | C27: =給与台帳2月!F$8 -> 1 | D27: =給与台帳2月!F$9 -> 今野 友夫 | E27: =給与台帳2月!F$10 -> 役員 | F27: =給与台帳2月!F$11 -> 甲欄 | G27: =給与台帳2月!F$12 -> 44 | H27: =給与台帳2月!F$13 -> 1 | I27: =給与台帳2月!F$14 -> 500000 | J27: =給与台帳2月!F$15 -> 500000 | K27: =給与台帳2月!F$16 -> 0 | L27: =給与台帳2月!F$17 -> 0 | M27: =給与台帳2月!F$18 -> 0 | N27: =給与台帳2月!F$19 -> 0 | O27: =給与台帳2月!F$20 -> 0 | P27: =給与台帳2月!F$21 -> 0 | Q27: =給与台帳2月!F$22 -> 0 | R27: =給与台帳2月!F$23 -> 0 | S27: =給与台帳2月!F$24 -> 500000 | T27: =給与台帳2月!F$25 -> 0 | U27: =給与台帳2月!F$26 -> 0 | V27: =給与台帳2月!F$27 -> 0 | W27: =給与台帳2月!F$28 -> 0 | X27: =給与台帳2月!F$29 -> 0 | Y27: =給与台帳2月!F$30 -> 0 | Z27: =給与台帳2月!F$31 -> 0 | AA27: =給与台帳2月!F$32 -> 10000 | AB27: =給与台帳2月!F$33 -> 0 | AC27: =給与台帳2月!F$34 -> 500000 | AD27: =給与台帳2月!F$35 -> 10000 | AE27: =給与台帳2月!F$36 -> 510000 | AF27: =給与台帳2月!F$37 -> 23800 | AG27: =給与台帳2月!F$38 -> 0 | AH27: =給与台帳2月!F$39 -> 41030 | AI27: =給与台帳2月!F$40 -> 0 | AJ27: =給与台帳2月!F$41 -> 64830 | AK27: =給与台帳2月!F$42 -> 435170 | AL27: =給与台帳2月!F$43 -> 16190 | AM27: =給与台帳2月!F$44 -> 22300 | AN27: =給与台帳2月!F$45 -> 0 | AO27: =給与台帳2月!F$46 -> 0 | AP27: =給与台帳2月!F$47 -> 0 | AQ27: =給与台帳2月!F$48 -> 38490 | AR27: =給与台帳2月!F$49 -> 406680 | AS27: =給与台帳2月!F$50 -> 0 | AT27: =給与台帳2月!F$51 -> 406680 | AU27: =給与台帳2月!F$52 -> 二月もお疲れ様でした
B28: 2 | C28: =給与台帳2月!L$8 -> 2 | D28: =給与台帳2月!L$9 -> 今野 朝子 | E28: =給与台帳2月!L$10 -> 役員 | F28: =給与台帳2月!L$11 -> 甲欄 | G28: =給与台帳2月!L$12 -> 39 | H28: =給与台帳2月!L$13 -> 0 | I28: =給与台帳2月!L$14 -> 300000 | J28: =給与台帳2月!L$15 -> 300000 | K28: =給与台帳2月!L$16 -> 0 | L28: =給与台帳2月!L$17 -> 0 | M28: =給与台帳2月!L$18 -> 0 | N28: =給与台帳2月!L$19 -> 0 | O28: =給与台帳2月!L$20 -> 0 | P28: =給与台帳2月!L$21 -> 0 | Q28: =給与台帳2月!L$22 -> 0 | R28: =給与台帳2月!L$23 -> 0 | S28: =給与台帳2月!L$24 -> 300000 | T28: =給与台帳2月!L$25 -> 0 | U28: =給与台帳2月!L$26 -> 0 | V28: =給与台帳2月!L$27 -> 0 | W28: =給与台帳2月!L$28 -> 0 | X28: =給与台帳2月!L$29 -> 0 | Y28: =給与台帳2月!L$30 -> 0 | Z28: =給与台帳2月!L$31 -> 0 | AA28: =給与台帳2月!L$32 -> 10000 | AB28: =給与台帳2月!L$33 -> 0 | AC28: =給与台帳2月!L$34 -> 300000 | AD28: =給与台帳2月!L$35 -> 10000 | AE28: =給与台帳2月!L$36 -> 310000 | AF28: =給与台帳2月!L$37 -> 14280 | AG28: =給与台帳2月!L$38 -> 0 | AH28: =給与台帳2月!L$39 -> 24618 | AI28: =給与台帳2月!L$40 -> 0 | AJ28: =給与台帳2月!L$41 -> 38898 | AK28: =給与台帳2月!L$42 -> 261102 | AL28: =給与台帳2月!L$43 -> 6950 | AM28: =給与台帳2月!L$44 -> 12400 | AN28: =給与台帳2月!L$45 -> 0 | AO28: =給与台帳2月!L$46 -> 0 | AP28: =給与台帳2月!L$47 -> 0 | AQ28: =給与台帳2月!L$48 -> 19350 | AR28: =給与台帳2月!L$49 -> 251752 | AS28: =給与台帳2月!L$50 -> 0 | AT28: =給与台帳2月!L$51 -> 251752 | AU28: =給与台帳2月!L$52 -> 二月もお疲れ様でした
B29: 2 | C29: =給与台帳2月!R$8 -> 3 | D29: =給与台帳2月!R$9 -> 今野 祥子 | E29: =給与台帳2月!R$10 -> 役員 | F29: =給与台帳2月!R$11 -> 甲欄 | G29: =給与台帳2月!R$12 -> 70 | H29: =給与台帳2月!R$13 -> 0 | I29: =給与台帳2月!R$14 -> 0 | J29: =給与台帳2月!R$15 -> 0 | K29: =給与台帳2月!R$16 -> 0 | L29: =給与台帳2月!R$17 -> 0 | M29: =給与台帳2月!R$18 -> 0 | N29: =給与台帳2月!R$19 -> 0 | O29: =給与台帳2月!R$20 -> 0 | P29: =給与台帳2月!R$21 -> 0 | Q29: =給与台帳2月!R$22 -> 0 | R29: =給与台帳2月!R$23 -> 0 | S29: =給与台帳2月!R$24 -> 80000 | T29: =給与台帳2月!R$25 -> 0 | U29: =給与台帳2月!R$26 -> 0 | V29: =給与台帳2月!R$27 -> 0 | W29: =給与台帳2月!R$28 -> 0 | X29: =給与台帳2月!R$29 -> 0 | Y29: =給与台帳2月!R$30 -> 0 | Z29: =給与台帳2月!R$31 -> 0 | AA29: =給与台帳2月!R$32 -> 0 | AB29: =給与台帳2月!R$33 -> 0 | AC29: =給与台帳2月!R$34 -> 80000 | AD29: =給与台帳2月!R$35 -> 0 | AE29: =給与台帳2月!R$36 -> 80000 | AF29: =給与台帳2月!R$37 -> 0 | AG29: =給与台帳2月!R$38 -> 0 | AH29: =給与台帳2月!R$39 -> 0 | AI29: =給与台帳2月!R$40 -> 0 | AJ29: =給与台帳2月!R$41 -> 0 | AK29: =給与台帳2月!R$42 -> 80000 | AL29: =給与台帳2月!R$43 -> 0 | AM29: =給与台帳2月!R$44 -> 0 | AN29: =給与台帳2月!R$45 -> 0 | AO29: =給与台帳2月!R$46 -> 0 | AP29: =給与台帳2月!R$47 -> 0 | AQ29: =給与台帳2月!R$48 -> 0 | AR29: =給与台帳2月!R$49 -> 80000 | AS29: =給与台帳2月!R$50 -> 0 | AT29: =給与台帳2月!R$51 -> 80000 | AU29: =給与台帳2月!R$52 -> 二月もお疲れ様でした
B30: 2 | C30: =給与台帳2月!X$8 -> 4 | D30: =給与台帳2月!X$9 -> 川西 めぐみ | E30: =給与台帳2月!X$10 -> 従業員（雇保加入） | F30: =給与台帳2月!X$11 -> 甲欄 | G30: =給与台帳2月!X$12 -> 48 | H30: =給与台帳2月!X$13 -> 1 | I30: =給与台帳2月!X$14 -> 220000 | J30: =給与台帳2月!X$15 -> 220000 | K30: =給与台帳2月!X$16 -> 19日 | L30: =給与台帳2月!X$17 -> 142時間 | M30: =給与台帳2月!X$18 -> 3時間 | N30: =給与台帳2月!X$19 -> 6時間 | O30: =給与台帳2月!X$20 -> 0 | P30: =給与台帳2月!X$21 -> 0 | Q30: =給与台帳2月!X$22 -> 0 | R30: =給与台帳2月!X$23 -> 0 | S30: =給与台帳2月!X$24 -> 0 | T30: =給与台帳2月!X$25 -> 225000 | U30: =給与台帳2月!X$26 -> 16758 | V30: =給与台帳2月!X$27 -> 0 | W30: =給与台帳2月!X$28 -> 0 | X30: =給与台帳2月!X$29 -> 0 | Y30: =給与台帳2月!X$30 -> 0 | Z30: =給与台帳2月!X$31 -> 0 | AA30: =給与台帳2月!X$32 -> 18370 | AB30: =給与台帳2月!X$33 -> 0 | AC30: =給与台帳2月!X$34 -> 241758 | AD30: =給与台帳2月!X$35 -> 18370 | AE30: =給与台帳2月!X$36 -> 260128 | AF30: =給与台帳2月!X$37 -> 10472 | AG30: =給与台帳2月!X$38 -> 1661 | AH30: =給与台帳2月!X$39 -> 18053 | AI30: =給与台帳2月!X$40 -> 1300 | AJ30: =給与台帳2月!X$41 -> 31486 | AK30: =給与台帳2月!X$42 -> 210272 | AL30: =給与台帳2月!X$43 -> 3520 | AM30: =給与台帳2月!X$44 -> 8500 | AN30: =給与台帳2月!X$45 -> 0 | AO30: =給与台帳2月!X$46 -> 0 | AP30: =給与台帳2月!X$47 -> 0 | AQ30: =給与台帳2月!X$48 -> 12020 | AR30: =給与台帳2月!X$49 -> 216622 | AS30: =給与台帳2月!X$50 -> 0 | AT30: =給与台帳2月!X$51 -> 216622 | AU30: =給与台帳2月!X$52 -> 二月もお疲れ様でした
B31: 2 | C31: =給与台帳2月!AD$8 -> 5 | D31: =給与台帳2月!AD$9 -> 鳥居 雅之 | E31: =給与台帳2月!AD$10 -> 従業員（雇保非加入） | F31: =給与台帳2月!AD$11 -> 乙欄 | G31: =給与台帳2月!AD$12 -> 34 | H31: =給与台帳2月!AD$13 -> 0 | I31: =給与台帳2月!AD$14 -> 0 | J31: =給与台帳2月!AD$15 -> 0 | K31: =給与台帳2月!AD$16 -> 9日 | L31: =給与台帳2月!AD$17 -> 36時間 | M31: =給与台帳2月!AD$18 -> 0 | N31: =給与台帳2月!AD$19 -> 0 | O31: =給与台帳2月!AD$20 -> 0 | P31: =給与台帳2月!AD$21 -> 0 | Q31: =給与台帳2月!AD$22 -> 0 | R31: =給与台帳2月!AD$23 -> 0 | S31: =給与台帳2月!AD$24 -> 0 | T31: =給与台帳2月!AD$25 -> 45000 | U31: =給与台帳2月!AD$26 -> 0 | V31: =給与台帳2月!AD$27 -> 0 | W31: =給与台帳2月!AD$28 -> 0 | X31: =給与台帳2月!AD$29 -> 0 | Y31: =給与台帳2月!AD$30 -> 0 | Z31: =給与台帳2月!AD$31 -> 0 | AA31: =給与台帳2月!AD$32 -> 0 | AB31: =給与台帳2月!AD$33 -> 0 | AC31: =給与台帳2月!AD$34 -> 45000 | AD31: =給与台帳2月!AD$35 -> 0 | AE31: =給与台帳2月!AD$36 -> 45000 | AF31: =給与台帳2月!AD$37 -> 0 | AG31: =給与台帳2月!AD$38 -> 0 | AH31: =給与台帳2月!AD$39 -> 0 | AI31: =給与台帳2月!AD$40 -> 0 | AJ31: =給与台帳2月!AD$41 -> 0 | AK31: =給与台帳2月!AD$42 -> 45000 | AL31: =給与台帳2月!AD$43 -> 1378 | AM31: =給与台帳2月!AD$44 -> 0 | AN31: =給与台帳2月!AD$45 -> 0 | AO31: =給与台帳2月!AD$46 -> 0 | AP31: =給与台帳2月!AD$47 -> 0 | AQ31: =給与台帳2月!AD$48 -> 1378 | AR31: =給与台帳2月!AD$49 -> 43622 | AS31: =給与台帳2月!AD$50 -> 0 | AT31: =給与台帳2月!AD$51 -> 43622 | AU31: =給与台帳2月!AD$52 -> 二月もお疲れ様でした
B32: 2 | C32: =給与台帳2月!AJ$8 -> 6 | D32: =給与台帳2月!AJ$9 -> 笹部 菜穂美 | E32: =給与台帳2月!AJ$10 -> 従業員（雇保加入） | F32: =給与台帳2月!AJ$11 -> 甲欄 | G32: =給与台帳2月!AJ$12 -> 30 | H32: =給与台帳2月!AJ$13 -> 0 | I32: =給与台帳2月!AJ$14 -> 0 | J32: =給与台帳2月!AJ$15 -> 0 | K32: =給与台帳2月!AJ$16 -> 0 | L32: =給与台帳2月!AJ$17 -> 0 | M32: =給与台帳2月!AJ$18 -> 0 | N32: =給与台帳2月!AJ$19 -> 0 | O32: =給与台帳2月!AJ$20 -> 0 | P32: =給与台帳2月!AJ$21 -> 0 | Q32: =給与台帳2月!AJ$22 -> 0 | R32: =給与台帳2月!AJ$23 -> 0 | S32: =給与台帳2月!AJ$24 -> 0 | T32: =給与台帳2月!AJ$25 -> 0 | U32: =給与台帳2月!AJ$26 -> 0 | V32: =給与台帳2月!AJ$27 -> 0 | W32: =給与台帳2月!AJ$28 -> 0 | X32: =給与台帳2月!AJ$29 -> 0 | Y32: =給与台帳2月!AJ$30 -> 0 | Z32: =給与台帳2月!AJ$31 -> 0 | AA32: =給与台帳2月!AJ$32 -> 0 | AB32: =給与台帳2月!AJ$33 -> 0 | AC32: =給与台帳2月!AJ$34 -> 0 | AD32: =給与台帳2月!AJ$35 -> 0 | AE32: =給与台帳2月!AJ$36 -> 0 | AF32: =給与台帳2月!AJ$37 -> 0 | AG32: =給与台帳2月!AJ$38 -> 0 | AH32: =給与台帳2月!AJ$39 -> 0 | AI32: =給与台帳2月!AJ$40 -> 0 | AJ32: =給与台帳2月!AJ$41 -> 0 | AK32: =給与台帳2月!AJ$42 -> 0 | AL32: =給与台帳2月!AJ$43 -> 0 | AM32: =給与台帳2月!AJ$44 -> 0 | AN32: =給与台帳2月!AJ$45 -> 0 | AO32: =給与台帳2月!AJ$46 -> 0 | AP32: =給与台帳2月!AJ$47 -> 0 | AQ32: =給与台帳2月!AJ$48 -> 0 | AR32: =給与台帳2月!AJ$49 -> 0 | AS32: =給与台帳2月!AJ$50 -> 0 | AT32: =給与台帳2月!AJ$51 -> 0 | AU32: =給与台帳2月!AJ$52 -> 二月もお疲れ様でした
B33: 2 | C33: =給与台帳2月!AP$8 -> 7 | D33: =給与台帳2月!AP$9 -> 絹延橋 みつ子 | E33: =給与台帳2月!AP$10 -> 従業員（雇保加入） | F33: =給与台帳2月!AP$11 -> 甲欄 | G33: =給与台帳2月!AP$12 -> 46 | H33: =給与台帳2月!AP$13 -> 1 | I33: =給与台帳2月!AP$14 -> 300000 | J33: =給与台帳2月!AP$15 -> 300000 | K33: =給与台帳2月!AP$16 -> 19日 | L33: =給与台帳2月!AP$17 -> 133時間 | M33: =給与台帳2月!AP$18 -> 0 | N33: =給与台帳2月!AP$19 -> 0 | O33: =給与台帳2月!AP$20 -> 0 | P33: =給与台帳2月!AP$21 -> 0 | Q33: =給与台帳2月!AP$22 -> 0 | R33: =給与台帳2月!AP$23 -> 0 | S33: =給与台帳2月!AP$24 -> 0 | T33: =給与台帳2月!AP$25 -> 300000 | U33: =給与台帳2月!AP$26 -> 0 | V33: =給与台帳2月!AP$27 -> 0 | W33: =給与台帳2月!AP$28 -> 0 | X33: =給与台帳2月!AP$29 -> 0 | Y33: =給与台帳2月!AP$30 -> 0 | Z33: =給与台帳2月!AP$31 -> 0 | AA33: =給与台帳2月!AP$32 -> 0 | AB33: =給与台帳2月!AP$33 -> 0 | AC33: =給与台帳2月!AP$34 -> 300000 | AD33: =給与台帳2月!AP$35 -> 0 | AE33: =給与台帳2月!AP$36 -> 300000 | AF33: =給与台帳2月!AP$37 -> 14280 | AG33: =給与台帳2月!AP$38 -> 0 | AH33: =給与台帳2月!AP$39 -> 24618 | AI33: =給与台帳2月!AP$40 -> 1500 | AJ33: =給与台帳2月!AP$41 -> 40398 | AK33: =給与台帳2月!AP$42 -> 259602 | AL33: =給与台帳2月!AP$43 -> 5280 | AM33: =給与台帳2月!AP$44 -> 11300 | AN33: =給与台帳2月!AP$45 -> 0 | AO33: =給与台帳2月!AP$46 -> 0 | AP33: =給与台帳2月!AP$47 -> 0 | AQ33: =給与台帳2月!AP$48 -> 16580 | AR33: =給与台帳2月!AP$49 -> 243022 | AS33: =給与台帳2月!AP$50 -> 0 | AT33: =給与台帳2月!AP$51 -> 243022 | AU33: =給与台帳2月!AP$52 -> 二月もお疲れ様でした
B34: 2 | C34: =給与台帳2月!AV$8 -> 8 | D34: =給与台帳2月!AV$9 -> 山下 崇 | E34: =給与台帳2月!AV$10 -> 従業員（雇保加入） | F34: =給与台帳2月!AV$11 -> 甲欄 | G34: =給与台帳2月!AV$12 -> 33 | H34: =給与台帳2月!AV$13 -> 0 | I34: =給与台帳2月!AV$14 -> 0 | J34: =給与台帳2月!AV$15 -> 0 | K34: =給与台帳2月!AV$16 -> 0 | L34: =給与台帳2月!AV$17 -> 0 | M34: =給与台帳2月!AV$18 -> 0 | N34: =給与台帳2月!AV$19 -> 0 | O34: =給与台帳2月!AV$20 -> 0 | P34: =給与台帳2月!AV$21 -> 0 | Q34: =給与台帳2月!AV$22 -> 0 | R34: =給与台帳2月!AV$23 -> 0 | S34: =給与台帳2月!AV$24 -> 0 | T34: =給与台帳2月!AV$25 -> 0 | U34: =給与台帳2月!AV$26 -> 0 | V34: =給与台帳2月!AV$27 -> 0 | W34: =給与台帳2月!AV$28 -> 0 | X34: =給与台帳2月!AV$29 -> 0 | Y34: =給与台帳2月!AV$30 -> 0 | Z34: =給与台帳2月!AV$31 -> 0 | AA34: =給与台帳2月!AV$32 -> 0 | AB34: =給与台帳2月!AV$33 -> 0 | AC34: =給与台帳2月!AV$34 -> 0 | AD34: =給与台帳2月!AV$35 -> 0 | AE34: =給与台帳2月!AV$36 -> 0 | AF34: =給与台帳2月!AV$37 -> 0 | AG34: =給与台帳2月!AV$38 -> 0 | AH34: =給与台帳2月!AV$39 -> 0 | AI34: =給与台帳2月!AV$40 -> 0 | AJ34: =給与台帳2月!AV$41 -> 0 | AK34: =給与台帳2月!AV$42 -> 0 | AL34: =給与台帳2月!AV$43 -> 0 | AM34: =給与台帳2月!AV$44 -> 0 | AN34: =給与台帳2月!AV$45 -> 0 | AO34: =給与台帳2月!AV$46 -> 0 | AP34: =給与台帳2月!AV$47 -> 0 | AQ34: =給与台帳2月!AV$48 -> 0 | AR34: =給与台帳2月!AV$49 -> 0 | AS34: =給与台帳2月!AV$50 -> 0 | AT34: =給与台帳2月!AV$51 -> 0 | AU34: =給与台帳2月!AV$52 -> 二月もお疲れ様でした
B35: 2 | C35: =給与台帳2月!BB$8 -> 9 | D35: =給与台帳2月!BB$9 ->  | E35: =給与台帳2月!BB$10 ->  | F35: =給与台帳2月!BB$11 ->  | G35: =給与台帳2月!BB$12 ->  | H35: =給与台帳2月!BB$13 -> 0 | I35: =給与台帳2月!BB$14 -> 0 | J35: =給与台帳2月!BB$15 -> 0 | K35: =給与台帳2月!BB$16 -> 0 | L35: =給与台帳2月!BB$17 -> 0 | M35: =給与台帳2月!BB$18 -> 0 | N35: =給与台帳2月!BB$19 -> 0 | O35: =給与台帳2月!BB$20 -> 0 | P35: =給与台帳2月!BB$21 -> 0 | Q35: =給与台帳2月!BB$22 -> 0 | R35: =給与台帳2月!BB$23 -> 0 | S35: =給与台帳2月!BB$24 -> 0 | T35: =給与台帳2月!BB$25 -> 0 | U35: =給与台帳2月!BB$26 -> 0 | V35: =給与台帳2月!BB$27 -> 0 | W35: =給与台帳2月!BB$28 -> 0 | X35: =給与台帳2月!BB$29 -> 0 | Y35: =給与台帳2月!BB$30 -> 0 | Z35: =給与台帳2月!BB$31 -> 0 | AA35: =給与台帳2月!BB$32 -> 0 | AB35: =給与台帳2月!BB$33 -> 0 | AC35: =給与台帳2月!BB$34 -> 0 | AD35: =給与台帳2月!BB$35 -> 0 | AE35: =給与台帳2月!BB$36 -> 0 | AF35: =給与台帳2月!BB$37 -> 0 | AG35: =給与台帳2月!BB$38 -> 0 | AH35: =給与台帳2月!BB$39 -> 0 | AI35: =給与台帳2月!BB$40 -> 0 | AJ35: =給与台帳2月!BB$41 -> 0 | AK35: =給与台帳2月!BB$42 -> 0 | AL35: =給与台帳2月!BB$43 -> 0 | AM35: =給与台帳2月!BB$44 -> 0 | AN35: =給与台帳2月!BB$45 -> 0 | AO35: =給与台帳2月!BB$46 -> 0 | AP35: =給与台帳2月!BB$47 -> 0 | AQ35: =給与台帳2月!BB$48 -> 0 | AR35: =給与台帳2月!BB$49 -> 0 | AS35: =給与台帳2月!BB$50 -> 0 | AT35: =給与台帳2月!BB$51 -> 0 | AU35: =給与台帳2月!BB$52 -> 二月もお疲れ様でした
B36: 2 | C36: =給与台帳2月!BH$8 -> 10 | D36: =給与台帳2月!BH$9 ->  | E36: =給与台帳2月!BH$10 ->  | F36: =給与台帳2月!BH$11 ->  | G36: =給与台帳2月!BH$12 ->  | H36: =給与台帳2月!BH$13 -> 0 | I36: =給与台帳2月!BH$14 -> 0 | J36: =給与台帳2月!BH$15 -> 0 | K36: =給与台帳2月!BH$16 -> 0 | L36: =給与台帳2月!BH$17 -> 0 | M36: =給与台帳2月!BH$18 -> 0 | N36: =給与台帳2月!BH$19 -> 0 | O36: =給与台帳2月!BH$20 -> 0 | P36: =給与台帳2月!BH$21 -> 0 | Q36: =給与台帳2月!BH$22 -> 0 | R36: =給与台帳2月!BH$23 -> 0 | S36: =給与台帳2月!BH$24 -> 0 | T36: =給与台帳2月!BH$25 -> 0 | U36: =給与台帳2月!BH$26 -> 0 | V36: =給与台帳2月!BH$27 -> 0 | W36: =給与台帳2月!BH$28 -> 0 | X36: =給与台帳2月!BH$29 -> 0 | Y36: =給与台帳2月!BH$30 -> 0 | Z36: =給与台帳2月!BH$31 -> 0 | AA36: =給与台帳2月!BH$32 -> 0 | AB36: =給与台帳2月!BH$33 -> 0 | AC36: =給与台帳2月!BH$34 -> 0 | AD36: =給与台帳2月!BH$35 -> 0 | AE36: =給与台帳2月!BH$36 -> 0 | AF36: =給与台帳2月!BH$37 -> 0 | AG36: =給与台帳2月!BH$38 -> 0 | AH36: =給与台帳2月!BH$39 -> 0 | AI36: =給与台帳2月!BH$40 -> 0 | AJ36: =給与台帳2月!BH$41 -> 0 | AK36: =給与台帳2月!BH$42 -> 0 | AL36: =給与台帳2月!BH$43 -> 0 | AM36: =給与台帳2月!BH$44 -> 0 | AN36: =給与台帳2月!BH$45 -> 0 | AO36: =給与台帳2月!BH$46 -> 0 | AP36: =給与台帳2月!BH$47 -> 0 | AQ36: =給与台帳2月!BH$48 -> 0 | AR36: =給与台帳2月!BH$49 -> 0 | AS36: =給与台帳2月!BH$50 -> 0 | AT36: =給与台帳2月!BH$51 -> 0 | AU36: =給与台帳2月!BH$52 -> 二月もお疲れ様でした
B37: 2 | C37: =給与台帳2月!BN$8 -> 11 | D37: =給与台帳2月!BN$9 ->  | E37: =給与台帳2月!BN$10 ->  | F37: =給与台帳2月!BN$11 ->  | G37: =給与台帳2月!BN$12 ->  | H37: =給与台帳2月!BN$13 -> 0 | I37: =給与台帳2月!BN$14 -> 0 | J37: =給与台帳2月!BN$15 -> 0 | K37: =給与台帳2月!BN$16 -> 0 | L37: =給与台帳2月!BN$17 -> 0 | M37: =給与台帳2月!BN$18 -> 0 | N37: =給与台帳2月!BN$19 -> 0 | O37: =給与台帳2月!BN$20 -> 0 | P37: =給与台帳2月!BN$21 -> 0 | Q37: =給与台帳2月!BN$22 -> 0 | R37: =給与台帳2月!BN$23 -> 0 | S37: =給与台帳2月!BN$24 -> 0 | T37: =給与台帳2月!BN$25 -> 0 | U37: =給与台帳2月!BN$26 -> 0 | V37: =給与台帳2月!BN$27 -> 0 | W37: =給与台帳2月!BN$28 -> 0 | X37: =給与台帳2月!BN$29 -> 0 | Y37: =給与台帳2月!BN$30 -> 0 | Z37: =給与台帳2月!BN$31 -> 0 | AA37: =給与台帳2月!BN$32 -> 0 | AB37: =給与台帳2月!BN$33 -> 0 | AC37: =給与台帳2月!BN$34 -> 0 | AD37: =給与台帳2月!BN$35 -> 0 | AE37: =給与台帳2月!BN$36 -> 0 | AF37: =給与台帳2月!BN$37 -> 0 | AG37: =給与台帳2月!BN$38 -> 0 | AH37: =給与台帳2月!BN$39 -> 0 | AI37: =給与台帳2月!BN$40 -> 0 | AJ37: =給与台帳2月!BN$41 -> 0 | AK37: =給与台帳2月!BN$42 -> 0 | AL37: =給与台帳2月!BN$43 -> 0 | AM37: =給与台帳2月!BN$44 -> 0 | AN37: =給与台帳2月!BN$45 -> 0 | AO37: =給与台帳2月!BN$46 -> 0 | AP37: =給与台帳2月!BN$47 -> 0 | AQ37: =給与台帳2月!BN$48 -> 0 | AR37: =給与台帳2月!BN$49 -> 0 | AS37: =給与台帳2月!BN$50 -> 0 | AT37: =給与台帳2月!BN$51 -> 0 | AU37: =給与台帳2月!BN$52 -> 二月もお疲れ様でした
B38: 2 | C38: =給与台帳2月!BT$8 -> 12 | D38: =給与台帳2月!BT$9 ->  | E38: =給与台帳2月!BT$10 ->  | F38: =給与台帳2月!BT$11 ->  | G38: =給与台帳2月!BT$12 ->  | H38: =給与台帳2月!BT$13 -> 0 | I38: =給与台帳2月!BT$14 -> 0 | J38: =給与台帳2月!BT$15 -> 0 | K38: =給与台帳2月!BT$16 -> 0 | L38: =給与台帳2月!BT$17 -> 0 | M38: =給与台帳2月!BT$18 -> 0 | N38: =給与台帳2月!BT$19 -> 0 | O38: =給与台帳2月!BT$20 -> 0 | P38: =給与台帳2月!BT$21 -> 0 | Q38: =給与台帳2月!BT$22 -> 0 | R38: =給与台帳2月!BT$23 -> 0 | S38: =給与台帳2月!BT$24 -> 0 | T38: =給与台帳2月!BT$25 -> 0 | U38: =給与台帳2月!BT$26 -> 0 | V38: =給与台帳2月!BT$27 -> 0 | W38: =給与台帳2月!BT$28 -> 0 | X38: =給与台帳2月!BT$29 -> 0 | Y38: =給与台帳2月!BT$30 -> 0 | Z38: =給与台帳2月!BT$31 -> 0 | AA38: =給与台帳2月!BT$32 -> 0 | AB38: =給与台帳2月!BT$33 -> 0 | AC38: =給与台帳2月!BT$34 -> 0 | AD38: =給与台帳2月!BT$35 -> 0 | AE38: =給与台帳2月!BT$36 -> 0 | AF38: =給与台帳2月!BT$37 -> 0 | AG38: =給与台帳2月!BT$38 -> 0 | AH38: =給与台帳2月!BT$39 -> 0 | AI38: =給与台帳2月!BT$40 -> 0 | AJ38: =給与台帳2月!BT$41 -> 0 | AK38: =給与台帳2月!BT$42 -> 0 | AL38: =給与台帳2月!BT$43 -> 0 | AM38: =給与台帳2月!BT$44 -> 0 | AN38: =給与台帳2月!BT$45 -> 0 | AO38: =給与台帳2月!BT$46 -> 0 | AP38: =給与台帳2月!BT$47 -> 0 | AQ38: =給与台帳2月!BT$48 -> 0 | AR38: =給与台帳2月!BT$49 -> 0 | AS38: =給与台帳2月!BT$50 -> 0 | AT38: =給与台帳2月!BT$51 -> 0 | AU38: =給与台帳2月!BT$52 -> 二月もお疲れ様でした
B39: 2 | C39: =給与台帳2月!BZ$8 -> 13 | D39: =給与台帳2月!BZ$9 ->  | E39: =給与台帳2月!BZ$10 ->  | F39: =給与台帳2月!BZ$11 ->  | G39: =給与台帳2月!BZ$12 ->  | H39: =給与台帳2月!BZ$13 -> 0 | I39: =給与台帳2月!BZ$14 -> 0 | J39: =給与台帳2月!BZ$15 -> 0 | K39: =給与台帳2月!BZ$16 -> 0 | L39: =給与台帳2月!BZ$17 -> 0 | M39: =給与台帳2月!BZ$18 -> 0 | N39: =給与台帳2月!BZ$19 -> 0 | O39: =給与台帳2月!BZ$20 -> 0 | P39: =給与台帳2月!BZ$21 -> 0 | Q39: =給与台帳2月!BZ$22 -> 0 | R39: =給与台帳2月!BZ$23 -> 0 | S39: =給与台帳2月!BZ$24 -> 0 | T39: =給与台帳2月!BZ$25 -> 0 | U39: =給与台帳2月!BZ$26 -> 0 | V39: =給与台帳2月!BZ$27 -> 0 | W39: =給与台帳2月!BZ$28 -> 0 | X39: =給与台帳2月!BZ$29 -> 0 | Y39: =給与台帳2月!BZ$30 -> 0 | Z39: =給与台帳2月!BZ$31 -> 0 | AA39: =給与台帳2月!BZ$32 -> 0 | AB39: =給与台帳2月!BZ$33 -> 0 | AC39: =給与台帳2月!BZ$34 -> 0 | AD39: =給与台帳2月!BZ$35 -> 0 | AE39: =給与台帳2月!BZ$36 -> 0 | AF39: =給与台帳2月!BZ$37 -> 0 | AG39: =給与台帳2月!BZ$38 -> 0 | AH39: =給与台帳2月!BZ$39 -> 0 | AI39: =給与台帳2月!BZ$40 -> 0 | AJ39: =給与台帳2月!BZ$41 -> 0 | AK39: =給与台帳2月!BZ$42 -> 0 | AL39: =給与台帳2月!BZ$43 -> 0 | AM39: =給与台帳2月!BZ$44 -> 0 | AN39: =給与台帳2月!BZ$45 -> 0 | AO39: =給与台帳2月!BZ$46 -> 0 | AP39: =給与台帳2月!BZ$47 -> 0 | AQ39: =給与台帳2月!BZ$48 -> 0 | AR39: =給与台帳2月!BZ$49 -> 0 | AS39: =給与台帳2月!BZ$50 -> 0 | AT39: =給与台帳2月!BZ$51 -> 0 | AU39: =給与台帳2月!BZ$52 -> 二月もお疲れ様でした
B40: 2 | C40: =給与台帳2月!CF$8 -> 14 | D40: =給与台帳2月!CF$9 ->  | E40: =給与台帳2月!CF$10 ->  | F40: =給与台帳2月!CF$11 ->  | G40: =給与台帳2月!CF$12 ->  | H40: =給与台帳2月!CF$13 -> 0 | I40: =給与台帳2月!CF$14 -> 0 | J40: =給与台帳2月!CF$15 -> 0 | K40: =給与台帳2月!CF$16 -> 0 | L40: =給与台帳2月!CF$17 -> 0 | M40: =給与台帳2月!CF$18 -> 0 | N40: =給与台帳2月!CF$19 -> 0 | O40: =給与台帳2月!CF$20 -> 0 | P40: =給与台帳2月!CF$21 -> 0 | Q40: =給与台帳2月!CF$22 -> 0 | R40: =給与台帳2月!CF$23 -> 0 | S40: =給与台帳2月!CF$24 -> 0 | T40: =給与台帳2月!CF$25 -> 0 | U40: =給与台帳2月!CF$26 -> 0 | V40: =給与台帳2月!CF$27 -> 0 | W40: =給与台帳2月!CF$28 -> 0 | X40: =給与台帳2月!CF$29 -> 0 | Y40: =給与台帳2月!CF$30 -> 0 | Z40: =給与台帳2月!CF$31 -> 0 | AA40: =給与台帳2月!CF$32 -> 0 | AB40: =給与台帳2月!CF$33 -> 0 | AC40: =給与台帳2月!CF$34 -> 0 | AD40: =給与台帳2月!CF$35 -> 0 | AE40: =給与台帳2月!CF$36 -> 0 | AF40: =給与台帳2月!CF$37 -> 0 | AG40: =給与台帳2月!CF$38 -> 0 | AH40: =給与台帳2月!CF$39 -> 0 | AI40: =給与台帳2月!CF$40 -> 0 | AJ40: =給与台帳2月!CF$41 -> 0 | AK40: =給与台帳2月!CF$42 -> 0 | AL40: =給与台帳2月!CF$43 -> 0 | AM40: =給与台帳2月!CF$44 -> 0 | AN40: =給与台帳2月!CF$45 -> 0 | AO40: =給与台帳2月!CF$46 -> 0 | AP40: =給与台帳2月!CF$47 -> 0 | AQ40: =給与台帳2月!CF$48 -> 0 | AR40: =給与台帳2月!CF$49 -> 0 | AS40: =給与台帳2月!CF$50 -> 0 | AT40: =給与台帳2月!CF$51 -> 0 | AU40: =給与台帳2月!CF$52 -> 二月もお疲れ様でした
B41: 2 | C41: =給与台帳2月!CL$8 -> 15 | D41: =給与台帳2月!CL$9 ->  | E41: =給与台帳2月!CL$10 ->  | F41: =給与台帳2月!CL$11 ->  | G41: =給与台帳2月!CL$12 ->  | H41: =給与台帳2月!CL$13 -> 0 | I41: =給与台帳2月!CL$14 -> 0 | J41: =給与台帳2月!CL$15 -> 0 | K41: =給与台帳2月!CL$16 -> 0 | L41: =給与台帳2月!CL$17 -> 0 | M41: =給与台帳2月!CL$18 -> 0 | N41: =給与台帳2月!CL$19 -> 0 | O41: =給与台帳2月!CL$20 -> 0 | P41: =給与台帳2月!CL$21 -> 0 | Q41: =給与台帳2月!CL$22 -> 0 | R41: =給与台帳2月!CL$23 -> 0 | S41: =給与台帳2月!CL$24 -> 0 | T41: =給与台帳2月!CL$25 -> 0 | U41: =給与台帳2月!CL$26 -> 0 | V41: =給与台帳2月!CL$27 -> 0 | W41: =給与台帳2月!CL$28 -> 0 | X41: =給与台帳2月!CL$29 -> 0 | Y41: =給与台帳2月!CL$30 -> 0 | Z41: =給与台帳2月!CL$31 -> 0 | AA41: =給与台帳2月!CL$32 -> 0 | AB41: =給与台帳2月!CL$33 -> 0 | AC41: =給与台帳2月!CL$34 -> 0 | AD41: =給与台帳2月!CL$35 -> 0 | AE41: =給与台帳2月!CL$36 -> 0 | AF41: =給与台帳2月!CL$37 -> 0 | AG41: =給与台帳2月!CL$38 -> 0 | AH41: =給与台帳2月!CL$39 -> 0 | AI41: =給与台帳2月!CL$40 -> 0 | AJ41: =給与台帳2月!CL$41 -> 0 | AK41: =給与台帳2月!CL$42 -> 0 | AL41: =給与台帳2月!CL$43 -> 0 | AM41: =給与台帳2月!CL$44 -> 0 | AN41: =給与台帳2月!CL$45 -> 0 | AO41: =給与台帳2月!CL$46 -> 0 | AP41: =給与台帳2月!CL$47 -> 0 | AQ41: =給与台帳2月!CL$48 -> 0 | AR41: =給与台帳2月!CL$49 -> 0 | AS41: =給与台帳2月!CL$50 -> 0 | AT41: =給与台帳2月!CL$51 -> 0 | AU41: =給与台帳2月!CL$52 -> 二月もお疲れ様でした
B42: 2 | C42: =給与台帳2月!CR$8 -> 16 | D42: =給与台帳2月!CR$9 ->  | E42: =給与台帳2月!CR$10 ->  | F42: =給与台帳2月!CR$11 ->  | G42: =給与台帳2月!CR$12 ->  | H42: =給与台帳2月!CR$13 -> 0 | I42: =給与台帳2月!CR$14 -> 0 | J42: =給与台帳2月!CR$15 -> 0 | K42: =給与台帳2月!CR$16 -> 0 | L42: =給与台帳2月!CR$17 -> 0 | M42: =給与台帳2月!CR$18 -> 0 | N42: =給与台帳2月!CR$19 -> 0 | O42: =給与台帳2月!CR$20 -> 0 | P42: =給与台帳2月!CR$21 -> 0 | Q42: =給与台帳2月!CR$22 -> 0 | R42: =給与台帳2月!CR$23 -> 0 | S42: =給与台帳2月!CR$24 -> 0 | T42: =給与台帳2月!CR$25 -> 0 | U42: =給与台帳2月!CR$26 -> 0 | V42: =給与台帳2月!CR$27 -> 0 | W42: =給与台帳2月!CR$28 -> 0 | X42: =給与台帳2月!CR$29 -> 0 | Y42: =給与台帳2月!CR$30 -> 0 | Z42: =給与台帳2月!CR$31 -> 0 | AA42: =給与台帳2月!CR$32 -> 0 | AB42: =給与台帳2月!CR$33 -> 0 | AC42: =給与台帳2月!CR$34 -> 0 | AD42: =給与台帳2月!CR$35 -> 0 | AE42: =給与台帳2月!CR$36 -> 0 | AF42: =給与台帳2月!CR$37 -> 0 | AG42: =給与台帳2月!CR$38 -> 0 | AH42: =給与台帳2月!CR$39 -> 0 | AI42: =給与台帳2月!CR$40 -> 0 | AJ42: =給与台帳2月!CR$41 -> 0 | AK42: =給与台帳2月!CR$42 -> 0 | AL42: =給与台帳2月!CR$43 -> 0 | AM42: =給与台帳2月!CR$44 -> 0 | AN42: =給与台帳2月!CR$45 -> 0 | AO42: =給与台帳2月!CR$46 -> 0 | AP42: =給与台帳2月!CR$47 -> 0 | AQ42: =給与台帳2月!CR$48 -> 0 | AR42: =給与台帳2月!CR$49 -> 0 | AS42: =給与台帳2月!CR$50 -> 0 | AT42: =給与台帳2月!CR$51 -> 0 | AU42: =給与台帳2月!CR$52 -> 二月もお疲れ様でした
B43: 2 | C43: =給与台帳2月!CX$8 -> 17 | D43: =給与台帳2月!CX$9 ->  | E43: =給与台帳2月!CX$10 ->  | F43: =給与台帳2月!CX$11 ->  | G43: =給与台帳2月!CX$12 ->  | H43: =給与台帳2月!CX$13 -> 0 | I43: =給与台帳2月!CX$14 -> 0 | J43: =給与台帳2月!CX$15 -> 0 | K43: =給与台帳2月!CX$16 -> 0 | L43: =給与台帳2月!CX$17 -> 0 | M43: =給与台帳2月!CX$18 -> 0 | N43: =給与台帳2月!CX$19 -> 0 | O43: =給与台帳2月!CX$20 -> 0 | P43: =給与台帳2月!CX$21 -> 0 | Q43: =給与台帳2月!CX$22 -> 0 | R43: =給与台帳2月!CX$23 -> 0 | S43: =給与台帳2月!CX$24 -> 0 | T43: =給与台帳2月!CX$25 -> 0 | U43: =給与台帳2月!CX$26 -> 0 | V43: =給与台帳2月!CX$27 -> 0 | W43: =給与台帳2月!CX$28 -> 0 | X43: =給与台帳2月!CX$29 -> 0 | Y43: =給与台帳2月!CX$30 -> 0 | Z43: =給与台帳2月!CX$31 -> 0 | AA43: =給与台帳2月!CX$32 -> 0 | AB43: =給与台帳2月!CX$33 -> 0 | AC43: =給与台帳2月!CX$34 -> 0 | AD43: =給与台帳2月!CX$35 -> 0 | AE43: =給与台帳2月!CX$36 -> 0 | AF43: =給与台帳2月!CX$37 -> 0 | AG43: =給与台帳2月!CX$38 -> 0 | AH43: =給与台帳2月!CX$39 -> 0 | AI43: =給与台帳2月!CX$40 -> 0 | AJ43: =給与台帳2月!CX$41 -> 0 | AK43: =給与台帳2月!CX$42 -> 0 | AL43: =給与台帳2月!CX$43 -> 0 | AM43: =給与台帳2月!CX$44 -> 0 | AN43: =給与台帳2月!CX$45 -> 0 | AO43: =給与台帳2月!CX$46 -> 0 | AP43: =給与台帳2月!CX$47 -> 0 | AQ43: =給与台帳2月!CX$48 -> 0 | AR43: =給与台帳2月!CX$49 -> 0 | AS43: =給与台帳2月!CX$50 -> 0 | AT43: =給与台帳2月!CX$51 -> 0 | AU43: =給与台帳2月!CX$52 -> 二月もお疲れ様でした
B44: 2 | C44: =給与台帳2月!DD$8 -> 18 | D44: =給与台帳2月!DD$9 ->  | E44: =給与台帳2月!DD$10 ->  | F44: =給与台帳2月!DD$11 ->  | G44: =給与台帳2月!DD$12 ->  | H44: =給与台帳2月!DD$13 -> 0 | I44: =給与台帳2月!DD$14 -> 0 | J44: =給与台帳2月!DD$15 -> 0 | K44: =給与台帳2月!DD$16 -> 0 | L44: =給与台帳2月!DD$17 -> 0 | M44: =給与台帳2月!DD$18 -> 0 | N44: =給与台帳2月!DD$19 -> 0 | O44: =給与台帳2月!DD$20 -> 0 | P44: =給与台帳2月!DD$21 -> 0 | Q44: =給与台帳2月!DD$22 -> 0 | R44: =給与台帳2月!DD$23 -> 0 | S44: =給与台帳2月!DD$24 -> 0 | T44: =給与台帳2月!DD$25 -> 0 | U44: =給与台帳2月!DD$26 -> 0 | V44: =給与台帳2月!DD$27 -> 0 | W44: =給与台帳2月!DD$28 -> 0 | X44: =給与台帳2月!DD$29 -> 0 | Y44: =給与台帳2月!DD$30 -> 0 | Z44: =給与台帳2月!DD$31 -> 0 | AA44: =給与台帳2月!DD$32 -> 0 | AB44: =給与台帳2月!DD$33 -> 0 | AC44: =給与台帳2月!DD$34 -> 0 | AD44: =給与台帳2月!DD$35 -> 0 | AE44: =給与台帳2月!DD$36 -> 0 | AF44: =給与台帳2月!DD$37 -> 0 | AG44: =給与台帳2月!DD$38 -> 0 | AH44: =給与台帳2月!DD$39 -> 0 | AI44: =給与台帳2月!DD$40 -> 0 | AJ44: =給与台帳2月!DD$41 -> 0 | AK44: =給与台帳2月!DD$42 -> 0 | AL44: =給与台帳2月!DD$43 -> 0 | AM44: =給与台帳2月!DD$44 -> 0 | AN44: =給与台帳2月!DD$45 -> 0 | AO44: =給与台帳2月!DD$46 -> 0 | AP44: =給与台帳2月!DD$47 -> 0 | AQ44: =給与台帳2月!DD$48 -> 0 | AR44: =給与台帳2月!DD$49 -> 0 | AS44: =給与台帳2月!DD$50 -> 0 | AT44: =給与台帳2月!DD$51 -> 0 | AU44: =給与台帳2月!DD$52 -> 二月もお疲れ様でした
B45: 2
B46: 2
B47: 3 | C47: =給与台帳3月!F$8 -> 1 | D47: =給与台帳3月!F$9 -> 今野 友夫 | E47: =給与台帳3月!F$10 -> 役員 | F47: =給与台帳3月!F$11 -> 甲欄 | G47: =給与台帳3月!F$12 -> 44 | H47: =給与台帳3月!F$13 -> 1 | I47: =給与台帳3月!F$14 -> 500000 | J47: =給与台帳3月!F$15 -> 500000 | K47: =給与台帳3月!F$16 -> 0 | L47: =給与台帳3月!F$17 -> 0 | M47: =給与台帳3月!F$18 -> 0 | N47: =給与台帳3月!F$19 -> 0 | O47: =給与台帳3月!F$20 -> 0 | P47: =給与台帳3月!F$21 -> 0 | Q47: =給与台帳3月!F$22 -> 0 | R47: =給与台帳3月!F$23 -> 0 | S47: =給与台帳3月!F$24 -> 500000 | T47: =給与台帳3月!F$25 -> 0 | U47: =給与台帳3月!F$26 -> 0 | V47: =給与台帳3月!F$27 -> 0 | W47: =給与台帳3月!F$28 -> 0 | X47: =給与台帳3月!F$29 -> 0 | Y47: =給与台帳3月!F$30 -> 0 | Z47: =給与台帳3月!F$31 -> 0 | AA47: =給与台帳3月!F$32 -> 10000 | AB47: =給与台帳3月!F$33 -> 0 | AC47: =給与台帳3月!F$34 -> 500000 | AD47: =給与台帳3月!F$35 -> 10000 | AE47: =給与台帳3月!F$36 -> 510000 | AF47: =給与台帳3月!F$37 -> 23800 | AG47: =給与台帳3月!F$38 -> 0 | AH47: =給与台帳3月!F$39 -> 41030 | AI47: =給与台帳3月!F$40 -> 0 | AJ47: =給与台帳3月!F$41 -> 64830 | AK47: =給与台帳3月!F$42 -> 435170 | AL47: =給与台帳3月!F$43 -> 16210 | AM47: =給与台帳3月!F$44 -> 22300 | AN47: =給与台帳3月!F$45 -> 0 | AO47: =給与台帳3月!F$46 -> 0 | AP47: =給与台帳3月!F$47 -> 0 | AQ47: =給与台帳3月!F$48 -> 38510 | AR47: =給与台帳3月!F$49 -> 406660 | AS47: =給与台帳3月!F$50 -> 0 | AT47: =給与台帳3月!F$51 -> 406660 | AU47: =給与台帳3月!F$52 -> 三月もお疲れ様でした
B48: 3 | C48: =給与台帳3月!L$8 -> 2 | D48: =給与台帳3月!L$9 -> 今野 朝子 | E48: =給与台帳3月!L$10 -> 役員 | F48: =給与台帳3月!L$11 -> 甲欄 | G48: =給与台帳3月!L$12 -> 39 | H48: =給与台帳3月!L$13 -> 0 | I48: =給与台帳3月!L$14 -> 300000 | J48: =給与台帳3月!L$15 -> 300000 | K48: =給与台帳3月!L$16 -> 0 | L48: =給与台帳3月!L$17 -> 0 | M48: =給与台帳3月!L$18 -> 0 | N48: =給与台帳3月!L$19 -> 0 | O48: =給与台帳3月!L$20 -> 0 | P48: =給与台帳3月!L$21 -> 0 | Q48: =給与台帳3月!L$22 -> 0 | R48: =給与台帳3月!L$23 -> 0 | S48: =給与台帳3月!L$24 -> 300000 | T48: =給与台帳3月!L$25 -> 0 | U48: =給与台帳3月!L$26 -> 0 | V48: =給与台帳3月!L$27 -> 0 | W48: =給与台帳3月!L$28 -> 0 | X48: =給与台帳3月!L$29 -> 0 | Y48: =給与台帳3月!L$30 -> 0 | Z48: =給与台帳3月!L$31 -> 0 | AA48: =給与台帳3月!L$32 -> 10000 | AB48: =給与台帳3月!L$33 -> 0 | AC48: =給与台帳3月!L$34 -> 300000 | AD48: =給与台帳3月!L$35 -> 10000 | AE48: =給与台帳3月!L$36 -> 310000 | AF48: =給与台帳3月!L$37 -> 14280 | AG48: =給与台帳3月!L$38 -> 0 | AH48: =給与台帳3月!L$39 -> 24618 | AI48: =給与台帳3月!L$40 -> 0 | AJ48: =給与台帳3月!L$41 -> 38898 | AK48: =給与台帳3月!L$42 -> 261102 | AL48: =給与台帳3月!L$43 -> 6960 | AM48: =給与台帳3月!L$44 -> 12400 | AN48: =給与台帳3月!L$45 -> 0 | AO48: =給与台帳3月!L$46 -> 0 | AP48: =給与台帳3月!L$47 -> 0 | AQ48: =給与台帳3月!L$48 -> 19360 | AR48: =給与台帳3月!L$49 -> 251742 | AS48: =給与台帳3月!L$50 -> 0 | AT48: =給与台帳3月!L$51 -> 251742 | AU48: =給与台帳3月!L$52 -> 三月もお疲れ様でした
B49: 3 | C49: =給与台帳3月!R$8 -> 3 | D49: =給与台帳3月!R$9 -> 今野 祥子 | E49: =給与台帳3月!R$10 -> 役員 | F49: =給与台帳3月!R$11 -> 甲欄 | G49: =給与台帳3月!R$12 -> 70 | H49: =給与台帳3月!R$13 -> 0 | I49: =給与台帳3月!R$14 -> 0 | J49: =給与台帳3月!R$15 -> 0 | K49: =給与台帳3月!R$16 -> 0 | L49: =給与台帳3月!R$17 -> 0 | M49: =給与台帳3月!R$18 -> 0 | N49: =給与台帳3月!R$19 -> 0 | O49: =給与台帳3月!R$20 -> 0 | P49: =給与台帳3月!R$21 -> 0 | Q49: =給与台帳3月!R$22 -> 0 | R49: =給与台帳3月!R$23 -> 0 | S49: =給与台帳3月!R$24 -> 80000 | T49: =給与台帳3月!R$25 -> 0 | U49: =給与台帳3月!R$26 -> 0 | V49: =給与台帳3月!R$27 -> 0 | W49: =給与台帳3月!R$28 -> 0 | X49: =給与台帳3月!R$29 -> 0 | Y49: =給与台帳3月!R$30 -> 0 | Z49: =給与台帳3月!R$31 -> 0 | AA49: =給与台帳3月!R$32 -> 0 | AB49: =給与台帳3月!R$33 -> 0 | AC49: =給与台帳3月!R$34 -> 80000 | AD49: =給与台帳3月!R$35 -> 0 | AE49: =給与台帳3月!R$36 -> 80000 | AF49: =給与台帳3月!R$37 -> 0 | AG49: =給与台帳3月!R$38 -> 0 | AH49: =給与台帳3月!R$39 -> 0 | AI49: =給与台帳3月!R$40 -> 0 | AJ49: =給与台帳3月!R$41 -> 0 | AK49: =給与台帳3月!R$42 -> 80000 | AL49: =給与台帳3月!R$43 -> 0 | AM49: =給与台帳3月!R$44 -> 0 | AN49: =給与台帳3月!R$45 -> 0 | AO49: =給与台帳3月!R$46 -> 0 | AP49: =給与台帳3月!R$47 -> 0 | AQ49: =給与台帳3月!R$48 -> 0 | AR49: =給与台帳3月!R$49 -> 80000 | AS49: =給与台帳3月!R$50 -> 0 | AT49: =給与台帳3月!R$51 -> 80000 | AU49: =給与台帳3月!R$52 -> 三月もお疲れ様でした
B50: 3 | C50: =給与台帳3月!X$8 -> 4 | D50: =給与台帳3月!X$9 -> 川西 めぐみ | E50: =給与台帳3月!X$10 -> 従業員（雇保加入） | F50: =給与台帳3月!X$11 -> 甲欄 | G50: =給与台帳3月!X$12 -> 48 | H50: =給与台帳3月!X$13 -> 1 | I50: =給与台帳3月!X$14 -> 220000 | J50: =給与台帳3月!X$15 -> 220000 | K50: =給与台帳3月!X$16 -> 21日 | L50: =給与台帳3月!X$17 -> 154時間 | M50: =給与台帳3月!X$18 -> 7時間 | N50: =給与台帳3月!X$19 -> 6時間 | O50: =給与台帳3月!X$20 -> 0 | P50: =給与台帳3月!X$21 -> 0 | Q50: =給与台帳3月!X$22 -> 1時間 | R50: =給与台帳3月!X$23 -> 0 | S50: =給与台帳3月!X$24 -> 0 | T50: =給与台帳3月!X$25 -> 225000 | U50: =給与台帳3月!X$26 -> 25536 | V50: =給与台帳3月!X$27 -> 0 | W50: =給与台帳3月!X$28 -> 0 | X50: =給与台帳3月!X$29 -> 0 | Y50: =給与台帳3月!X$30 -> 0 | Z50: =給与台帳3月!X$31 -> 0 | AA50: =給与台帳3月!X$32 -> 18370 | AB50: =給与台帳3月!X$33 -> 0 | AC50: =給与台帳3月!X$34 -> 250536 | AD50: =給与台帳3月!X$35 -> 18370 | AE50: =給与台帳3月!X$36 -> 268906 | AF50: =給与台帳3月!X$37 -> 10472 | AG50: =給与台帳3月!X$38 -> 1661 | AH50: =給与台帳3月!X$39 -> 18053 | AI50: =給与台帳3月!X$40 -> 1344 | AJ50: =給与台帳3月!X$41 -> 31530 | AK50: =給与台帳3月!X$42 -> 219006 | AL50: =給与台帳3月!X$43 -> 3860 | AM50: =給与台帳3月!X$44 -> 8500 | AN50: =給与台帳3月!X$45 -> 0 | AO50: =給与台帳3月!X$46 -> 0 | AP50: =給与台帳3月!X$47 -> 0 | AQ50: =給与台帳3月!X$48 -> 12360 | AR50: =給与台帳3月!X$49 -> 225016 | AS50: =給与台帳3月!X$50 -> 0 | AT50: =給与台帳3月!X$51 -> 225016 | AU50: =給与台帳3月!X$52 -> 三月もお疲れ様でした
B51: 3 | C51: =給与台帳3月!AD$8 -> 5 | D51: =給与台帳3月!AD$9 -> 鳥居 雅之 | E51: =給与台帳3月!AD$10 -> 従業員（雇保非加入） | F51: =給与台帳3月!AD$11 -> 乙欄 | G51: =給与台帳3月!AD$12 -> 34 | H51: =給与台帳3月!AD$13 -> 0 | I51: =給与台帳3月!AD$14 -> 0 | J51: =給与台帳3月!AD$15 -> 0 | K51: =給与台帳3月!AD$16 -> 9日 | L51: =給与台帳3月!AD$17 -> 36時間 | M51: =給与台帳3月!AD$18 -> 0 | N51: =給与台帳3月!AD$19 -> 0 | O51: =給与台帳3月!AD$20 -> 0 | P51: =給与台帳3月!AD$21 -> 0 | Q51: =給与台帳3月!AD$22 -> 0 | R51: =給与台帳3月!AD$23 -> 0 | S51: =給与台帳3月!AD$24 -> 0 | T51: =給与台帳3月!AD$25 -> 45000 | U51: =給与台帳3月!AD$26 -> 0 | V51: =給与台帳3月!AD$27 -> 0 | W51: =給与台帳3月!AD$28 -> 0 | X51: =給与台帳3月!AD$29 -> 0 | Y51: =給与台帳3月!AD$30 -> 0 | Z51: =給与台帳3月!AD$31 -> 0 | AA51: =給与台帳3月!AD$32 -> 0 | AB51: =給与台帳3月!AD$33 -> 0 | AC51: =給与台帳3月!AD$34 -> 45000 | AD51: =給与台帳3月!AD$35 -> 0 | AE51: =給与台帳3月!AD$36 -> 45000 | AF51: =給与台帳3月!AD$37 -> 0 | AG51: =給与台帳3月!AD$38 -> 0 | AH51: =給与台帳3月!AD$39 -> 0 | AI51: =給与台帳3月!AD$40 -> 0 | AJ51: =給与台帳3月!AD$41 -> 0 | AK51: =給与台帳3月!AD$42 -> 45000 | AL51: =給与台帳3月!AD$43 -> 1378 | AM51: =給与台帳3月!AD$44 -> 0 | AN51: =給与台帳3月!AD$45 -> 0 | AO51: =給与台帳3月!AD$46 -> 0 | AP51: =給与台帳3月!AD$47 -> 0 | AQ51: =給与台帳3月!AD$48 -> 1378 | AR51: =給与台帳3月!AD$49 -> 43622 | AS51: =給与台帳3月!AD$50 -> 0 | AT51: =給与台帳3月!AD$51 -> 43622 | AU51: =給与台帳3月!AD$52 -> 三月もお疲れ様でした
B52: 3 | C52: =給与台帳3月!AJ$8 -> 6 | D52: =給与台帳3月!AJ$9 -> 笹部 菜穂美 | E52: =給与台帳3月!AJ$10 -> 従業員（雇保加入） | F52: =給与台帳3月!AJ$11 -> 甲欄 | G52: =給与台帳3月!AJ$12 -> 30 | H52: =給与台帳3月!AJ$13 -> 0 | I52: =給与台帳3月!AJ$14 -> 0 | J52: =給与台帳3月!AJ$15 -> 0 | K52: =給与台帳3月!AJ$16 -> 0 | L52: =給与台帳3月!AJ$17 -> 0 | M52: =給与台帳3月!AJ$18 -> 0 | N52: =給与台帳3月!AJ$19 -> 0 | O52: =給与台帳3月!AJ$20 -> 0 | P52: =給与台帳3月!AJ$21 -> 0 | Q52: =給与台帳3月!AJ$22 -> 0 | R52: =給与台帳3月!AJ$23 -> 0 | S52: =給与台帳3月!AJ$24 -> 0 | T52: =給与台帳3月!AJ$25 -> 0 | U52: =給与台帳3月!AJ$26 -> 0 | V52: =給与台帳3月!AJ$27 -> 0 | W52: =給与台帳3月!AJ$28 -> 0 | X52: =給与台帳3月!AJ$29 -> 0 | Y52: =給与台帳3月!AJ$30 -> 0 | Z52: =給与台帳3月!AJ$31 -> 0 | AA52: =給与台帳3月!AJ$32 -> 0 | AB52: =給与台帳3月!AJ$33 -> 0 | AC52: =給与台帳3月!AJ$34 -> 0 | AD52: =給与台帳3月!AJ$35 -> 0 | AE52: =給与台帳3月!AJ$36 -> 0 | AF52: =給与台帳3月!AJ$37 -> 0 | AG52: =給与台帳3月!AJ$38 -> 0 | AH52: =給与台帳3月!AJ$39 -> 0 | AI52: =給与台帳3月!AJ$40 -> 0 | AJ52: =給与台帳3月!AJ$41 -> 0 | AK52: =給与台帳3月!AJ$42 -> 0 | AL52: =給与台帳3月!AJ$43 -> 0 | AM52: =給与台帳3月!AJ$44 -> 0 | AN52: =給与台帳3月!AJ$45 -> 0 | AO52: =給与台帳3月!AJ$46 -> 0 | AP52: =給与台帳3月!AJ$47 -> 0 | AQ52: =給与台帳3月!AJ$48 -> 0 | AR52: =給与台帳3月!AJ$49 -> 0 | AS52: =給与台帳3月!AJ$50 -> 0 | AT52: =給与台帳3月!AJ$51 -> 0 | AU52: =給与台帳3月!AJ$52 -> 三月もお疲れ様でした
B53: 3 | C53: =給与台帳3月!AP$8 -> 7 | D53: =給与台帳3月!AP$9 -> 絹延橋 みつ子 | E53: =給与台帳3月!AP$10 -> 従業員（雇保加入） | F53: =給与台帳3月!AP$11 -> 甲欄 | G53: =給与台帳3月!AP$12 -> 46 | H53: =給与台帳3月!AP$13 -> 1 | I53: =給与台帳3月!AP$14 -> 300000 | J53: =給与台帳3月!AP$15 -> 300000 | K53: =給与台帳3月!AP$16 -> 21日 | L53: =給与台帳3月!AP$17 -> 140時間 | M53: =給与台帳3月!AP$18 -> 0 | N53: =給与台帳3月!AP$19 -> 0 | O53: =給与台帳3月!AP$20 -> 0 | P53: =給与台帳3月!AP$21 -> 0 | Q53: =給与台帳3月!AP$22 -> 0 | R53: =給与台帳3月!AP$23 -> 0 | S53: =給与台帳3月!AP$24 -> 0 | T53: =給与台帳3月!AP$25 -> 300000 | U53: =給与台帳3月!AP$26 -> 0 | V53: =給与台帳3月!AP$27 -> 0 | W53: =給与台帳3月!AP$28 -> 0 | X53: =給与台帳3月!AP$29 -> 0 | Y53: =給与台帳3月!AP$30 -> 0 | Z53: =給与台帳3月!AP$31 -> 0 | AA53: =給与台帳3月!AP$32 -> 0 | AB53: =給与台帳3月!AP$33 -> 0 | AC53: =給与台帳3月!AP$34 -> 300000 | AD53: =給与台帳3月!AP$35 -> 0 | AE53: =給与台帳3月!AP$36 -> 300000 | AF53: =給与台帳3月!AP$37 -> 14280 | AG53: =給与台帳3月!AP$38 -> 0 | AH53: =給与台帳3月!AP$39 -> 24618 | AI53: =給与台帳3月!AP$40 -> 1500 | AJ53: =給与台帳3月!AP$41 -> 40398 | AK53: =給与台帳3月!AP$42 -> 259602 | AL53: =給与台帳3月!AP$43 -> 5240 | AM53: =給与台帳3月!AP$44 -> 33900 | AN53: =給与台帳3月!AP$45 -> 0 | AO53: =給与台帳3月!AP$46 -> 0 | AP53: =給与台帳3月!AP$47 -> 0 | AQ53: =給与台帳3月!AP$48 -> 39140 | AR53: =給与台帳3月!AP$49 -> 220462 | AS53: =給与台帳3月!AP$50 -> 0 | AT53: =給与台帳3月!AP$51 -> 220462 | AU53: =給与台帳3月!AP$52 -> 三月もお疲れ様でした
B54: 3 | C54: =給与台帳3月!AV$8 -> 8 | D54: =給与台帳3月!AV$9 -> 山下 崇 | E54: =給与台帳3月!AV$10 -> 従業員（雇保加入） | F54: =給与台帳3月!AV$11 -> 甲欄 | G54: =給与台帳3月!AV$12 -> 33 | H54: =給与台帳3月!AV$13 -> 0 | I54: =給与台帳3月!AV$14 -> 0 | J54: =給与台帳3月!AV$15 -> 0 | K54: =給与台帳3月!AV$16 -> 0 | L54: =給与台帳3月!AV$17 -> 0 | M54: =給与台帳3月!AV$18 -> 0 | N54: =給与台帳3月!AV$19 -> 0 | O54: =給与台帳3月!AV$20 -> 0 | P54: =給与台帳3月!AV$21 -> 0 | Q54: =給与台帳3月!AV$22 -> 0 | R54: =給与台帳3月!AV$23 -> 0 | S54: =給与台帳3月!AV$24 -> 0 | T54: =給与台帳3月!AV$25 -> 0 | U54: =給与台帳3月!AV$26 -> 0 | V54: =給与台帳3月!AV$27 -> 0 | W54: =給与台帳3月!AV$28 -> 0 | X54: =給与台帳3月!AV$29 -> 0 | Y54: =給与台帳3月!AV$30 -> 0 | Z54: =給与台帳3月!AV$31 -> 0 | AA54: =給与台帳3月!AV$32 -> 0 | AB54: =給与台帳3月!AV$33 -> 0 | AC54: =給与台帳3月!AV$34 -> 0 | AD54: =給与台帳3月!AV$35 -> 0 | AE54: =給与台帳3月!AV$36 -> 0 | AF54: =給与台帳3月!AV$37 -> 0 | AG54: =給与台帳3月!AV$38 -> 0 | AH54: =給与台帳3月!AV$39 -> 0 | AI54: =給与台帳3月!AV$40 -> 0 | AJ54: =給与台帳3月!AV$41 -> 0 | AK54: =給与台帳3月!AV$42 -> 0 | AL54: =給与台帳3月!AV$43 -> 0 | AM54: =給与台帳3月!AV$44 -> 0 | AN54: =給与台帳3月!AV$45 -> 0 | AO54: =給与台帳3月!AV$46 -> 0 | AP54: =給与台帳3月!AV$47 -> 0 | AQ54: =給与台帳3月!AV$48 -> 0 | AR54: =給与台帳3月!AV$49 -> 0 | AS54: =給与台帳3月!AV$50 -> 0 | AT54: =給与台帳3月!AV$51 -> 0 | AU54: =給与台帳3月!AV$52 -> 三月もお疲れ様でした
B55: 3 | C55: =給与台帳3月!BB$8 -> 9 | D55: =給与台帳3月!BB$9 ->  | E55: =給与台帳3月!BB$10 ->  | F55: =給与台帳3月!BB$11 ->  | G55: =給与台帳3月!BB$12 ->  | H55: =給与台帳3月!BB$13 -> 0 | I55: =給与台帳3月!BB$14 -> 0 | J55: =給与台帳3月!BB$15 -> 0 | K55: =給与台帳3月!BB$16 -> 0 | L55: =給与台帳3月!BB$17 -> 0 | M55: =給与台帳3月!BB$18 -> 0 | N55: =給与台帳3月!BB$19 -> 0 | O55: =給与台帳3月!BB$20 -> 0 | P55: =給与台帳3月!BB$21 -> 0 | Q55: =給与台帳3月!BB$22 -> 0 | R55: =給与台帳3月!BB$23 -> 0 | S55: =給与台帳3月!BB$24 -> 0 | T55: =給与台帳3月!BB$25 -> 0 | U55: =給与台帳3月!BB$26 -> 0 | V55: =給与台帳3月!BB$27 -> 0 | W55: =給与台帳3月!BB$28 -> 0 | X55: =給与台帳3月!BB$29 -> 0 | Y55: =給与台帳3月!BB$30 -> 0 | Z55: =給与台帳3月!BB$31 -> 0 | AA55: =給与台帳3月!BB$32 -> 0 | AB55: =給与台帳3月!BB$33 -> 0 | AC55: =給与台帳3月!BB$34 -> 0 | AD55: =給与台帳3月!BB$35 -> 0 | AE55: =給与台帳3月!BB$36 -> 0 | AF55: =給与台帳3月!BB$37 -> 0 | AG55: =給与台帳3月!BB$38 -> 0 | AH55: =給与台帳3月!BB$39 -> 0 | AI55: =給与台帳3月!BB$40 -> 0 | AJ55: =給与台帳3月!BB$41 -> 0 | AK55: =給与台帳3月!BB$42 -> 0 | AL55: =給与台帳3月!BB$43 -> 0 | AM55: =給与台帳3月!BB$44 -> 0 | AN55: =給与台帳3月!BB$45 -> 0 | AO55: =給与台帳3月!BB$46 -> 0 | AP55: =給与台帳3月!BB$47 -> 0 | AQ55: =給与台帳3月!BB$48 -> 0 | AR55: =給与台帳3月!BB$49 -> 0 | AS55: =給与台帳3月!BB$50 -> 0 | AT55: =給与台帳3月!BB$51 -> 0 | AU55: =給与台帳3月!BB$52 -> 三月もお疲れ様でした
B56: 3 | C56: =給与台帳3月!BH$8 -> 10 | D56: =給与台帳3月!BH$9 ->  | E56: =給与台帳3月!BH$10 ->  | F56: =給与台帳3月!BH$11 ->  | G56: =給与台帳3月!BH$12 ->  | H56: =給与台帳3月!BH$13 -> 0 | I56: =給与台帳3月!BH$14 -> 0 | J56: =給与台帳3月!BH$15 -> 0 | K56: =給与台帳3月!BH$16 -> 0 | L56: =給与台帳3月!BH$17 -> 0 | M56: =給与台帳3月!BH$18 -> 0 | N56: =給与台帳3月!BH$19 -> 0 | O56: =給与台帳3月!BH$20 -> 0 | P56: =給与台帳3月!BH$21 -> 0 | Q56: =給与台帳3月!BH$22 -> 0 | R56: =給与台帳3月!BH$23 -> 0 | S56: =給与台帳3月!BH$24 -> 0 | T56: =給与台帳3月!BH$25 -> 0 | U56: =給与台帳3月!BH$26 -> 0 | V56: =給与台帳3月!BH$27 -> 0 | W56: =給与台帳3月!BH$28 -> 0 | X56: =給与台帳3月!BH$29 -> 0 | Y56: =給与台帳3月!BH$30 -> 0 | Z56: =給与台帳3月!BH$31 -> 0 | AA56: =給与台帳3月!BH$32 -> 0 | AB56: =給与台帳3月!BH$33 -> 0 | AC56: =給与台帳3月!BH$34 -> 0 | AD56: =給与台帳3月!BH$35 -> 0 | AE56: =給与台帳3月!BH$36 -> 0 | AF56: =給与台帳3月!BH$37 -> 0 | AG56: =給与台帳3月!BH$38 -> 0 | AH56: =給与台帳3月!BH$39 -> 0 | AI56: =給与台帳3月!BH$40 -> 0 | AJ56: =給与台帳3月!BH$41 -> 0 | AK56: =給与台帳3月!BH$42 -> 0 | AL56: =給与台帳3月!BH$43 -> 0 | AM56: =給与台帳3月!BH$44 -> 0 | AN56: =給与台帳3月!BH$45 -> 0 | AO56: =給与台帳3月!BH$46 -> 0 | AP56: =給与台帳3月!BH$47 -> 0 | AQ56: =給与台帳3月!BH$48 -> 0 | AR56: =給与台帳3月!BH$49 -> 0 | AS56: =給与台帳3月!BH$50 -> 0 | AT56: =給与台帳3月!BH$51 -> 0 | AU56: =給与台帳3月!BH$52 -> 三月もお疲れ様でした
B57: 3 | C57: =給与台帳3月!BN$8 -> 11 | D57: =給与台帳3月!BN$9 ->  | E57: =給与台帳3月!BN$10 ->  | F57: =給与台帳3月!BN$11 ->  | G57: =給与台帳3月!BN$12 ->  | H57: =給与台帳3月!BN$13 -> 0 | I57: =給与台帳3月!BN$14 -> 0 | J57: =給与台帳3月!BN$15 -> 0 | K57: =給与台帳3月!BN$16 -> 0 | L57: =給与台帳3月!BN$17 -> 0 | M57: =給与台帳3月!BN$18 -> 0 | N57: =給与台帳3月!BN$19 -> 0 | O57: =給与台帳3月!BN$20 -> 0 | P57: =給与台帳3月!BN$21 -> 0 | Q57: =給与台帳3月!BN$22 -> 0 | R57: =給与台帳3月!BN$23 -> 0 | S57: =給与台帳3月!BN$24 -> 0 | T57: =給与台帳3月!BN$25 -> 0 | U57: =給与台帳3月!BN$26 -> 0 | V57: =給与台帳3月!BN$27 -> 0 | W57: =給与台帳3月!BN$28 -> 0 | X57: =給与台帳3月!BN$29 -> 0 | Y57: =給与台帳3月!BN$30 -> 0 | Z57: =給与台帳3月!BN$31 -> 0 | AA57: =給与台帳3月!BN$32 -> 0 | AB57: =給与台帳3月!BN$33 -> 0 | AC57: =給与台帳3月!BN$34 -> 0 | AD57: =給与台帳3月!BN$35 -> 0 | AE57: =給与台帳3月!BN$36 -> 0 | AF57: =給与台帳3月!BN$37 -> 0 | AG57: =給与台帳3月!BN$38 -> 0 | AH57: =給与台帳3月!BN$39 -> 0 | AI57: =給与台帳3月!BN$40 -> 0 | AJ57: =給与台帳3月!BN$41 -> 0 | AK57: =給与台帳3月!BN$42 -> 0 | AL57: =給与台帳3月!BN$43 -> 0 | AM57: =給与台帳3月!BN$44 -> 0 | AN57: =給与台帳3月!BN$45 -> 0 | AO57: =給与台帳3月!BN$46 -> 0 | AP57: =給与台帳3月!BN$47 -> 0 | AQ57: =給与台帳3月!BN$48 -> 0 | AR57: =給与台帳3月!BN$49 -> 0 | AS57: =給与台帳3月!BN$50 -> 0 | AT57: =給与台帳3月!BN$51 -> 0 | AU57: =給与台帳3月!BN$52 -> 三月もお疲れ様でした
B58: 3 | C58: =給与台帳3月!BT$8 -> 12 | D58: =給与台帳3月!BT$9 ->  | E58: =給与台帳3月!BT$10 ->  | F58: =給与台帳3月!BT$11 ->  | G58: =給与台帳3月!BT$12 ->  | H58: =給与台帳3月!BT$13 -> 0 | I58: =給与台帳3月!BT$14 -> 0 | J58: =給与台帳3月!BT$15 -> 0 | K58: =給与台帳3月!BT$16 -> 0 | L58: =給与台帳3月!BT$17 -> 0 | M58: =給与台帳3月!BT$18 -> 0 | N58: =給与台帳3月!BT$19 -> 0 | O58: =給与台帳3月!BT$20 -> 0 | P58: =給与台帳3月!BT$21 -> 0 | Q58: =給与台帳3月!BT$22 -> 0 | R58: =給与台帳3月!BT$23 -> 0 | S58: =給与台帳3月!BT$24 -> 0 | T58: =給与台帳3月!BT$25 -> 0 | U58: =給与台帳3月!BT$26 -> 0 | V58: =給与台帳3月!BT$27 -> 0 | W58: =給与台帳3月!BT$28 -> 0 | X58: =給与台帳3月!BT$29 -> 0 | Y58: =給与台帳3月!BT$30 -> 0 | Z58: =給与台帳3月!BT$31 -> 0 | AA58: =給与台帳3月!BT$32 -> 0 | AB58: =給与台帳3月!BT$33 -> 0 | AC58: =給与台帳3月!BT$34 -> 0 | AD58: =給与台帳3月!BT$35 -> 0 | AE58: =給与台帳3月!BT$36 -> 0 | AF58: =給与台帳3月!BT$37 -> 0 | AG58: =給与台帳3月!BT$38 -> 0 | AH58: =給与台帳3月!BT$39 -> 0 | AI58: =給与台帳3月!BT$40 -> 0 | AJ58: =給与台帳3月!BT$41 -> 0 | AK58: =給与台帳3月!BT$42 -> 0 | AL58: =給与台帳3月!BT$43 -> 0 | AM58: =給与台帳3月!BT$44 -> 0 | AN58: =給与台帳3月!BT$45 -> 0 | AO58: =給与台帳3月!BT$46 -> 0 | AP58: =給与台帳3月!BT$47 -> 0 | AQ58: =給与台帳3月!BT$48 -> 0 | AR58: =給与台帳3月!BT$49 -> 0 | AS58: =給与台帳3月!BT$50 -> 0 | AT58: =給与台帳3月!BT$51 -> 0 | AU58: =給与台帳3月!BT$52 -> 三月もお疲れ様でした
B59: 3 | C59: =給与台帳3月!BZ$8 -> 13 | D59: =給与台帳3月!BZ$9 ->  | E59: =給与台帳3月!BZ$10 ->  | F59: =給与台帳3月!BZ$11 ->  | G59: =給与台帳3月!BZ$12 ->  | H59: =給与台帳3月!BZ$13 -> 0 | I59: =給与台帳3月!BZ$14 -> 0 | J59: =給与台帳3月!BZ$15 -> 0 | K59: =給与台帳3月!BZ$16 -> 0 | L59: =給与台帳3月!BZ$17 -> 0 | M59: =給与台帳3月!BZ$18 -> 0 | N59: =給与台帳3月!BZ$19 -> 0 | O59: =給与台帳3月!BZ$20 -> 0 | P59: =給与台帳3月!BZ$21 -> 0 | Q59: =給与台帳3月!BZ$22 -> 0 | R59: =給与台帳3月!BZ$23 -> 0 | S59: =給与台帳3月!BZ$24 -> 0 | T59: =給与台帳3月!BZ$25 -> 0 | U59: =給与台帳3月!BZ$26 -> 0 | V59: =給与台帳3月!BZ$27 -> 0 | W59: =給与台帳3月!BZ$28 -> 0 | X59: =給与台帳3月!BZ$29 -> 0 | Y59: =給与台帳3月!BZ$30 -> 0 | Z59: =給与台帳3月!BZ$31 -> 0 | AA59: =給与台帳3月!BZ$32 -> 0 | AB59: =給与台帳3月!BZ$33 -> 0 | AC59: =給与台帳3月!BZ$34 -> 0 | AD59: =給与台帳3月!BZ$35 -> 0 | AE59: =給与台帳3月!BZ$36 -> 0 | AF59: =給与台帳3月!BZ$37 -> 0 | AG59: =給与台帳3月!BZ$38 -> 0 | AH59: =給与台帳3月!BZ$39 -> 0 | AI59: =給与台帳3月!BZ$40 -> 0 | AJ59: =給与台帳3月!BZ$41 -> 0 | AK59: =給与台帳3月!BZ$42 -> 0 | AL59: =給与台帳3月!BZ$43 -> 0 | AM59: =給与台帳3月!BZ$44 -> 0 | AN59: =給与台帳3月!BZ$45 -> 0 | AO59: =給与台帳3月!BZ$46 -> 0 | AP59: =給与台帳3月!BZ$47 -> 0 | AQ59: =給与台帳3月!BZ$48 -> 0 | AR59: =給与台帳3月!BZ$49 -> 0 | AS59: =給与台帳3月!BZ$50 -> 0 | AT59: =給与台帳3月!BZ$51 -> 0 | AU59: =給与台帳3月!BZ$52 -> 三月もお疲れ様でした
B60: 3 | C60: =給与台帳3月!CF$8 -> 14 | D60: =給与台帳3月!CF$9 ->  | E60: =給与台帳3月!CF$10 ->  | F60: =給与台帳3月!CF$11 ->  | G60: =給与台帳3月!CF$12 ->  | H60: =給与台帳3月!CF$13 -> 0 | I60: =給与台帳3月!CF$14 -> 0 | J60: =給与台帳3月!CF$15 -> 0 | K60: =給与台帳3月!CF$16 -> 0 | L60: =給与台帳3月!CF$17 -> 0 | M60: =給与台帳3月!CF$18 -> 0 | N60: =給与台帳3月!CF$19 -> 0 | O60: =給与台帳3月!CF$20 -> 0 | P60: =給与台帳3月!CF$21 -> 0 | Q60: =給与台帳3月!CF$22 -> 0 | R60: =給与台帳3月!CF$23 -> 0 | S60: =給与台帳3月!CF$24 -> 0 | T60: =給与台帳3月!CF$25 -> 0 | U60: =給与台帳3月!CF$26 -> 0 | V60: =給与台帳3月!CF$27 -> 0 | W60: =給与台帳3月!CF$28 -> 0 | X60: =給与台帳3月!CF$29 -> 0 | Y60: =給与台帳3月!CF$30 -> 0 | Z60: =給与台帳3月!CF$31 -> 0 | AA60: =給与台帳3月!CF$32 -> 0 | AB60: =給与台帳3月!CF$33 -> 0 | AC60: =給与台帳3月!CF$34 -> 0 | AD60: =給与台帳3月!CF$35 -> 0 | AE60: =給与台帳3月!CF$36 -> 0 | AF60: =給与台帳3月!CF$37 -> 0 | AG60: =給与台帳3月!CF$38 -> 0 | AH60: =給与台帳3月!CF$39 -> 0 | AI60: =給与台帳3月!CF$40 -> 0 | AJ60: =給与台帳3月!CF$41 -> 0 | AK60: =給与台帳3月!CF$42 -> 0 | AL60: =給与台帳3月!CF$43 -> 0 | AM60: =給与台帳3月!CF$44 -> 0 | AN60: =給与台帳3月!CF$45 -> 0 | AO60: =給与台帳3月!CF$46 -> 0 | AP60: =給与台帳3月!CF$47 -> 0 | AQ60: =給与台帳3月!CF$48 -> 0 | AR60: =給与台帳3月!CF$49 -> 0 | AS60: =給与台帳3月!CF$50 -> 0 | AT60: =給与台帳3月!CF$51 -> 0 | AU60: =給与台帳3月!CF$52 -> 三月もお疲れ様でした
B61: 3 | C61: =給与台帳3月!CL$8 -> 15 | D61: =給与台帳3月!CL$9 ->  | E61: =給与台帳3月!CL$10 ->  | F61: =給与台帳3月!CL$11 ->  | G61: =給与台帳3月!CL$12 ->  | H61: =給与台帳3月!CL$13 -> 0 | I61: =給与台帳3月!CL$14 -> 0 | J61: =給与台帳3月!CL$15 -> 0 | K61: =給与台帳3月!CL$16 -> 0 | L61: =給与台帳3月!CL$17 -> 0 | M61: =給与台帳3月!CL$18 -> 0 | N61: =給与台帳3月!CL$19 -> 0 | O61: =給与台帳3月!CL$20 -> 0 | P61: =給与台帳3月!CL$21 -> 0 | Q61: =給与台帳3月!CL$22 -> 0 | R61: =給与台帳3月!CL$23 -> 0 | S61: =給与台帳3月!CL$24 -> 0 | T61: =給与台帳3月!CL$25 -> 0 | U61: =給与台帳3月!CL$26 -> 0 | V61: =給与台帳3月!CL$27 -> 0 | W61: =給与台帳3月!CL$28 -> 0 | X61: =給与台帳3月!CL$29 -> 0 | Y61: =給与台帳3月!CL$30 -> 0 | Z61: =給与台帳3月!CL$31 -> 0 | AA61: =給与台帳3月!CL$32 -> 0 | AB61: =給与台帳3月!CL$33 -> 0 | AC61: =給与台帳3月!CL$34 -> 0 | AD61: =給与台帳3月!CL$35 -> 0 | AE61: =給与台帳3月!CL$36 -> 0 | AF61: =給与台帳3月!CL$37 -> 0 | AG61: =給与台帳3月!CL$38 -> 0 | AH61: =給与台帳3月!CL$39 -> 0 | AI61: =給与台帳3月!CL$40 -> 0 | AJ61: =給与台帳3月!CL$41 -> 0 | AK61: =給与台帳3月!CL$42 -> 0 | AL61: =給与台帳3月!CL$43 -> 0 | AM61: =給与台帳3月!CL$44 -> 0 | AN61: =給与台帳3月!CL$45 -> 0 | AO61: =給与台帳3月!CL$46 -> 0 | AP61: =給与台帳3月!CL$47 -> 0 | AQ61: =給与台帳3月!CL$48 -> 0 | AR61: =給与台帳3月!CL$49 -> 0 | AS61: =給与台帳3月!CL$50 -> 0 | AT61: =給与台帳3月!CL$51 -> 0 | AU61: =給与台帳3月!CL$52 -> 三月もお疲れ様でした
B62: 3 | C62: =給与台帳3月!CR$8 -> 16 | D62: =給与台帳3月!CR$9 ->  | E62: =給与台帳3月!CR$10 ->  | F62: =給与台帳3月!CR$11 ->  | G62: =給与台帳3月!CR$12 ->  | H62: =給与台帳3月!CR$13 -> 0 | I62: =給与台帳3月!CR$14 -> 0 | J62: =給与台帳3月!CR$15 -> 0 | K62: =給与台帳3月!CR$16 -> 0 | L62: =給与台帳3月!CR$17 -> 0 | M62: =給与台帳3月!CR$18 -> 0 | N62: =給与台帳3月!CR$19 -> 0 | O62: =給与台帳3月!CR$20 -> 0 | P62: =給与台帳3月!CR$21 -> 0 | Q62: =給与台帳3月!CR$22 -> 0 | R62: =給与台帳3月!CR$23 -> 0 | S62: =給与台帳3月!CR$24 -> 0 | T62: =給与台帳3月!CR$25 -> 0 | U62: =給与台帳3月!CR$26 -> 0 | V62: =給与台帳3月!CR$27 -> 0 | W62: =給与台帳3月!CR$28 -> 0 | X62: =給与台帳3月!CR$29 -> 0 | Y62: =給与台帳3月!CR$30 -> 0 | Z62: =給与台帳3月!CR$31 -> 0 | AA62: =給与台帳3月!CR$32 -> 0 | AB62: =給与台帳3月!CR$33 -> 0 | AC62: =給与台帳3月!CR$34 -> 0 | AD62: =給与台帳3月!CR$35 -> 0 | AE62: =給与台帳3月!CR$36 -> 0 | AF62: =給与台帳3月!CR$37 -> 0 | AG62: =給与台帳3月!CR$38 -> 0 | AH62: =給与台帳3月!CR$39 -> 0 | AI62: =給与台帳3月!CR$40 -> 0 | AJ62: =給与台帳3月!CR$41 -> 0 | AK62: =給与台帳3月!CR$42 -> 0 | AL62: =給与台帳3月!CR$43 -> 0 | AM62: =給与台帳3月!CR$44 -> 0 | AN62: =給与台帳3月!CR$45 -> 0 | AO62: =給与台帳3月!CR$46 -> 0 | AP62: =給与台帳3月!CR$47 -> 0 | AQ62: =給与台帳3月!CR$48 -> 0 | AR62: =給与台帳3月!CR$49 -> 0 | AS62: =給与台帳3月!CR$50 -> 0 | AT62: =給与台帳3月!CR$51 -> 0 | AU62: =給与台帳3月!CR$52 -> 三月もお疲れ様でした
B63: 3 | C63: =給与台帳3月!CX$8 -> 17 | D63: =給与台帳3月!CX$9 ->  | E63: =給与台帳3月!CX$10 ->  | F63: =給与台帳3月!CX$11 ->  | G63: =給与台帳3月!CX$12 ->  | H63: =給与台帳3月!CX$13 -> 0 | I63: =給与台帳3月!CX$14 -> 0 | J63: =給与台帳3月!CX$15 -> 0 | K63: =給与台帳3月!CX$16 -> 0 | L63: =給与台帳3月!CX$17 -> 0 | M63: =給与台帳3月!CX$18 -> 0 | N63: =給与台帳3月!CX$19 -> 0 | O63: =給与台帳3月!CX$20 -> 0 | P63: =給与台帳3月!CX$21 -> 0 | Q63: =給与台帳3月!CX$22 -> 0 | R63: =給与台帳3月!CX$23 -> 0 | S63: =給与台帳3月!CX$24 -> 0 | T63: =給与台帳3月!CX$25 -> 0 | U63: =給与台帳3月!CX$26 -> 0 | V63: =給与台帳3月!CX$27 -> 0 | W63: =給与台帳3月!CX$28 -> 0 | X63: =給与台帳3月!CX$29 -> 0 | Y63: =給与台帳3月!CX$30 -> 0 | Z63: =給与台帳3月!CX$31 -> 0 | AA63: =給与台帳3月!CX$32 -> 0 | AB63: =給与台帳3月!CX$33 -> 0 | AC63: =給与台帳3月!CX$34 -> 0 | AD63: =給与台帳3月!CX$35 -> 0 | AE63: =給与台帳3月!CX$36 -> 0 | AF63: =給与台帳3月!CX$37 -> 0 | AG63: =給与台帳3月!CX$38 -> 0 | AH63: =給与台帳3月!CX$39 -> 0 | AI63: =給与台帳3月!CX$40 -> 0 | AJ63: =給与台帳3月!CX$41 -> 0 | AK63: =給与台帳3月!CX$42 -> 0 | AL63: =給与台帳3月!CX$43 -> 0 | AM63: =給与台帳3月!CX$44 -> 0 | AN63: =給与台帳3月!CX$45 -> 0 | AO63: =給与台帳3月!CX$46 -> 0 | AP63: =給与台帳3月!CX$47 -> 0 | AQ63: =給与台帳3月!CX$48 -> 0 | AR63: =給与台帳3月!CX$49 -> 0 | AS63: =給与台帳3月!CX$50 -> 0 | AT63: =給与台帳3月!CX$51 -> 0 | AU63: =給与台帳3月!CX$52 -> 三月もお疲れ様でした
B64: 3 | C64: =給与台帳3月!DD$8 -> 18 | D64: =給与台帳3月!DD$9 ->  | E64: =給与台帳3月!DD$10 ->  | F64: =給与台帳3月!DD$11 ->  | G64: =給与台帳3月!DD$12 ->  | H64: =給与台帳3月!DD$13 -> 0 | I64: =給与台帳3月!DD$14 -> 0 | J64: =給与台帳3月!DD$15 -> 0 | K64: =給与台帳3月!DD$16 -> 0 | L64: =給与台帳3月!DD$17 -> 0 | M64: =給与台帳3月!DD$18 -> 0 | N64: =給与台帳3月!DD$19 -> 0 | O64: =給与台帳3月!DD$20 -> 0 | P64: =給与台帳3月!DD$21 -> 0 | Q64: =給与台帳3月!DD$22 -> 0 | R64: =給与台帳3月!DD$23 -> 0 | S64: =給与台帳3月!DD$24 -> 0 | T64: =給与台帳3月!DD$25 -> 0 | U64: =給与台帳3月!DD$26 -> 0 | V64: =給与台帳3月!DD$27 -> 0 | W64: =給与台帳3月!DD$28 -> 0 | X64: =給与台帳3月!DD$29 -> 0 | Y64: =給与台帳3月!DD$30 -> 0 | Z64: =給与台帳3月!DD$31 -> 0 | AA64: =給与台帳3月!DD$32 -> 0 | AB64: =給与台帳3月!DD$33 -> 0 | AC64: =給与台帳3月!DD$34 -> 0 | AD64: =給与台帳3月!DD$35 -> 0 | AE64: =給与台帳3月!DD$36 -> 0 | AF64: =給与台帳3月!DD$37 -> 0 | AG64: =給与台帳3月!DD$38 -> 0 | AH64: =給与台帳3月!DD$39 -> 0 | AI64: =給与台帳3月!DD$40 -> 0 | AJ64: =給与台帳3月!DD$41 -> 0 | AK64: =給与台帳3月!DD$42 -> 0 | AL64: =給与台帳3月!DD$43 -> 0 | AM64: =給与台帳3月!DD$44 -> 0 | AN64: =給与台帳3月!DD$45 -> 0 | AO64: =給与台帳3月!DD$46 -> 0 | AP64: =給与台帳3月!DD$47 -> 0 | AQ64: =給与台帳3月!DD$48 -> 0 | AR64: =給与台帳3月!DD$49 -> 0 | AS64: =給与台帳3月!DD$50 -> 0 | AT64: =給与台帳3月!DD$51 -> 0 | AU64: =給与台帳3月!DD$52 -> 三月もお疲れ様でした
B65: 3
B66: 3
B67: 4 | C67: =給与台帳4月!F$8 -> 1 | D67: =給与台帳4月!F$9 -> 今野 友夫 | E67: =給与台帳4月!F$10 -> 役員 | F67: =給与台帳4月!F$11 -> 甲欄 | G67: =給与台帳4月!F$12 -> 45 | H67: =給与台帳4月!F$13 -> 1 | I67: =給与台帳4月!F$14 -> 500000 | J67: =給与台帳4月!F$15 -> 500000 | K67: =給与台帳4月!F$16 -> 0 | L67: =給与台帳4月!F$17 -> 0 | M67: =給与台帳4月!F$18 -> 0 | N67: =給与台帳4月!F$19 -> 0 | O67: =給与台帳4月!F$20 -> 0 | P67: =給与台帳4月!F$21 -> 0 | Q67: =給与台帳4月!F$22 -> 0 | R67: =給与台帳4月!F$23 -> 0 | S67: =給与台帳4月!F$24 -> 500000 | T67: =給与台帳4月!F$25 -> 0 | U67: =給与台帳4月!F$26 -> 0 | V67: =給与台帳4月!F$27 -> 0 | W67: =給与台帳4月!F$28 -> 0 | X67: =給与台帳4月!F$29 -> 0 | Y67: =給与台帳4月!F$30 -> 0 | Z67: =給与台帳4月!F$31 -> 0 | AA67: =給与台帳4月!F$32 -> 10000 | AB67: =給与台帳4月!F$33 -> 0 | AC67: =給与台帳4月!F$34 -> 500000 | AD67: =給与台帳4月!F$35 -> 10000 | AE67: =給与台帳4月!F$36 -> 510000 | AF67: =給与台帳4月!F$37 -> 23800 | AG67: =給与台帳4月!F$38 -> 0 | AH67: =給与台帳4月!F$39 -> 41030 | AI67: =給与台帳4月!F$40 -> 0 | AJ67: =給与台帳4月!F$41 -> 64830 | AK67: =給与台帳4月!F$42 -> 435170 | AL67: =給与台帳4月!F$43 -> 16190 | AM67: =給与台帳4月!F$44 -> 22300 | AN67: =給与台帳4月!F$45 -> 0 | AO67: =給与台帳4月!F$46 -> 0 | AP67: =給与台帳4月!F$47 -> 0 | AQ67: =給与台帳4月!F$48 -> 38490 | AR67: =給与台帳4月!F$49 -> 406680 | AS67: =給与台帳4月!F$50 -> 0 | AT67: =給与台帳4月!F$51 -> 406680 | AU67: =給与台帳4月!F$52 -> 四月もお疲れ様でした
B68: 4 | C68: =給与台帳4月!L$8 -> 2 | D68: =給与台帳4月!L$9 -> 今野 朝子 | E68: =給与台帳4月!L$10 -> 役員 | F68: =給与台帳4月!L$11 -> 甲欄 | G68: =給与台帳4月!L$12 -> 39 | H68: =給与台帳4月!L$13 -> 0 | I68: =給与台帳4月!L$14 -> 300000 | J68: =給与台帳4月!L$15 -> 300000 | K68: =給与台帳4月!L$16 -> 0 | L68: =給与台帳4月!L$17 -> 0 | M68: =給与台帳4月!L$18 -> 0 | N68: =給与台帳4月!L$19 -> 0 | O68: =給与台帳4月!L$20 -> 0 | P68: =給与台帳4月!L$21 -> 0 | Q68: =給与台帳4月!L$22 -> 0 | R68: =給与台帳4月!L$23 -> 0 | S68: =給与台帳4月!L$24 -> 300000 | T68: =給与台帳4月!L$25 -> 0 | U68: =給与台帳4月!L$26 -> 0 | V68: =給与台帳4月!L$27 -> 0 | W68: =給与台帳4月!L$28 -> 0 | X68: =給与台帳4月!L$29 -> 0 | Y68: =給与台帳4月!L$30 -> 0 | Z68: =給与台帳4月!L$31 -> 0 | AA68: =給与台帳4月!L$32 -> 10000 | AB68: =給与台帳4月!L$33 -> 0 | AC68: =給与台帳4月!L$34 -> 300000 | AD68: =給与台帳4月!L$35 -> 10000 | AE68: =給与台帳4月!L$36 -> 310000 | AF68: =給与台帳4月!L$37 -> 14280 | AG68: =給与台帳4月!L$38 -> 0 | AH68: =給与台帳4月!L$39 -> 24618 | AI68: =給与台帳4月!L$40 -> 0 | AJ68: =給与台帳4月!L$41 -> 38898 | AK68: =給与台帳4月!L$42 -> 261102 | AL68: =給与台帳4月!L$43 -> 6950 | AM68: =給与台帳4月!L$44 -> 12400 | AN68: =給与台帳4月!L$45 -> 0 | AO68: =給与台帳4月!L$46 -> 0 | AP68: =給与台帳4月!L$47 -> 0 | AQ68: =給与台帳4月!L$48 -> 19350 | AR68: =給与台帳4月!L$49 -> 251752 | AS68: =給与台帳4月!L$50 -> 0 | AT68: =給与台帳4月!L$51 -> 251752 | AU68: =給与台帳4月!L$52 -> 四月もお疲れ様でした
B69: 4 | C69: =給与台帳4月!R$8 -> 3 | D69: =給与台帳4月!R$9 -> 今野 祥子 | E69: =給与台帳4月!R$10 -> 役員 | F69: =給与台帳4月!R$11 -> 甲欄 | G69: =給与台帳4月!R$12 -> 71 | H69: =給与台帳4月!R$13 -> 0 | I69: =給与台帳4月!R$14 -> 0 | J69: =給与台帳4月!R$15 -> 0 | K69: =給与台帳4月!R$16 -> 0 | L69: =給与台帳4月!R$17 -> 0 | M69: =給与台帳4月!R$18 -> 0 | N69: =給与台帳4月!R$19 -> 0 | O69: =給与台帳4月!R$20 -> 0 | P69: =給与台帳4月!R$21 -> 0 | Q69: =給与台帳4月!R$22 -> 0 | R69: =給与台帳4月!R$23 -> 0 | S69: =給与台帳4月!R$24 -> 80000 | T69: =給与台帳4月!R$25 -> 0 | U69: =給与台帳4月!R$26 -> 0 | V69: =給与台帳4月!R$27 -> 0 | W69: =給与台帳4月!R$28 -> 0 | X69: =給与台帳4月!R$29 -> 0 | Y69: =給与台帳4月!R$30 -> 0 | Z69: =給与台帳4月!R$31 -> 0 | AA69: =給与台帳4月!R$32 -> 0 | AB69: =給与台帳4月!R$33 -> 0 | AC69: =給与台帳4月!R$34 -> 80000 | AD69: =給与台帳4月!R$35 -> 0 | AE69: =給与台帳4月!R$36 -> 80000 | AF69: =給与台帳4月!R$37 -> 0 | AG69: =給与台帳4月!R$38 -> 0 | AH69: =給与台帳4月!R$39 -> 0 | AI69: =給与台帳4月!R$40 -> 0 | AJ69: =給与台帳4月!R$41 -> 0 | AK69: =給与台帳4月!R$42 -> 80000 | AL69: =給与台帳4月!R$43 -> 0 | AM69: =給与台帳4月!R$44 -> 0 | AN69: =給与台帳4月!R$45 -> 0 | AO69: =給与台帳4月!R$46 -> 0 | AP69: =給与台帳4月!R$47 -> 0 | AQ69: =給与台帳4月!R$48 -> 0 | AR69: =給与台帳4月!R$49 -> 80000 | AS69: =給与台帳4月!R$50 -> 0 | AT69: =給与台帳4月!R$51 -> 80000 | AU69: =給与台帳4月!R$52 -> 四月もお疲れ様でした
B70: 4 | C70: =給与台帳4月!X$8 -> 4 | D70: =給与台帳4月!X$9 -> 川西 めぐみ | E70: =給与台帳4月!X$10 -> 従業員（雇保加入） | F70: =給与台帳4月!X$11 -> 甲欄 | G70: =給与台帳4月!X$12 -> 49 | H70: =給与台帳4月!X$13 -> 1 | I70: =給与台帳4月!X$14 -> 220000 | J70: =給与台帳4月!X$15 -> 220000 | K70: =給与台帳4月!X$16 -> 21日 | L70: =給与台帳4月!X$17 -> 157時間 | M70: =給与台帳4月!X$18 -> 4時間 | N70: =給与台帳4月!X$19 -> 6時間 | O70: =給与台帳4月!X$20 -> 0 | P70: =給与台帳4月!X$21 -> 0 | Q70: =給与台帳4月!X$22 -> 0 | R70: =給与台帳4月!X$23 -> 0 | S70: =給与台帳4月!X$24 -> 0 | T70: =給与台帳4月!X$25 -> 225000 | U70: =給与台帳4月!X$26 -> 18354 | V70: =給与台帳4月!X$27 -> 0 | W70: =給与台帳4月!X$28 -> 0 | X70: =給与台帳4月!X$29 -> 0 | Y70: =給与台帳4月!X$30 -> 0 | Z70: =給与台帳4月!X$31 -> 0 | AA70: =給与台帳4月!X$32 -> 18370 | AB70: =給与台帳4月!X$33 -> 0 | AC70: =給与台帳4月!X$34 -> 243354 | AD70: =給与台帳4月!X$35 -> 18370 | AE70: =給与台帳4月!X$36 -> 261724 | AF70: =給与台帳4月!X$37 -> 10472 | AG70: =給与台帳4月!X$38 -> 1661 | AH70: =給与台帳4月!X$39 -> 18053 | AI70: =給与台帳4月!X$40 -> 1308 | AJ70: =給与台帳4月!X$41 -> 31494 | AK70: =給与台帳4月!X$42 -> 211860 | AL70: =給与台帳4月!X$43 -> 3570 | AM70: =給与台帳4月!X$44 -> 8500 | AN70: =給与台帳4月!X$45 -> 0 | AO70: =給与台帳4月!X$46 -> 0 | AP70: =給与台帳4月!X$47 -> 0 | AQ70: =給与台帳4月!X$48 -> 12070 | AR70: =給与台帳4月!X$49 -> 218160 | AS70: =給与台帳4月!X$50 -> 0 | AT70: =給与台帳4月!X$51 -> 218160 | AU70: =給与台帳4月!X$52 -> 四月もお疲れ様でした
B71: 4 | C71: =給与台帳4月!AD$8 -> 5 | D71: =給与台帳4月!AD$9 -> 鳥居 雅之 | E71: =給与台帳4月!AD$10 -> 従業員（雇保非加入） | F71: =給与台帳4月!AD$11 -> 乙欄 | G71: =給与台帳4月!AD$12 -> 35 | H71: =給与台帳4月!AD$13 -> 0 | I71: =給与台帳4月!AD$14 -> 0 | J71: =給与台帳4月!AD$15 -> 0 | K71: =給与台帳4月!AD$16 -> 9日 | L71: =給与台帳4月!AD$17 -> 36時間 | M71: =給与台帳4月!AD$18 -> 0 | N71: =給与台帳4月!AD$19 -> 0 | O71: =給与台帳4月!AD$20 -> 0 | P71: =給与台帳4月!AD$21 -> 0 | Q71: =給与台帳4月!AD$22 -> 0 | R71: =給与台帳4月!AD$23 -> 0 | S71: =給与台帳4月!AD$24 -> 0 | T71: =給与台帳4月!AD$25 -> 45000 | U71: =給与台帳4月!AD$26 -> 0 | V71: =給与台帳4月!AD$27 -> 0 | W71: =給与台帳4月!AD$28 -> 0 | X71: =給与台帳4月!AD$29 -> 0 | Y71: =給与台帳4月!AD$30 -> 0 | Z71: =給与台帳4月!AD$31 -> 0 | AA71: =給与台帳4月!AD$32 -> 0 | AB71: =給与台帳4月!AD$33 -> 0 | AC71: =給与台帳4月!AD$34 -> 45000 | AD71: =給与台帳4月!AD$35 -> 0 | AE71: =給与台帳4月!AD$36 -> 45000 | AF71: =給与台帳4月!AD$37 -> 0 | AG71: =給与台帳4月!AD$38 -> 0 | AH71: =給与台帳4月!AD$39 -> 0 | AI71: =給与台帳4月!AD$40 -> 0 | AJ71: =給与台帳4月!AD$41 -> 0 | AK71: =給与台帳4月!AD$42 -> 45000 | AL71: =給与台帳4月!AD$43 -> 1378 | AM71: =給与台帳4月!AD$44 -> 0 | AN71: =給与台帳4月!AD$45 -> 0 | AO71: =給与台帳4月!AD$46 -> 0 | AP71: =給与台帳4月!AD$47 -> 0 | AQ71: =給与台帳4月!AD$48 -> 1378 | AR71: =給与台帳4月!AD$49 -> 43622 | AS71: =給与台帳4月!AD$50 -> 0 | AT71: =給与台帳4月!AD$51 -> 43622 | AU71: =給与台帳4月!AD$52 -> 四月もお疲れ様でした
B72: 4 | C72: =給与台帳4月!AJ$8 -> 6 | D72: =給与台帳4月!AJ$9 -> 笹部 菜穂美 | E72: =給与台帳4月!AJ$10 -> 従業員（雇保加入） | F72: =給与台帳4月!AJ$11 -> 甲欄 | G72: =給与台帳4月!AJ$12 -> 30 | H72: =給与台帳4月!AJ$13 -> 0 | I72: =給与台帳4月!AJ$14 -> 0 | J72: =給与台帳4月!AJ$15 -> 0 | K72: =給与台帳4月!AJ$16 -> 0 | L72: =給与台帳4月!AJ$17 -> 0 | M72: =給与台帳4月!AJ$18 -> 0 | N72: =給与台帳4月!AJ$19 -> 0 | O72: =給与台帳4月!AJ$20 -> 0 | P72: =給与台帳4月!AJ$21 -> 0 | Q72: =給与台帳4月!AJ$22 -> 0 | R72: =給与台帳4月!AJ$23 -> 0 | S72: =給与台帳4月!AJ$24 -> 0 | T72: =給与台帳4月!AJ$25 -> 0 | U72: =給与台帳4月!AJ$26 -> 0 | V72: =給与台帳4月!AJ$27 -> 0 | W72: =給与台帳4月!AJ$28 -> 0 | X72: =給与台帳4月!AJ$29 -> 0 | Y72: =給与台帳4月!AJ$30 -> 0 | Z72: =給与台帳4月!AJ$31 -> 0 | AA72: =給与台帳4月!AJ$32 -> 0 | AB72: =給与台帳4月!AJ$33 -> 0 | AC72: =給与台帳4月!AJ$34 -> 0 | AD72: =給与台帳4月!AJ$35 -> 0 | AE72: =給与台帳4月!AJ$36 -> 0 | AF72: =給与台帳4月!AJ$37 -> 0 | AG72: =給与台帳4月!AJ$38 -> 0 | AH72: =給与台帳4月!AJ$39 -> 0 | AI72: =給与台帳4月!AJ$40 -> 0 | AJ72: =給与台帳4月!AJ$41 -> 0 | AK72: =給与台帳4月!AJ$42 -> 0 | AL72: =給与台帳4月!AJ$43 -> 0 | AM72: =給与台帳4月!AJ$44 -> 0 | AN72: =給与台帳4月!AJ$45 -> 0 | AO72: =給与台帳4月!AJ$46 -> 0 | AP72: =給与台帳4月!AJ$47 -> 0 | AQ72: =給与台帳4月!AJ$48 -> 0 | AR72: =給与台帳4月!AJ$49 -> 0 | AS72: =給与台帳4月!AJ$50 -> 0 | AT72: =給与台帳4月!AJ$51 -> 0 | AU72: =給与台帳4月!AJ$52 -> 四月もお疲れ様でした
B73: 4 | C73: =給与台帳4月!AP$8 -> 7 | D73: =給与台帳4月!AP$9 -> 絹延橋 みつ子 | E73: =給与台帳4月!AP$10 -> 従業員（雇保加入） | F73: =給与台帳4月!AP$11 -> 甲欄 | G73: =給与台帳4月!AP$12 -> 46 | H73: =給与台帳4月!AP$13 -> 0 | I73: =給与台帳4月!AP$14 -> 300000 | J73: =給与台帳4月!AP$15 -> 0 | K73: =給与台帳4月!AP$16 -> 0 | L73: =給与台帳4月!AP$17 -> 0 | M73: =給与台帳4月!AP$18 -> 0 | N73: =給与台帳4月!AP$19 -> 0 | O73: =給与台帳4月!AP$20 -> 0 | P73: =給与台帳4月!AP$21 -> 0 | Q73: =給与台帳4月!AP$22 -> 0 | R73: =給与台帳4月!AP$23 -> 0 | S73: =給与台帳4月!AP$24 -> 0 | T73: =給与台帳4月!AP$25 -> 0 | U73: =給与台帳4月!AP$26 -> 0 | V73: =給与台帳4月!AP$27 -> 0 | W73: =給与台帳4月!AP$28 -> 0 | X73: =給与台帳4月!AP$29 -> 0 | Y73: =給与台帳4月!AP$30 -> 0 | Z73: =給与台帳4月!AP$31 -> 0 | AA73: =給与台帳4月!AP$32 -> 0 | AB73: =給与台帳4月!AP$33 -> 0 | AC73: =給与台帳4月!AP$34 -> 0 | AD73: =給与台帳4月!AP$35 -> 0 | AE73: =給与台帳4月!AP$36 -> 0 | AF73: =給与台帳4月!AP$37 -> 0 | AG73: =給与台帳4月!AP$38 -> 0 | AH73: =給与台帳4月!AP$39 -> 0 | AI73: =給与台帳4月!AP$40 -> 0 | AJ73: =給与台帳4月!AP$41 -> 0 | AK73: =給与台帳4月!AP$42 -> 0 | AL73: =給与台帳4月!AP$43 -> 0 | AM73: =給与台帳4月!AP$44 -> 0 | AN73: =給与台帳4月!AP$45 -> 0 | AO73: =給与台帳4月!AP$46 -> 0 | AP73: =給与台帳4月!AP$47 -> 0 | AQ73: =給与台帳4月!AP$48 -> 0 | AR73: =給与台帳4月!AP$49 -> 0 | AS73: =給与台帳4月!AP$50 -> 0 | AT73: =給与台帳4月!AP$51 -> 0 | AU73: =給与台帳4月!AP$52 -> 四月もお疲れ様でした
B74: 4 | C74: =給与台帳4月!AV$8 -> 8 | D74: =給与台帳4月!AV$9 -> 山下 崇 | E74: =給与台帳4月!AV$10 -> 従業員（雇保加入） | F74: =給与台帳4月!AV$11 -> 甲欄 | G74: =給与台帳4月!AV$12 -> 33 | H74: =給与台帳4月!AV$13 -> 0 | I74: =給与台帳4月!AV$14 -> 0 | J74: =給与台帳4月!AV$15 -> 0 | K74: =給与台帳4月!AV$16 -> 0 | L74: =給与台帳4月!AV$17 -> 0 | M74: =給与台帳4月!AV$18 -> 0 | N74: =給与台帳4月!AV$19 -> 0 | O74: =給与台帳4月!AV$20 -> 0 | P74: =給与台帳4月!AV$21 -> 0 | Q74: =給与台帳4月!AV$22 -> 0 | R74: =給与台帳4月!AV$23 -> 0 | S74: =給与台帳4月!AV$24 -> 0 | T74: =給与台帳4月!AV$25 -> 0 | U74: =給与台帳4月!AV$26 -> 0 | V74: =給与台帳4月!AV$27 -> 0 | W74: =給与台帳4月!AV$28 -> 0 | X74: =給与台帳4月!AV$29 -> 0 | Y74: =給与台帳4月!AV$30 -> 0 | Z74: =給与台帳4月!AV$31 -> 0 | AA74: =給与台帳4月!AV$32 -> 0 | AB74: =給与台帳4月!AV$33 -> 0 | AC74: =給与台帳4月!AV$34 -> 0 | AD74: =給与台帳4月!AV$35 -> 0 | AE74: =給与台帳4月!AV$36 -> 0 | AF74: =給与台帳4月!AV$37 -> 0 | AG74: =給与台帳4月!AV$38 -> 0 | AH74: =給与台帳4月!AV$39 -> 0 | AI74: =給与台帳4月!AV$40 -> 0 | AJ74: =給与台帳4月!AV$41 -> 0 | AK74: =給与台帳4月!AV$42 -> 0 | AL74: =給与台帳4月!AV$43 -> 0 | AM74: =給与台帳4月!AV$44 -> 0 | AN74: =給与台帳4月!AV$45 -> 0 | AO74: =給与台帳4月!AV$46 -> 0 | AP74: =給与台帳4月!AV$47 -> 0 | AQ74: =給与台帳4月!AV$48 -> 0 | AR74: =給与台帳4月!AV$49 -> 0 | AS74: =給与台帳4月!AV$50 -> 0 | AT74: =給与台帳4月!AV$51 -> 0 | AU74: =給与台帳4月!AV$52 -> 四月もお疲れ様でした
B75: 4 | C75: =給与台帳4月!BB$8 -> 9 | D75: =給与台帳4月!BB$9 ->  | E75: =給与台帳4月!BB$10 ->  | F75: =給与台帳4月!BB$11 ->  | G75: =給与台帳4月!BB$12 ->  | H75: =給与台帳4月!BB$13 -> 0 | I75: =給与台帳4月!BB$14 -> 0 | J75: =給与台帳4月!BB$15 -> 0 | K75: =給与台帳4月!BB$16 -> 0 | L75: =給与台帳4月!BB$17 -> 0 | M75: =給与台帳4月!BB$18 -> 0 | N75: =給与台帳4月!BB$19 -> 0 | O75: =給与台帳4月!BB$20 -> 0 | P75: =給与台帳4月!BB$21 -> 0 | Q75: =給与台帳4月!BB$22 -> 0 | R75: =給与台帳4月!BB$23 -> 0 | S75: =給与台帳4月!BB$24 -> 0 | T75: =給与台帳4月!BB$25 -> 0 | U75: =給与台帳4月!BB$26 -> 0 | V75: =給与台帳4月!BB$27 -> 0 | W75: =給与台帳4月!BB$28 -> 0 | X75: =給与台帳4月!BB$29 -> 0 | Y75: =給与台帳4月!BB$30 -> 0 | Z75: =給与台帳4月!BB$31 -> 0 | AA75: =給与台帳4月!BB$32 -> 0 | AB75: =給与台帳4月!BB$33 -> 0 | AC75: =給与台帳4月!BB$34 -> 0 | AD75: =給与台帳4月!BB$35 -> 0 | AE75: =給与台帳4月!BB$36 -> 0 | AF75: =給与台帳4月!BB$37 -> 0 | AG75: =給与台帳4月!BB$38 -> 0 | AH75: =給与台帳4月!BB$39 -> 0 | AI75: =給与台帳4月!BB$40 -> 0 | AJ75: =給与台帳4月!BB$41 -> 0 | AK75: =給与台帳4月!BB$42 -> 0 | AL75: =給与台帳4月!BB$43 -> 0 | AM75: =給与台帳4月!BB$44 -> 0 | AN75: =給与台帳4月!BB$45 -> 0 | AO75: =給与台帳4月!BB$46 -> 0 | AP75: =給与台帳4月!BB$47 -> 0 | AQ75: =給与台帳4月!BB$48 -> 0 | AR75: =給与台帳4月!BB$49 -> 0 | AS75: =給与台帳4月!BB$50 -> 0 | AT75: =給与台帳4月!BB$51 -> 0 | AU75: =給与台帳4月!BB$52 -> 四月もお疲れ様でした
B76: 4 | C76: =給与台帳4月!BH$8 -> 10 | D76: =給与台帳4月!BH$9 ->  | E76: =給与台帳4月!BH$10 ->  | F76: =給与台帳4月!BH$11 ->  | G76: =給与台帳4月!BH$12 ->  | H76: =給与台帳4月!BH$13 -> 0 | I76: =給与台帳4月!BH$14 -> 0 | J76: =給与台帳4月!BH$15 -> 0 | K76: =給与台帳4月!BH$16 -> 0 | L76: =給与台帳4月!BH$17 -> 0 | M76: =給与台帳4月!BH$18 -> 0 | N76: =給与台帳4月!BH$19 -> 0 | O76: =給与台帳4月!BH$20 -> 0 | P76: =給与台帳4月!BH$21 -> 0 | Q76: =給与台帳4月!BH$22 -> 0 | R76: =給与台帳4月!BH$23 -> 0 | S76: =給与台帳4月!BH$24 -> 0 | T76: =給与台帳4月!BH$25 -> 0 | U76: =給与台帳4月!BH$26 -> 0 | V76: =給与台帳4月!BH$27 -> 0 | W76: =給与台帳4月!BH$28 -> 0 | X76: =給与台帳4月!BH$29 -> 0 | Y76: =給与台帳4月!BH$30 -> 0 | Z76: =給与台帳4月!BH$31 -> 0 | AA76: =給与台帳4月!BH$32 -> 0 | AB76: =給与台帳4月!BH$33 -> 0 | AC76: =給与台帳4月!BH$34 -> 0 | AD76: =給与台帳4月!BH$35 -> 0 | AE76: =給与台帳4月!BH$36 -> 0 | AF76: =給与台帳4月!BH$37 -> 0 | AG76: =給与台帳4月!BH$38 -> 0 | AH76: =給与台帳4月!BH$39 -> 0 | AI76: =給与台帳4月!BH$40 -> 0 | AJ76: =給与台帳4月!BH$41 -> 0 | AK76: =給与台帳4月!BH$42 -> 0 | AL76: =給与台帳4月!BH$43 -> 0 | AM76: =給与台帳4月!BH$44 -> 0 | AN76: =給与台帳4月!BH$45 -> 0 | AO76: =給与台帳4月!BH$46 -> 0 | AP76: =給与台帳4月!BH$47 -> 0 | AQ76: =給与台帳4月!BH$48 -> 0 | AR76: =給与台帳4月!BH$49 -> 0 | AS76: =給与台帳4月!BH$50 -> 0 | AT76: =給与台帳4月!BH$51 -> 0 | AU76: =給与台帳4月!BH$52 -> 四月もお疲れ様でした
B77: 4 | C77: =給与台帳4月!BN$8 -> 11 | D77: =給与台帳4月!BN$9 ->  | E77: =給与台帳4月!BN$10 ->  | F77: =給与台帳4月!BN$11 ->  | G77: =給与台帳4月!BN$12 ->  | H77: =給与台帳4月!BN$13 -> 0 | I77: =給与台帳4月!BN$14 -> 0 | J77: =給与台帳4月!BN$15 -> 0 | K77: =給与台帳4月!BN$16 -> 0 | L77: =給与台帳4月!BN$17 -> 0 | M77: =給与台帳4月!BN$18 -> 0 | N77: =給与台帳4月!BN$19 -> 0 | O77: =給与台帳4月!BN$20 -> 0 | P77: =給与台帳4月!BN$21 -> 0 | Q77: =給与台帳4月!BN$22 -> 0 | R77: =給与台帳4月!BN$23 -> 0 | S77: =給与台帳4月!BN$24 -> 0 | T77: =給与台帳4月!BN$25 -> 0 | U77: =給与台帳4月!BN$26 -> 0 | V77: =給与台帳4月!BN$27 -> 0 | W77: =給与台帳4月!BN$28 -> 0 | X77: =給与台帳4月!BN$29 -> 0 | Y77: =給与台帳4月!BN$30 -> 0 | Z77: =給与台帳4月!BN$31 -> 0 | AA77: =給与台帳4月!BN$32 -> 0 | AB77: =給与台帳4月!BN$33 -> 0 | AC77: =給与台帳4月!BN$34 -> 0 | AD77: =給与台帳4月!BN$35 -> 0 | AE77: =給与台帳4月!BN$36 -> 0 | AF77: =給与台帳4月!BN$37 -> 0 | AG77: =給与台帳4月!BN$38 -> 0 | AH77: =給与台帳4月!BN$39 -> 0 | AI77: =給与台帳4月!BN$40 -> 0 | AJ77: =給与台帳4月!BN$41 -> 0 | AK77: =給与台帳4月!BN$42 -> 0 | AL77: =給与台帳4月!BN$43 -> 0 | AM77: =給与台帳4月!BN$44 -> 0 | AN77: =給与台帳4月!BN$45 -> 0 | AO77: =給与台帳4月!BN$46 -> 0 | AP77: =給与台帳4月!BN$47 -> 0 | AQ77: =給与台帳4月!BN$48 -> 0 | AR77: =給与台帳4月!BN$49 -> 0 | AS77: =給与台帳4月!BN$50 -> 0 | AT77: =給与台帳4月!BN$51 -> 0 | AU77: =給与台帳4月!BN$52 -> 四月もお疲れ様でした
B78: 4 | C78: =給与台帳4月!BT$8 -> 12 | D78: =給与台帳4月!BT$9 ->  | E78: =給与台帳4月!BT$10 ->  | F78: =給与台帳4月!BT$11 ->  | G78: =給与台帳4月!BT$12 ->  | H78: =給与台帳4月!BT$13 -> 0 | I78: =給与台帳4月!BT$14 -> 0 | J78: =給与台帳4月!BT$15 -> 0 | K78: =給与台帳4月!BT$16 -> 0 | L78: =給与台帳4月!BT$17 -> 0 | M78: =給与台帳4月!BT$18 -> 0 | N78: =給与台帳4月!BT$19 -> 0 | O78: =給与台帳4月!BT$20 -> 0 | P78: =給与台帳4月!BT$21 -> 0 | Q78: =給与台帳4月!BT$22 -> 0 | R78: =給与台帳4月!BT$23 -> 0 | S78: =給与台帳4月!BT$24 -> 0 | T78: =給与台帳4月!BT$25 -> 0 | U78: =給与台帳4月!BT$26 -> 0 | V78: =給与台帳4月!BT$27 -> 0 | W78: =給与台帳4月!BT$28 -> 0 | X78: =給与台帳4月!BT$29 -> 0 | Y78: =給与台帳4月!BT$30 -> 0 | Z78: =給与台帳4月!BT$31 -> 0 | AA78: =給与台帳4月!BT$32 -> 0 | AB78: =給与台帳4月!BT$33 -> 0 | AC78: =給与台帳4月!BT$34 -> 0 | AD78: =給与台帳4月!BT$35 -> 0 | AE78: =給与台帳4月!BT$36 -> 0 | AF78: =給与台帳4月!BT$37 -> 0 | AG78: =給与台帳4月!BT$38 -> 0 | AH78: =給与台帳4月!BT$39 -> 0 | AI78: =給与台帳4月!BT$40 -> 0 | AJ78: =給与台帳4月!BT$41 -> 0 | AK78: =給与台帳4月!BT$42 -> 0 | AL78: =給与台帳4月!BT$43 -> 0 | AM78: =給与台帳4月!BT$44 -> 0 | AN78: =給与台帳4月!BT$45 -> 0 | AO78: =給与台帳4月!BT$46 -> 0 | AP78: =給与台帳4月!BT$47 -> 0 | AQ78: =給与台帳4月!BT$48 -> 0 | AR78: =給与台帳4月!BT$49 -> 0 | AS78: =給与台帳4月!BT$50 -> 0 | AT78: =給与台帳4月!BT$51 -> 0 | AU78: =給与台帳4月!BT$52 -> 四月もお疲れ様でした
B79: 4 | C79: =給与台帳4月!BZ$8 -> 13 | D79: =給与台帳4月!BZ$9 ->  | E79: =給与台帳4月!BZ$10 ->  | F79: =給与台帳4月!BZ$11 ->  | G79: =給与台帳4月!BZ$12 ->  | H79: =給与台帳4月!BZ$13 -> 0 | I79: =給与台帳4月!BZ$14 -> 0 | J79: =給与台帳4月!BZ$15 -> 0 | K79: =給与台帳4月!BZ$16 -> 0 | L79: =給与台帳4月!BZ$17 -> 0 | M79: =給与台帳4月!BZ$18 -> 0 | N79: =給与台帳4月!BZ$19 -> 0 | O79: =給与台帳4月!BZ$20 -> 0 | P79: =給与台帳4月!BZ$21 -> 0 | Q79: =給与台帳4月!BZ$22 -> 0 | R79: =給与台帳4月!BZ$23 -> 0 | S79: =給与台帳4月!BZ$24 -> 0 | T79: =給与台帳4月!BZ$25 -> 0 | U79: =給与台帳4月!BZ$26 -> 0 | V79: =給与台帳4月!BZ$27 -> 0 | W79: =給与台帳4月!BZ$28 -> 0 | X79: =給与台帳4月!BZ$29 -> 0 | Y79: =給与台帳4月!BZ$30 -> 0 | Z79: =給与台帳4月!BZ$31 -> 0 | AA79: =給与台帳4月!BZ$32 -> 0 | AB79: =給与台帳4月!BZ$33 -> 0 | AC79: =給与台帳4月!BZ$34 -> 0 | AD79: =給与台帳4月!BZ$35 -> 0 | AE79: =給与台帳4月!BZ$36 -> 0 | AF79: =給与台帳4月!BZ$37 -> 0 | AG79: =給与台帳4月!BZ$38 -> 0 | AH79: =給与台帳4月!BZ$39 -> 0 | AI79: =給与台帳4月!BZ$40 -> 0 | AJ79: =給与台帳4月!BZ$41 -> 0 | AK79: =給与台帳4月!BZ$42 -> 0 | AL79: =給与台帳4月!BZ$43 -> 0 | AM79: =給与台帳4月!BZ$44 -> 0 | AN79: =給与台帳4月!BZ$45 -> 0 | AO79: =給与台帳4月!BZ$46 -> 0 | AP79: =給与台帳4月!BZ$47 -> 0 | AQ79: =給与台帳4月!BZ$48 -> 0 | AR79: =給与台帳4月!BZ$49 -> 0 | AS79: =給与台帳4月!BZ$50 -> 0 | AT79: =給与台帳4月!BZ$51 -> 0 | AU79: =給与台帳4月!BZ$52 -> 四月もお疲れ様でした
B80: 4 | C80: =給与台帳4月!CF$8 -> 14 | D80: =給与台帳4月!CF$9 ->  | E80: =給与台帳4月!CF$10 ->  | F80: =給与台帳4月!CF$11 ->  | G80: =給与台帳4月!CF$12 ->  | H80: =給与台帳4月!CF$13 -> 0 | I80: =給与台帳4月!CF$14 -> 0 | J80: =給与台帳4月!CF$15 -> 0 | K80: =給与台帳4月!CF$16 -> 0 | L80: =給与台帳4月!CF$17 -> 0 | M80: =給与台帳4月!CF$18 -> 0 | N80: =給与台帳4月!CF$19 -> 0 | O80: =給与台帳4月!CF$20 -> 0 | P80: =給与台帳4月!CF$21 -> 0 | Q80: =給与台帳4月!CF$22 -> 0 | R80: =給与台帳4月!CF$23 -> 0 | S80: =給与台帳4月!CF$24 -> 0 | T80: =給与台帳4月!CF$25 -> 0 | U80: =給与台帳4月!CF$26 -> 0 | V80: =給与台帳4月!CF$27 -> 0 | W80: =給与台帳4月!CF$28 -> 0 | X80: =給与台帳4月!CF$29 -> 0 | Y80: =給与台帳4月!CF$30 -> 0 | Z80: =給与台帳4月!CF$31 -> 0 | AA80: =給与台帳4月!CF$32 -> 0 | AB80: =給与台帳4月!CF$33 -> 0 | AC80: =給与台帳4月!CF$34 -> 0 | AD80: =給与台帳4月!CF$35 -> 0 | AE80: =給与台帳4月!CF$36 -> 0 | AF80: =給与台帳4月!CF$37 -> 0 | AG80: =給与台帳4月!CF$38 -> 0 | AH80: =給与台帳4月!CF$39 -> 0 | AI80: =給与台帳4月!CF$40 -> 0 | AJ80: =給与台帳4月!CF$41 -> 0 | AK80: =給与台帳4月!CF$42 -> 0 | AL80: =給与台帳4月!CF$43 -> 0 | AM80: =給与台帳4月!CF$44 -> 0 | AN80: =給与台帳4月!CF$45 -> 0 | AO80: =給与台帳4月!CF$46 -> 0 | AP80: =給与台帳4月!CF$47 -> 0 | AQ80: =給与台帳4月!CF$48 -> 0 | AR80: =給与台帳4月!CF$49 -> 0 | AS80: =給与台帳4月!CF$50 -> 0 | AT80: =給与台帳4月!CF$51 -> 0 | AU80: =給与台帳4月!CF$52 -> 四月もお疲れ様でした
B81: 4 | C81: =給与台帳4月!CL$8 -> 15 | D81: =給与台帳4月!CL$9 ->  | E81: =給与台帳4月!CL$10 ->  | F81: =給与台帳4月!CL$11 ->  | G81: =給与台帳4月!CL$12 ->  | H81: =給与台帳4月!CL$13 -> 0 | I81: =給与台帳4月!CL$14 -> 0 | J81: =給与台帳4月!CL$15 -> 0 | K81: =給与台帳4月!CL$16 -> 0 | L81: =給与台帳4月!CL$17 -> 0 | M81: =給与台帳4月!CL$18 -> 0 | N81: =給与台帳4月!CL$19 -> 0 | O81: =給与台帳4月!CL$20 -> 0 | P81: =給与台帳4月!CL$21 -> 0 | Q81: =給与台帳4月!CL$22 -> 0 | R81: =給与台帳4月!CL$23 -> 0 | S81: =給与台帳4月!CL$24 -> 0 | T81: =給与台帳4月!CL$25 -> 0 | U81: =給与台帳4月!CL$26 -> 0 | V81: =給与台帳4月!CL$27 -> 0 | W81: =給与台帳4月!CL$28 -> 0 | X81: =給与台帳4月!CL$29 -> 0 | Y81: =給与台帳4月!CL$30 -> 0 | Z81: =給与台帳4月!CL$31 -> 0 | AA81: =給与台帳4月!CL$32 -> 0 | AB81: =給与台帳4月!CL$33 -> 0 | AC81: =給与台帳4月!CL$34 -> 0 | AD81: =給与台帳4月!CL$35 -> 0 | AE81: =給与台帳4月!CL$36 -> 0 | AF81: =給与台帳4月!CL$37 -> 0 | AG81: =給与台帳4月!CL$38 -> 0 | AH81: =給与台帳4月!CL$39 -> 0 | AI81: =給与台帳4月!CL$40 -> 0 | AJ81: =給与台帳4月!CL$41 -> 0 | AK81: =給与台帳4月!CL$42 -> 0 | AL81: =給与台帳4月!CL$43 -> 0 | AM81: =給与台帳4月!CL$44 -> 0 | AN81: =給与台帳4月!CL$45 -> 0 | AO81: =給与台帳4月!CL$46 -> 0 | AP81: =給与台帳4月!CL$47 -> 0 | AQ81: =給与台帳4月!CL$48 -> 0 | AR81: =給与台帳4月!CL$49 -> 0 | AS81: =給与台帳4月!CL$50 -> 0 | AT81: =給与台帳4月!CL$51 -> 0 | AU81: =給与台帳4月!CL$52 -> 四月もお疲れ様でした
B82: 4 | C82: =給与台帳4月!CR$8 -> 16 | D82: =給与台帳4月!CR$9 ->  | E82: =給与台帳4月!CR$10 ->  | F82: =給与台帳4月!CR$11 ->  | G82: =給与台帳4月!CR$12 ->  | H82: =給与台帳4月!CR$13 -> 0 | I82: =給与台帳4月!CR$14 -> 0 | J82: =給与台帳4月!CR$15 -> 0 | K82: =給与台帳4月!CR$16 -> 0 | L82: =給与台帳4月!CR$17 -> 0 | M82: =給与台帳4月!CR$18 -> 0 | N82: =給与台帳4月!CR$19 -> 0 | O82: =給与台帳4月!CR$20 -> 0 | P82: =給与台帳4月!CR$21 -> 0 | Q82: =給与台帳4月!CR$22 -> 0 | R82: =給与台帳4月!CR$23 -> 0 | S82: =給与台帳4月!CR$24 -> 0 | T82: =給与台帳4月!CR$25 -> 0 | U82: =給与台帳4月!CR$26 -> 0 | V82: =給与台帳4月!CR$27 -> 0 | W82: =給与台帳4月!CR$28 -> 0 | X82: =給与台帳4月!CR$29 -> 0 | Y82: =給与台帳4月!CR$30 -> 0 | Z82: =給与台帳4月!CR$31 -> 0 | AA82: =給与台帳4月!CR$32 -> 0 | AB82: =給与台帳4月!CR$33 -> 0 | AC82: =給与台帳4月!CR$34 -> 0 | AD82: =給与台帳4月!CR$35 -> 0 | AE82: =給与台帳4月!CR$36 -> 0 | AF82: =給与台帳4月!CR$37 -> 0 | AG82: =給与台帳4月!CR$38 -> 0 | AH82: =給与台帳4月!CR$39 -> 0 | AI82: =給与台帳4月!CR$40 -> 0 | AJ82: =給与台帳4月!CR$41 -> 0 | AK82: =給与台帳4月!CR$42 -> 0 | AL82: =給与台帳4月!CR$43 -> 0 | AM82: =給与台帳4月!CR$44 -> 0 | AN82: =給与台帳4月!CR$45 -> 0 | AO82: =給与台帳4月!CR$46 -> 0 | AP82: =給与台帳4月!CR$47 -> 0 | AQ82: =給与台帳4月!CR$48 -> 0 | AR82: =給与台帳4月!CR$49 -> 0 | AS82: =給与台帳4月!CR$50 -> 0 | AT82: =給与台帳4月!CR$51 -> 0 | AU82: =給与台帳4月!CR$52 -> 四月もお疲れ様でした
B83: 4 | C83: =給与台帳4月!CX$8 -> 17 | D83: =給与台帳4月!CX$9 ->  | E83: =給与台帳4月!CX$10 ->  | F83: =給与台帳4月!CX$11 ->  | G83: =給与台帳4月!CX$12 ->  | H83: =給与台帳4月!CX$13 -> 0 | I83: =給与台帳4月!CX$14 -> 0 | J83: =給与台帳4月!CX$15 -> 0 | K83: =給与台帳4月!CX$16 -> 0 | L83: =給与台帳4月!CX$17 -> 0 | M83: =給与台帳4月!CX$18 -> 0 | N83: =給与台帳4月!CX$19 -> 0 | O83: =給与台帳4月!CX$20 -> 0 | P83: =給与台帳4月!CX$21 -> 0 | Q83: =給与台帳4月!CX$22 -> 0 | R83: =給与台帳4月!CX$23 -> 0 | S83: =給与台帳4月!CX$24 -> 0 | T83: =給与台帳4月!CX$25 -> 0 | U83: =給与台帳4月!CX$26 -> 0 | V83: =給与台帳4月!CX$27 -> 0 | W83: =給与台帳4月!CX$28 -> 0 | X83: =給与台帳4月!CX$29 -> 0 | Y83: =給与台帳4月!CX$30 -> 0 | Z83: =給与台帳4月!CX$31 -> 0 | AA83: =給与台帳4月!CX$32 -> 0 | AB83: =給与台帳4月!CX$33 -> 0 | AC83: =給与台帳4月!CX$34 -> 0 | AD83: =給与台帳4月!CX$35 -> 0 | AE83: =給与台帳4月!CX$36 -> 0 | AF83: =給与台帳4月!CX$37 -> 0 | AG83: =給与台帳4月!CX$38 -> 0 | AH83: =給与台帳4月!CX$39 -> 0 | AI83: =給与台帳4月!CX$40 -> 0 | AJ83: =給与台帳4月!CX$41 -> 0 | AK83: =給与台帳4月!CX$42 -> 0 | AL83: =給与台帳4月!CX$43 -> 0 | AM83: =給与台帳4月!CX$44 -> 0 | AN83: =給与台帳4月!CX$45 -> 0 | AO83: =給与台帳4月!CX$46 -> 0 | AP83: =給与台帳4月!CX$47 -> 0 | AQ83: =給与台帳4月!CX$48 -> 0 | AR83: =給与台帳4月!CX$49 -> 0 | AS83: =給与台帳4月!CX$50 -> 0 | AT83: =給与台帳4月!CX$51 -> 0 | AU83: =給与台帳4月!CX$52 -> 四月もお疲れ様でした
B84: 4 | C84: =給与台帳4月!DD$8 -> 18 | D84: =給与台帳4月!DD$9 ->  | E84: =給与台帳4月!DD$10 ->  | F84: =給与台帳4月!DD$11 ->  | G84: =給与台帳4月!DD$12 ->  | H84: =給与台帳4月!DD$13 -> 0 | I84: =給与台帳4月!DD$14 -> 0 | J84: =給与台帳4月!DD$15 -> 0 | K84: =給与台帳4月!DD$16 -> 0 | L84: =給与台帳4月!DD$17 -> 0 | M84: =給与台帳4月!DD$18 -> 0 | N84: =給与台帳4月!DD$19 -> 0 | O84: =給与台帳4月!DD$20 -> 0 | P84: =給与台帳4月!DD$21 -> 0 | Q84: =給与台帳4月!DD$22 -> 0 | R84: =給与台帳4月!DD$23 -> 0 | S84: =給与台帳4月!DD$24 -> 0 | T84: =給与台帳4月!DD$25 -> 0 | U84: =給与台帳4月!DD$26 -> 0 | V84: =給与台帳4月!DD$27 -> 0 | W84: =給与台帳4月!DD$28 -> 0 | X84: =給与台帳4月!DD$29 -> 0 | Y84: =給与台帳4月!DD$30 -> 0 | Z84: =給与台帳4月!DD$31 -> 0 | AA84: =給与台帳4月!DD$32 -> 0 | AB84: =給与台帳4月!DD$33 -> 0 | AC84: =給与台帳4月!DD$34 -> 0 | AD84: =給与台帳4月!DD$35 -> 0 | AE84: =給与台帳4月!DD$36 -> 0 | AF84: =給与台帳4月!DD$37 -> 0 | AG84: =給与台帳4月!DD$38 -> 0 | AH84: =給与台帳4月!DD$39 -> 0 | AI84: =給与台帳4月!DD$40 -> 0 | AJ84: =給与台帳4月!DD$41 -> 0 | AK84: =給与台帳4月!DD$42 -> 0 | AL84: =給与台帳4月!DD$43 -> 0 | AM84: =給与台帳4月!DD$44 -> 0 | AN84: =給与台帳4月!DD$45 -> 0 | AO84: =給与台帳4月!DD$46 -> 0 | AP84: =給与台帳4月!DD$47 -> 0 | AQ84: =給与台帳4月!DD$48 -> 0 | AR84: =給与台帳4月!DD$49 -> 0 | AS84: =給与台帳4月!DD$50 -> 0 | AT84: =給与台帳4月!DD$51 -> 0 | AU84: =給与台帳4月!DD$52 -> 四月もお疲れ様でした
B85: 4
B86: 4
B87: 5 | C87: =給与台帳5月!F$8 -> 1 | D87: =給与台帳5月!F$9 -> 今野 友夫 | E87: =給与台帳5月!F$10 -> 役員 | F87: =給与台帳5月!F$11 -> 甲欄 | G87: =給与台帳5月!F$12 -> 45 | H87: =給与台帳5月!F$13 -> 1 | I87: =給与台帳5月!F$14 -> 500000 | J87: =給与台帳5月!F$15 -> 500000 | K87: =給与台帳5月!F$16 -> 0 | L87: =給与台帳5月!F$17 -> 0 | M87: =給与台帳5月!F$18 -> 0 | N87: =給与台帳5月!F$19 -> 0 | O87: =給与台帳5月!F$20 -> 0 | P87: =給与台帳5月!F$21 -> 0 | Q87: =給与台帳5月!F$22 -> 0 | R87: =給与台帳5月!F$23 -> 0 | S87: =給与台帳5月!F$24 -> 500000 | T87: =給与台帳5月!F$25 -> 0 | U87: =給与台帳5月!F$26 -> 0 | V87: =給与台帳5月!F$27 -> 0 | W87: =給与台帳5月!F$28 -> 0 | X87: =給与台帳5月!F$29 -> 0 | Y87: =給与台帳5月!F$30 -> 0 | Z87: =給与台帳5月!F$31 -> 0 | AA87: =給与台帳5月!F$32 -> 10000 | AB87: =給与台帳5月!F$33 -> 0 | AC87: =給与台帳5月!F$34 -> 500000 | AD87: =給与台帳5月!F$35 -> 10000 | AE87: =給与台帳5月!F$36 -> 510000 | AF87: =給与台帳5月!F$37 -> 23800 | AG87: =給与台帳5月!F$38 -> 0 | AH87: =給与台帳5月!F$39 -> 41030 | AI87: =給与台帳5月!F$40 -> 0 | AJ87: =給与台帳5月!F$41 -> 64830 | AK87: =給与台帳5月!F$42 -> 435170 | AL87: =給与台帳5月!F$43 -> 16190 | AM87: =給与台帳5月!F$44 -> 22300 | AN87: =給与台帳5月!F$45 -> 0 | AO87: =給与台帳5月!F$46 -> 0 | AP87: =給与台帳5月!F$47 -> 0 | AQ87: =給与台帳5月!F$48 -> 38490 | AR87: =給与台帳5月!F$49 -> 406680 | AS87: =給与台帳5月!F$50 -> 0 | AT87: =給与台帳5月!F$51 -> 406680 | AU87: =給与台帳5月!F$52 -> 五月もお疲れ様でした
B88: 5 | C88: =給与台帳5月!L$8 -> 2 | D88: =給与台帳5月!L$9 -> 今野 朝子 | E88: =給与台帳5月!L$10 -> 役員 | F88: =給与台帳5月!L$11 -> 甲欄 | G88: =給与台帳5月!L$12 -> 39 | H88: =給与台帳5月!L$13 -> 0 | I88: =給与台帳5月!L$14 -> 300000 | J88: =給与台帳5月!L$15 -> 300000 | K88: =給与台帳5月!L$16 -> 0 | L88: =給与台帳5月!L$17 -> 0 | M88: =給与台帳5月!L$18 -> 0 | N88: =給与台帳5月!L$19 -> 0 | O88: =給与台帳5月!L$20 -> 0 | P88: =給与台帳5月!L$21 -> 0 | Q88: =給与台帳5月!L$22 -> 0 | R88: =給与台帳5月!L$23 -> 0 | S88: =給与台帳5月!L$24 -> 300000 | T88: =給与台帳5月!L$25 -> 0 | U88: =給与台帳5月!L$26 -> 0 | V88: =給与台帳5月!L$27 -> 0 | W88: =給与台帳5月!L$28 -> 0 | X88: =給与台帳5月!L$29 -> 0 | Y88: =給与台帳5月!L$30 -> 0 | Z88: =給与台帳5月!L$31 -> 0 | AA88: =給与台帳5月!L$32 -> 10000 | AB88: =給与台帳5月!L$33 -> 0 | AC88: =給与台帳5月!L$34 -> 300000 | AD88: =給与台帳5月!L$35 -> 10000 | AE88: =給与台帳5月!L$36 -> 310000 | AF88: =給与台帳5月!L$37 -> 14280 | AG88: =給与台帳5月!L$38 -> 0 | AH88: =給与台帳5月!L$39 -> 24618 | AI88: =給与台帳5月!L$40 -> 0 | AJ88: =給与台帳5月!L$41 -> 38898 | AK88: =給与台帳5月!L$42 -> 261102 | AL88: =給与台帳5月!L$43 -> 6950 | AM88: =給与台帳5月!L$44 -> 12400 | AN88: =給与台帳5月!L$45 -> 0 | AO88: =給与台帳5月!L$46 -> 0 | AP88: =給与台帳5月!L$47 -> 0 | AQ88: =給与台帳5月!L$48 -> 19350 | AR88: =給与台帳5月!L$49 -> 251752 | AS88: =給与台帳5月!L$50 -> 0 | AT88: =給与台帳5月!L$51 -> 251752 | AU88: =給与台帳5月!L$52 -> 五月もお疲れ様でした
B89: 5 | C89: =給与台帳5月!R$8 -> 3 | D89: =給与台帳5月!R$9 -> 今野 祥子 | E89: =給与台帳5月!R$10 -> 役員 | F89: =給与台帳5月!R$11 -> 甲欄 | G89: =給与台帳5月!R$12 -> 71 | H89: =給与台帳5月!R$13 -> 0 | I89: =給与台帳5月!R$14 -> 0 | J89: =給与台帳5月!R$15 -> 0 | K89: =給与台帳5月!R$16 -> 0 | L89: =給与台帳5月!R$17 -> 0 | M89: =給与台帳5月!R$18 -> 0 | N89: =給与台帳5月!R$19 -> 0 | O89: =給与台帳5月!R$20 -> 0 | P89: =給与台帳5月!R$21 -> 0 | Q89: =給与台帳5月!R$22 -> 0 | R89: =給与台帳5月!R$23 -> 0 | S89: =給与台帳5月!R$24 -> 80000 | T89: =給与台帳5月!R$25 -> 0 | U89: =給与台帳5月!R$26 -> 0 | V89: =給与台帳5月!R$27 -> 0 | W89: =給与台帳5月!R$28 -> 0 | X89: =給与台帳5月!R$29 -> 0 | Y89: =給与台帳5月!R$30 -> 0 | Z89: =給与台帳5月!R$31 -> 0 | AA89: =給与台帳5月!R$32 -> 0 | AB89: =給与台帳5月!R$33 -> 0 | AC89: =給与台帳5月!R$34 -> 80000 | AD89: =給与台帳5月!R$35 -> 0 | AE89: =給与台帳5月!R$36 -> 80000 | AF89: =給与台帳5月!R$37 -> 0 | AG89: =給与台帳5月!R$38 -> 0 | AH89: =給与台帳5月!R$39 -> 0 | AI89: =給与台帳5月!R$40 -> 0 | AJ89: =給与台帳5月!R$41 -> 0 | AK89: =給与台帳5月!R$42 -> 80000 | AL89: =給与台帳5月!R$43 -> 0 | AM89: =給与台帳5月!R$44 -> 0 | AN89: =給与台帳5月!R$45 -> 0 | AO89: =給与台帳5月!R$46 -> 0 | AP89: =給与台帳5月!R$47 -> 0 | AQ89: =給与台帳5月!R$48 -> 0 | AR89: =給与台帳5月!R$49 -> 80000 | AS89: =給与台帳5月!R$50 -> 0 | AT89: =給与台帳5月!R$51 -> 80000 | AU89: =給与台帳5月!R$52 -> 五月もお疲れ様でした
B90: 5 | C90: =給与台帳5月!X$8 -> 4 | D90: =給与台帳5月!X$9 -> 川西 めぐみ | E90: =給与台帳5月!X$10 -> 従業員（雇保加入） | F90: =給与台帳5月!X$11 -> 甲欄 | G90: =給与台帳5月!X$12 -> 49 | H90: =給与台帳5月!X$13 -> 1 | I90: =給与台帳5月!X$14 -> 220000 | J90: =給与台帳5月!X$15 -> 220000 | K90: =給与台帳5月!X$16 -> 22日 | L90: =給与台帳5月!X$17 -> 159時間 | M90: =給与台帳5月!X$18 -> 8時間 | N90: =給与台帳5月!X$19 -> 4時間 | O90: =給与台帳5月!X$20 -> 0 | P90: =給与台帳5月!X$21 -> 0 | Q90: =給与台帳5月!X$22 -> 0 | R90: =給与台帳5月!X$23 -> 0 | S90: =給与台帳5月!X$24 -> 0 | T90: =給与台帳5月!X$25 -> 225000 | U90: =給与台帳5月!X$26 -> 20748 | V90: =給与台帳5月!X$27 -> 0 | W90: =給与台帳5月!X$28 -> 0 | X90: =給与台帳5月!X$29 -> 0 | Y90: =給与台帳5月!X$30 -> 0 | Z90: =給与台帳5月!X$31 -> 0 | AA90: =給与台帳5月!X$32 -> 18370 | AB90: =給与台帳5月!X$33 -> 0 | AC90: =給与台帳5月!X$34 -> 245748 | AD90: =給与台帳5月!X$35 -> 18370 | AE90: =給与台帳5月!X$36 -> 264118 | AF90: =給与台帳5月!X$37 -> 10472 | AG90: =給与台帳5月!X$38 -> 1661 | AH90: =給与台帳5月!X$39 -> 18053 | AI90: =給与台帳5月!X$40 -> 1320 | AJ90: =給与台帳5月!X$41 -> 31506 | AK90: =給与台帳5月!X$42 -> 214242 | AL90: =給与台帳5月!X$43 -> 3660 | AM90: =給与台帳5月!X$44 -> 8500 | AN90: =給与台帳5月!X$45 -> 0 | AO90: =給与台帳5月!X$46 -> 0 | AP90: =給与台帳5月!X$47 -> 0 | AQ90: =給与台帳5月!X$48 -> 12160 | AR90: =給与台帳5月!X$49 -> 220452 | AS90: =給与台帳5月!X$50 -> 0 | AT90: =給与台帳5月!X$51 -> 220452 | AU90: =給与台帳5月!X$52 -> 五月もお疲れ様でした
B91: 5 | C91: =給与台帳5月!AD$8 -> 5 | D91: =給与台帳5月!AD$9 -> 鳥居 雅之 | E91: =給与台帳5月!AD$10 -> 従業員（雇保非加入） | F91: =給与台帳5月!AD$11 -> 乙欄 | G91: =給与台帳5月!AD$12 -> 35 | H91: =給与台帳5月!AD$13 -> 0 | I91: =給与台帳5月!AD$14 -> 0 | J91: =給与台帳5月!AD$15 -> 0 | K91: =給与台帳5月!AD$16 -> 9日 | L91: =給与台帳5月!AD$17 -> 36時間 | M91: =給与台帳5月!AD$18 -> 0 | N91: =給与台帳5月!AD$19 -> 0 | O91: =給与台帳5月!AD$20 -> 0 | P91: =給与台帳5月!AD$21 -> 0 | Q91: =給与台帳5月!AD$22 -> 0 | R91: =給与台帳5月!AD$23 -> 0 | S91: =給与台帳5月!AD$24 -> 0 | T91: =給与台帳5月!AD$25 -> 45000 | U91: =給与台帳5月!AD$26 -> 0 | V91: =給与台帳5月!AD$27 -> 0 | W91: =給与台帳5月!AD$28 -> 0 | X91: =給与台帳5月!AD$29 -> 0 | Y91: =給与台帳5月!AD$30 -> 0 | Z91: =給与台帳5月!AD$31 -> 0 | AA91: =給与台帳5月!AD$32 -> 0 | AB91: =給与台帳5月!AD$33 -> 0 | AC91: =給与台帳5月!AD$34 -> 45000 | AD91: =給与台帳5月!AD$35 -> 0 | AE91: =給与台帳5月!AD$36 -> 45000 | AF91: =給与台帳5月!AD$37 -> 0 | AG91: =給与台帳5月!AD$38 -> 0 | AH91: =給与台帳5月!AD$39 -> 0 | AI91: =給与台帳5月!AD$40 -> 0 | AJ91: =給与台帳5月!AD$41 -> 0 | AK91: =給与台帳5月!AD$42 -> 45000 | AL91: =給与台帳5月!AD$43 -> 1378 | AM91: =給与台帳5月!AD$44 -> 0 | AN91: =給与台帳5月!AD$45 -> 0 | AO91: =給与台帳5月!AD$46 -> 0 | AP91: =給与台帳5月!AD$47 -> 0 | AQ91: =給与台帳5月!AD$48 -> 1378 | AR91: =給与台帳5月!AD$49 -> 43622 | AS91: =給与台帳5月!AD$50 -> 0 | AT91: =給与台帳5月!AD$51 -> 43622 | AU91: =給与台帳5月!AD$52 -> 五月もお疲れ様でした
B92: 5 | C92: =給与台帳5月!AJ$8 -> 6 | D92: =給与台帳5月!AJ$9 -> 笹部 菜穂美 | E92: =給与台帳5月!AJ$10 -> 従業員（雇保加入） | F92: =給与台帳5月!AJ$11 -> 甲欄 | G92: =給与台帳5月!AJ$12 -> 31 | H92: =給与台帳5月!AJ$13 -> 0 | I92: =給与台帳5月!AJ$14 -> 0 | J92: =給与台帳5月!AJ$15 -> 0 | K92: =給与台帳5月!AJ$16 -> 0 | L92: =給与台帳5月!AJ$17 -> 0 | M92: =給与台帳5月!AJ$18 -> 0 | N92: =給与台帳5月!AJ$19 -> 0 | O92: =給与台帳5月!AJ$20 -> 0 | P92: =給与台帳5月!AJ$21 -> 0 | Q92: =給与台帳5月!AJ$22 -> 0 | R92: =給与台帳5月!AJ$23 -> 0 | S92: =給与台帳5月!AJ$24 -> 0 | T92: =給与台帳5月!AJ$25 -> 0 | U92: =給与台帳5月!AJ$26 -> 0 | V92: =給与台帳5月!AJ$27 -> 0 | W92: =給与台帳5月!AJ$28 -> 0 | X92: =給与台帳5月!AJ$29 -> 0 | Y92: =給与台帳5月!AJ$30 -> 0 | Z92: =給与台帳5月!AJ$31 -> 0 | AA92: =給与台帳5月!AJ$32 -> 0 | AB92: =給与台帳5月!AJ$33 -> 0 | AC92: =給与台帳5月!AJ$34 -> 0 | AD92: =給与台帳5月!AJ$35 -> 0 | AE92: =給与台帳5月!AJ$36 -> 0 | AF92: =給与台帳5月!AJ$37 -> 0 | AG92: =給与台帳5月!AJ$38 -> 0 | AH92: =給与台帳5月!AJ$39 -> 0 | AI92: =給与台帳5月!AJ$40 -> 0 | AJ92: =給与台帳5月!AJ$41 -> 0 | AK92: =給与台帳5月!AJ$42 -> 0 | AL92: =給与台帳5月!AJ$43 -> 0 | AM92: =給与台帳5月!AJ$44 -> 0 | AN92: =給与台帳5月!AJ$45 -> 0 | AO92: =給与台帳5月!AJ$46 -> 0 | AP92: =給与台帳5月!AJ$47 -> 0 | AQ92: =給与台帳5月!AJ$48 -> 0 | AR92: =給与台帳5月!AJ$49 -> 0 | AS92: =給与台帳5月!AJ$50 -> 0 | AT92: =給与台帳5月!AJ$51 -> 0 | AU92: =給与台帳5月!AJ$52 -> 五月もお疲れ様でした
B93: 5 | C93: =給与台帳5月!AP$8 -> 7 | D93: =給与台帳5月!AP$9 -> 絹延橋 みつ子 | E93: =給与台帳5月!AP$10 -> 従業員（雇保加入） | F93: =給与台帳5月!AP$11 -> 甲欄 | G93: =給与台帳5月!AP$12 -> 46 | H93: =給与台帳5月!AP$13 -> 0 | I93: =給与台帳5月!AP$14 -> 300000 | J93: =給与台帳5月!AP$15 -> 0 | K93: =給与台帳5月!AP$16 -> 0 | L93: =給与台帳5月!AP$17 -> 0 | M93: =給与台帳5月!AP$18 -> 0 | N93: =給与台帳5月!AP$19 -> 0 | O93: =給与台帳5月!AP$20 -> 0 | P93: =給与台帳5月!AP$21 -> 0 | Q93: =給与台帳5月!AP$22 -> 0 | R93: =給与台帳5月!AP$23 -> 0 | S93: =給与台帳5月!AP$24 -> 0 | T93: =給与台帳5月!AP$25 -> 0 | U93: =給与台帳5月!AP$26 -> 0 | V93: =給与台帳5月!AP$27 -> 0 | W93: =給与台帳5月!AP$28 -> 0 | X93: =給与台帳5月!AP$29 -> 0 | Y93: =給与台帳5月!AP$30 -> 0 | Z93: =給与台帳5月!AP$31 -> 0 | AA93: =給与台帳5月!AP$32 -> 0 | AB93: =給与台帳5月!AP$33 -> 0 | AC93: =給与台帳5月!AP$34 -> 0 | AD93: =給与台帳5月!AP$35 -> 0 | AE93: =給与台帳5月!AP$36 -> 0 | AF93: =給与台帳5月!AP$37 -> 0 | AG93: =給与台帳5月!AP$38 -> 0 | AH93: =給与台帳5月!AP$39 -> 0 | AI93: =給与台帳5月!AP$40 -> 0 | AJ93: =給与台帳5月!AP$41 -> 0 | AK93: =給与台帳5月!AP$42 -> 0 | AL93: =給与台帳5月!AP$43 -> 0 | AM93: =給与台帳5月!AP$44 -> 0 | AN93: =給与台帳5月!AP$45 -> 0 | AO93: =給与台帳5月!AP$46 -> 0 | AP93: =給与台帳5月!AP$47 -> 0 | AQ93: =給与台帳5月!AP$48 -> 0 | AR93: =給与台帳5月!AP$49 -> 0 | AS93: =給与台帳5月!AP$50 -> 0 | AT93: =給与台帳5月!AP$51 -> 0 | AU93: =給与台帳5月!AP$52 -> 五月もお疲れ様でした
B94: 5 | C94: =給与台帳5月!AV$8 -> 8 | D94: =給与台帳5月!AV$9 -> 山下 崇 | E94: =給与台帳5月!AV$10 -> 従業員（雇保加入） | F94: =給与台帳5月!AV$11 -> 甲欄 | G94: =給与台帳5月!AV$12 -> 34 | H94: =給与台帳5月!AV$13 -> 0 | I94: =給与台帳5月!AV$14 -> 0 | J94: =給与台帳5月!AV$15 -> 0 | K94: =給与台帳5月!AV$16 -> 0 | L94: =給与台帳5月!AV$17 -> 0 | M94: =給与台帳5月!AV$18 -> 0 | N94: =給与台帳5月!AV$19 -> 0 | O94: =給与台帳5月!AV$20 -> 0 | P94: =給与台帳5月!AV$21 -> 0 | Q94: =給与台帳5月!AV$22 -> 0 | R94: =給与台帳5月!AV$23 -> 0 | S94: =給与台帳5月!AV$24 -> 0 | T94: =給与台帳5月!AV$25 -> 0 | U94: =給与台帳5月!AV$26 -> 0 | V94: =給与台帳5月!AV$27 -> 0 | W94: =給与台帳5月!AV$28 -> 0 | X94: =給与台帳5月!AV$29 -> 0 | Y94: =給与台帳5月!AV$30 -> 0 | Z94: =給与台帳5月!AV$31 -> 0 | AA94: =給与台帳5月!AV$32 -> 0 | AB94: =給与台帳5月!AV$33 -> 0 | AC94: =給与台帳5月!AV$34 -> 0 | AD94: =給与台帳5月!AV$35 -> 0 | AE94: =給与台帳5月!AV$36 -> 0 | AF94: =給与台帳5月!AV$37 -> 0 | AG94: =給与台帳5月!AV$38 -> 0 | AH94: =給与台帳5月!AV$39 -> 0 | AI94: =給与台帳5月!AV$40 -> 0 | AJ94: =給与台帳5月!AV$41 -> 0 | AK94: =給与台帳5月!AV$42 -> 0 | AL94: =給与台帳5月!AV$43 -> 0 | AM94: =給与台帳5月!AV$44 -> 0 | AN94: =給与台帳5月!AV$45 -> 0 | AO94: =給与台帳5月!AV$46 -> 0 | AP94: =給与台帳5月!AV$47 -> 0 | AQ94: =給与台帳5月!AV$48 -> 0 | AR94: =給与台帳5月!AV$49 -> 0 | AS94: =給与台帳5月!AV$50 -> 0 | AT94: =給与台帳5月!AV$51 -> 0 | AU94: =給与台帳5月!AV$52 -> 五月もお疲れ様でした
B95: 5 | C95: =給与台帳5月!BB$8 -> 9 | D95: =給与台帳5月!BB$9 ->  | E95: =給与台帳5月!BB$10 ->  | F95: =給与台帳5月!BB$11 ->  | G95: =給与台帳5月!BB$12 ->  | H95: =給与台帳5月!BB$13 -> 0 | I95: =給与台帳5月!BB$14 -> 0 | J95: =給与台帳5月!BB$15 -> 0 | K95: =給与台帳5月!BB$16 -> 0 | L95: =給与台帳5月!BB$17 -> 0 | M95: =給与台帳5月!BB$18 -> 0 | N95: =給与台帳5月!BB$19 -> 0 | O95: =給与台帳5月!BB$20 -> 0 | P95: =給与台帳5月!BB$21 -> 0 | Q95: =給与台帳5月!BB$22 -> 0 | R95: =給与台帳5月!BB$23 -> 0 | S95: =給与台帳5月!BB$24 -> 0 | T95: =給与台帳5月!BB$25 -> 0 | U95: =給与台帳5月!BB$26 -> 0 | V95: =給与台帳5月!BB$27 -> 0 | W95: =給与台帳5月!BB$28 -> 0 | X95: =給与台帳5月!BB$29 -> 0 | Y95: =給与台帳5月!BB$30 -> 0 | Z95: =給与台帳5月!BB$31 -> 0 | AA95: =給与台帳5月!BB$32 -> 0 | AB95: =給与台帳5月!BB$33 -> 0 | AC95: =給与台帳5月!BB$34 -> 0 | AD95: =給与台帳5月!BB$35 -> 0 | AE95: =給与台帳5月!BB$36 -> 0 | AF95: =給与台帳5月!BB$37 -> 0 | AG95: =給与台帳5月!BB$38 -> 0 | AH95: =給与台帳5月!BB$39 -> 0 | AI95: =給与台帳5月!BB$40 -> 0 | AJ95: =給与台帳5月!BB$41 -> 0 | AK95: =給与台帳5月!BB$42 -> 0 | AL95: =給与台帳5月!BB$43 -> 0 | AM95: =給与台帳5月!BB$44 -> 0 | AN95: =給与台帳5月!BB$45 -> 0 | AO95: =給与台帳5月!BB$46 -> 0 | AP95: =給与台帳5月!BB$47 -> 0 | AQ95: =給与台帳5月!BB$48 -> 0 | AR95: =給与台帳5月!BB$49 -> 0 | AS95: =給与台帳5月!BB$50 -> 0 | AT95: =給与台帳5月!BB$51 -> 0 | AU95: =給与台帳5月!BB$52 -> 五月もお疲れ様でした
B96: 5 | C96: =給与台帳5月!BH$8 -> 10 | D96: =給与台帳5月!BH$9 ->  | E96: =給与台帳5月!BH$10 ->  | F96: =給与台帳5月!BH$11 ->  | G96: =給与台帳5月!BH$12 ->  | H96: =給与台帳5月!BH$13 -> 0 | I96: =給与台帳5月!BH$14 -> 0 | J96: =給与台帳5月!BH$15 -> 0 | K96: =給与台帳5月!BH$16 -> 0 | L96: =給与台帳5月!BH$17 -> 0 | M96: =給与台帳5月!BH$18 -> 0 | N96: =給与台帳5月!BH$19 -> 0 | O96: =給与台帳5月!BH$20 -> 0 | P96: =給与台帳5月!BH$21 -> 0 | Q96: =給与台帳5月!BH$22 -> 0 | R96: =給与台帳5月!BH$23 -> 0 | S96: =給与台帳5月!BH$24 -> 0 | T96: =給与台帳5月!BH$25 -> 0 | U96: =給与台帳5月!BH$26 -> 0 | V96: =給与台帳5月!BH$27 -> 0 | W96: =給与台帳5月!BH$28 -> 0 | X96: =給与台帳5月!BH$29 -> 0 | Y96: =給与台帳5月!BH$30 -> 0 | Z96: =給与台帳5月!BH$31 -> 0 | AA96: =給与台帳5月!BH$32 -> 0 | AB96: =給与台帳5月!BH$33 -> 0 | AC96: =給与台帳5月!BH$34 -> 0 | AD96: =給与台帳5月!BH$35 -> 0 | AE96: =給与台帳5月!BH$36 -> 0 | AF96: =給与台帳5月!BH$37 -> 0 | AG96: =給与台帳5月!BH$38 -> 0 | AH96: =給与台帳5月!BH$39 -> 0 | AI96: =給与台帳5月!BH$40 -> 0 | AJ96: =給与台帳5月!BH$41 -> 0 | AK96: =給与台帳5月!BH$42 -> 0 | AL96: =給与台帳5月!BH$43 -> 0 | AM96: =給与台帳5月!BH$44 -> 0 | AN96: =給与台帳5月!BH$45 -> 0 | AO96: =給与台帳5月!BH$46 -> 0 | AP96: =給与台帳5月!BH$47 -> 0 | AQ96: =給与台帳5月!BH$48 -> 0 | AR96: =給与台帳5月!BH$49 -> 0 | AS96: =給与台帳5月!BH$50 -> 0 | AT96: =給与台帳5月!BH$51 -> 0 | AU96: =給与台帳5月!BH$52 -> 五月もお疲れ様でした
B97: 5 | C97: =給与台帳5月!BN$8 -> 11 | D97: =給与台帳5月!BN$9 ->  | E97: =給与台帳5月!BN$10 ->  | F97: =給与台帳5月!BN$11 ->  | G97: =給与台帳5月!BN$12 ->  | H97: =給与台帳5月!BN$13 -> 0 | I97: =給与台帳5月!BN$14 -> 0 | J97: =給与台帳5月!BN$15 -> 0 | K97: =給与台帳5月!BN$16 -> 0 | L97: =給与台帳5月!BN$17 -> 0 | M97: =給与台帳5月!BN$18 -> 0 | N97: =給与台帳5月!BN$19 -> 0 | O97: =給与台帳5月!BN$20 -> 0 | P97: =給与台帳5月!BN$21 -> 0 | Q97: =給与台帳5月!BN$22 -> 0 | R97: =給与台帳5月!BN$23 -> 0 | S97: =給与台帳5月!BN$24 -> 0 | T97: =給与台帳5月!BN$25 -> 0 | U97: =給与台帳5月!BN$26 -> 0 | V97: =給与台帳5月!BN$27 -> 0 | W97: =給与台帳5月!BN$28 -> 0 | X97: =給与台帳5月!BN$29 -> 0 | Y97: =給与台帳5月!BN$30 -> 0 | Z97: =給与台帳5月!BN$31 -> 0 | AA97: =給与台帳5月!BN$32 -> 0 | AB97: =給与台帳5月!BN$33 -> 0 | AC97: =給与台帳5月!BN$34 -> 0 | AD97: =給与台帳5月!BN$35 -> 0 | AE97: =給与台帳5月!BN$36 -> 0 | AF97: =給与台帳5月!BN$37 -> 0 | AG97: =給与台帳5月!BN$38 -> 0 | AH97: =給与台帳5月!BN$39 -> 0 | AI97: =給与台帳5月!BN$40 -> 0 | AJ97: =給与台帳5月!BN$41 -> 0 | AK97: =給与台帳5月!BN$42 -> 0 | AL97: =給与台帳5月!BN$43 -> 0 | AM97: =給与台帳5月!BN$44 -> 0 | AN97: =給与台帳5月!BN$45 -> 0 | AO97: =給与台帳5月!BN$46 -> 0 | AP97: =給与台帳5月!BN$47 -> 0 | AQ97: =給与台帳5月!BN$48 -> 0 | AR97: =給与台帳5月!BN$49 -> 0 | AS97: =給与台帳5月!BN$50 -> 0 | AT97: =給与台帳5月!BN$51 -> 0 | AU97: =給与台帳5月!BN$52 -> 五月もお疲れ様でした
B98: 5 | C98: =給与台帳5月!BT$8 -> 12 | D98: =給与台帳5月!BT$9 ->  | E98: =給与台帳5月!BT$10 ->  | F98: =給与台帳5月!BT$11 ->  | G98: =給与台帳5月!BT$12 ->  | H98: =給与台帳5月!BT$13 -> 0 | I98: =給与台帳5月!BT$14 -> 0 | J98: =給与台帳5月!BT$15 -> 0 | K98: =給与台帳5月!BT$16 -> 0 | L98: =給与台帳5月!BT$17 -> 0 | M98: =給与台帳5月!BT$18 -> 0 | N98: =給与台帳5月!BT$19 -> 0 | O98: =給与台帳5月!BT$20 -> 0 | P98: =給与台帳5月!BT$21 -> 0 | Q98: =給与台帳5月!BT$22 -> 0 | R98: =給与台帳5月!BT$23 -> 0 | S98: =給与台帳5月!BT$24 -> 0 | T98: =給与台帳5月!BT$25 -> 0 | U98: =給与台帳5月!BT$26 -> 0 | V98: =給与台帳5月!BT$27 -> 0 | W98: =給与台帳5月!BT$28 -> 0 | X98: =給与台帳5月!BT$29 -> 0 | Y98: =給与台帳5月!BT$30 -> 0 | Z98: =給与台帳5月!BT$31 -> 0 | AA98: =給与台帳5月!BT$32 -> 0 | AB98: =給与台帳5月!BT$33 -> 0 | AC98: =給与台帳5月!BT$34 -> 0 | AD98: =給与台帳5月!BT$35 -> 0 | AE98: =給与台帳5月!BT$36 -> 0 | AF98: =給与台帳5月!BT$37 -> 0 | AG98: =給与台帳5月!BT$38 -> 0 | AH98: =給与台帳5月!BT$39 -> 0 | AI98: =給与台帳5月!BT$40 -> 0 | AJ98: =給与台帳5月!BT$41 -> 0 | AK98: =給与台帳5月!BT$42 -> 0 | AL98: =給与台帳5月!BT$43 -> 0 | AM98: =給与台帳5月!BT$44 -> 0 | AN98: =給与台帳5月!BT$45 -> 0 | AO98: =給与台帳5月!BT$46 -> 0 | AP98: =給与台帳5月!BT$47 -> 0 | AQ98: =給与台帳5月!BT$48 -> 0 | AR98: =給与台帳5月!BT$49 -> 0 | AS98: =給与台帳5月!BT$50 -> 0 | AT98: =給与台帳5月!BT$51 -> 0 | AU98: =給与台帳5月!BT$52 -> 五月もお疲れ様でした
B99: 5 | C99: =給与台帳5月!BZ$8 -> 13 | D99: =給与台帳5月!BZ$9 ->  | E99: =給与台帳5月!BZ$10 ->  | F99: =給与台帳5月!BZ$11 ->  | G99: =給与台帳5月!BZ$12 ->  | H99: =給与台帳5月!BZ$13 -> 0 | I99: =給与台帳5月!BZ$14 -> 0 | J99: =給与台帳5月!BZ$15 -> 0 | K99: =給与台帳5月!BZ$16 -> 0 | L99: =給与台帳5月!BZ$17 -> 0 | M99: =給与台帳5月!BZ$18 -> 0 | N99: =給与台帳5月!BZ$19 -> 0 | O99: =給与台帳5月!BZ$20 -> 0 | P99: =給与台帳5月!BZ$21 -> 0 | Q99: =給与台帳5月!BZ$22 -> 0 | R99: =給与台帳5月!BZ$23 -> 0 | S99: =給与台帳5月!BZ$24 -> 0 | T99: =給与台帳5月!BZ$25 -> 0 | U99: =給与台帳5月!BZ$26 -> 0 | V99: =給与台帳5月!BZ$27 -> 0 | W99: =給与台帳5月!BZ$28 -> 0 | X99: =給与台帳5月!BZ$29 -> 0 | Y99: =給与台帳5月!BZ$30 -> 0 | Z99: =給与台帳5月!BZ$31 -> 0 | AA99: =給与台帳5月!BZ$32 -> 0 | AB99: =給与台帳5月!BZ$33 -> 0 | AC99: =給与台帳5月!BZ$34 -> 0 | AD99: =給与台帳5月!BZ$35 -> 0 | AE99: =給与台帳5月!BZ$36 -> 0 | AF99: =給与台帳5月!BZ$37 -> 0 | AG99: =給与台帳5月!BZ$38 -> 0 | AH99: =給与台帳5月!BZ$39 -> 0 | AI99: =給与台帳5月!BZ$40 -> 0 | AJ99: =給与台帳5月!BZ$41 -> 0 | AK99: =給与台帳5月!BZ$42 -> 0 | AL99: =給与台帳5月!BZ$43 -> 0 | AM99: =給与台帳5月!BZ$44 -> 0 | AN99: =給与台帳5月!BZ$45 -> 0 | AO99: =給与台帳5月!BZ$46 -> 0 | AP99: =給与台帳5月!BZ$47 -> 0 | AQ99: =給与台帳5月!BZ$48 -> 0 | AR99: =給与台帳5月!BZ$49 -> 0 | AS99: =給与台帳5月!BZ$50 -> 0 | AT99: =給与台帳5月!BZ$51 -> 0 | AU99: =給与台帳5月!BZ$52 -> 五月もお疲れ様でした
B100: 5 | C100: =給与台帳5月!CF$8 -> 14 | D100: =給与台帳5月!CF$9 ->  | E100: =給与台帳5月!CF$10 ->  | F100: =給与台帳5月!CF$11 ->  | G100: =給与台帳5月!CF$12 ->  | H100: =給与台帳5月!CF$13 -> 0 | I100: =給与台帳5月!CF$14 -> 0 | J100: =給与台帳5月!CF$15 -> 0 | K100: =給与台帳5月!CF$16 -> 0 | L100: =給与台帳5月!CF$17 -> 0 | M100: =給与台帳5月!CF$18 -> 0 | N100: =給与台帳5月!CF$19 -> 0 | O100: =給与台帳5月!CF$20 -> 0 | P100: =給与台帳5月!CF$21 -> 0 | Q100: =給与台帳5月!CF$22 -> 0 | R100: =給与台帳5月!CF$23 -> 0 | S100: =給与台帳5月!CF$24 -> 0 | T100: =給与台帳5月!CF$25 -> 0 | U100: =給与台帳5月!CF$26 -> 0 | V100: =給与台帳5月!CF$27 -> 0 | W100: =給与台帳5月!CF$28 -> 0 | X100: =給与台帳5月!CF$29 -> 0 | Y100: =給与台帳5月!CF$30 -> 0 | Z100: =給与台帳5月!CF$31 -> 0 | AA100: =給与台帳5月!CF$32 -> 0 | AB100: =給与台帳5月!CF$33 -> 0 | AC100: =給与台帳5月!CF$34 -> 0 | AD100: =給与台帳5月!CF$35 -> 0 | AE100: =給与台帳5月!CF$36 -> 0 | AF100: =給与台帳5月!CF$37 -> 0 | AG100: =給与台帳5月!CF$38 -> 0 | AH100: =給与台帳5月!CF$39 -> 0 | AI100: =給与台帳5月!CF$40 -> 0 | AJ100: =給与台帳5月!CF$41 -> 0 | AK100: =給与台帳5月!CF$42 -> 0 | AL100: =給与台帳5月!CF$43 -> 0 | AM100: =給与台帳5月!CF$44 -> 0 | AN100: =給与台帳5月!CF$45 -> 0 | AO100: =給与台帳5月!CF$46 -> 0 | AP100: =給与台帳5月!CF$47 -> 0 | AQ100: =給与台帳5月!CF$48 -> 0 | AR100: =給与台帳5月!CF$49 -> 0 | AS100: =給与台帳5月!CF$50 -> 0 | AT100: =給与台帳5月!CF$51 -> 0 | AU100: =給与台帳5月!CF$52 -> 五月もお疲れ様でした
B101: 5 | C101: =給与台帳5月!CL$8 -> 15 | D101: =給与台帳5月!CL$9 ->  | E101: =給与台帳5月!CL$10 ->  | F101: =給与台帳5月!CL$11 ->  | G101: =給与台帳5月!CL$12 ->  | H101: =給与台帳5月!CL$13 -> 0 | I101: =給与台帳5月!CL$14 -> 0 | J101: =給与台帳5月!CL$15 -> 0 | K101: =給与台帳5月!CL$16 -> 0 | L101: =給与台帳5月!CL$17 -> 0 | M101: =給与台帳5月!CL$18 -> 0 | N101: =給与台帳5月!CL$19 -> 0 | O101: =給与台帳5月!CL$20 -> 0 | P101: =給与台帳5月!CL$21 -> 0 | Q101: =給与台帳5月!CL$22 -> 0 | R101: =給与台帳5月!CL$23 -> 0 | S101: =給与台帳5月!CL$24 -> 0 | T101: =給与台帳5月!CL$25 -> 0 | U101: =給与台帳5月!CL$26 -> 0 | V101: =給与台帳5月!CL$27 -> 0 | W101: =給与台帳5月!CL$28 -> 0 | X101: =給与台帳5月!CL$29 -> 0 | Y101: =給与台帳5月!CL$30 -> 0 | Z101: =給与台帳5月!CL$31 -> 0 | AA101: =給与台帳5月!CL$32 -> 0 | AB101: =給与台帳5月!CL$33 -> 0 | AC101: =給与台帳5月!CL$34 -> 0 | AD101: =給与台帳5月!CL$35 -> 0 | AE101: =給与台帳5月!CL$36 -> 0 | AF101: =給与台帳5月!CL$37 -> 0 | AG101: =給与台帳5月!CL$38 -> 0 | AH101: =給与台帳5月!CL$39 -> 0 | AI101: =給与台帳5月!CL$40 -> 0 | AJ101: =給与台帳5月!CL$41 -> 0 | AK101: =給与台帳5月!CL$42 -> 0 | AL101: =給与台帳5月!CL$43 -> 0 | AM101: =給与台帳5月!CL$44 -> 0 | AN101: =給与台帳5月!CL$45 -> 0 | AO101: =給与台帳5月!CL$46 -> 0 | AP101: =給与台帳5月!CL$47 -> 0 | AQ101: =給与台帳5月!CL$48 -> 0 | AR101: =給与台帳5月!CL$49 -> 0 | AS101: =給与台帳5月!CL$50 -> 0 | AT101: =給与台帳5月!CL$51 -> 0 | AU101: =給与台帳5月!CL$52 -> 五月もお疲れ様でした
B102: 5 | C102: =給与台帳5月!CR$8 -> 16 | D102: =給与台帳5月!CR$9 ->  | E102: =給与台帳5月!CR$10 ->  | F102: =給与台帳5月!CR$11 ->  | G102: =給与台帳5月!CR$12 ->  | H102: =給与台帳5月!CR$13 -> 0 | I102: =給与台帳5月!CR$14 -> 0 | J102: =給与台帳5月!CR$15 -> 0 | K102: =給与台帳5月!CR$16 -> 0 | L102: =給与台帳5月!CR$17 -> 0 | M102: =給与台帳5月!CR$18 -> 0 | N102: =給与台帳5月!CR$19 -> 0 | O102: =給与台帳5月!CR$20 -> 0 | P102: =給与台帳5月!CR$21 -> 0 | Q102: =給与台帳5月!CR$22 -> 0 | R102: =給与台帳5月!CR$23 -> 0 | S102: =給与台帳5月!CR$24 -> 0 | T102: =給与台帳5月!CR$25 -> 0 | U102: =給与台帳5月!CR$26 -> 0 | V102: =給与台帳5月!CR$27 -> 0 | W102: =給与台帳5月!CR$28 -> 0 | X102: =給与台帳5月!CR$29 -> 0 | Y102: =給与台帳5月!CR$30 -> 0 | Z102: =給与台帳5月!CR$31 -> 0 | AA102: =給与台帳5月!CR$32 -> 0 | AB102: =給与台帳5月!CR$33 -> 0 | AC102: =給与台帳5月!CR$34 -> 0 | AD102: =給与台帳5月!CR$35 -> 0 | AE102: =給与台帳5月!CR$36 -> 0 | AF102: =給与台帳5月!CR$37 -> 0 | AG102: =給与台帳5月!CR$38 -> 0 | AH102: =給与台帳5月!CR$39 -> 0 | AI102: =給与台帳5月!CR$40 -> 0 | AJ102: =給与台帳5月!CR$41 -> 0 | AK102: =給与台帳5月!CR$42 -> 0 | AL102: =給与台帳5月!CR$43 -> 0 | AM102: =給与台帳5月!CR$44 -> 0 | AN102: =給与台帳5月!CR$45 -> 0 | AO102: =給与台帳5月!CR$46 -> 0 | AP102: =給与台帳5月!CR$47 -> 0 | AQ102: =給与台帳5月!CR$48 -> 0 | AR102: =給与台帳5月!CR$49 -> 0 | AS102: =給与台帳5月!CR$50 -> 0 | AT102: =給与台帳5月!CR$51 -> 0 | AU102: =給与台帳5月!CR$52 -> 五月もお疲れ様でした
B103: 5 | C103: =給与台帳5月!CX$8 -> 17 | D103: =給与台帳5月!CX$9 ->  | E103: =給与台帳5月!CX$10 ->  | F103: =給与台帳5月!CX$11 ->  | G103: =給与台帳5月!CX$12 ->  | H103: =給与台帳5月!CX$13 -> 0 | I103: =給与台帳5月!CX$14 -> 0 | J103: =給与台帳5月!CX$15 -> 0 | K103: =給与台帳5月!CX$16 -> 0 | L103: =給与台帳5月!CX$17 -> 0 | M103: =給与台帳5月!CX$18 -> 0 | N103: =給与台帳5月!CX$19 -> 0 | O103: =給与台帳5月!CX$20 -> 0 | P103: =給与台帳5月!CX$21 -> 0 | Q103: =給与台帳5月!CX$22 -> 0 | R103: =給与台帳5月!CX$23 -> 0 | S103: =給与台帳5月!CX$24 -> 0 | T103: =給与台帳5月!CX$25 -> 0 | U103: =給与台帳5月!CX$26 -> 0 | V103: =給与台帳5月!CX$27 -> 0 | W103: =給与台帳5月!CX$28 -> 0 | X103: =給与台帳5月!CX$29 -> 0 | Y103: =給与台帳5月!CX$30 -> 0 | Z103: =給与台帳5月!CX$31 -> 0 | AA103: =給与台帳5月!CX$32 -> 0 | AB103: =給与台帳5月!CX$33 -> 0 | AC103: =給与台帳5月!CX$34 -> 0 | AD103: =給与台帳5月!CX$35 -> 0 | AE103: =給与台帳5月!CX$36 -> 0 | AF103: =給与台帳5月!CX$37 -> 0 | AG103: =給与台帳5月!CX$38 -> 0 | AH103: =給与台帳5月!CX$39 -> 0 | AI103: =給与台帳5月!CX$40 -> 0 | AJ103: =給与台帳5月!CX$41 -> 0 | AK103: =給与台帳5月!CX$42 -> 0 | AL103: =給与台帳5月!CX$43 -> 0 | AM103: =給与台帳5月!CX$44 -> 0 | AN103: =給与台帳5月!CX$45 -> 0 | AO103: =給与台帳5月!CX$46 -> 0 | AP103: =給与台帳5月!CX$47 -> 0 | AQ103: =給与台帳5月!CX$48 -> 0 | AR103: =給与台帳5月!CX$49 -> 0 | AS103: =給与台帳5月!CX$50 -> 0 | AT103: =給与台帳5月!CX$51 -> 0 | AU103: =給与台帳5月!CX$52 -> 五月もお疲れ様でした
B104: 5 | C104: =給与台帳5月!DD$8 -> 18 | D104: =給与台帳5月!DD$9 ->  | E104: =給与台帳5月!DD$10 ->  | F104: =給与台帳5月!DD$11 ->  | G104: =給与台帳5月!DD$12 ->  | H104: =給与台帳5月!DD$13 -> 0 | I104: =給与台帳5月!DD$14 -> 0 | J104: =給与台帳5月!DD$15 -> 0 | K104: =給与台帳5月!DD$16 -> 0 | L104: =給与台帳5月!DD$17 -> 0 | M104: =給与台帳5月!DD$18 -> 0 | N104: =給与台帳5月!DD$19 -> 0 | O104: =給与台帳5月!DD$20 -> 0 | P104: =給与台帳5月!DD$21 -> 0 | Q104: =給与台帳5月!DD$22 -> 0 | R104: =給与台帳5月!DD$23 -> 0 | S104: =給与台帳5月!DD$24 -> 0 | T104: =給与台帳5月!DD$25 -> 0 | U104: =給与台帳5月!DD$26 -> 0 | V104: =給与台帳5月!DD$27 -> 0 | W104: =給与台帳5月!DD$28 -> 0 | X104: =給与台帳5月!DD$29 -> 0 | Y104: =給与台帳5月!DD$30 -> 0 | Z104: =給与台帳5月!DD$31 -> 0 | AA104: =給与台帳5月!DD$32 -> 0 | AB104: =給与台帳5月!DD$33 -> 0 | AC104: =給与台帳5月!DD$34 -> 0 | AD104: =給与台帳5月!DD$35 -> 0 | AE104: =給与台帳5月!DD$36 -> 0 | AF104: =給与台帳5月!DD$37 -> 0 | AG104: =給与台帳5月!DD$38 -> 0 | AH104: =給与台帳5月!DD$39 -> 0 | AI104: =給与台帳5月!DD$40 -> 0 | AJ104: =給与台帳5月!DD$41 -> 0 | AK104: =給与台帳5月!DD$42 -> 0 | AL104: =給与台帳5月!DD$43 -> 0 | AM104: =給与台帳5月!DD$44 -> 0 | AN104: =給与台帳5月!DD$45 -> 0 | AO104: =給与台帳5月!DD$46 -> 0 | AP104: =給与台帳5月!DD$47 -> 0 | AQ104: =給与台帳5月!DD$48 -> 0 | AR104: =給与台帳5月!DD$49 -> 0 | AS104: =給与台帳5月!DD$50 -> 0 | AT104: =給与台帳5月!DD$51 -> 0 | AU104: =給与台帳5月!DD$52 -> 五月もお疲れ様でした
B105: 5
B106: 5
B107: 6 | C107: =給与台帳6月!F$8 -> 1 | D107: =給与台帳6月!F$9 -> 今野 友夫 | E107: =給与台帳6月!F$10 -> 役員 | F107: =給与台帳6月!F$11 -> 甲欄 | G107: =給与台帳6月!F$12 -> 45 | H107: =給与台帳6月!F$13 -> 1 | I107: =給与台帳6月!F$14 -> 500000 | J107: =給与台帳6月!F$15 -> 500000 | K107: =給与台帳6月!F$16 -> 0 | L107: =給与台帳6月!F$17 -> 0 | M107: =給与台帳6月!F$18 -> 0 | N107: =給与台帳6月!F$19 -> 0 | O107: =給与台帳6月!F$20 -> 0 | P107: =給与台帳6月!F$21 -> 0 | Q107: =給与台帳6月!F$22 -> 0 | R107: =給与台帳6月!F$23 -> 0 | S107: =給与台帳6月!F$24 -> 500000 | T107: =給与台帳6月!F$25 -> 0 | U107: =給与台帳6月!F$26 -> 0 | V107: =給与台帳6月!F$27 -> 0 | W107: =給与台帳6月!F$28 -> 0 | X107: =給与台帳6月!F$29 -> 0 | Y107: =給与台帳6月!F$30 -> 0 | Z107: =給与台帳6月!F$31 -> 0 | AA107: =給与台帳6月!F$32 -> 10000 | AB107: =給与台帳6月!F$33 -> 0 | AC107: =給与台帳6月!F$34 -> 500000 | AD107: =給与台帳6月!F$35 -> 10000 | AE107: =給与台帳6月!F$36 -> 510000 | AF107: =給与台帳6月!F$37 -> 23800 | AG107: =給与台帳6月!F$38 -> 0 | AH107: =給与台帳6月!F$39 -> 41030 | AI107: =給与台帳6月!F$40 -> 0 | AJ107: =給与台帳6月!F$41 -> 64830 | AK107: =給与台帳6月!F$42 -> 435170 | AL107: =給与台帳6月!F$43 -> 16190 | AM107: =給与台帳6月!F$44 -> 25200 | AN107: =給与台帳6月!F$45 -> 0 | AO107: =給与台帳6月!F$46 -> 0 | AP107: =給与台帳6月!F$47 -> 0 | AQ107: =給与台帳6月!F$48 -> 41390 | AR107: =給与台帳6月!F$49 -> 403780 | AS107: =給与台帳6月!F$50 -> 0 | AT107: =給与台帳6月!F$51 -> 403780 | AU107: =給与台帳6月!F$52 -> 六月もお疲れ様でした
B108: 6 | C108: =給与台帳6月!L$8 -> 2 | D108: =給与台帳6月!L$9 -> 今野 朝子 | E108: =給与台帳6月!L$10 -> 役員 | F108: =給与台帳6月!L$11 -> 甲欄 | G108: =給与台帳6月!L$12 -> 39 | H108: =給与台帳6月!L$13 -> 0 | I108: =給与台帳6月!L$14 -> 300000 | J108: =給与台帳6月!L$15 -> 300000 | K108: =給与台帳6月!L$16 -> 0 | L108: =給与台帳6月!L$17 -> 0 | M108: =給与台帳6月!L$18 -> 0 | N108: =給与台帳6月!L$19 -> 0 | O108: =給与台帳6月!L$20 -> 0 | P108: =給与台帳6月!L$21 -> 0 | Q108: =給与台帳6月!L$22 -> 0 | R108: =給与台帳6月!L$23 -> 0 | S108: =給与台帳6月!L$24 -> 300000 | T108: =給与台帳6月!L$25 -> 0 | U108: =給与台帳6月!L$26 -> 0 | V108: =給与台帳6月!L$27 -> 0 | W108: =給与台帳6月!L$28 -> 0 | X108: =給与台帳6月!L$29 -> 0 | Y108: =給与台帳6月!L$30 -> 0 | Z108: =給与台帳6月!L$31 -> 0 | AA108: =給与台帳6月!L$32 -> 10000 | AB108: =給与台帳6月!L$33 -> 0 | AC108: =給与台帳6月!L$34 -> 300000 | AD108: =給与台帳6月!L$35 -> 10000 | AE108: =給与台帳6月!L$36 -> 310000 | AF108: =給与台帳6月!L$37 -> 14280 | AG108: =給与台帳6月!L$38 -> 0 | AH108: =給与台帳6月!L$39 -> 24618 | AI108: =給与台帳6月!L$40 -> 0 | AJ108: =給与台帳6月!L$41 -> 38898 | AK108: =給与台帳6月!L$42 -> 261102 | AL108: =給与台帳6月!L$43 -> 6950 | AM108: =給与台帳6月!L$44 -> 13300 | AN108: =給与台帳6月!L$45 -> 0 | AO108: =給与台帳6月!L$46 -> 0 | AP108: =給与台帳6月!L$47 -> 0 | AQ108: =給与台帳6月!L$48 -> 20250 | AR108: =給与台帳6月!L$49 -> 250852 | AS108: =給与台帳6月!L$50 -> 0 | AT108: =給与台帳6月!L$51 -> 250852 | AU108: =給与台帳6月!L$52 -> 六月もお疲れ様でした
B109: 6 | C109: =給与台帳6月!R$8 -> 3 | D109: =給与台帳6月!R$9 -> 今野 祥子 | E109: =給与台帳6月!R$10 -> 役員 | F109: =給与台帳6月!R$11 -> 甲欄 | G109: =給与台帳6月!R$12 -> 71 | H109: =給与台帳6月!R$13 -> 0 | I109: =給与台帳6月!R$14 -> 0 | J109: =給与台帳6月!R$15 -> 0 | K109: =給与台帳6月!R$16 -> 0 | L109: =給与台帳6月!R$17 -> 0 | M109: =給与台帳6月!R$18 -> 0 | N109: =給与台帳6月!R$19 -> 0 | O109: =給与台帳6月!R$20 -> 0 | P109: =給与台帳6月!R$21 -> 0 | Q109: =給与台帳6月!R$22 -> 0 | R109: =給与台帳6月!R$23 -> 0 | S109: =給与台帳6月!R$24 -> 80000 | T109: =給与台帳6月!R$25 -> 0 | U109: =給与台帳6月!R$26 -> 0 | V109: =給与台帳6月!R$27 -> 0 | W109: =給与台帳6月!R$28 -> 0 | X109: =給与台帳6月!R$29 -> 0 | Y109: =給与台帳6月!R$30 -> 0 | Z109: =給与台帳6月!R$31 -> 0 | AA109: =給与台帳6月!R$32 -> 0 | AB109: =給与台帳6月!R$33 -> 0 | AC109: =給与台帳6月!R$34 -> 80000 | AD109: =給与台帳6月!R$35 -> 0 | AE109: =給与台帳6月!R$36 -> 80000 | AF109: =給与台帳6月!R$37 -> 0 | AG109: =給与台帳6月!R$38 -> 0 | AH109: =給与台帳6月!R$39 -> 0 | AI109: =給与台帳6月!R$40 -> 0 | AJ109: =給与台帳6月!R$41 -> 0 | AK109: =給与台帳6月!R$42 -> 80000 | AL109: =給与台帳6月!R$43 -> 0 | AM109: =給与台帳6月!R$44 -> 0 | AN109: =給与台帳6月!R$45 -> 0 | AO109: =給与台帳6月!R$46 -> 0 | AP109: =給与台帳6月!R$47 -> 0 | AQ109: =給与台帳6月!R$48 -> 0 | AR109: =給与台帳6月!R$49 -> 80000 | AS109: =給与台帳6月!R$50 -> 0 | AT109: =給与台帳6月!R$51 -> 80000 | AU109: =給与台帳6月!R$52 -> 六月もお疲れ様でした
B110: 6 | C110: =給与台帳6月!X$8 -> 4 | D110: =給与台帳6月!X$9 -> 川西 めぐみ | E110: =給与台帳6月!X$10 -> 従業員（雇保加入） | F110: =給与台帳6月!X$11 -> 甲欄 | G110: =給与台帳6月!X$12 -> 49 | H110: =給与台帳6月!X$13 -> 1 | I110: =給与台帳6月!X$14 -> 220000 | J110: =給与台帳6月!X$15 -> 220000 | K110: =給与台帳6月!X$16 -> 20日 | L110: =給与台帳6月!X$17 -> 146時間 | M110: =給与台帳6月!X$18 -> 3時間 | N110: =給与台帳6月!X$19 -> 3時間 | O110: =給与台帳6月!X$20 -> 0 | P110: =給与台帳6月!X$21 -> 0 | Q110: =給与台帳6月!X$22 -> 0 | R110: =給与台帳6月!X$23 -> 0 | S110: =給与台帳6月!X$24 -> 0 | T110: =給与台帳6月!X$25 -> 225000 | U110: =給与台帳6月!X$26 -> 10773 | V110: =給与台帳6月!X$27 -> 0 | W110: =給与台帳6月!X$28 -> 0 | X110: =給与台帳6月!X$29 -> 0 | Y110: =給与台帳6月!X$30 -> 0 | Z110: =給与台帳6月!X$31 -> 0 | AA110: =給与台帳6月!X$32 -> 18370 | AB110: =給与台帳6月!X$33 -> 0 | AC110: =給与台帳6月!X$34 -> 235773 | AD110: =給与台帳6月!X$35 -> 18370 | AE110: =給与台帳6月!X$36 -> 254143 | AF110: =給与台帳6月!X$37 -> 10472 | AG110: =給与台帳6月!X$38 -> 1661 | AH110: =給与台帳6月!X$39 -> 18053 | AI110: =給与台帳6月!X$40 -> 1270 | AJ110: =給与台帳6月!X$41 -> 31456 | AK110: =給与台帳6月!X$42 -> 204317 | AL110: =給与台帳6月!X$43 -> 3300 | AM110: =給与台帳6月!X$44 -> 9200 | AN110: =給与台帳6月!X$45 -> 0 | AO110: =給与台帳6月!X$46 -> 0 | AP110: =給与台帳6月!X$47 -> 0 | AQ110: =給与台帳6月!X$48 -> 12500 | AR110: =給与台帳6月!X$49 -> 210187 | AS110: =給与台帳6月!X$50 -> 0 | AT110: =給与台帳6月!X$51 -> 210187 | AU110: =給与台帳6月!X$52 -> 六月もお疲れ様でした
B111: 6 | C111: =給与台帳6月!AD$8 -> 5 | D111: =給与台帳6月!AD$9 -> 鳥居 雅之 | E111: =給与台帳6月!AD$10 -> 従業員（雇保非加入） | F111: =給与台帳6月!AD$11 -> 乙欄 | G111: =給与台帳6月!AD$12 -> 35 | H111: =給与台帳6月!AD$13 -> 0 | I111: =給与台帳6月!AD$14 -> 0 | J111: =給与台帳6月!AD$15 -> 0 | K111: =給与台帳6月!AD$16 -> 9日 | L111: =給与台帳6月!AD$17 -> 36時間 | M111: =給与台帳6月!AD$18 -> 0 | N111: =給与台帳6月!AD$19 -> 0 | O111: =給与台帳6月!AD$20 -> 0 | P111: =給与台帳6月!AD$21 -> 0 | Q111: =給与台帳6月!AD$22 -> 0 | R111: =給与台帳6月!AD$23 -> 0 | S111: =給与台帳6月!AD$24 -> 0 | T111: =給与台帳6月!AD$25 -> 45000 | U111: =給与台帳6月!AD$26 -> 0 | V111: =給与台帳6月!AD$27 -> 0 | W111: =給与台帳6月!AD$28 -> 0 | X111: =給与台帳6月!AD$29 -> 0 | Y111: =給与台帳6月!AD$30 -> 0 | Z111: =給与台帳6月!AD$31 -> 0 | AA111: =給与台帳6月!AD$32 -> 0 | AB111: =給与台帳6月!AD$33 -> 0 | AC111: =給与台帳6月!AD$34 -> 45000 | AD111: =給与台帳6月!AD$35 -> 0 | AE111: =給与台帳6月!AD$36 -> 45000 | AF111: =給与台帳6月!AD$37 -> 0 | AG111: =給与台帳6月!AD$38 -> 0 | AH111: =給与台帳6月!AD$39 -> 0 | AI111: =給与台帳6月!AD$40 -> 0 | AJ111: =給与台帳6月!AD$41 -> 0 | AK111: =給与台帳6月!AD$42 -> 45000 | AL111: =給与台帳6月!AD$43 -> 1378 | AM111: =給与台帳6月!AD$44 -> 0 | AN111: =給与台帳6月!AD$45 -> 0 | AO111: =給与台帳6月!AD$46 -> 0 | AP111: =給与台帳6月!AD$47 -> 0 | AQ111: =給与台帳6月!AD$48 -> 1378 | AR111: =給与台帳6月!AD$49 -> 43622 | AS111: =給与台帳6月!AD$50 -> 0 | AT111: =給与台帳6月!AD$51 -> 43622 | AU111: =給与台帳6月!AD$52 -> 六月もお疲れ様でした
B112: 6 | C112: =給与台帳6月!AJ$8 -> 6 | D112: =給与台帳6月!AJ$9 -> 笹部 菜穂美 | E112: =給与台帳6月!AJ$10 -> 従業員（雇保加入） | F112: =給与台帳6月!AJ$11 -> 甲欄 | G112: =給与台帳6月!AJ$12 -> 31 | H112: =給与台帳6月!AJ$13 -> 0 | I112: =給与台帳6月!AJ$14 -> 0 | J112: =給与台帳6月!AJ$15 -> 0 | K112: =給与台帳6月!AJ$16 -> 0 | L112: =給与台帳6月!AJ$17 -> 0 | M112: =給与台帳6月!AJ$18 -> 0 | N112: =給与台帳6月!AJ$19 -> 0 | O112: =給与台帳6月!AJ$20 -> 0 | P112: =給与台帳6月!AJ$21 -> 0 | Q112: =給与台帳6月!AJ$22 -> 0 | R112: =給与台帳6月!AJ$23 -> 0 | S112: =給与台帳6月!AJ$24 -> 0 | T112: =給与台帳6月!AJ$25 -> 0 | U112: =給与台帳6月!AJ$26 -> 0 | V112: =給与台帳6月!AJ$27 -> 0 | W112: =給与台帳6月!AJ$28 -> 0 | X112: =給与台帳6月!AJ$29 -> 0 | Y112: =給与台帳6月!AJ$30 -> 0 | Z112: =給与台帳6月!AJ$31 -> 0 | AA112: =給与台帳6月!AJ$32 -> 0 | AB112: =給与台帳6月!AJ$33 -> 0 | AC112: =給与台帳6月!AJ$34 -> 0 | AD112: =給与台帳6月!AJ$35 -> 0 | AE112: =給与台帳6月!AJ$36 -> 0 | AF112: =給与台帳6月!AJ$37 -> 0 | AG112: =給与台帳6月!AJ$38 -> 0 | AH112: =給与台帳6月!AJ$39 -> 0 | AI112: =給与台帳6月!AJ$40 -> 0 | AJ112: =給与台帳6月!AJ$41 -> 0 | AK112: =給与台帳6月!AJ$42 -> 0 | AL112: =給与台帳6月!AJ$43 -> 0 | AM112: =給与台帳6月!AJ$44 -> 0 | AN112: =給与台帳6月!AJ$45 -> 0 | AO112: =給与台帳6月!AJ$46 -> 0 | AP112: =給与台帳6月!AJ$47 -> 0 | AQ112: =給与台帳6月!AJ$48 -> 0 | AR112: =給与台帳6月!AJ$49 -> 0 | AS112: =給与台帳6月!AJ$50 -> 0 | AT112: =給与台帳6月!AJ$51 -> 0 | AU112: =給与台帳6月!AJ$52 -> 六月もお疲れ様でした
B113: 6 | C113: =給与台帳6月!AP$8 -> 7 | D113: =給与台帳6月!AP$9 -> 絹延橋 みつ子 | E113: =給与台帳6月!AP$10 -> 従業員（雇保加入） | F113: =給与台帳6月!AP$11 -> 甲欄 | G113: =給与台帳6月!AP$12 -> 46 | H113: =給与台帳6月!AP$13 -> 0 | I113: =給与台帳6月!AP$14 -> 300000 | J113: =給与台帳6月!AP$15 -> 0 | K113: =給与台帳6月!AP$16 -> 0 | L113: =給与台帳6月!AP$17 -> 0 | M113: =給与台帳6月!AP$18 -> 0 | N113: =給与台帳6月!AP$19 -> 0 | O113: =給与台帳6月!AP$20 -> 0 | P113: =給与台帳6月!AP$21 -> 0 | Q113: =給与台帳6月!AP$22 -> 0 | R113: =給与台帳6月!AP$23 -> 0 | S113: =給与台帳6月!AP$24 -> 0 | T113: =給与台帳6月!AP$25 -> 0 | U113: =給与台帳6月!AP$26 -> 0 | V113: =給与台帳6月!AP$27 -> 0 | W113: =給与台帳6月!AP$28 -> 0 | X113: =給与台帳6月!AP$29 -> 0 | Y113: =給与台帳6月!AP$30 -> 0 | Z113: =給与台帳6月!AP$31 -> 0 | AA113: =給与台帳6月!AP$32 -> 0 | AB113: =給与台帳6月!AP$33 -> 0 | AC113: =給与台帳6月!AP$34 -> 0 | AD113: =給与台帳6月!AP$35 -> 0 | AE113: =給与台帳6月!AP$36 -> 0 | AF113: =給与台帳6月!AP$37 -> 0 | AG113: =給与台帳6月!AP$38 -> 0 | AH113: =給与台帳6月!AP$39 -> 0 | AI113: =給与台帳6月!AP$40 -> 0 | AJ113: =給与台帳6月!AP$41 -> 0 | AK113: =給与台帳6月!AP$42 -> 0 | AL113: =給与台帳6月!AP$43 -> 0 | AM113: =給与台帳6月!AP$44 -> 0 | AN113: =給与台帳6月!AP$45 -> 0 | AO113: =給与台帳6月!AP$46 -> 0 | AP113: =給与台帳6月!AP$47 -> 0 | AQ113: =給与台帳6月!AP$48 -> 0 | AR113: =給与台帳6月!AP$49 -> 0 | AS113: =給与台帳6月!AP$50 -> 0 | AT113: =給与台帳6月!AP$51 -> 0 | AU113: =給与台帳6月!AP$52 -> 六月もお疲れ様でした
B114: 6 | C114: =給与台帳6月!AV$8 -> 8 | D114: =給与台帳6月!AV$9 -> 山下 崇 | E114: =給与台帳6月!AV$10 -> 従業員（雇保加入） | F114: =給与台帳6月!AV$11 -> 甲欄 | G114: =給与台帳6月!AV$12 -> 34 | H114: =給与台帳6月!AV$13 -> 0 | I114: =給与台帳6月!AV$14 -> 0 | J114: =給与台帳6月!AV$15 -> 0 | K114: =給与台帳6月!AV$16 -> 0 | L114: =給与台帳6月!AV$17 -> 0 | M114: =給与台帳6月!AV$18 -> 0 | N114: =給与台帳6月!AV$19 -> 0 | O114: =給与台帳6月!AV$20 -> 0 | P114: =給与台帳6月!AV$21 -> 0 | Q114: =給与台帳6月!AV$22 -> 0 | R114: =給与台帳6月!AV$23 -> 0 | S114: =給与台帳6月!AV$24 -> 0 | T114: =給与台帳6月!AV$25 -> 0 | U114: =給与台帳6月!AV$26 -> 0 | V114: =給与台帳6月!AV$27 -> 0 | W114: =給与台帳6月!AV$28 -> 0 | X114: =給与台帳6月!AV$29 -> 0 | Y114: =給与台帳6月!AV$30 -> 0 | Z114: =給与台帳6月!AV$31 -> 0 | AA114: =給与台帳6月!AV$32 -> 0 | AB114: =給与台帳6月!AV$33 -> 0 | AC114: =給与台帳6月!AV$34 -> 0 | AD114: =給与台帳6月!AV$35 -> 0 | AE114: =給与台帳6月!AV$36 -> 0 | AF114: =給与台帳6月!AV$37 -> 0 | AG114: =給与台帳6月!AV$38 -> 0 | AH114: =給与台帳6月!AV$39 -> 0 | AI114: =給与台帳6月!AV$40 -> 0 | AJ114: =給与台帳6月!AV$41 -> 0 | AK114: =給与台帳6月!AV$42 -> 0 | AL114: =給与台帳6月!AV$43 -> 0 | AM114: =給与台帳6月!AV$44 -> 0 | AN114: =給与台帳6月!AV$45 -> 0 | AO114: =給与台帳6月!AV$46 -> 0 | AP114: =給与台帳6月!AV$47 -> 0 | AQ114: =給与台帳6月!AV$48 -> 0 | AR114: =給与台帳6月!AV$49 -> 0 | AS114: =給与台帳6月!AV$50 -> 0 | AT114: =給与台帳6月!AV$51 -> 0 | AU114: =給与台帳6月!AV$52 -> 六月もお疲れ様でした
B115: 6 | C115: =給与台帳6月!BB$8 -> 9 | D115: =給与台帳6月!BB$9 ->  | E115: =給与台帳6月!BB$10 ->  | F115: =給与台帳6月!BB$11 ->  | G115: =給与台帳6月!BB$12 ->  | H115: =給与台帳6月!BB$13 -> 0 | I115: =給与台帳6月!BB$14 -> 0 | J115: =給与台帳6月!BB$15 -> 0 | K115: =給与台帳6月!BB$16 -> 0 | L115: =給与台帳6月!BB$17 -> 0 | M115: =給与台帳6月!BB$18 -> 0 | N115: =給与台帳6月!BB$19 -> 0 | O115: =給与台帳6月!BB$20 -> 0 | P115: =給与台帳6月!BB$21 -> 0 | Q115: =給与台帳6月!BB$22 -> 0 | R115: =給与台帳6月!BB$23 -> 0 | S115: =給与台帳6月!BB$24 -> 0 | T115: =給与台帳6月!BB$25 -> 0 | U115: =給与台帳6月!BB$26 -> 0 | V115: =給与台帳6月!BB$27 -> 0 | W115: =給与台帳6月!BB$28 -> 0 | X115: =給与台帳6月!BB$29 -> 0 | Y115: =給与台帳6月!BB$30 -> 0 | Z115: =給与台帳6月!BB$31 -> 0 | AA115: =給与台帳6月!BB$32 -> 0 | AB115: =給与台帳6月!BB$33 -> 0 | AC115: =給与台帳6月!BB$34 -> 0 | AD115: =給与台帳6月!BB$35 -> 0 | AE115: =給与台帳6月!BB$36 -> 0 | AF115: =給与台帳6月!BB$37 -> 0 | AG115: =給与台帳6月!BB$38 -> 0 | AH115: =給与台帳6月!BB$39 -> 0 | AI115: =給与台帳6月!BB$40 -> 0 | AJ115: =給与台帳6月!BB$41 -> 0 | AK115: =給与台帳6月!BB$42 -> 0 | AL115: =給与台帳6月!BB$43 -> 0 | AM115: =給与台帳6月!BB$44 -> 0 | AN115: =給与台帳6月!BB$45 -> 0 | AO115: =給与台帳6月!BB$46 -> 0 | AP115: =給与台帳6月!BB$47 -> 0 | AQ115: =給与台帳6月!BB$48 -> 0 | AR115: =給与台帳6月!BB$49 -> 0 | AS115: =給与台帳6月!BB$50 -> 0 | AT115: =給与台帳6月!BB$51 -> 0 | AU115: =給与台帳6月!BB$52 -> 六月もお疲れ様でした
B116: 6 | C116: =給与台帳6月!BH$8 -> 10 | D116: =給与台帳6月!BH$9 ->  | E116: =給与台帳6月!BH$10 ->  | F116: =給与台帳6月!BH$11 ->  | G116: =給与台帳6月!BH$12 ->  | H116: =給与台帳6月!BH$13 -> 0 | I116: =給与台帳6月!BH$14 -> 0 | J116: =給与台帳6月!BH$15 -> 0 | K116: =給与台帳6月!BH$16 -> 0 | L116: =給与台帳6月!BH$17 -> 0 | M116: =給与台帳6月!BH$18 -> 0 | N116: =給与台帳6月!BH$19 -> 0 | O116: =給与台帳6月!BH$20 -> 0 | P116: =給与台帳6月!BH$21 -> 0 | Q116: =給与台帳6月!BH$22 -> 0 | R116: =給与台帳6月!BH$23 -> 0 | S116: =給与台帳6月!BH$24 -> 0 | T116: =給与台帳6月!BH$25 -> 0 | U116: =給与台帳6月!BH$26 -> 0 | V116: =給与台帳6月!BH$27 -> 0 | W116: =給与台帳6月!BH$28 -> 0 | X116: =給与台帳6月!BH$29 -> 0 | Y116: =給与台帳6月!BH$30 -> 0 | Z116: =給与台帳6月!BH$31 -> 0 | AA116: =給与台帳6月!BH$32 -> 0 | AB116: =給与台帳6月!BH$33 -> 0 | AC116: =給与台帳6月!BH$34 -> 0 | AD116: =給与台帳6月!BH$35 -> 0 | AE116: =給与台帳6月!BH$36 -> 0 | AF116: =給与台帳6月!BH$37 -> 0 | AG116: =給与台帳6月!BH$38 -> 0 | AH116: =給与台帳6月!BH$39 -> 0 | AI116: =給与台帳6月!BH$40 -> 0 | AJ116: =給与台帳6月!BH$41 -> 0 | AK116: =給与台帳6月!BH$42 -> 0 | AL116: =給与台帳6月!BH$43 -> 0 | AM116: =給与台帳6月!BH$44 -> 0 | AN116: =給与台帳6月!BH$45 -> 0 | AO116: =給与台帳6月!BH$46 -> 0 | AP116: =給与台帳6月!BH$47 -> 0 | AQ116: =給与台帳6月!BH$48 -> 0 | AR116: =給与台帳6月!BH$49 -> 0 | AS116: =給与台帳6月!BH$50 -> 0 | AT116: =給与台帳6月!BH$51 -> 0 | AU116: =給与台帳6月!BH$52 -> 六月もお疲れ様でした
B117: 6 | C117: =給与台帳6月!BN$8 -> 11 | D117: =給与台帳6月!BN$9 ->  | E117: =給与台帳6月!BN$10 ->  | F117: =給与台帳6月!BN$11 ->  | G117: =給与台帳6月!BN$12 ->  | H117: =給与台帳6月!BN$13 -> 0 | I117: =給与台帳6月!BN$14 -> 0 | J117: =給与台帳6月!BN$15 -> 0 | K117: =給与台帳6月!BN$16 -> 0 | L117: =給与台帳6月!BN$17 -> 0 | M117: =給与台帳6月!BN$18 -> 0 | N117: =給与台帳6月!BN$19 -> 0 | O117: =給与台帳6月!BN$20 -> 0 | P117: =給与台帳6月!BN$21 -> 0 | Q117: =給与台帳6月!BN$22 -> 0 | R117: =給与台帳6月!BN$23 -> 0 | S117: =給与台帳6月!BN$24 -> 0 | T117: =給与台帳6月!BN$25 -> 0 | U117: =給与台帳6月!BN$26 -> 0 | V117: =給与台帳6月!BN$27 -> 0 | W117: =給与台帳6月!BN$28 -> 0 | X117: =給与台帳6月!BN$29 -> 0 | Y117: =給与台帳6月!BN$30 -> 0 | Z117: =給与台帳6月!BN$31 -> 0 | AA117: =給与台帳6月!BN$32 -> 0 | AB117: =給与台帳6月!BN$33 -> 0 | AC117: =給与台帳6月!BN$34 -> 0 | AD117: =給与台帳6月!BN$35 -> 0 | AE117: =給与台帳6月!BN$36 -> 0 | AF117: =給与台帳6月!BN$37 -> 0 | AG117: =給与台帳6月!BN$38 -> 0 | AH117: =給与台帳6月!BN$39 -> 0 | AI117: =給与台帳6月!BN$40 -> 0 | AJ117: =給与台帳6月!BN$41 -> 0 | AK117: =給与台帳6月!BN$42 -> 0 | AL117: =給与台帳6月!BN$43 -> 0 | AM117: =給与台帳6月!BN$44 -> 0 | AN117: =給与台帳6月!BN$45 -> 0 | AO117: =給与台帳6月!BN$46 -> 0 | AP117: =給与台帳6月!BN$47 -> 0 | AQ117: =給与台帳6月!BN$48 -> 0 | AR117: =給与台帳6月!BN$49 -> 0 | AS117: =給与台帳6月!BN$50 -> 0 | AT117: =給与台帳6月!BN$51 -> 0 | AU117: =給与台帳6月!BN$52 -> 六月もお疲れ様でした
B118: 6 | C118: =給与台帳6月!BT$8 -> 12 | D118: =給与台帳6月!BT$9 ->  | E118: =給与台帳6月!BT$10 ->  | F118: =給与台帳6月!BT$11 ->  | G118: =給与台帳6月!BT$12 ->  | H118: =給与台帳6月!BT$13 -> 0 | I118: =給与台帳6月!BT$14 -> 0 | J118: =給与台帳6月!BT$15 -> 0 | K118: =給与台帳6月!BT$16 -> 0 | L118: =給与台帳6月!BT$17 -> 0 | M118: =給与台帳6月!BT$18 -> 0 | N118: =給与台帳6月!BT$19 -> 0 | O118: =給与台帳6月!BT$20 -> 0 | P118: =給与台帳6月!BT$21 -> 0 | Q118: =給与台帳6月!BT$22 -> 0 | R118: =給与台帳6月!BT$23 -> 0 | S118: =給与台帳6月!BT$24 -> 0 | T118: =給与台帳6月!BT$25 -> 0 | U118: =給与台帳6月!BT$26 -> 0 | V118: =給与台帳6月!BT$27 -> 0 | W118: =給与台帳6月!BT$28 -> 0 | X118: =給与台帳6月!BT$29 -> 0 | Y118: =給与台帳6月!BT$30 -> 0 | Z118: =給与台帳6月!BT$31 -> 0 | AA118: =給与台帳6月!BT$32 -> 0 | AB118: =給与台帳6月!BT$33 -> 0 | AC118: =給与台帳6月!BT$34 -> 0 | AD118: =給与台帳6月!BT$35 -> 0 | AE118: =給与台帳6月!BT$36 -> 0 | AF118: =給与台帳6月!BT$37 -> 0 | AG118: =給与台帳6月!BT$38 -> 0 | AH118: =給与台帳6月!BT$39 -> 0 | AI118: =給与台帳6月!BT$40 -> 0 | AJ118: =給与台帳6月!BT$41 -> 0 | AK118: =給与台帳6月!BT$42 -> 0 | AL118: =給与台帳6月!BT$43 -> 0 | AM118: =給与台帳6月!BT$44 -> 0 | AN118: =給与台帳6月!BT$45 -> 0 | AO118: =給与台帳6月!BT$46 -> 0 | AP118: =給与台帳6月!BT$47 -> 0 | AQ118: =給与台帳6月!BT$48 -> 0 | AR118: =給与台帳6月!BT$49 -> 0 | AS118: =給与台帳6月!BT$50 -> 0 | AT118: =給与台帳6月!BT$51 -> 0 | AU118: =給与台帳6月!BT$52 -> 六月もお疲れ様でした
B119: 6 | C119: =給与台帳6月!BZ$8 -> 13 | D119: =給与台帳6月!BZ$9 ->  | E119: =給与台帳6月!BZ$10 ->  | F119: =給与台帳6月!BZ$11 ->  | G119: =給与台帳6月!BZ$12 ->  | H119: =給与台帳6月!BZ$13 -> 0 | I119: =給与台帳6月!BZ$14 -> 0 | J119: =給与台帳6月!BZ$15 -> 0 | K119: =給与台帳6月!BZ$16 -> 0 | L119: =給与台帳6月!BZ$17 -> 0 | M119: =給与台帳6月!BZ$18 -> 0 | N119: =給与台帳6月!BZ$19 -> 0 | O119: =給与台帳6月!BZ$20 -> 0 | P119: =給与台帳6月!BZ$21 -> 0 | Q119: =給与台帳6月!BZ$22 -> 0 | R119: =給与台帳6月!BZ$23 -> 0 | S119: =給与台帳6月!BZ$24 -> 0 | T119: =給与台帳6月!BZ$25 -> 0 | U119: =給与台帳6月!BZ$26 -> 0 | V119: =給与台帳6月!BZ$27 -> 0 | W119: =給与台帳6月!BZ$28 -> 0 | X119: =給与台帳6月!BZ$29 -> 0 | Y119: =給与台帳6月!BZ$30 -> 0 | Z119: =給与台帳6月!BZ$31 -> 0 | AA119: =給与台帳6月!BZ$32 -> 0 | AB119: =給与台帳6月!BZ$33 -> 0 | AC119: =給与台帳6月!BZ$34 -> 0 | AD119: =給与台帳6月!BZ$35 -> 0 | AE119: =給与台帳6月!BZ$36 -> 0 | AF119: =給与台帳6月!BZ$37 -> 0 | AG119: =給与台帳6月!BZ$38 -> 0 | AH119: =給与台帳6月!BZ$39 -> 0 | AI119: =給与台帳6月!BZ$40 -> 0 | AJ119: =給与台帳6月!BZ$41 -> 0 | AK119: =給与台帳6月!BZ$42 -> 0 | AL119: =給与台帳6月!BZ$43 -> 0 | AM119: =給与台帳6月!BZ$44 -> 0 | AN119: =給与台帳6月!BZ$45 -> 0 | AO119: =給与台帳6月!BZ$46 -> 0 | AP119: =給与台帳6月!BZ$47 -> 0 | AQ119: =給与台帳6月!BZ$48 -> 0 | AR119: =給与台帳6月!BZ$49 -> 0 | AS119: =給与台帳6月!BZ$50 -> 0 | AT119: =給与台帳6月!BZ$51 -> 0 | AU119: =給与台帳6月!BZ$52 -> 六月もお疲れ様でした
B120: 6 | C120: =給与台帳6月!CF$8 -> 14 | D120: =給与台帳6月!CF$9 ->  | E120: =給与台帳6月!CF$10 ->  | F120: =給与台帳6月!CF$11 ->  | G120: =給与台帳6月!CF$12 ->  | H120: =給与台帳6月!CF$13 -> 0 | I120: =給与台帳6月!CF$14 -> 0 | J120: =給与台帳6月!CF$15 -> 0 | K120: =給与台帳6月!CF$16 -> 0 | L120: =給与台帳6月!CF$17 -> 0 | M120: =給与台帳6月!CF$18 -> 0 | N120: =給与台帳6月!CF$19 -> 0 | O120: =給与台帳6月!CF$20 -> 0 | P120: =給与台帳6月!CF$21 -> 0 | Q120: =給与台帳6月!CF$22 -> 0 | R120: =給与台帳6月!CF$23 -> 0 | S120: =給与台帳6月!CF$24 -> 0 | T120: =給与台帳6月!CF$25 -> 0 | U120: =給与台帳6月!CF$26 -> 0 | V120: =給与台帳6月!CF$27 -> 0 | W120: =給与台帳6月!CF$28 -> 0 | X120: =給与台帳6月!CF$29 -> 0 | Y120: =給与台帳6月!CF$30 -> 0 | Z120: =給与台帳6月!CF$31 -> 0 | AA120: =給与台帳6月!CF$32 -> 0 | AB120: =給与台帳6月!CF$33 -> 0 | AC120: =給与台帳6月!CF$34 -> 0 | AD120: =給与台帳6月!CF$35 -> 0 | AE120: =給与台帳6月!CF$36 -> 0 | AF120: =給与台帳6月!CF$37 -> 0 | AG120: =給与台帳6月!CF$38 -> 0 | AH120: =給与台帳6月!CF$39 -> 0 | AI120: =給与台帳6月!CF$40 -> 0 | AJ120: =給与台帳6月!CF$41 -> 0 | AK120: =給与台帳6月!CF$42 -> 0 | AL120: =給与台帳6月!CF$43 -> 0 | AM120: =給与台帳6月!CF$44 -> 0 | AN120: =給与台帳6月!CF$45 -> 0 | AO120: =給与台帳6月!CF$46 -> 0 | AP120: =給与台帳6月!CF$47 -> 0 | AQ120: =給与台帳6月!CF$48 -> 0 | AR120: =給与台帳6月!CF$49 -> 0 | AS120: =給与台帳6月!CF$50 -> 0 | AT120: =給与台帳6月!CF$51 -> 0 | AU120: =給与台帳6月!CF$52 -> 六月もお疲れ様でした
B121: 6 | C121: =給与台帳6月!CL$8 -> 15 | D121: =給与台帳6月!CL$9 ->  | E121: =給与台帳6月!CL$10 ->  | F121: =給与台帳6月!CL$11 ->  | G121: =給与台帳6月!CL$12 ->  | H121: =給与台帳6月!CL$13 -> 0 | I121: =給与台帳6月!CL$14 -> 0 | J121: =給与台帳6月!CL$15 -> 0 | K121: =給与台帳6月!CL$16 -> 0 | L121: =給与台帳6月!CL$17 -> 0 | M121: =給与台帳6月!CL$18 -> 0 | N121: =給与台帳6月!CL$19 -> 0 | O121: =給与台帳6月!CL$20 -> 0 | P121: =給与台帳6月!CL$21 -> 0 | Q121: =給与台帳6月!CL$22 -> 0 | R121: =給与台帳6月!CL$23 -> 0 | S121: =給与台帳6月!CL$24 -> 0 | T121: =給与台帳6月!CL$25 -> 0 | U121: =給与台帳6月!CL$26 -> 0 | V121: =給与台帳6月!CL$27 -> 0 | W121: =給与台帳6月!CL$28 -> 0 | X121: =給与台帳6月!CL$29 -> 0 | Y121: =給与台帳6月!CL$30 -> 0 | Z121: =給与台帳6月!CL$31 -> 0 | AA121: =給与台帳6月!CL$32 -> 0 | AB121: =給与台帳6月!CL$33 -> 0 | AC121: =給与台帳6月!CL$34 -> 0 | AD121: =給与台帳6月!CL$35 -> 0 | AE121: =給与台帳6月!CL$36 -> 0 | AF121: =給与台帳6月!CL$37 -> 0 | AG121: =給与台帳6月!CL$38 -> 0 | AH121: =給与台帳6月!CL$39 -> 0 | AI121: =給与台帳6月!CL$40 -> 0 | AJ121: =給与台帳6月!CL$41 -> 0 | AK121: =給与台帳6月!CL$42 -> 0 | AL121: =給与台帳6月!CL$43 -> 0 | AM121: =給与台帳6月!CL$44 -> 0 | AN121: =給与台帳6月!CL$45 -> 0 | AO121: =給与台帳6月!CL$46 -> 0 | AP121: =給与台帳6月!CL$47 -> 0 | AQ121: =給与台帳6月!CL$48 -> 0 | AR121: =給与台帳6月!CL$49 -> 0 | AS121: =給与台帳6月!CL$50 -> 0 | AT121: =給与台帳6月!CL$51 -> 0 | AU121: =給与台帳6月!CL$52 -> 六月もお疲れ様でした
B122: 6 | C122: =給与台帳6月!CR$8 -> 16 | D122: =給与台帳6月!CR$9 ->  | E122: =給与台帳6月!CR$10 ->  | F122: =給与台帳6月!CR$11 ->  | G122: =給与台帳6月!CR$12 ->  | H122: =給与台帳6月!CR$13 -> 0 | I122: =給与台帳6月!CR$14 -> 0 | J122: =給与台帳6月!CR$15 -> 0 | K122: =給与台帳6月!CR$16 -> 0 | L122: =給与台帳6月!CR$17 -> 0 | M122: =給与台帳6月!CR$18 -> 0 | N122: =給与台帳6月!CR$19 -> 0 | O122: =給与台帳6月!CR$20 -> 0 | P122: =給与台帳6月!CR$21 -> 0 | Q122: =給与台帳6月!CR$22 -> 0 | R122: =給与台帳6月!CR$23 -> 0 | S122: =給与台帳6月!CR$24 -> 0 | T122: =給与台帳6月!CR$25 -> 0 | U122: =給与台帳6月!CR$26 -> 0 | V122: =給与台帳6月!CR$27 -> 0 | W122: =給与台帳6月!CR$28 -> 0 | X122: =給与台帳6月!CR$29 -> 0 | Y122: =給与台帳6月!CR$30 -> 0 | Z122: =給与台帳6月!CR$31 -> 0 | AA122: =給与台帳6月!CR$32 -> 0 | AB122: =給与台帳6月!CR$33 -> 0 | AC122: =給与台帳6月!CR$34 -> 0 | AD122: =給与台帳6月!CR$35 -> 0 | AE122: =給与台帳6月!CR$36 -> 0 | AF122: =給与台帳6月!CR$37 -> 0 | AG122: =給与台帳6月!CR$38 -> 0 | AH122: =給与台帳6月!CR$39 -> 0 | AI122: =給与台帳6月!CR$40 -> 0 | AJ122: =給与台帳6月!CR$41 -> 0 | AK122: =給与台帳6月!CR$42 -> 0 | AL122: =給与台帳6月!CR$43 -> 0 | AM122: =給与台帳6月!CR$44 -> 0 | AN122: =給与台帳6月!CR$45 -> 0 | AO122: =給与台帳6月!CR$46 -> 0 | AP122: =給与台帳6月!CR$47 -> 0 | AQ122: =給与台帳6月!CR$48 -> 0 | AR122: =給与台帳6月!CR$49 -> 0 | AS122: =給与台帳6月!CR$50 -> 0 | AT122: =給与台帳6月!CR$51 -> 0 | AU122: =給与台帳6月!CR$52 -> 六月もお疲れ様でした
B123: 6 | C123: =給与台帳6月!CX$8 -> 17 | D123: =給与台帳6月!CX$9 ->  | E123: =給与台帳6月!CX$10 ->  | F123: =給与台帳6月!CX$11 ->  | G123: =給与台帳6月!CX$12 ->  | H123: =給与台帳6月!CX$13 -> 0 | I123: =給与台帳6月!CX$14 -> 0 | J123: =給与台帳6月!CX$15 -> 0 | K123: =給与台帳6月!CX$16 -> 0 | L123: =給与台帳6月!CX$17 -> 0 | M123: =給与台帳6月!CX$18 -> 0 | N123: =給与台帳6月!CX$19 -> 0 | O123: =給与台帳6月!CX$20 -> 0 | P123: =給与台帳6月!CX$21 -> 0 | Q123: =給与台帳6月!CX$22 -> 0 | R123: =給与台帳6月!CX$23 -> 0 | S123: =給与台帳6月!CX$24 -> 0 | T123: =給与台帳6月!CX$25 -> 0 | U123: =給与台帳6月!CX$26 -> 0 | V123: =給与台帳6月!CX$27 -> 0 | W123: =給与台帳6月!CX$28 -> 0 | X123: =給与台帳6月!CX$29 -> 0 | Y123: =給与台帳6月!CX$30 -> 0 | Z123: =給与台帳6月!CX$31 -> 0 | AA123: =給与台帳6月!CX$32 -> 0 | AB123: =給与台帳6月!CX$33 -> 0 | AC123: =給与台帳6月!CX$34 -> 0 | AD123: =給与台帳6月!CX$35 -> 0 | AE123: =給与台帳6月!CX$36 -> 0 | AF123: =給与台帳6月!CX$37 -> 0 | AG123: =給与台帳6月!CX$38 -> 0 | AH123: =給与台帳6月!CX$39 -> 0 | AI123: =給与台帳6月!CX$40 -> 0 | AJ123: =給与台帳6月!CX$41 -> 0 | AK123: =給与台帳6月!CX$42 -> 0 | AL123: =給与台帳6月!CX$43 -> 0 | AM123: =給与台帳6月!CX$44 -> 0 | AN123: =給与台帳6月!CX$45 -> 0 | AO123: =給与台帳6月!CX$46 -> 0 | AP123: =給与台帳6月!CX$47 -> 0 | AQ123: =給与台帳6月!CX$48 -> 0 | AR123: =給与台帳6月!CX$49 -> 0 | AS123: =給与台帳6月!CX$50 -> 0 | AT123: =給与台帳6月!CX$51 -> 0 | AU123: =給与台帳6月!CX$52 -> 六月もお疲れ様でした
B124: 6 | C124: =給与台帳6月!DD$8 -> 18 | D124: =給与台帳6月!DD$9 ->  | E124: =給与台帳6月!DD$10 ->  | F124: =給与台帳6月!DD$11 ->  | G124: =給与台帳6月!DD$12 ->  | H124: =給与台帳6月!DD$13 -> 0 | I124: =給与台帳6月!DD$14 -> 0 | J124: =給与台帳6月!DD$15 -> 0 | K124: =給与台帳6月!DD$16 -> 0 | L124: =給与台帳6月!DD$17 -> 0 | M124: =給与台帳6月!DD$18 -> 0 | N124: =給与台帳6月!DD$19 -> 0 | O124: =給与台帳6月!DD$20 -> 0 | P124: =給与台帳6月!DD$21 -> 0 | Q124: =給与台帳6月!DD$22 -> 0 | R124: =給与台帳6月!DD$23 -> 0 | S124: =給与台帳6月!DD$24 -> 0 | T124: =給与台帳6月!DD$25 -> 0 | U124: =給与台帳6月!DD$26 -> 0 | V124: =給与台帳6月!DD$27 -> 0 | W124: =給与台帳6月!DD$28 -> 0 | X124: =給与台帳6月!DD$29 -> 0 | Y124: =給与台帳6月!DD$30 -> 0 | Z124: =給与台帳6月!DD$31 -> 0 | AA124: =給与台帳6月!DD$32 -> 0 | AB124: =給与台帳6月!DD$33 -> 0 | AC124: =給与台帳6月!DD$34 -> 0 | AD124: =給与台帳6月!DD$35 -> 0 | AE124: =給与台帳6月!DD$36 -> 0 | AF124: =給与台帳6月!DD$37 -> 0 | AG124: =給与台帳6月!DD$38 -> 0 | AH124: =給与台帳6月!DD$39 -> 0 | AI124: =給与台帳6月!DD$40 -> 0 | AJ124: =給与台帳6月!DD$41 -> 0 | AK124: =給与台帳6月!DD$42 -> 0 | AL124: =給与台帳6月!DD$43 -> 0 | AM124: =給与台帳6月!DD$44 -> 0 | AN124: =給与台帳6月!DD$45 -> 0 | AO124: =給与台帳6月!DD$46 -> 0 | AP124: =給与台帳6月!DD$47 -> 0 | AQ124: =給与台帳6月!DD$48 -> 0 | AR124: =給与台帳6月!DD$49 -> 0 | AS124: =給与台帳6月!DD$50 -> 0 | AT124: =給与台帳6月!DD$51 -> 0 | AU124: =給与台帳6月!DD$52 -> 六月もお疲れ様でした
B125: 6
B126: 6
B127: 7 | C127: =給与台帳7月!F$8 -> 1 | D127: =給与台帳7月!F$9 -> 今野 友夫 | E127: =給与台帳7月!F$10 -> 役員 | F127: =給与台帳7月!F$11 -> 甲欄 | G127: =給与台帳7月!F$12 -> 45 | H127: =給与台帳7月!F$13 -> 1 | I127: =給与台帳7月!F$14 -> 500000 | J127: =給与台帳7月!F$15 -> 500000 | K127: =給与台帳7月!F$16 -> 0 | L127: =給与台帳7月!F$17 -> 0 | M127: =給与台帳7月!F$18 -> 0 | N127: =給与台帳7月!F$19 -> 0 | O127: =給与台帳7月!F$20 -> 0 | P127: =給与台帳7月!F$21 -> 0 | Q127: =給与台帳7月!F$22 -> 0 | R127: =給与台帳7月!F$23 -> 0 | S127: =給与台帳7月!F$24 -> 500000 | T127: =給与台帳7月!F$25 -> 0 | U127: =給与台帳7月!F$26 -> 0 | V127: =給与台帳7月!F$27 -> 0 | W127: =給与台帳7月!F$28 -> 0 | X127: =給与台帳7月!F$29 -> 0 | Y127: =給与台帳7月!F$30 -> 0 | Z127: =給与台帳7月!F$31 -> 0 | AA127: =給与台帳7月!F$32 -> 10000 | AB127: =給与台帳7月!F$33 -> 0 | AC127: =給与台帳7月!F$34 -> 500000 | AD127: =給与台帳7月!F$35 -> 10000 | AE127: =給与台帳7月!F$36 -> 510000 | AF127: =給与台帳7月!F$37 -> 23800 | AG127: =給与台帳7月!F$38 -> 0 | AH127: =給与台帳7月!F$39 -> 41030 | AI127: =給与台帳7月!F$40 -> 0 | AJ127: =給与台帳7月!F$41 -> 64830 | AK127: =給与台帳7月!F$42 -> 435170 | AL127: =給与台帳7月!F$43 -> 16190 | AM127: =給与台帳7月!F$44 -> 25000 | AN127: =給与台帳7月!F$45 -> 0 | AO127: =給与台帳7月!F$46 -> 0 | AP127: =給与台帳7月!F$47 -> 0 | AQ127: =給与台帳7月!F$48 -> 41190 | AR127: =給与台帳7月!F$49 -> 403980 | AS127: =給与台帳7月!F$50 -> 0 | AT127: =給与台帳7月!F$51 -> 403980 | AU127: =給与台帳7月!F$52 -> 七月もお疲れ様でした
B128: 7 | C128: =給与台帳7月!L$8 -> 2 | D128: =給与台帳7月!L$9 -> 今野 朝子 | E128: =給与台帳7月!L$10 -> 役員 | F128: =給与台帳7月!L$11 -> 甲欄 | G128: =給与台帳7月!L$12 -> 40 | H128: =給与台帳7月!L$13 -> 0 | I128: =給与台帳7月!L$14 -> 300000 | J128: =給与台帳7月!L$15 -> 300000 | K128: =給与台帳7月!L$16 -> 0 | L128: =給与台帳7月!L$17 -> 0 | M128: =給与台帳7月!L$18 -> 0 | N128: =給与台帳7月!L$19 -> 0 | O128: =給与台帳7月!L$20 -> 0 | P128: =給与台帳7月!L$21 -> 0 | Q128: =給与台帳7月!L$22 -> 0 | R128: =給与台帳7月!L$23 -> 0 | S128: =給与台帳7月!L$24 -> 300000 | T128: =給与台帳7月!L$25 -> 0 | U128: =給与台帳7月!L$26 -> 0 | V128: =給与台帳7月!L$27 -> 0 | W128: =給与台帳7月!L$28 -> 0 | X128: =給与台帳7月!L$29 -> 0 | Y128: =給与台帳7月!L$30 -> 0 | Z128: =給与台帳7月!L$31 -> 0 | AA128: =給与台帳7月!L$32 -> 10000 | AB128: =給与台帳7月!L$33 -> 0 | AC128: =給与台帳7月!L$34 -> 300000 | AD128: =給与台帳7月!L$35 -> 10000 | AE128: =給与台帳7月!L$36 -> 310000 | AF128: =給与台帳7月!L$37 -> 14280 | AG128: =給与台帳7月!L$38 -> 0 | AH128: =給与台帳7月!L$39 -> 24618 | AI128: =給与台帳7月!L$40 -> 0 | AJ128: =給与台帳7月!L$41 -> 38898 | AK128: =給与台帳7月!L$42 -> 261102 | AL128: =給与台帳7月!L$43 -> 6950 | AM128: =給与台帳7月!L$44 -> 13000 | AN128: =給与台帳7月!L$45 -> 0 | AO128: =給与台帳7月!L$46 -> 0 | AP128: =給与台帳7月!L$47 -> 0 | AQ128: =給与台帳7月!L$48 -> 19950 | AR128: =給与台帳7月!L$49 -> 251152 | AS128: =給与台帳7月!L$50 -> 0 | AT128: =給与台帳7月!L$51 -> 251152 | AU128: =給与台帳7月!L$52 -> 七月もお疲れ様でした
B129: 7 | C129: =給与台帳7月!R$8 -> 3 | D129: =給与台帳7月!R$9 -> 今野 祥子 | E129: =給与台帳7月!R$10 -> 役員 | F129: =給与台帳7月!R$11 -> 甲欄 | G129: =給与台帳7月!R$12 -> 71 | H129: =給与台帳7月!R$13 -> 0 | I129: =給与台帳7月!R$14 -> 0 | J129: =給与台帳7月!R$15 -> 0 | K129: =給与台帳7月!R$16 -> 0 | L129: =給与台帳7月!R$17 -> 0 | M129: =給与台帳7月!R$18 -> 0 | N129: =給与台帳7月!R$19 -> 0 | O129: =給与台帳7月!R$20 -> 0 | P129: =給与台帳7月!R$21 -> 0 | Q129: =給与台帳7月!R$22 -> 0 | R129: =給与台帳7月!R$23 -> 0 | S129: =給与台帳7月!R$24 -> 80000 | T129: =給与台帳7月!R$25 -> 0 | U129: =給与台帳7月!R$26 -> 0 | V129: =給与台帳7月!R$27 -> 0 | W129: =給与台帳7月!R$28 -> 0 | X129: =給与台帳7月!R$29 -> 0 | Y129: =給与台帳7月!R$30 -> 0 | Z129: =給与台帳7月!R$31 -> 0 | AA129: =給与台帳7月!R$32 -> 0 | AB129: =給与台帳7月!R$33 -> 0 | AC129: =給与台帳7月!R$34 -> 80000 | AD129: =給与台帳7月!R$35 -> 0 | AE129: =給与台帳7月!R$36 -> 80000 | AF129: =給与台帳7月!R$37 -> 0 | AG129: =給与台帳7月!R$38 -> 0 | AH129: =給与台帳7月!R$39 -> 0 | AI129: =給与台帳7月!R$40 -> 0 | AJ129: =給与台帳7月!R$41 -> 0 | AK129: =給与台帳7月!R$42 -> 80000 | AL129: =給与台帳7月!R$43 -> 0 | AM129: =給与台帳7月!R$44 -> 0 | AN129: =給与台帳7月!R$45 -> 0 | AO129: =給与台帳7月!R$46 -> 0 | AP129: =給与台帳7月!R$47 -> 0 | AQ129: =給与台帳7月!R$48 -> 0 | AR129: =給与台帳7月!R$49 -> 80000 | AS129: =給与台帳7月!R$50 -> 0 | AT129: =給与台帳7月!R$51 -> 80000 | AU129: =給与台帳7月!R$52 -> 七月もお疲れ様でした
B130: 7 | C130: =給与台帳7月!X$8 -> 4 | D130: =給与台帳7月!X$9 -> 川西 めぐみ | E130: =給与台帳7月!X$10 -> 従業員（雇保加入） | F130: =給与台帳7月!X$11 -> 甲欄 | G130: =給与台帳7月!X$12 -> 49 | H130: =給与台帳7月!X$13 -> 1 | I130: =給与台帳7月!X$14 -> 220000 | J130: =給与台帳7月!X$15 -> 220000 | K130: =給与台帳7月!X$16 -> 21日 | L130: =給与台帳7月!X$17 -> 156時間 | M130: =給与台帳7月!X$18 -> 3時間 | N130: =給与台帳7月!X$19 -> 6時間 | O130: =給与台帳7月!X$20 -> 0 | P130: =給与台帳7月!X$21 -> 0 | Q130: =給与台帳7月!X$22 -> 0 | R130: =給与台帳7月!X$23 -> 0 | S130: =給与台帳7月!X$24 -> 0 | T130: =給与台帳7月!X$25 -> 225000 | U130: =給与台帳7月!X$26 -> 16758 | V130: =給与台帳7月!X$27 -> 0 | W130: =給与台帳7月!X$28 -> 0 | X130: =給与台帳7月!X$29 -> 0 | Y130: =給与台帳7月!X$30 -> 0 | Z130: =給与台帳7月!X$31 -> 0 | AA130: =給与台帳7月!X$32 -> 18370 | AB130: =給与台帳7月!X$33 -> 0 | AC130: =給与台帳7月!X$34 -> 241758 | AD130: =給与台帳7月!X$35 -> 18370 | AE130: =給与台帳7月!X$36 -> 260128 | AF130: =給与台帳7月!X$37 -> 10472 | AG130: =給与台帳7月!X$38 -> 1661 | AH130: =給与台帳7月!X$39 -> 18053 | AI130: =給与台帳7月!X$40 -> 1300 | AJ130: =給与台帳7月!X$41 -> 31486 | AK130: =給与台帳7月!X$42 -> 210272 | AL130: =給与台帳7月!X$43 -> 3520 | AM130: =給与台帳7月!X$44 -> 9000 | AN130: =給与台帳7月!X$45 -> 0 | AO130: =給与台帳7月!X$46 -> 0 | AP130: =給与台帳7月!X$47 -> 0 | AQ130: =給与台帳7月!X$48 -> 12520 | AR130: =給与台帳7月!X$49 -> 216122 | AS130: =給与台帳7月!X$50 -> 0 | AT130: =給与台帳7月!X$51 -> 216122 | AU130: =給与台帳7月!X$52 -> 七月もお疲れ様でした
B131: 7 | C131: =給与台帳7月!AD$8 -> 5 | D131: =給与台帳7月!AD$9 -> 鳥居 雅之 | E131: =給与台帳7月!AD$10 -> 従業員（雇保非加入） | F131: =給与台帳7月!AD$11 -> 乙欄 | G131: =給与台帳7月!AD$12 -> 35 | H131: =給与台帳7月!AD$13 -> 0 | I131: =給与台帳7月!AD$14 -> 0 | J131: =給与台帳7月!AD$15 -> 0 | K131: =給与台帳7月!AD$16 -> 9日 | L131: =給与台帳7月!AD$17 -> 36時間 | M131: =給与台帳7月!AD$18 -> 0 | N131: =給与台帳7月!AD$19 -> 0 | O131: =給与台帳7月!AD$20 -> 0 | P131: =給与台帳7月!AD$21 -> 0 | Q131: =給与台帳7月!AD$22 -> 0 | R131: =給与台帳7月!AD$23 -> 0 | S131: =給与台帳7月!AD$24 -> 0 | T131: =給与台帳7月!AD$25 -> 45000 | U131: =給与台帳7月!AD$26 -> 0 | V131: =給与台帳7月!AD$27 -> 0 | W131: =給与台帳7月!AD$28 -> 0 | X131: =給与台帳7月!AD$29 -> 0 | Y131: =給与台帳7月!AD$30 -> 0 | Z131: =給与台帳7月!AD$31 -> 0 | AA131: =給与台帳7月!AD$32 -> 0 | AB131: =給与台帳7月!AD$33 -> 0 | AC131: =給与台帳7月!AD$34 -> 45000 | AD131: =給与台帳7月!AD$35 -> 0 | AE131: =給与台帳7月!AD$36 -> 45000 | AF131: =給与台帳7月!AD$37 -> 0 | AG131: =給与台帳7月!AD$38 -> 0 | AH131: =給与台帳7月!AD$39 -> 0 | AI131: =給与台帳7月!AD$40 -> 0 | AJ131: =給与台帳7月!AD$41 -> 0 | AK131: =給与台帳7月!AD$42 -> 45000 | AL131: =給与台帳7月!AD$43 -> 1378 | AM131: =給与台帳7月!AD$44 -> 0 | AN131: =給与台帳7月!AD$45 -> 0 | AO131: =給与台帳7月!AD$46 -> 0 | AP131: =給与台帳7月!AD$47 -> 0 | AQ131: =給与台帳7月!AD$48 -> 1378 | AR131: =給与台帳7月!AD$49 -> 43622 | AS131: =給与台帳7月!AD$50 -> 0 | AT131: =給与台帳7月!AD$51 -> 43622 | AU131: =給与台帳7月!AD$52 -> 七月もお疲れ様でした
B132: 7 | C132: =給与台帳7月!AJ$8 -> 6 | D132: =給与台帳7月!AJ$9 -> 笹部 菜穂美 | E132: =給与台帳7月!AJ$10 -> 従業員（雇保加入） | F132: =給与台帳7月!AJ$11 -> 甲欄 | G132: =給与台帳7月!AJ$12 -> 31 | H132: =給与台帳7月!AJ$13 -> 0 | I132: =給与台帳7月!AJ$14 -> 0 | J132: =給与台帳7月!AJ$15 -> 0 | K132: =給与台帳7月!AJ$16 -> 0 | L132: =給与台帳7月!AJ$17 -> 0 | M132: =給与台帳7月!AJ$18 -> 0 | N132: =給与台帳7月!AJ$19 -> 0 | O132: =給与台帳7月!AJ$20 -> 0 | P132: =給与台帳7月!AJ$21 -> 0 | Q132: =給与台帳7月!AJ$22 -> 0 | R132: =給与台帳7月!AJ$23 -> 0 | S132: =給与台帳7月!AJ$24 -> 0 | T132: =給与台帳7月!AJ$25 -> 0 | U132: =給与台帳7月!AJ$26 -> 0 | V132: =給与台帳7月!AJ$27 -> 0 | W132: =給与台帳7月!AJ$28 -> 0 | X132: =給与台帳7月!AJ$29 -> 0 | Y132: =給与台帳7月!AJ$30 -> 0 | Z132: =給与台帳7月!AJ$31 -> 0 | AA132: =給与台帳7月!AJ$32 -> 0 | AB132: =給与台帳7月!AJ$33 -> 0 | AC132: =給与台帳7月!AJ$34 -> 0 | AD132: =給与台帳7月!AJ$35 -> 0 | AE132: =給与台帳7月!AJ$36 -> 0 | AF132: =給与台帳7月!AJ$37 -> 0 | AG132: =給与台帳7月!AJ$38 -> 0 | AH132: =給与台帳7月!AJ$39 -> 0 | AI132: =給与台帳7月!AJ$40 -> 0 | AJ132: =給与台帳7月!AJ$41 -> 0 | AK132: =給与台帳7月!AJ$42 -> 0 | AL132: =給与台帳7月!AJ$43 -> 0 | AM132: =給与台帳7月!AJ$44 -> 0 | AN132: =給与台帳7月!AJ$45 -> 0 | AO132: =給与台帳7月!AJ$46 -> 0 | AP132: =給与台帳7月!AJ$47 -> 0 | AQ132: =給与台帳7月!AJ$48 -> 0 | AR132: =給与台帳7月!AJ$49 -> 0 | AS132: =給与台帳7月!AJ$50 -> 0 | AT132: =給与台帳7月!AJ$51 -> 0 | AU132: =給与台帳7月!AJ$52 -> 七月もお疲れ様でした
B133: 7 | C133: =給与台帳7月!AP$8 -> 7 | D133: =給与台帳7月!AP$9 -> 絹延橋 みつ子 | E133: =給与台帳7月!AP$10 -> 従業員（雇保加入） | F133: =給与台帳7月!AP$11 -> 甲欄 | G133: =給与台帳7月!AP$12 -> 46 | H133: =給与台帳7月!AP$13 -> 0 | I133: =給与台帳7月!AP$14 -> 300000 | J133: =給与台帳7月!AP$15 -> 0 | K133: =給与台帳7月!AP$16 -> 0 | L133: =給与台帳7月!AP$17 -> 0 | M133: =給与台帳7月!AP$18 -> 0 | N133: =給与台帳7月!AP$19 -> 0 | O133: =給与台帳7月!AP$20 -> 0 | P133: =給与台帳7月!AP$21 -> 0 | Q133: =給与台帳7月!AP$22 -> 0 | R133: =給与台帳7月!AP$23 -> 0 | S133: =給与台帳7月!AP$24 -> 0 | T133: =給与台帳7月!AP$25 -> 0 | U133: =給与台帳7月!AP$26 -> 0 | V133: =給与台帳7月!AP$27 -> 0 | W133: =給与台帳7月!AP$28 -> 0 | X133: =給与台帳7月!AP$29 -> 0 | Y133: =給与台帳7月!AP$30 -> 0 | Z133: =給与台帳7月!AP$31 -> 0 | AA133: =給与台帳7月!AP$32 -> 0 | AB133: =給与台帳7月!AP$33 -> 0 | AC133: =給与台帳7月!AP$34 -> 0 | AD133: =給与台帳7月!AP$35 -> 0 | AE133: =給与台帳7月!AP$36 -> 0 | AF133: =給与台帳7月!AP$37 -> 0 | AG133: =給与台帳7月!AP$38 -> 0 | AH133: =給与台帳7月!AP$39 -> 0 | AI133: =給与台帳7月!AP$40 -> 0 | AJ133: =給与台帳7月!AP$41 -> 0 | AK133: =給与台帳7月!AP$42 -> 0 | AL133: =給与台帳7月!AP$43 -> 0 | AM133: =給与台帳7月!AP$44 -> 0 | AN133: =給与台帳7月!AP$45 -> 0 | AO133: =給与台帳7月!AP$46 -> 0 | AP133: =給与台帳7月!AP$47 -> 0 | AQ133: =給与台帳7月!AP$48 -> 0 | AR133: =給与台帳7月!AP$49 -> 0 | AS133: =給与台帳7月!AP$50 -> 0 | AT133: =給与台帳7月!AP$51 -> 0 | AU133: =給与台帳7月!AP$52 -> 七月もお疲れ様でした
B134: 7 | C134: =給与台帳7月!AV$8 -> 8 | D134: =給与台帳7月!AV$9 -> 山下 崇 | E134: =給与台帳7月!AV$10 -> 従業員（雇保加入） | F134: =給与台帳7月!AV$11 -> 甲欄 | G134: =給与台帳7月!AV$12 -> 34 | H134: =給与台帳7月!AV$13 -> 0 | I134: =給与台帳7月!AV$14 -> 0 | J134: =給与台帳7月!AV$15 -> 0 | K134: =給与台帳7月!AV$16 -> 0 | L134: =給与台帳7月!AV$17 -> 0 | M134: =給与台帳7月!AV$18 -> 0 | N134: =給与台帳7月!AV$19 -> 0 | O134: =給与台帳7月!AV$20 -> 0 | P134: =給与台帳7月!AV$21 -> 0 | Q134: =給与台帳7月!AV$22 -> 0 | R134: =給与台帳7月!AV$23 -> 0 | S134: =給与台帳7月!AV$24 -> 0 | T134: =給与台帳7月!AV$25 -> 0 | U134: =給与台帳7月!AV$26 -> 0 | V134: =給与台帳7月!AV$27 -> 0 | W134: =給与台帳7月!AV$28 -> 0 | X134: =給与台帳7月!AV$29 -> 0 | Y134: =給与台帳7月!AV$30 -> 0 | Z134: =給与台帳7月!AV$31 -> 0 | AA134: =給与台帳7月!AV$32 -> 0 | AB134: =給与台帳7月!AV$33 -> 0 | AC134: =給与台帳7月!AV$34 -> 0 | AD134: =給与台帳7月!AV$35 -> 0 | AE134: =給与台帳7月!AV$36 -> 0 | AF134: =給与台帳7月!AV$37 -> 0 | AG134: =給与台帳7月!AV$38 -> 0 | AH134: =給与台帳7月!AV$39 -> 0 | AI134: =給与台帳7月!AV$40 -> 0 | AJ134: =給与台帳7月!AV$41 -> 0 | AK134: =給与台帳7月!AV$42 -> 0 | AL134: =給与台帳7月!AV$43 -> 0 | AM134: =給与台帳7月!AV$44 -> 0 | AN134: =給与台帳7月!AV$45 -> 0 | AO134: =給与台帳7月!AV$46 -> 0 | AP134: =給与台帳7月!AV$47 -> 0 | AQ134: =給与台帳7月!AV$48 -> 0 | AR134: =給与台帳7月!AV$49 -> 0 | AS134: =給与台帳7月!AV$50 -> 0 | AT134: =給与台帳7月!AV$51 -> 0 | AU134: =給与台帳7月!AV$52 -> 七月もお疲れ様でした
B135: 7 | C135: =給与台帳7月!BB$8 -> 9 | D135: =給与台帳7月!BB$9 ->  | E135: =給与台帳7月!BB$10 ->  | F135: =給与台帳7月!BB$11 ->  | G135: =給与台帳7月!BB$12 ->  | H135: =給与台帳7月!BB$13 -> 0 | I135: =給与台帳7月!BB$14 -> 0 | J135: =給与台帳7月!BB$15 -> 0 | K135: =給与台帳7月!BB$16 -> 0 | L135: =給与台帳7月!BB$17 -> 0 | M135: =給与台帳7月!BB$18 -> 0 | N135: =給与台帳7月!BB$19 -> 0 | O135: =給与台帳7月!BB$20 -> 0 | P135: =給与台帳7月!BB$21 -> 0 | Q135: =給与台帳7月!BB$22 -> 0 | R135: =給与台帳7月!BB$23 -> 0 | S135: =給与台帳7月!BB$24 -> 0 | T135: =給与台帳7月!BB$25 -> 0 | U135: =給与台帳7月!BB$26 -> 0 | V135: =給与台帳7月!BB$27 -> 0 | W135: =給与台帳7月!BB$28 -> 0 | X135: =給与台帳7月!BB$29 -> 0 | Y135: =給与台帳7月!BB$30 -> 0 | Z135: =給与台帳7月!BB$31 -> 0 | AA135: =給与台帳7月!BB$32 -> 0 | AB135: =給与台帳7月!BB$33 -> 0 | AC135: =給与台帳7月!BB$34 -> 0 | AD135: =給与台帳7月!BB$35 -> 0 | AE135: =給与台帳7月!BB$36 -> 0 | AF135: =給与台帳7月!BB$37 -> 0 | AG135: =給与台帳7月!BB$38 -> 0 | AH135: =給与台帳7月!BB$39 -> 0 | AI135: =給与台帳7月!BB$40 -> 0 | AJ135: =給与台帳7月!BB$41 -> 0 | AK135: =給与台帳7月!BB$42 -> 0 | AL135: =給与台帳7月!BB$43 -> 0 | AM135: =給与台帳7月!BB$44 -> 0 | AN135: =給与台帳7月!BB$45 -> 0 | AO135: =給与台帳7月!BB$46 -> 0 | AP135: =給与台帳7月!BB$47 -> 0 | AQ135: =給与台帳7月!BB$48 -> 0 | AR135: =給与台帳7月!BB$49 -> 0 | AS135: =給与台帳7月!BB$50 -> 0 | AT135: =給与台帳7月!BB$51 -> 0 | AU135: =給与台帳7月!BB$52 -> 七月もお疲れ様でした
B136: 7 | C136: =給与台帳7月!BH$8 -> 10 | D136: =給与台帳7月!BH$9 ->  | E136: =給与台帳7月!BH$10 ->  | F136: =給与台帳7月!BH$11 ->  | G136: =給与台帳7月!BH$12 ->  | H136: =給与台帳7月!BH$13 -> 0 | I136: =給与台帳7月!BH$14 -> 0 | J136: =給与台帳7月!BH$15 -> 0 | K136: =給与台帳7月!BH$16 -> 0 | L136: =給与台帳7月!BH$17 -> 0 | M136: =給与台帳7月!BH$18 -> 0 | N136: =給与台帳7月!BH$19 -> 0 | O136: =給与台帳7月!BH$20 -> 0 | P136: =給与台帳7月!BH$21 -> 0 | Q136: =給与台帳7月!BH$22 -> 0 | R136: =給与台帳7月!BH$23 -> 0 | S136: =給与台帳7月!BH$24 -> 0 | T136: =給与台帳7月!BH$25 -> 0 | U136: =給与台帳7月!BH$26 -> 0 | V136: =給与台帳7月!BH$27 -> 0 | W136: =給与台帳7月!BH$28 -> 0 | X136: =給与台帳7月!BH$29 -> 0 | Y136: =給与台帳7月!BH$30 -> 0 | Z136: =給与台帳7月!BH$31 -> 0 | AA136: =給与台帳7月!BH$32 -> 0 | AB136: =給与台帳7月!BH$33 -> 0 | AC136: =給与台帳7月!BH$34 -> 0 | AD136: =給与台帳7月!BH$35 -> 0 | AE136: =給与台帳7月!BH$36 -> 0 | AF136: =給与台帳7月!BH$37 -> 0 | AG136: =給与台帳7月!BH$38 -> 0 | AH136: =給与台帳7月!BH$39 -> 0 | AI136: =給与台帳7月!BH$40 -> 0 | AJ136: =給与台帳7月!BH$41 -> 0 | AK136: =給与台帳7月!BH$42 -> 0 | AL136: =給与台帳7月!BH$43 -> 0 | AM136: =給与台帳7月!BH$44 -> 0 | AN136: =給与台帳7月!BH$45 -> 0 | AO136: =給与台帳7月!BH$46 -> 0 | AP136: =給与台帳7月!BH$47 -> 0 | AQ136: =給与台帳7月!BH$48 -> 0 | AR136: =給与台帳7月!BH$49 -> 0 | AS136: =給与台帳7月!BH$50 -> 0 | AT136: =給与台帳7月!BH$51 -> 0 | AU136: =給与台帳7月!BH$52 -> 七月もお疲れ様でした
B137: 7 | C137: =給与台帳7月!BN$8 -> 11 | D137: =給与台帳7月!BN$9 ->  | E137: =給与台帳7月!BN$10 ->  | F137: =給与台帳7月!BN$11 ->  | G137: =給与台帳7月!BN$12 ->  | H137: =給与台帳7月!BN$13 -> 0 | I137: =給与台帳7月!BN$14 -> 0 | J137: =給与台帳7月!BN$15 -> 0 | K137: =給与台帳7月!BN$16 -> 0 | L137: =給与台帳7月!BN$17 -> 0 | M137: =給与台帳7月!BN$18 -> 0 | N137: =給与台帳7月!BN$19 -> 0 | O137: =給与台帳7月!BN$20 -> 0 | P137: =給与台帳7月!BN$21 -> 0 | Q137: =給与台帳7月!BN$22 -> 0 | R137: =給与台帳7月!BN$23 -> 0 | S137: =給与台帳7月!BN$24 -> 0 | T137: =給与台帳7月!BN$25 -> 0 | U137: =給与台帳7月!BN$26 -> 0 | V137: =給与台帳7月!BN$27 -> 0 | W137: =給与台帳7月!BN$28 -> 0 | X137: =給与台帳7月!BN$29 -> 0 | Y137: =給与台帳7月!BN$30 -> 0 | Z137: =給与台帳7月!BN$31 -> 0 | AA137: =給与台帳7月!BN$32 -> 0 | AB137: =給与台帳7月!BN$33 -> 0 | AC137: =給与台帳7月!BN$34 -> 0 | AD137: =給与台帳7月!BN$35 -> 0 | AE137: =給与台帳7月!BN$36 -> 0 | AF137: =給与台帳7月!BN$37 -> 0 | AG137: =給与台帳7月!BN$38 -> 0 | AH137: =給与台帳7月!BN$39 -> 0 | AI137: =給与台帳7月!BN$40 -> 0 | AJ137: =給与台帳7月!BN$41 -> 0 | AK137: =給与台帳7月!BN$42 -> 0 | AL137: =給与台帳7月!BN$43 -> 0 | AM137: =給与台帳7月!BN$44 -> 0 | AN137: =給与台帳7月!BN$45 -> 0 | AO137: =給与台帳7月!BN$46 -> 0 | AP137: =給与台帳7月!BN$47 -> 0 | AQ137: =給与台帳7月!BN$48 -> 0 | AR137: =給与台帳7月!BN$49 -> 0 | AS137: =給与台帳7月!BN$50 -> 0 | AT137: =給与台帳7月!BN$51 -> 0 | AU137: =給与台帳7月!BN$52 -> 七月もお疲れ様でした
B138: 7 | C138: =給与台帳7月!BT$8 -> 12 | D138: =給与台帳7月!BT$9 ->  | E138: =給与台帳7月!BT$10 ->  | F138: =給与台帳7月!BT$11 ->  | G138: =給与台帳7月!BT$12 ->  | H138: =給与台帳7月!BT$13 -> 0 | I138: =給与台帳7月!BT$14 -> 0 | J138: =給与台帳7月!BT$15 -> 0 | K138: =給与台帳7月!BT$16 -> 0 | L138: =給与台帳7月!BT$17 -> 0 | M138: =給与台帳7月!BT$18 -> 0 | N138: =給与台帳7月!BT$19 -> 0 | O138: =給与台帳7月!BT$20 -> 0 | P138: =給与台帳7月!BT$21 -> 0 | Q138: =給与台帳7月!BT$22 -> 0 | R138: =給与台帳7月!BT$23 -> 0 | S138: =給与台帳7月!BT$24 -> 0 | T138: =給与台帳7月!BT$25 -> 0 | U138: =給与台帳7月!BT$26 -> 0 | V138: =給与台帳7月!BT$27 -> 0 | W138: =給与台帳7月!BT$28 -> 0 | X138: =給与台帳7月!BT$29 -> 0 | Y138: =給与台帳7月!BT$30 -> 0 | Z138: =給与台帳7月!BT$31 -> 0 | AA138: =給与台帳7月!BT$32 -> 0 | AB138: =給与台帳7月!BT$33 -> 0 | AC138: =給与台帳7月!BT$34 -> 0 | AD138: =給与台帳7月!BT$35 -> 0 | AE138: =給与台帳7月!BT$36 -> 0 | AF138: =給与台帳7月!BT$37 -> 0 | AG138: =給与台帳7月!BT$38 -> 0 | AH138: =給与台帳7月!BT$39 -> 0 | AI138: =給与台帳7月!BT$40 -> 0 | AJ138: =給与台帳7月!BT$41 -> 0 | AK138: =給与台帳7月!BT$42 -> 0 | AL138: =給与台帳7月!BT$43 -> 0 | AM138: =給与台帳7月!BT$44 -> 0 | AN138: =給与台帳7月!BT$45 -> 0 | AO138: =給与台帳7月!BT$46 -> 0 | AP138: =給与台帳7月!BT$47 -> 0 | AQ138: =給与台帳7月!BT$48 -> 0 | AR138: =給与台帳7月!BT$49 -> 0 | AS138: =給与台帳7月!BT$50 -> 0 | AT138: =給与台帳7月!BT$51 -> 0 | AU138: =給与台帳7月!BT$52 -> 七月もお疲れ様でした
B139: 7 | C139: =給与台帳7月!BZ$8 -> 13 | D139: =給与台帳7月!BZ$9 ->  | E139: =給与台帳7月!BZ$10 ->  | F139: =給与台帳7月!BZ$11 ->  | G139: =給与台帳7月!BZ$12 ->  | H139: =給与台帳7月!BZ$13 -> 0 | I139: =給与台帳7月!BZ$14 -> 0 | J139: =給与台帳7月!BZ$15 -> 0 | K139: =給与台帳7月!BZ$16 -> 0 | L139: =給与台帳7月!BZ$17 -> 0 | M139: =給与台帳7月!BZ$18 -> 0 | N139: =給与台帳7月!BZ$19 -> 0 | O139: =給与台帳7月!BZ$20 -> 0 | P139: =給与台帳7月!BZ$21 -> 0 | Q139: =給与台帳7月!BZ$22 -> 0 | R139: =給与台帳7月!BZ$23 -> 0 | S139: =給与台帳7月!BZ$24 -> 0 | T139: =給与台帳7月!BZ$25 -> 0 | U139: =給与台帳7月!BZ$26 -> 0 | V139: =給与台帳7月!BZ$27 -> 0 | W139: =給与台帳7月!BZ$28 -> 0 | X139: =給与台帳7月!BZ$29 -> 0 | Y139: =給与台帳7月!BZ$30 -> 0 | Z139: =給与台帳7月!BZ$31 -> 0 | AA139: =給与台帳7月!BZ$32 -> 0 | AB139: =給与台帳7月!BZ$33 -> 0 | AC139: =給与台帳7月!BZ$34 -> 0 | AD139: =給与台帳7月!BZ$35 -> 0 | AE139: =給与台帳7月!BZ$36 -> 0 | AF139: =給与台帳7月!BZ$37 -> 0 | AG139: =給与台帳7月!BZ$38 -> 0 | AH139: =給与台帳7月!BZ$39 -> 0 | AI139: =給与台帳7月!BZ$40 -> 0 | AJ139: =給与台帳7月!BZ$41 -> 0 | AK139: =給与台帳7月!BZ$42 -> 0 | AL139: =給与台帳7月!BZ$43 -> 0 | AM139: =給与台帳7月!BZ$44 -> 0 | AN139: =給与台帳7月!BZ$45 -> 0 | AO139: =給与台帳7月!BZ$46 -> 0 | AP139: =給与台帳7月!BZ$47 -> 0 | AQ139: =給与台帳7月!BZ$48 -> 0 | AR139: =給与台帳7月!BZ$49 -> 0 | AS139: =給与台帳7月!BZ$50 -> 0 | AT139: =給与台帳7月!BZ$51 -> 0 | AU139: =給与台帳7月!BZ$52 -> 七月もお疲れ様でした
B140: 7 | C140: =給与台帳7月!CF$8 -> 14 | D140: =給与台帳7月!CF$9 ->  | E140: =給与台帳7月!CF$10 ->  | F140: =給与台帳7月!CF$11 ->  | G140: =給与台帳7月!CF$12 ->  | H140: =給与台帳7月!CF$13 -> 0 | I140: =給与台帳7月!CF$14 -> 0 | J140: =給与台帳7月!CF$15 -> 0 | K140: =給与台帳7月!CF$16 -> 0 | L140: =給与台帳7月!CF$17 -> 0 | M140: =給与台帳7月!CF$18 -> 0 | N140: =給与台帳7月!CF$19 -> 0 | O140: =給与台帳7月!CF$20 -> 0 | P140: =給与台帳7月!CF$21 -> 0 | Q140: =給与台帳7月!CF$22 -> 0 | R140: =給与台帳7月!CF$23 -> 0 | S140: =給与台帳7月!CF$24 -> 0 | T140: =給与台帳7月!CF$25 -> 0 | U140: =給与台帳7月!CF$26 -> 0 | V140: =給与台帳7月!CF$27 -> 0 | W140: =給与台帳7月!CF$28 -> 0 | X140: =給与台帳7月!CF$29 -> 0 | Y140: =給与台帳7月!CF$30 -> 0 | Z140: =給与台帳7月!CF$31 -> 0 | AA140: =給与台帳7月!CF$32 -> 0 | AB140: =給与台帳7月!CF$33 -> 0 | AC140: =給与台帳7月!CF$34 -> 0 | AD140: =給与台帳7月!CF$35 -> 0 | AE140: =給与台帳7月!CF$36 -> 0 | AF140: =給与台帳7月!CF$37 -> 0 | AG140: =給与台帳7月!CF$38 -> 0 | AH140: =給与台帳7月!CF$39 -> 0 | AI140: =給与台帳7月!CF$40 -> 0 | AJ140: =給与台帳7月!CF$41 -> 0 | AK140: =給与台帳7月!CF$42 -> 0 | AL140: =給与台帳7月!CF$43 -> 0 | AM140: =給与台帳7月!CF$44 -> 0 | AN140: =給与台帳7月!CF$45 -> 0 | AO140: =給与台帳7月!CF$46 -> 0 | AP140: =給与台帳7月!CF$47 -> 0 | AQ140: =給与台帳7月!CF$48 -> 0 | AR140: =給与台帳7月!CF$49 -> 0 | AS140: =給与台帳7月!CF$50 -> 0 | AT140: =給与台帳7月!CF$51 -> 0 | AU140: =給与台帳7月!CF$52 -> 七月もお疲れ様でした
B141: 7 | C141: =給与台帳7月!CL$8 -> 15 | D141: =給与台帳7月!CL$9 ->  | E141: =給与台帳7月!CL$10 ->  | F141: =給与台帳7月!CL$11 ->  | G141: =給与台帳7月!CL$12 ->  | H141: =給与台帳7月!CL$13 -> 0 | I141: =給与台帳7月!CL$14 -> 0 | J141: =給与台帳7月!CL$15 -> 0 | K141: =給与台帳7月!CL$16 -> 0 | L141: =給与台帳7月!CL$17 -> 0 | M141: =給与台帳7月!CL$18 -> 0 | N141: =給与台帳7月!CL$19 -> 0 | O141: =給与台帳7月!CL$20 -> 0 | P141: =給与台帳7月!CL$21 -> 0 | Q141: =給与台帳7月!CL$22 -> 0 | R141: =給与台帳7月!CL$23 -> 0 | S141: =給与台帳7月!CL$24 -> 0 | T141: =給与台帳7月!CL$25 -> 0 | U141: =給与台帳7月!CL$26 -> 0 | V141: =給与台帳7月!CL$27 -> 0 | W141: =給与台帳7月!CL$28 -> 0 | X141: =給与台帳7月!CL$29 -> 0 | Y141: =給与台帳7月!CL$30 -> 0 | Z141: =給与台帳7月!CL$31 -> 0 | AA141: =給与台帳7月!CL$32 -> 0 | AB141: =給与台帳7月!CL$33 -> 0 | AC141: =給与台帳7月!CL$34 -> 0 | AD141: =給与台帳7月!CL$35 -> 0 | AE141: =給与台帳7月!CL$36 -> 0 | AF141: =給与台帳7月!CL$37 -> 0 | AG141: =給与台帳7月!CL$38 -> 0 | AH141: =給与台帳7月!CL$39 -> 0 | AI141: =給与台帳7月!CL$40 -> 0 | AJ141: =給与台帳7月!CL$41 -> 0 | AK141: =給与台帳7月!CL$42 -> 0 | AL141: =給与台帳7月!CL$43 -> 0 | AM141: =給与台帳7月!CL$44 -> 0 | AN141: =給与台帳7月!CL$45 -> 0 | AO141: =給与台帳7月!CL$46 -> 0 | AP141: =給与台帳7月!CL$47 -> 0 | AQ141: =給与台帳7月!CL$48 -> 0 | AR141: =給与台帳7月!CL$49 -> 0 | AS141: =給与台帳7月!CL$50 -> 0 | AT141: =給与台帳7月!CL$51 -> 0 | AU141: =給与台帳7月!CL$52 -> 七月もお疲れ様でした
B142: 7 | C142: =給与台帳7月!CR$8 -> 16 | D142: =給与台帳7月!CR$9 ->  | E142: =給与台帳7月!CR$10 ->  | F142: =給与台帳7月!CR$11 ->  | G142: =給与台帳7月!CR$12 ->  | H142: =給与台帳7月!CR$13 -> 0 | I142: =給与台帳7月!CR$14 -> 0 | J142: =給与台帳7月!CR$15 -> 0 | K142: =給与台帳7月!CR$16 -> 0 | L142: =給与台帳7月!CR$17 -> 0 | M142: =給与台帳7月!CR$18 -> 0 | N142: =給与台帳7月!CR$19 -> 0 | O142: =給与台帳7月!CR$20 -> 0 | P142: =給与台帳7月!CR$21 -> 0 | Q142: =給与台帳7月!CR$22 -> 0 | R142: =給与台帳7月!CR$23 -> 0 | S142: =給与台帳7月!CR$24 -> 0 | T142: =給与台帳7月!CR$25 -> 0 | U142: =給与台帳7月!CR$26 -> 0 | V142: =給与台帳7月!CR$27 -> 0 | W142: =給与台帳7月!CR$28 -> 0 | X142: =給与台帳7月!CR$29 -> 0 | Y142: =給与台帳7月!CR$30 -> 0 | Z142: =給与台帳7月!CR$31 -> 0 | AA142: =給与台帳7月!CR$32 -> 0 | AB142: =給与台帳7月!CR$33 -> 0 | AC142: =給与台帳7月!CR$34 -> 0 | AD142: =給与台帳7月!CR$35 -> 0 | AE142: =給与台帳7月!CR$36 -> 0 | AF142: =給与台帳7月!CR$37 -> 0 | AG142: =給与台帳7月!CR$38 -> 0 | AH142: =給与台帳7月!CR$39 -> 0 | AI142: =給与台帳7月!CR$40 -> 0 | AJ142: =給与台帳7月!CR$41 -> 0 | AK142: =給与台帳7月!CR$42 -> 0 | AL142: =給与台帳7月!CR$43 -> 0 | AM142: =給与台帳7月!CR$44 -> 0 | AN142: =給与台帳7月!CR$45 -> 0 | AO142: =給与台帳7月!CR$46 -> 0 | AP142: =給与台帳7月!CR$47 -> 0 | AQ142: =給与台帳7月!CR$48 -> 0 | AR142: =給与台帳7月!CR$49 -> 0 | AS142: =給与台帳7月!CR$50 -> 0 | AT142: =給与台帳7月!CR$51 -> 0 | AU142: =給与台帳7月!CR$52 -> 七月もお疲れ様でした
B143: 7 | C143: =給与台帳7月!CX$8 -> 17 | D143: =給与台帳7月!CX$9 ->  | E143: =給与台帳7月!CX$10 ->  | F143: =給与台帳7月!CX$11 ->  | G143: =給与台帳7月!CX$12 ->  | H143: =給与台帳7月!CX$13 -> 0 | I143: =給与台帳7月!CX$14 -> 0 | J143: =給与台帳7月!CX$15 -> 0 | K143: =給与台帳7月!CX$16 -> 0 | L143: =給与台帳7月!CX$17 -> 0 | M143: =給与台帳7月!CX$18 -> 0 | N143: =給与台帳7月!CX$19 -> 0 | O143: =給与台帳7月!CX$20 -> 0 | P143: =給与台帳7月!CX$21 -> 0 | Q143: =給与台帳7月!CX$22 -> 0 | R143: =給与台帳7月!CX$23 -> 0 | S143: =給与台帳7月!CX$24 -> 0 | T143: =給与台帳7月!CX$25 -> 0 | U143: =給与台帳7月!CX$26 -> 0 | V143: =給与台帳7月!CX$27 -> 0 | W143: =給与台帳7月!CX$28 -> 0 | X143: =給与台帳7月!CX$29 -> 0 | Y143: =給与台帳7月!CX$30 -> 0 | Z143: =給与台帳7月!CX$31 -> 0 | AA143: =給与台帳7月!CX$32 -> 0 | AB143: =給与台帳7月!CX$33 -> 0 | AC143: =給与台帳7月!CX$34 -> 0 | AD143: =給与台帳7月!CX$35 -> 0 | AE143: =給与台帳7月!CX$36 -> 0 | AF143: =給与台帳7月!CX$37 -> 0 | AG143: =給与台帳7月!CX$38 -> 0 | AH143: =給与台帳7月!CX$39 -> 0 | AI143: =給与台帳7月!CX$40 -> 0 | AJ143: =給与台帳7月!CX$41 -> 0 | AK143: =給与台帳7月!CX$42 -> 0 | AL143: =給与台帳7月!CX$43 -> 0 | AM143: =給与台帳7月!CX$44 -> 0 | AN143: =給与台帳7月!CX$45 -> 0 | AO143: =給与台帳7月!CX$46 -> 0 | AP143: =給与台帳7月!CX$47 -> 0 | AQ143: =給与台帳7月!CX$48 -> 0 | AR143: =給与台帳7月!CX$49 -> 0 | AS143: =給与台帳7月!CX$50 -> 0 | AT143: =給与台帳7月!CX$51 -> 0 | AU143: =給与台帳7月!CX$52 -> 七月もお疲れ様でした
B144: 7 | C144: =給与台帳7月!DD$8 -> 18 | D144: =給与台帳7月!DD$9 ->  | E144: =給与台帳7月!DD$10 ->  | F144: =給与台帳7月!DD$11 ->  | G144: =給与台帳7月!DD$12 ->  | H144: =給与台帳7月!DD$13 -> 0 | I144: =給与台帳7月!DD$14 -> 0 | J144: =給与台帳7月!DD$15 -> 0 | K144: =給与台帳7月!DD$16 -> 0 | L144: =給与台帳7月!DD$17 -> 0 | M144: =給与台帳7月!DD$18 -> 0 | N144: =給与台帳7月!DD$19 -> 0 | O144: =給与台帳7月!DD$20 -> 0 | P144: =給与台帳7月!DD$21 -> 0 | Q144: =給与台帳7月!DD$22 -> 0 | R144: =給与台帳7月!DD$23 -> 0 | S144: =給与台帳7月!DD$24 -> 0 | T144: =給与台帳7月!DD$25 -> 0 | U144: =給与台帳7月!DD$26 -> 0 | V144: =給与台帳7月!DD$27 -> 0 | W144: =給与台帳7月!DD$28 -> 0 | X144: =給与台帳7月!DD$29 -> 0 | Y144: =給与台帳7月!DD$30 -> 0 | Z144: =給与台帳7月!DD$31 -> 0 | AA144: =給与台帳7月!DD$32 -> 0 | AB144: =給与台帳7月!DD$33 -> 0 | AC144: =給与台帳7月!DD$34 -> 0 | AD144: =給与台帳7月!DD$35 -> 0 | AE144: =給与台帳7月!DD$36 -> 0 | AF144: =給与台帳7月!DD$37 -> 0 | AG144: =給与台帳7月!DD$38 -> 0 | AH144: =給与台帳7月!DD$39 -> 0 | AI144: =給与台帳7月!DD$40 -> 0 | AJ144: =給与台帳7月!DD$41 -> 0 | AK144: =給与台帳7月!DD$42 -> 0 | AL144: =給与台帳7月!DD$43 -> 0 | AM144: =給与台帳7月!DD$44 -> 0 | AN144: =給与台帳7月!DD$45 -> 0 | AO144: =給与台帳7月!DD$46 -> 0 | AP144: =給与台帳7月!DD$47 -> 0 | AQ144: =給与台帳7月!DD$48 -> 0 | AR144: =給与台帳7月!DD$49 -> 0 | AS144: =給与台帳7月!DD$50 -> 0 | AT144: =給与台帳7月!DD$51 -> 0 | AU144: =給与台帳7月!DD$52 -> 七月もお疲れ様でした
B145: 7
B146: 7
B147: 8 | C147: =給与台帳8月!F$8 -> 1 | D147: =給与台帳8月!F$9 -> 今野 友夫 | E147: =給与台帳8月!F$10 -> 役員 | F147: =給与台帳8月!F$11 -> 甲欄 | G147: =給与台帳8月!F$12 -> 45 | H147: =給与台帳8月!F$13 -> 1 | I147: =給与台帳8月!F$14 -> 500000 | J147: =給与台帳8月!F$15 -> 500000 | K147: =給与台帳8月!F$16 -> 0 | L147: =給与台帳8月!F$17 -> 0 | M147: =給与台帳8月!F$18 -> 0 | N147: =給与台帳8月!F$19 -> 0 | O147: =給与台帳8月!F$20 -> 0 | P147: =給与台帳8月!F$21 -> 0 | Q147: =給与台帳8月!F$22 -> 0 | R147: =給与台帳8月!F$23 -> 0 | S147: =給与台帳8月!F$24 -> 500000 | T147: =給与台帳8月!F$25 -> 0 | U147: =給与台帳8月!F$26 -> 0 | V147: =給与台帳8月!F$27 -> 0 | W147: =給与台帳8月!F$28 -> 0 | X147: =給与台帳8月!F$29 -> 0 | Y147: =給与台帳8月!F$30 -> 0 | Z147: =給与台帳8月!F$31 -> 0 | AA147: =給与台帳8月!F$32 -> 10000 | AB147: =給与台帳8月!F$33 -> 0 | AC147: =給与台帳8月!F$34 -> 500000 | AD147: =給与台帳8月!F$35 -> 10000 | AE147: =給与台帳8月!F$36 -> 510000 | AF147: =給与台帳8月!F$37 -> 23800 | AG147: =給与台帳8月!F$38 -> 0 | AH147: =給与台帳8月!F$39 -> 41030 | AI147: =給与台帳8月!F$40 -> 0 | AJ147: =給与台帳8月!F$41 -> 64830 | AK147: =給与台帳8月!F$42 -> 435170 | AL147: =給与台帳8月!F$43 -> 16190 | AM147: =給与台帳8月!F$44 -> 25000 | AN147: =給与台帳8月!F$45 -> 0 | AO147: =給与台帳8月!F$46 -> 0 | AP147: =給与台帳8月!F$47 -> 0 | AQ147: =給与台帳8月!F$48 -> 41190 | AR147: =給与台帳8月!F$49 -> 403980 | AS147: =給与台帳8月!F$50 -> 0 | AT147: =給与台帳8月!F$51 -> 403980 | AU147: =給与台帳8月!F$52 -> 八月もお疲れ様でした
B148: 8 | C148: =給与台帳8月!L$8 -> 2 | D148: =給与台帳8月!L$9 -> 今野 朝子 | E148: =給与台帳8月!L$10 -> 役員 | F148: =給与台帳8月!L$11 -> 甲欄 | G148: =給与台帳8月!L$12 -> 40 | H148: =給与台帳8月!L$13 -> 0 | I148: =給与台帳8月!L$14 -> 300000 | J148: =給与台帳8月!L$15 -> 300000 | K148: =給与台帳8月!L$16 -> 0 | L148: =給与台帳8月!L$17 -> 0 | M148: =給与台帳8月!L$18 -> 0 | N148: =給与台帳8月!L$19 -> 0 | O148: =給与台帳8月!L$20 -> 0 | P148: =給与台帳8月!L$21 -> 0 | Q148: =給与台帳8月!L$22 -> 0 | R148: =給与台帳8月!L$23 -> 0 | S148: =給与台帳8月!L$24 -> 300000 | T148: =給与台帳8月!L$25 -> 0 | U148: =給与台帳8月!L$26 -> 0 | V148: =給与台帳8月!L$27 -> 0 | W148: =給与台帳8月!L$28 -> 0 | X148: =給与台帳8月!L$29 -> 0 | Y148: =給与台帳8月!L$30 -> 0 | Z148: =給与台帳8月!L$31 -> 0 | AA148: =給与台帳8月!L$32 -> 10000 | AB148: =給与台帳8月!L$33 -> 0 | AC148: =給与台帳8月!L$34 -> 300000 | AD148: =給与台帳8月!L$35 -> 10000 | AE148: =給与台帳8月!L$36 -> 310000 | AF148: =給与台帳8月!L$37 -> 14280 | AG148: =給与台帳8月!L$38 -> 0 | AH148: =給与台帳8月!L$39 -> 24618 | AI148: =給与台帳8月!L$40 -> 0 | AJ148: =給与台帳8月!L$41 -> 38898 | AK148: =給与台帳8月!L$42 -> 261102 | AL148: =給与台帳8月!L$43 -> 6950 | AM148: =給与台帳8月!L$44 -> 13000 | AN148: =給与台帳8月!L$45 -> 0 | AO148: =給与台帳8月!L$46 -> 0 | AP148: =給与台帳8月!L$47 -> 0 | AQ148: =給与台帳8月!L$48 -> 19950 | AR148: =給与台帳8月!L$49 -> 251152 | AS148: =給与台帳8月!L$50 -> 0 | AT148: =給与台帳8月!L$51 -> 251152 | AU148: =給与台帳8月!L$52 -> 八月もお疲れ様でした
B149: 8 | C149: =給与台帳8月!R$8 -> 3 | D149: =給与台帳8月!R$9 -> 今野 祥子 | E149: =給与台帳8月!R$10 -> 役員 | F149: =給与台帳8月!R$11 -> 甲欄 | G149: =給与台帳8月!R$12 -> 71 | H149: =給与台帳8月!R$13 -> 0 | I149: =給与台帳8月!R$14 -> 0 | J149: =給与台帳8月!R$15 -> 0 | K149: =給与台帳8月!R$16 -> 0 | L149: =給与台帳8月!R$17 -> 0 | M149: =給与台帳8月!R$18 -> 0 | N149: =給与台帳8月!R$19 -> 0 | O149: =給与台帳8月!R$20 -> 0 | P149: =給与台帳8月!R$21 -> 0 | Q149: =給与台帳8月!R$22 -> 0 | R149: =給与台帳8月!R$23 -> 0 | S149: =給与台帳8月!R$24 -> 80000 | T149: =給与台帳8月!R$25 -> 0 | U149: =給与台帳8月!R$26 -> 0 | V149: =給与台帳8月!R$27 -> 0 | W149: =給与台帳8月!R$28 -> 0 | X149: =給与台帳8月!R$29 -> 0 | Y149: =給与台帳8月!R$30 -> 0 | Z149: =給与台帳8月!R$31 -> 0 | AA149: =給与台帳8月!R$32 -> 0 | AB149: =給与台帳8月!R$33 -> 0 | AC149: =給与台帳8月!R$34 -> 80000 | AD149: =給与台帳8月!R$35 -> 0 | AE149: =給与台帳8月!R$36 -> 80000 | AF149: =給与台帳8月!R$37 -> 0 | AG149: =給与台帳8月!R$38 -> 0 | AH149: =給与台帳8月!R$39 -> 0 | AI149: =給与台帳8月!R$40 -> 0 | AJ149: =給与台帳8月!R$41 -> 0 | AK149: =給与台帳8月!R$42 -> 80000 | AL149: =給与台帳8月!R$43 -> 0 | AM149: =給与台帳8月!R$44 -> 0 | AN149: =給与台帳8月!R$45 -> 0 | AO149: =給与台帳8月!R$46 -> 0 | AP149: =給与台帳8月!R$47 -> 0 | AQ149: =給与台帳8月!R$48 -> 0 | AR149: =給与台帳8月!R$49 -> 80000 | AS149: =給与台帳8月!R$50 -> 0 | AT149: =給与台帳8月!R$51 -> 80000 | AU149: =給与台帳8月!R$52 -> 八月もお疲れ様でした
B150: 8 | C150: =給与台帳8月!X$8 -> 4 | D150: =給与台帳8月!X$9 -> 川西 めぐみ | E150: =給与台帳8月!X$10 -> 従業員（雇保加入） | F150: =給与台帳8月!X$11 -> 甲欄 | G150: =給与台帳8月!X$12 -> 49 | H150: =給与台帳8月!X$13 -> 1 | I150: =給与台帳8月!X$14 -> 220000 | J150: =給与台帳8月!X$15 -> 220000 | K150: =給与台帳8月!X$16 -> 19日 | L150: =給与台帳8月!X$17 -> 136時間 | M150: =給与台帳8月!X$18 -> 2時間 | N150: =給与台帳8月!X$19 -> 1時間 | O150: =給与台帳8月!X$20 -> 0 | P150: =給与台帳8月!X$21 -> 0 | Q150: =給与台帳8月!X$22 -> 0 | R150: =給与台帳8月!X$23 -> 0 | S150: =給与台帳8月!X$24 -> 0 | T150: =給与台帳8月!X$25 -> 225000 | U150: =給与台帳8月!X$26 -> 5187 | V150: =給与台帳8月!X$27 -> 0 | W150: =給与台帳8月!X$28 -> 0 | X150: =給与台帳8月!X$29 -> 0 | Y150: =給与台帳8月!X$30 -> 0 | Z150: =給与台帳8月!X$31 -> 0 | AA150: =給与台帳8月!X$32 -> 18370 | AB150: =給与台帳8月!X$33 -> 0 | AC150: =給与台帳8月!X$34 -> 230187 | AD150: =給与台帳8月!X$35 -> 18370 | AE150: =給与台帳8月!X$36 -> 248557 | AF150: =給与台帳8月!X$37 -> 10472 | AG150: =給与台帳8月!X$38 -> 1661 | AH150: =給与台帳8月!X$39 -> 18053 | AI150: =給与台帳8月!X$40 -> 1242 | AJ150: =給与台帳8月!X$41 -> 31428 | AK150: =給与台帳8月!X$42 -> 198759 | AL150: =給与台帳8月!X$43 -> 3100 | AM150: =給与台帳8月!X$44 -> 9000 | AN150: =給与台帳8月!X$45 -> 0 | AO150: =給与台帳8月!X$46 -> 0 | AP150: =給与台帳8月!X$47 -> 0 | AQ150: =給与台帳8月!X$48 -> 12100 | AR150: =給与台帳8月!X$49 -> 205029 | AS150: =給与台帳8月!X$50 -> 0 | AT150: =給与台帳8月!X$51 -> 205029 | AU150: =給与台帳8月!X$52 -> 八月もお疲れ様でした
B151: 8 | C151: =給与台帳8月!AD$8 -> 5 | D151: =給与台帳8月!AD$9 -> 鳥居 雅之 | E151: =給与台帳8月!AD$10 -> 従業員（雇保非加入） | F151: =給与台帳8月!AD$11 -> 乙欄 | G151: =給与台帳8月!AD$12 -> 35 | H151: =給与台帳8月!AD$13 -> 0 | I151: =給与台帳8月!AD$14 -> 0 | J151: =給与台帳8月!AD$15 -> 0 | K151: =給与台帳8月!AD$16 -> 9日 | L151: =給与台帳8月!AD$17 -> 36時間 | M151: =給与台帳8月!AD$18 -> 0 | N151: =給与台帳8月!AD$19 -> 0 | O151: =給与台帳8月!AD$20 -> 0 | P151: =給与台帳8月!AD$21 -> 0 | Q151: =給与台帳8月!AD$22 -> 0 | R151: =給与台帳8月!AD$23 -> 0 | S151: =給与台帳8月!AD$24 -> 0 | T151: =給与台帳8月!AD$25 -> 45000 | U151: =給与台帳8月!AD$26 -> 0 | V151: =給与台帳8月!AD$27 -> 0 | W151: =給与台帳8月!AD$28 -> 0 | X151: =給与台帳8月!AD$29 -> 0 | Y151: =給与台帳8月!AD$30 -> 0 | Z151: =給与台帳8月!AD$31 -> 0 | AA151: =給与台帳8月!AD$32 -> 0 | AB151: =給与台帳8月!AD$33 -> 0 | AC151: =給与台帳8月!AD$34 -> 45000 | AD151: =給与台帳8月!AD$35 -> 0 | AE151: =給与台帳8月!AD$36 -> 45000 | AF151: =給与台帳8月!AD$37 -> 0 | AG151: =給与台帳8月!AD$38 -> 0 | AH151: =給与台帳8月!AD$39 -> 0 | AI151: =給与台帳8月!AD$40 -> 0 | AJ151: =給与台帳8月!AD$41 -> 0 | AK151: =給与台帳8月!AD$42 -> 45000 | AL151: =給与台帳8月!AD$43 -> 1378 | AM151: =給与台帳8月!AD$44 -> 0 | AN151: =給与台帳8月!AD$45 -> 0 | AO151: =給与台帳8月!AD$46 -> 0 | AP151: =給与台帳8月!AD$47 -> 0 | AQ151: =給与台帳8月!AD$48 -> 1378 | AR151: =給与台帳8月!AD$49 -> 43622 | AS151: =給与台帳8月!AD$50 -> 0 | AT151: =給与台帳8月!AD$51 -> 43622 | AU151: =給与台帳8月!AD$52 -> 八月もお疲れ様でした
B152: 8 | C152: =給与台帳8月!AJ$8 -> 6 | D152: =給与台帳8月!AJ$9 -> 笹部 菜穂美 | E152: =給与台帳8月!AJ$10 -> 従業員（雇保加入） | F152: =給与台帳8月!AJ$11 -> 甲欄 | G152: =給与台帳8月!AJ$12 -> 31 | H152: =給与台帳8月!AJ$13 -> 0 | I152: =給与台帳8月!AJ$14 -> 180000 | J152: =給与台帳8月!AJ$15 -> 180000 | K152: =給与台帳8月!AJ$16 -> 12日 | L152: =給与台帳8月!AJ$17 -> 90時間 | M152: =給与台帳8月!AJ$18 -> 0 | N152: =給与台帳8月!AJ$19 -> 0 | O152: =給与台帳8月!AJ$20 -> 0 | P152: =給与台帳8月!AJ$21 -> 0 | Q152: =給与台帳8月!AJ$22 -> 0 | R152: =給与台帳8月!AJ$23 -> 0 | S152: =給与台帳8月!AJ$24 -> 0 | T152: =給与台帳8月!AJ$25 -> 113684 | U152: =給与台帳8月!AJ$26 -> 0 | V152: =給与台帳8月!AJ$27 -> 0 | W152: =給与台帳8月!AJ$28 -> 0 | X152: =給与台帳8月!AJ$29 -> 0 | Y152: =給与台帳8月!AJ$30 -> 0 | Z152: =給与台帳8月!AJ$31 -> 0 | AA152: =給与台帳8月!AJ$32 -> 0 | AB152: =給与台帳8月!AJ$33 -> 0 | AC152: =給与台帳8月!AJ$34 -> 113684 | AD152: =給与台帳8月!AJ$35 -> 0 | AE152: =給与台帳8月!AJ$36 -> 113684 | AF152: =給与台帳8月!AJ$37 -> 8568 | AG152: =給与台帳8月!AJ$38 -> 0 | AH152: =給与台帳8月!AJ$39 -> 14770 | AI152: =給与台帳8月!AJ$40 -> 568 | AJ152: =給与台帳8月!AJ$41 -> 23906 | AK152: =給与台帳8月!AJ$42 -> 89778 | AL152: =給与台帳8月!AJ$43 -> 200 | AM152: =給与台帳8月!AJ$44 -> 0 | AN152: =給与台帳8月!AJ$45 -> 0 | AO152: =給与台帳8月!AJ$46 -> 0 | AP152: =給与台帳8月!AJ$47 -> 0 | AQ152: =給与台帳8月!AJ$48 -> 200 | AR152: =給与台帳8月!AJ$49 -> 89578 | AS152: =給与台帳8月!AJ$50 -> 0 | AT152: =給与台帳8月!AJ$51 -> 89578 | AU152: =給与台帳8月!AJ$52 -> 八月もお疲れ様でした
B153: 8 | C153: =給与台帳8月!AP$8 -> 7 | D153: =給与台帳8月!AP$9 -> 絹延橋 みつ子 | E153: =給与台帳8月!AP$10 -> 従業員（雇保加入） | F153: =給与台帳8月!AP$11 -> 甲欄 | G153: =給与台帳8月!AP$12 -> 46 | H153: =給与台帳8月!AP$13 -> 0 | I153: =給与台帳8月!AP$14 -> 0 | J153: =給与台帳8月!AP$15 -> 0 | K153: =給与台帳8月!AP$16 -> 0 | L153: =給与台帳8月!AP$17 -> 0 | M153: =給与台帳8月!AP$18 -> 0 | N153: =給与台帳8月!AP$19 -> 0 | O153: =給与台帳8月!AP$20 -> 0 | P153: =給与台帳8月!AP$21 -> 0 | Q153: =給与台帳8月!AP$22 -> 0 | R153: =給与台帳8月!AP$23 -> 0 | S153: =給与台帳8月!AP$24 -> 0 | T153: =給与台帳8月!AP$25 -> 0 | U153: =給与台帳8月!AP$26 -> 0 | V153: =給与台帳8月!AP$27 -> 0 | W153: =給与台帳8月!AP$28 -> 0 | X153: =給与台帳8月!AP$29 -> 0 | Y153: =給与台帳8月!AP$30 -> 0 | Z153: =給与台帳8月!AP$31 -> 0 | AA153: =給与台帳8月!AP$32 -> 0 | AB153: =給与台帳8月!AP$33 -> 0 | AC153: =給与台帳8月!AP$34 -> 0 | AD153: =給与台帳8月!AP$35 -> 0 | AE153: =給与台帳8月!AP$36 -> 0 | AF153: =給与台帳8月!AP$37 -> 0 | AG153: =給与台帳8月!AP$38 -> 0 | AH153: =給与台帳8月!AP$39 -> 0 | AI153: =給与台帳8月!AP$40 -> 0 | AJ153: =給与台帳8月!AP$41 -> 0 | AK153: =給与台帳8月!AP$42 -> 0 | AL153: =給与台帳8月!AP$43 -> 0 | AM153: =給与台帳8月!AP$44 -> 0 | AN153: =給与台帳8月!AP$45 -> 0 | AO153: =給与台帳8月!AP$46 -> 0 | AP153: =給与台帳8月!AP$47 -> 0 | AQ153: =給与台帳8月!AP$48 -> 0 | AR153: =給与台帳8月!AP$49 -> 0 | AS153: =給与台帳8月!AP$50 -> 0 | AT153: =給与台帳8月!AP$51 -> 0 | AU153: =給与台帳8月!AP$52 -> 八月もお疲れ様でした
B154: 8 | C154: =給与台帳8月!AV$8 -> 8 | D154: =給与台帳8月!AV$9 -> 山下 崇 | E154: =給与台帳8月!AV$10 -> 従業員（雇保加入） | F154: =給与台帳8月!AV$11 -> 甲欄 | G154: =給与台帳8月!AV$12 -> 34 | H154: =給与台帳8月!AV$13 -> 0 | I154: =給与台帳8月!AV$14 -> 0 | J154: =給与台帳8月!AV$15 -> 0 | K154: =給与台帳8月!AV$16 -> 0 | L154: =給与台帳8月!AV$17 -> 0 | M154: =給与台帳8月!AV$18 -> 0 | N154: =給与台帳8月!AV$19 -> 0 | O154: =給与台帳8月!AV$20 -> 0 | P154: =給与台帳8月!AV$21 -> 0 | Q154: =給与台帳8月!AV$22 -> 0 | R154: =給与台帳8月!AV$23 -> 0 | S154: =給与台帳8月!AV$24 -> 0 | T154: =給与台帳8月!AV$25 -> 0 | U154: =給与台帳8月!AV$26 -> 0 | V154: =給与台帳8月!AV$27 -> 0 | W154: =給与台帳8月!AV$28 -> 0 | X154: =給与台帳8月!AV$29 -> 0 | Y154: =給与台帳8月!AV$30 -> 0 | Z154: =給与台帳8月!AV$31 -> 0 | AA154: =給与台帳8月!AV$32 -> 0 | AB154: =給与台帳8月!AV$33 -> 0 | AC154: =給与台帳8月!AV$34 -> 0 | AD154: =給与台帳8月!AV$35 -> 0 | AE154: =給与台帳8月!AV$36 -> 0 | AF154: =給与台帳8月!AV$37 -> 0 | AG154: =給与台帳8月!AV$38 -> 0 | AH154: =給与台帳8月!AV$39 -> 0 | AI154: =給与台帳8月!AV$40 -> 0 | AJ154: =給与台帳8月!AV$41 -> 0 | AK154: =給与台帳8月!AV$42 -> 0 | AL154: =給与台帳8月!AV$43 -> 0 | AM154: =給与台帳8月!AV$44 -> 0 | AN154: =給与台帳8月!AV$45 -> 0 | AO154: =給与台帳8月!AV$46 -> 0 | AP154: =給与台帳8月!AV$47 -> 0 | AQ154: =給与台帳8月!AV$48 -> 0 | AR154: =給与台帳8月!AV$49 -> 0 | AS154: =給与台帳8月!AV$50 -> 0 | AT154: =給与台帳8月!AV$51 -> 0 | AU154: =給与台帳8月!AV$52 -> 八月もお疲れ様でした
B155: 8 | C155: =給与台帳8月!BB$8 -> 9 | D155: =給与台帳8月!BB$9 ->  | E155: =給与台帳8月!BB$10 ->  | F155: =給与台帳8月!BB$11 ->  | G155: =給与台帳8月!BB$12 ->  | H155: =給与台帳8月!BB$13 -> 0 | I155: =給与台帳8月!BB$14 -> 0 | J155: =給与台帳8月!BB$15 -> 0 | K155: =給与台帳8月!BB$16 -> 0 | L155: =給与台帳8月!BB$17 -> 0 | M155: =給与台帳8月!BB$18 -> 0 | N155: =給与台帳8月!BB$19 -> 0 | O155: =給与台帳8月!BB$20 -> 0 | P155: =給与台帳8月!BB$21 -> 0 | Q155: =給与台帳8月!BB$22 -> 0 | R155: =給与台帳8月!BB$23 -> 0 | S155: =給与台帳8月!BB$24 -> 0 | T155: =給与台帳8月!BB$25 -> 0 | U155: =給与台帳8月!BB$26 -> 0 | V155: =給与台帳8月!BB$27 -> 0 | W155: =給与台帳8月!BB$28 -> 0 | X155: =給与台帳8月!BB$29 -> 0 | Y155: =給与台帳8月!BB$30 -> 0 | Z155: =給与台帳8月!BB$31 -> 0 | AA155: =給与台帳8月!BB$32 -> 0 | AB155: =給与台帳8月!BB$33 -> 0 | AC155: =給与台帳8月!BB$34 -> 0 | AD155: =給与台帳8月!BB$35 -> 0 | AE155: =給与台帳8月!BB$36 -> 0 | AF155: =給与台帳8月!BB$37 -> 0 | AG155: =給与台帳8月!BB$38 -> 0 | AH155: =給与台帳8月!BB$39 -> 0 | AI155: =給与台帳8月!BB$40 -> 0 | AJ155: =給与台帳8月!BB$41 -> 0 | AK155: =給与台帳8月!BB$42 -> 0 | AL155: =給与台帳8月!BB$43 -> 0 | AM155: =給与台帳8月!BB$44 -> 0 | AN155: =給与台帳8月!BB$45 -> 0 | AO155: =給与台帳8月!BB$46 -> 0 | AP155: =給与台帳8月!BB$47 -> 0 | AQ155: =給与台帳8月!BB$48 -> 0 | AR155: =給与台帳8月!BB$49 -> 0 | AS155: =給与台帳8月!BB$50 -> 0 | AT155: =給与台帳8月!BB$51 -> 0 | AU155: =給与台帳8月!BB$52 -> 八月もお疲れ様でした
B156: 8 | C156: =給与台帳8月!BH$8 -> 10 | D156: =給与台帳8月!BH$9 ->  | E156: =給与台帳8月!BH$10 ->  | F156: =給与台帳8月!BH$11 ->  | G156: =給与台帳8月!BH$12 ->  | H156: =給与台帳8月!BH$13 -> 0 | I156: =給与台帳8月!BH$14 -> 0 | J156: =給与台帳8月!BH$15 -> 0 | K156: =給与台帳8月!BH$16 -> 0 | L156: =給与台帳8月!BH$17 -> 0 | M156: =給与台帳8月!BH$18 -> 0 | N156: =給与台帳8月!BH$19 -> 0 | O156: =給与台帳8月!BH$20 -> 0 | P156: =給与台帳8月!BH$21 -> 0 | Q156: =給与台帳8月!BH$22 -> 0 | R156: =給与台帳8月!BH$23 -> 0 | S156: =給与台帳8月!BH$24 -> 0 | T156: =給与台帳8月!BH$25 -> 0 | U156: =給与台帳8月!BH$26 -> 0 | V156: =給与台帳8月!BH$27 -> 0 | W156: =給与台帳8月!BH$28 -> 0 | X156: =給与台帳8月!BH$29 -> 0 | Y156: =給与台帳8月!BH$30 -> 0 | Z156: =給与台帳8月!BH$31 -> 0 | AA156: =給与台帳8月!BH$32 -> 0 | AB156: =給与台帳8月!BH$33 -> 0 | AC156: =給与台帳8月!BH$34 -> 0 | AD156: =給与台帳8月!BH$35 -> 0 | AE156: =給与台帳8月!BH$36 -> 0 | AF156: =給与台帳8月!BH$37 -> 0 | AG156: =給与台帳8月!BH$38 -> 0 | AH156: =給与台帳8月!BH$39 -> 0 | AI156: =給与台帳8月!BH$40 -> 0 | AJ156: =給与台帳8月!BH$41 -> 0 | AK156: =給与台帳8月!BH$42 -> 0 | AL156: =給与台帳8月!BH$43 -> 0 | AM156: =給与台帳8月!BH$44 -> 0 | AN156: =給与台帳8月!BH$45 -> 0 | AO156: =給与台帳8月!BH$46 -> 0 | AP156: =給与台帳8月!BH$47 -> 0 | AQ156: =給与台帳8月!BH$48 -> 0 | AR156: =給与台帳8月!BH$49 -> 0 | AS156: =給与台帳8月!BH$50 -> 0 | AT156: =給与台帳8月!BH$51 -> 0 | AU156: =給与台帳8月!BH$52 -> 八月もお疲れ様でした
B157: 8 | C157: =給与台帳8月!BN$8 -> 11 | D157: =給与台帳8月!BN$9 ->  | E157: =給与台帳8月!BN$10 ->  | F157: =給与台帳8月!BN$11 ->  | G157: =給与台帳8月!BN$12 ->  | H157: =給与台帳8月!BN$13 -> 0 | I157: =給与台帳8月!BN$14 -> 0 | J157: =給与台帳8月!BN$15 -> 0 | K157: =給与台帳8月!BN$16 -> 0 | L157: =給与台帳8月!BN$17 -> 0 | M157: =給与台帳8月!BN$18 -> 0 | N157: =給与台帳8月!BN$19 -> 0 | O157: =給与台帳8月!BN$20 -> 0 | P157: =給与台帳8月!BN$21 -> 0 | Q157: =給与台帳8月!BN$22 -> 0 | R157: =給与台帳8月!BN$23 -> 0 | S157: =給与台帳8月!BN$24 -> 0 | T157: =給与台帳8月!BN$25 -> 0 | U157: =給与台帳8月!BN$26 -> 0 | V157: =給与台帳8月!BN$27 -> 0 | W157: =給与台帳8月!BN$28 -> 0 | X157: =給与台帳8月!BN$29 -> 0 | Y157: =給与台帳8月!BN$30 -> 0 | Z157: =給与台帳8月!BN$31 -> 0 | AA157: =給与台帳8月!BN$32 -> 0 | AB157: =給与台帳8月!BN$33 -> 0 | AC157: =給与台帳8月!BN$34 -> 0 | AD157: =給与台帳8月!BN$35 -> 0 | AE157: =給与台帳8月!BN$36 -> 0 | AF157: =給与台帳8月!BN$37 -> 0 | AG157: =給与台帳8月!BN$38 -> 0 | AH157: =給与台帳8月!BN$39 -> 0 | AI157: =給与台帳8月!BN$40 -> 0 | AJ157: =給与台帳8月!BN$41 -> 0 | AK157: =給与台帳8月!BN$42 -> 0 | AL157: =給与台帳8月!BN$43 -> 0 | AM157: =給与台帳8月!BN$44 -> 0 | AN157: =給与台帳8月!BN$45 -> 0 | AO157: =給与台帳8月!BN$46 -> 0 | AP157: =給与台帳8月!BN$47 -> 0 | AQ157: =給与台帳8月!BN$48 -> 0 | AR157: =給与台帳8月!BN$49 -> 0 | AS157: =給与台帳8月!BN$50 -> 0 | AT157: =給与台帳8月!BN$51 -> 0 | AU157: =給与台帳8月!BN$52 -> 八月もお疲れ様でした
B158: 8 | C158: =給与台帳8月!BT$8 -> 12 | D158: =給与台帳8月!BT$9 ->  | E158: =給与台帳8月!BT$10 ->  | F158: =給与台帳8月!BT$11 ->  | G158: =給与台帳8月!BT$12 ->  | H158: =給与台帳8月!BT$13 -> 0 | I158: =給与台帳8月!BT$14 -> 0 | J158: =給与台帳8月!BT$15 -> 0 | K158: =給与台帳8月!BT$16 -> 0 | L158: =給与台帳8月!BT$17 -> 0 | M158: =給与台帳8月!BT$18 -> 0 | N158: =給与台帳8月!BT$19 -> 0 | O158: =給与台帳8月!BT$20 -> 0 | P158: =給与台帳8月!BT$21 -> 0 | Q158: =給与台帳8月!BT$22 -> 0 | R158: =給与台帳8月!BT$23 -> 0 | S158: =給与台帳8月!BT$24 -> 0 | T158: =給与台帳8月!BT$25 -> 0 | U158: =給与台帳8月!BT$26 -> 0 | V158: =給与台帳8月!BT$27 -> 0 | W158: =給与台帳8月!BT$28 -> 0 | X158: =給与台帳8月!BT$29 -> 0 | Y158: =給与台帳8月!BT$30 -> 0 | Z158: =給与台帳8月!BT$31 -> 0 | AA158: =給与台帳8月!BT$32 -> 0 | AB158: =給与台帳8月!BT$33 -> 0 | AC158: =給与台帳8月!BT$34 -> 0 | AD158: =給与台帳8月!BT$35 -> 0 | AE158: =給与台帳8月!BT$36 -> 0 | AF158: =給与台帳8月!BT$37 -> 0 | AG158: =給与台帳8月!BT$38 -> 0 | AH158: =給与台帳8月!BT$39 -> 0 | AI158: =給与台帳8月!BT$40 -> 0 | AJ158: =給与台帳8月!BT$41 -> 0 | AK158: =給与台帳8月!BT$42 -> 0 | AL158: =給与台帳8月!BT$43 -> 0 | AM158: =給与台帳8月!BT$44 -> 0 | AN158: =給与台帳8月!BT$45 -> 0 | AO158: =給与台帳8月!BT$46 -> 0 | AP158: =給与台帳8月!BT$47 -> 0 | AQ158: =給与台帳8月!BT$48 -> 0 | AR158: =給与台帳8月!BT$49 -> 0 | AS158: =給与台帳8月!BT$50 -> 0 | AT158: =給与台帳8月!BT$51 -> 0 | AU158: =給与台帳8月!BT$52 -> 八月もお疲れ様でした
B159: 8 | C159: =給与台帳8月!BZ$8 -> 13 | D159: =給与台帳8月!BZ$9 ->  | E159: =給与台帳8月!BZ$10 ->  | F159: =給与台帳8月!BZ$11 ->  | G159: =給与台帳8月!BZ$12 ->  | H159: =給与台帳8月!BZ$13 -> 0 | I159: =給与台帳8月!BZ$14 -> 0 | J159: =給与台帳8月!BZ$15 -> 0 | K159: =給与台帳8月!BZ$16 -> 0 | L159: =給与台帳8月!BZ$17 -> 0 | M159: =給与台帳8月!BZ$18 -> 0 | N159: =給与台帳8月!BZ$19 -> 0 | O159: =給与台帳8月!BZ$20 -> 0 | P159: =給与台帳8月!BZ$21 -> 0 | Q159: =給与台帳8月!BZ$22 -> 0 | R159: =給与台帳8月!BZ$23 -> 0 | S159: =給与台帳8月!BZ$24 -> 0 | T159: =給与台帳8月!BZ$25 -> 0 | U159: =給与台帳8月!BZ$26 -> 0 | V159: =給与台帳8月!BZ$27 -> 0 | W159: =給与台帳8月!BZ$28 -> 0 | X159: =給与台帳8月!BZ$29 -> 0 | Y159: =給与台帳8月!BZ$30 -> 0 | Z159: =給与台帳8月!BZ$31 -> 0 | AA159: =給与台帳8月!BZ$32 -> 0 | AB159: =給与台帳8月!BZ$33 -> 0 | AC159: =給与台帳8月!BZ$34 -> 0 | AD159: =給与台帳8月!BZ$35 -> 0 | AE159: =給与台帳8月!BZ$36 -> 0 | AF159: =給与台帳8月!BZ$37 -> 0 | AG159: =給与台帳8月!BZ$38 -> 0 | AH159: =給与台帳8月!BZ$39 -> 0 | AI159: =給与台帳8月!BZ$40 -> 0 | AJ159: =給与台帳8月!BZ$41 -> 0 | AK159: =給与台帳8月!BZ$42 -> 0 | AL159: =給与台帳8月!BZ$43 -> 0 | AM159: =給与台帳8月!BZ$44 -> 0 | AN159: =給与台帳8月!BZ$45 -> 0 | AO159: =給与台帳8月!BZ$46 -> 0 | AP159: =給与台帳8月!BZ$47 -> 0 | AQ159: =給与台帳8月!BZ$48 -> 0 | AR159: =給与台帳8月!BZ$49 -> 0 | AS159: =給与台帳8月!BZ$50 -> 0 | AT159: =給与台帳8月!BZ$51 -> 0 | AU159: =給与台帳8月!BZ$52 -> 八月もお疲れ様でした
B160: 8 | C160: =給与台帳8月!CF$8 -> 14 | D160: =給与台帳8月!CF$9 ->  | E160: =給与台帳8月!CF$10 ->  | F160: =給与台帳8月!CF$11 ->  | G160: =給与台帳8月!CF$12 ->  | H160: =給与台帳8月!CF$13 -> 0 | I160: =給与台帳8月!CF$14 -> 0 | J160: =給与台帳8月!CF$15 -> 0 | K160: =給与台帳8月!CF$16 -> 0 | L160: =給与台帳8月!CF$17 -> 0 | M160: =給与台帳8月!CF$18 -> 0 | N160: =給与台帳8月!CF$19 -> 0 | O160: =給与台帳8月!CF$20 -> 0 | P160: =給与台帳8月!CF$21 -> 0 | Q160: =給与台帳8月!CF$22 -> 0 | R160: =給与台帳8月!CF$23 -> 0 | S160: =給与台帳8月!CF$24 -> 0 | T160: =給与台帳8月!CF$25 -> 0 | U160: =給与台帳8月!CF$26 -> 0 | V160: =給与台帳8月!CF$27 -> 0 | W160: =給与台帳8月!CF$28 -> 0 | X160: =給与台帳8月!CF$29 -> 0 | Y160: =給与台帳8月!CF$30 -> 0 | Z160: =給与台帳8月!CF$31 -> 0 | AA160: =給与台帳8月!CF$32 -> 0 | AB160: =給与台帳8月!CF$33 -> 0 | AC160: =給与台帳8月!CF$34 -> 0 | AD160: =給与台帳8月!CF$35 -> 0 | AE160: =給与台帳8月!CF$36 -> 0 | AF160: =給与台帳8月!CF$37 -> 0 | AG160: =給与台帳8月!CF$38 -> 0 | AH160: =給与台帳8月!CF$39 -> 0 | AI160: =給与台帳8月!CF$40 -> 0 | AJ160: =給与台帳8月!CF$41 -> 0 | AK160: =給与台帳8月!CF$42 -> 0 | AL160: =給与台帳8月!CF$43 -> 0 | AM160: =給与台帳8月!CF$44 -> 0 | AN160: =給与台帳8月!CF$45 -> 0 | AO160: =給与台帳8月!CF$46 -> 0 | AP160: =給与台帳8月!CF$47 -> 0 | AQ160: =給与台帳8月!CF$48 -> 0 | AR160: =給与台帳8月!CF$49 -> 0 | AS160: =給与台帳8月!CF$50 -> 0 | AT160: =給与台帳8月!CF$51 -> 0 | AU160: =給与台帳8月!CF$52 -> 八月もお疲れ様でした
B161: 8 | C161: =給与台帳8月!CL$8 -> 15 | D161: =給与台帳8月!CL$9 ->  | E161: =給与台帳8月!CL$10 ->  | F161: =給与台帳8月!CL$11 ->  | G161: =給与台帳8月!CL$12 ->  | H161: =給与台帳8月!CL$13 -> 0 | I161: =給与台帳8月!CL$14 -> 0 | J161: =給与台帳8月!CL$15 -> 0 | K161: =給与台帳8月!CL$16 -> 0 | L161: =給与台帳8月!CL$17 -> 0 | M161: =給与台帳8月!CL$18 -> 0 | N161: =給与台帳8月!CL$19 -> 0 | O161: =給与台帳8月!CL$20 -> 0 | P161: =給与台帳8月!CL$21 -> 0 | Q161: =給与台帳8月!CL$22 -> 0 | R161: =給与台帳8月!CL$23 -> 0 | S161: =給与台帳8月!CL$24 -> 0 | T161: =給与台帳8月!CL$25 -> 0 | U161: =給与台帳8月!CL$26 -> 0 | V161: =給与台帳8月!CL$27 -> 0 | W161: =給与台帳8月!CL$28 -> 0 | X161: =給与台帳8月!CL$29 -> 0 | Y161: =給与台帳8月!CL$30 -> 0 | Z161: =給与台帳8月!CL$31 -> 0 | AA161: =給与台帳8月!CL$32 -> 0 | AB161: =給与台帳8月!CL$33 -> 0 | AC161: =給与台帳8月!CL$34 -> 0 | AD161: =給与台帳8月!CL$35 -> 0 | AE161: =給与台帳8月!CL$36 -> 0 | AF161: =給与台帳8月!CL$37 -> 0 | AG161: =給与台帳8月!CL$38 -> 0 | AH161: =給与台帳8月!CL$39 -> 0 | AI161: =給与台帳8月!CL$40 -> 0 | AJ161: =給与台帳8月!CL$41 -> 0 | AK161: =給与台帳8月!CL$42 -> 0 | AL161: =給与台帳8月!CL$43 -> 0 | AM161: =給与台帳8月!CL$44 -> 0 | AN161: =給与台帳8月!CL$45 -> 0 | AO161: =給与台帳8月!CL$46 -> 0 | AP161: =給与台帳8月!CL$47 -> 0 | AQ161: =給与台帳8月!CL$48 -> 0 | AR161: =給与台帳8月!CL$49 -> 0 | AS161: =給与台帳8月!CL$50 -> 0 | AT161: =給与台帳8月!CL$51 -> 0 | AU161: =給与台帳8月!CL$52 -> 八月もお疲れ様でした
B162: 8 | C162: =給与台帳8月!CR$8 -> 16 | D162: =給与台帳8月!CR$9 ->  | E162: =給与台帳8月!CR$10 ->  | F162: =給与台帳8月!CR$11 ->  | G162: =給与台帳8月!CR$12 ->  | H162: =給与台帳8月!CR$13 -> 0 | I162: =給与台帳8月!CR$14 -> 0 | J162: =給与台帳8月!CR$15 -> 0 | K162: =給与台帳8月!CR$16 -> 0 | L162: =給与台帳8月!CR$17 -> 0 | M162: =給与台帳8月!CR$18 -> 0 | N162: =給与台帳8月!CR$19 -> 0 | O162: =給与台帳8月!CR$20 -> 0 | P162: =給与台帳8月!CR$21 -> 0 | Q162: =給与台帳8月!CR$22 -> 0 | R162: =給与台帳8月!CR$23 -> 0 | S162: =給与台帳8月!CR$24 -> 0 | T162: =給与台帳8月!CR$25 -> 0 | U162: =給与台帳8月!CR$26 -> 0 | V162: =給与台帳8月!CR$27 -> 0 | W162: =給与台帳8月!CR$28 -> 0 | X162: =給与台帳8月!CR$29 -> 0 | Y162: =給与台帳8月!CR$30 -> 0 | Z162: =給与台帳8月!CR$31 -> 0 | AA162: =給与台帳8月!CR$32 -> 0 | AB162: =給与台帳8月!CR$33 -> 0 | AC162: =給与台帳8月!CR$34 -> 0 | AD162: =給与台帳8月!CR$35 -> 0 | AE162: =給与台帳8月!CR$36 -> 0 | AF162: =給与台帳8月!CR$37 -> 0 | AG162: =給与台帳8月!CR$38 -> 0 | AH162: =給与台帳8月!CR$39 -> 0 | AI162: =給与台帳8月!CR$40 -> 0 | AJ162: =給与台帳8月!CR$41 -> 0 | AK162: =給与台帳8月!CR$42 -> 0 | AL162: =給与台帳8月!CR$43 -> 0 | AM162: =給与台帳8月!CR$44 -> 0 | AN162: =給与台帳8月!CR$45 -> 0 | AO162: =給与台帳8月!CR$46 -> 0 | AP162: =給与台帳8月!CR$47 -> 0 | AQ162: =給与台帳8月!CR$48 -> 0 | AR162: =給与台帳8月!CR$49 -> 0 | AS162: =給与台帳8月!CR$50 -> 0 | AT162: =給与台帳8月!CR$51 -> 0 | AU162: =給与台帳8月!CR$52 -> 八月もお疲れ様でした
B163: 8 | C163: =給与台帳8月!CX$8 -> 17 | D163: =給与台帳8月!CX$9 ->  | E163: =給与台帳8月!CX$10 ->  | F163: =給与台帳8月!CX$11 ->  | G163: =給与台帳8月!CX$12 ->  | H163: =給与台帳8月!CX$13 -> 0 | I163: =給与台帳8月!CX$14 -> 0 | J163: =給与台帳8月!CX$15 -> 0 | K163: =給与台帳8月!CX$16 -> 0 | L163: =給与台帳8月!CX$17 -> 0 | M163: =給与台帳8月!CX$18 -> 0 | N163: =給与台帳8月!CX$19 -> 0 | O163: =給与台帳8月!CX$20 -> 0 | P163: =給与台帳8月!CX$21 -> 0 | Q163: =給与台帳8月!CX$22 -> 0 | R163: =給与台帳8月!CX$23 -> 0 | S163: =給与台帳8月!CX$24 -> 0 | T163: =給与台帳8月!CX$25 -> 0 | U163: =給与台帳8月!CX$26 -> 0 | V163: =給与台帳8月!CX$27 -> 0 | W163: =給与台帳8月!CX$28 -> 0 | X163: =給与台帳8月!CX$29 -> 0 | Y163: =給与台帳8月!CX$30 -> 0 | Z163: =給与台帳8月!CX$31 -> 0 | AA163: =給与台帳8月!CX$32 -> 0 | AB163: =給与台帳8月!CX$33 -> 0 | AC163: =給与台帳8月!CX$34 -> 0 | AD163: =給与台帳8月!CX$35 -> 0 | AE163: =給与台帳8月!CX$36 -> 0 | AF163: =給与台帳8月!CX$37 -> 0 | AG163: =給与台帳8月!CX$38 -> 0 | AH163: =給与台帳8月!CX$39 -> 0 | AI163: =給与台帳8月!CX$40 -> 0 | AJ163: =給与台帳8月!CX$41 -> 0 | AK163: =給与台帳8月!CX$42 -> 0 | AL163: =給与台帳8月!CX$43 -> 0 | AM163: =給与台帳8月!CX$44 -> 0 | AN163: =給与台帳8月!CX$45 -> 0 | AO163: =給与台帳8月!CX$46 -> 0 | AP163: =給与台帳8月!CX$47 -> 0 | AQ163: =給与台帳8月!CX$48 -> 0 | AR163: =給与台帳8月!CX$49 -> 0 | AS163: =給与台帳8月!CX$50 -> 0 | AT163: =給与台帳8月!CX$51 -> 0 | AU163: =給与台帳8月!CX$52 -> 八月もお疲れ様でした
B164: 8 | C164: =給与台帳8月!DD$8 -> 18 | D164: =給与台帳8月!DD$9 ->  | E164: =給与台帳8月!DD$10 ->  | F164: =給与台帳8月!DD$11 ->  | G164: =給与台帳8月!DD$12 ->  | H164: =給与台帳8月!DD$13 -> 0 | I164: =給与台帳8月!DD$14 -> 0 | J164: =給与台帳8月!DD$15 -> 0 | K164: =給与台帳8月!DD$16 -> 0 | L164: =給与台帳8月!DD$17 -> 0 | M164: =給与台帳8月!DD$18 -> 0 | N164: =給与台帳8月!DD$19 -> 0 | O164: =給与台帳8月!DD$20 -> 0 | P164: =給与台帳8月!DD$21 -> 0 | Q164: =給与台帳8月!DD$22 -> 0 | R164: =給与台帳8月!DD$23 -> 0 | S164: =給与台帳8月!DD$24 -> 0 | T164: =給与台帳8月!DD$25 -> 0 | U164: =給与台帳8月!DD$26 -> 0 | V164: =給与台帳8月!DD$27 -> 0 | W164: =給与台帳8月!DD$28 -> 0 | X164: =給与台帳8月!DD$29 -> 0 | Y164: =給与台帳8月!DD$30 -> 0 | Z164: =給与台帳8月!DD$31 -> 0 | AA164: =給与台帳8月!DD$32 -> 0 | AB164: =給与台帳8月!DD$33 -> 0 | AC164: =給与台帳8月!DD$34 -> 0 | AD164: =給与台帳8月!DD$35 -> 0 | AE164: =給与台帳8月!DD$36 -> 0 | AF164: =給与台帳8月!DD$37 -> 0 | AG164: =給与台帳8月!DD$38 -> 0 | AH164: =給与台帳8月!DD$39 -> 0 | AI164: =給与台帳8月!DD$40 -> 0 | AJ164: =給与台帳8月!DD$41 -> 0 | AK164: =給与台帳8月!DD$42 -> 0 | AL164: =給与台帳8月!DD$43 -> 0 | AM164: =給与台帳8月!DD$44 -> 0 | AN164: =給与台帳8月!DD$45 -> 0 | AO164: =給与台帳8月!DD$46 -> 0 | AP164: =給与台帳8月!DD$47 -> 0 | AQ164: =給与台帳8月!DD$48 -> 0 | AR164: =給与台帳8月!DD$49 -> 0 | AS164: =給与台帳8月!DD$50 -> 0 | AT164: =給与台帳8月!DD$51 -> 0 | AU164: =給与台帳8月!DD$52 -> 八月もお疲れ様でした
B165: 8
B166: 8
B167: 9 | C167: =給与台帳9月!F$8 -> 1 | D167: =給与台帳9月!F$9 -> 今野 友夫 | E167: =給与台帳9月!F$10 -> 役員 | F167: =給与台帳9月!F$11 -> 甲欄 | G167: =給与台帳9月!F$12 -> 45 | H167: =給与台帳9月!F$13 -> 1 | I167: =給与台帳9月!F$14 -> 500000 | J167: =給与台帳9月!F$15 -> 500000 | K167: =給与台帳9月!F$16 -> 0 | L167: =給与台帳9月!F$17 -> 0 | M167: =給与台帳9月!F$18 -> 0 | N167: =給与台帳9月!F$19 -> 0 | O167: =給与台帳9月!F$20 -> 0 | P167: =給与台帳9月!F$21 -> 0 | Q167: =給与台帳9月!F$22 -> 0 | R167: =給与台帳9月!F$23 -> 0 | S167: =給与台帳9月!F$24 -> 500000 | T167: =給与台帳9月!F$25 -> 0 | U167: =給与台帳9月!F$26 -> 0 | V167: =給与台帳9月!F$27 -> 0 | W167: =給与台帳9月!F$28 -> 0 | X167: =給与台帳9月!F$29 -> 0 | Y167: =給与台帳9月!F$30 -> 0 | Z167: =給与台帳9月!F$31 -> 0 | AA167: =給与台帳9月!F$32 -> 10000 | AB167: =給与台帳9月!F$33 -> 0 | AC167: =給与台帳9月!F$34 -> 500000 | AD167: =給与台帳9月!F$35 -> 10000 | AE167: =給与台帳9月!F$36 -> 510000 | AF167: =給与台帳9月!F$37 -> 23800 | AG167: =給与台帳9月!F$38 -> 0 | AH167: =給与台帳9月!F$39 -> 41030 | AI167: =給与台帳9月!F$40 -> 0 | AJ167: =給与台帳9月!F$41 -> 64830 | AK167: =給与台帳9月!F$42 -> 435170 | AL167: =給与台帳9月!F$43 -> 16190 | AM167: =給与台帳9月!F$44 -> 25000 | AN167: =給与台帳9月!F$45 -> 0 | AO167: =給与台帳9月!F$46 -> 0 | AP167: =給与台帳9月!F$47 -> 0 | AQ167: =給与台帳9月!F$48 -> 41190 | AR167: =給与台帳9月!F$49 -> 403980 | AS167: =給与台帳9月!F$50 -> 0 | AT167: =給与台帳9月!F$51 -> 403980 | AU167: =給与台帳9月!F$52 -> 九月もお疲れ様でした
B168: 9 | C168: =給与台帳9月!L$8 -> 2 | D168: =給与台帳9月!L$9 -> 今野 朝子 | E168: =給与台帳9月!L$10 -> 役員 | F168: =給与台帳9月!L$11 -> 甲欄 | G168: =給与台帳9月!L$12 -> 40 | H168: =給与台帳9月!L$13 -> 0 | I168: =給与台帳9月!L$14 -> 300000 | J168: =給与台帳9月!L$15 -> 300000 | K168: =給与台帳9月!L$16 -> 0 | L168: =給与台帳9月!L$17 -> 0 | M168: =給与台帳9月!L$18 -> 0 | N168: =給与台帳9月!L$19 -> 0 | O168: =給与台帳9月!L$20 -> 0 | P168: =給与台帳9月!L$21 -> 0 | Q168: =給与台帳9月!L$22 -> 0 | R168: =給与台帳9月!L$23 -> 0 | S168: =給与台帳9月!L$24 -> 300000 | T168: =給与台帳9月!L$25 -> 0 | U168: =給与台帳9月!L$26 -> 0 | V168: =給与台帳9月!L$27 -> 0 | W168: =給与台帳9月!L$28 -> 0 | X168: =給与台帳9月!L$29 -> 0 | Y168: =給与台帳9月!L$30 -> 0 | Z168: =給与台帳9月!L$31 -> 0 | AA168: =給与台帳9月!L$32 -> 10000 | AB168: =給与台帳9月!L$33 -> 0 | AC168: =給与台帳9月!L$34 -> 300000 | AD168: =給与台帳9月!L$35 -> 10000 | AE168: =給与台帳9月!L$36 -> 310000 | AF168: =給与台帳9月!L$37 -> 14280 | AG168: =給与台帳9月!L$38 -> 0 | AH168: =給与台帳9月!L$39 -> 24618 | AI168: =給与台帳9月!L$40 -> 0 | AJ168: =給与台帳9月!L$41 -> 38898 | AK168: =給与台帳9月!L$42 -> 261102 | AL168: =給与台帳9月!L$43 -> 6950 | AM168: =給与台帳9月!L$44 -> 13000 | AN168: =給与台帳9月!L$45 -> 0 | AO168: =給与台帳9月!L$46 -> 0 | AP168: =給与台帳9月!L$47 -> 0 | AQ168: =給与台帳9月!L$48 -> 19950 | AR168: =給与台帳9月!L$49 -> 251152 | AS168: =給与台帳9月!L$50 -> 0 | AT168: =給与台帳9月!L$51 -> 251152 | AU168: =給与台帳9月!L$52 -> 九月もお疲れ様でした
B169: 9 | C169: =給与台帳9月!R$8 -> 3 | D169: =給与台帳9月!R$9 -> 今野 祥子 | E169: =給与台帳9月!R$10 -> 役員 | F169: =給与台帳9月!R$11 -> 甲欄 | G169: =給与台帳9月!R$12 -> 71 | H169: =給与台帳9月!R$13 -> 0 | I169: =給与台帳9月!R$14 -> 0 | J169: =給与台帳9月!R$15 -> 0 | K169: =給与台帳9月!R$16 -> 0 | L169: =給与台帳9月!R$17 -> 0 | M169: =給与台帳9月!R$18 -> 0 | N169: =給与台帳9月!R$19 -> 0 | O169: =給与台帳9月!R$20 -> 0 | P169: =給与台帳9月!R$21 -> 0 | Q169: =給与台帳9月!R$22 -> 0 | R169: =給与台帳9月!R$23 -> 0 | S169: =給与台帳9月!R$24 -> 80000 | T169: =給与台帳9月!R$25 -> 0 | U169: =給与台帳9月!R$26 -> 0 | V169: =給与台帳9月!R$27 -> 0 | W169: =給与台帳9月!R$28 -> 0 | X169: =給与台帳9月!R$29 -> 0 | Y169: =給与台帳9月!R$30 -> 0 | Z169: =給与台帳9月!R$31 -> 0 | AA169: =給与台帳9月!R$32 -> 0 | AB169: =給与台帳9月!R$33 -> 0 | AC169: =給与台帳9月!R$34 -> 80000 | AD169: =給与台帳9月!R$35 -> 0 | AE169: =給与台帳9月!R$36 -> 80000 | AF169: =給与台帳9月!R$37 -> 0 | AG169: =給与台帳9月!R$38 -> 0 | AH169: =給与台帳9月!R$39 -> 0 | AI169: =給与台帳9月!R$40 -> 0 | AJ169: =給与台帳9月!R$41 -> 0 | AK169: =給与台帳9月!R$42 -> 80000 | AL169: =給与台帳9月!R$43 -> 0 | AM169: =給与台帳9月!R$44 -> 0 | AN169: =給与台帳9月!R$45 -> 0 | AO169: =給与台帳9月!R$46 -> 0 | AP169: =給与台帳9月!R$47 -> 0 | AQ169: =給与台帳9月!R$48 -> 0 | AR169: =給与台帳9月!R$49 -> 80000 | AS169: =給与台帳9月!R$50 -> 0 | AT169: =給与台帳9月!R$51 -> 80000 | AU169: =給与台帳9月!R$52 -> 九月もお疲れ様でした
B170: 9 | C170: =給与台帳9月!X$8 -> 4 | D170: =給与台帳9月!X$9 -> 川西 めぐみ | E170: =給与台帳9月!X$10 -> 従業員（雇保加入） | F170: =給与台帳9月!X$11 -> 甲欄 | G170: =給与台帳9月!X$12 -> 49 | H170: =給与台帳9月!X$13 -> 1 | I170: =給与台帳9月!X$14 -> 220000 | J170: =給与台帳9月!X$15 -> 220000 | K170: =給与台帳9月!X$16 -> 19日 | L170: =給与台帳9月!X$17 -> 142時間 | M170: =給与台帳9月!X$18 -> 3時間 | N170: =給与台帳9月!X$19 -> 5時間 | O170: =給与台帳9月!X$20 -> 0 | P170: =給与台帳9月!X$21 -> 0 | Q170: =給与台帳9月!X$22 -> 1時間 | R170: =給与台帳9月!X$23 -> 0 | S170: =給与台帳9月!X$24 -> 0 | T170: =給与台帳9月!X$25 -> 225000 | U170: =給与台帳9月!X$26 -> 17157 | V170: =給与台帳9月!X$27 -> 0 | W170: =給与台帳9月!X$28 -> 0 | X170: =給与台帳9月!X$29 -> 0 | Y170: =給与台帳9月!X$30 -> 0 | Z170: =給与台帳9月!X$31 -> 0 | AA170: =給与台帳9月!X$32 -> 18370 | AB170: =給与台帳9月!X$33 -> 0 | AC170: =給与台帳9月!X$34 -> 242157 | AD170: =給与台帳9月!X$35 -> 18370 | AE170: =給与台帳9月!X$36 -> 260527 | AF170: =給与台帳9月!X$37 -> 10472 | AG170: =給与台帳9月!X$38 -> 1661 | AH170: =給与台帳9月!X$39 -> 18053 | AI170: =給与台帳9月!X$40 -> 1302 | AJ170: =給与台帳9月!X$41 -> 31488 | AK170: =給与台帳9月!X$42 -> 210669 | AL170: =給与台帳9月!X$43 -> 3530 | AM170: =給与台帳9月!X$44 -> 9000 | AN170: =給与台帳9月!X$45 -> 0 | AO170: =給与台帳9月!X$46 -> 0 | AP170: =給与台帳9月!X$47 -> 0 | AQ170: =給与台帳9月!X$48 -> 12530 | AR170: =給与台帳9月!X$49 -> 216509 | AS170: =給与台帳9月!X$50 -> 0 | AT170: =給与台帳9月!X$51 -> 216509 | AU170: =給与台帳9月!X$52 -> 九月もお疲れ様でした
B171: 9 | C171: =給与台帳9月!AD$8 -> 5 | D171: =給与台帳9月!AD$9 -> 鳥居 雅之 | E171: =給与台帳9月!AD$10 -> 従業員（雇保非加入） | F171: =給与台帳9月!AD$11 -> 乙欄 | G171: =給与台帳9月!AD$12 -> 35 | H171: =給与台帳9月!AD$13 -> 0 | I171: =給与台帳9月!AD$14 -> 0 | J171: =給与台帳9月!AD$15 -> 0 | K171: =給与台帳9月!AD$16 -> 9日 | L171: =給与台帳9月!AD$17 -> 36時間 | M171: =給与台帳9月!AD$18 -> 0 | N171: =給与台帳9月!AD$19 -> 0 | O171: =給与台帳9月!AD$20 -> 0 | P171: =給与台帳9月!AD$21 -> 0 | Q171: =給与台帳9月!AD$22 -> 0 | R171: =給与台帳9月!AD$23 -> 0 | S171: =給与台帳9月!AD$24 -> 0 | T171: =給与台帳9月!AD$25 -> 45000 | U171: =給与台帳9月!AD$26 -> 0 | V171: =給与台帳9月!AD$27 -> 0 | W171: =給与台帳9月!AD$28 -> 0 | X171: =給与台帳9月!AD$29 -> 0 | Y171: =給与台帳9月!AD$30 -> 0 | Z171: =給与台帳9月!AD$31 -> 0 | AA171: =給与台帳9月!AD$32 -> 0 | AB171: =給与台帳9月!AD$33 -> 0 | AC171: =給与台帳9月!AD$34 -> 45000 | AD171: =給与台帳9月!AD$35 -> 0 | AE171: =給与台帳9月!AD$36 -> 45000 | AF171: =給与台帳9月!AD$37 -> 0 | AG171: =給与台帳9月!AD$38 -> 0 | AH171: =給与台帳9月!AD$39 -> 0 | AI171: =給与台帳9月!AD$40 -> 0 | AJ171: =給与台帳9月!AD$41 -> 0 | AK171: =給与台帳9月!AD$42 -> 45000 | AL171: =給与台帳9月!AD$43 -> 1378 | AM171: =給与台帳9月!AD$44 -> 0 | AN171: =給与台帳9月!AD$45 -> 0 | AO171: =給与台帳9月!AD$46 -> 0 | AP171: =給与台帳9月!AD$47 -> 0 | AQ171: =給与台帳9月!AD$48 -> 1378 | AR171: =給与台帳9月!AD$49 -> 43622 | AS171: =給与台帳9月!AD$50 -> 0 | AT171: =給与台帳9月!AD$51 -> 43622 | AU171: =給与台帳9月!AD$52 -> 九月もお疲れ様でした
B172: 9 | C172: =給与台帳9月!AJ$8 -> 6 | D172: =給与台帳9月!AJ$9 -> 笹部 菜穂美 | E172: =給与台帳9月!AJ$10 -> 従業員（雇保加入） | F172: =給与台帳9月!AJ$11 -> 甲欄 | G172: =給与台帳9月!AJ$12 -> 31 | H172: =給与台帳9月!AJ$13 -> 0 | I172: =給与台帳9月!AJ$14 -> 180000 | J172: =給与台帳9月!AJ$15 -> 180000 | K172: =給与台帳9月!AJ$16 -> 19日 | L172: =給与台帳9月!AJ$17 -> 142時間 | M172: =給与台帳9月!AJ$18 -> 0 | N172: =給与台帳9月!AJ$19 -> 0 | O172: =給与台帳9月!AJ$20 -> 0 | P172: =給与台帳9月!AJ$21 -> 0 | Q172: =給与台帳9月!AJ$22 -> 0 | R172: =給与台帳9月!AJ$23 -> 0 | S172: =給与台帳9月!AJ$24 -> 0 | T172: =給与台帳9月!AJ$25 -> 180000 | U172: =給与台帳9月!AJ$26 -> 0 | V172: =給与台帳9月!AJ$27 -> 0 | W172: =給与台帳9月!AJ$28 -> 0 | X172: =給与台帳9月!AJ$29 -> 0 | Y172: =給与台帳9月!AJ$30 -> 0 | Z172: =給与台帳9月!AJ$31 -> 0 | AA172: =給与台帳9月!AJ$32 -> 0 | AB172: =給与台帳9月!AJ$33 -> 0 | AC172: =給与台帳9月!AJ$34 -> 180000 | AD172: =給与台帳9月!AJ$35 -> 0 | AE172: =給与台帳9月!AJ$36 -> 180000 | AF172: =給与台帳9月!AJ$37 -> 8568 | AG172: =給与台帳9月!AJ$38 -> 0 | AH172: =給与台帳9月!AJ$39 -> 14770 | AI172: =給与台帳9月!AJ$40 -> 900 | AJ172: =給与台帳9月!AJ$41 -> 24238 | AK172: =給与台帳9月!AJ$42 -> 155762 | AL172: =給与台帳9月!AJ$43 -> 3180 | AM172: =給与台帳9月!AJ$44 -> 0 | AN172: =給与台帳9月!AJ$45 -> 0 | AO172: =給与台帳9月!AJ$46 -> 0 | AP172: =給与台帳9月!AJ$47 -> 0 | AQ172: =給与台帳9月!AJ$48 -> 3180 | AR172: =給与台帳9月!AJ$49 -> 152582 | AS172: =給与台帳9月!AJ$50 -> 0 | AT172: =給与台帳9月!AJ$51 -> 152582 | AU172: =給与台帳9月!AJ$52 -> 九月もお疲れ様でした
B173: 9 | C173: =給与台帳9月!AP$8 -> 7 | D173: =給与台帳9月!AP$9 -> 絹延橋 みつ子 | E173: =給与台帳9月!AP$10 -> 従業員（雇保加入） | F173: =給与台帳9月!AP$11 -> 甲欄 | G173: =給与台帳9月!AP$12 -> 47 | H173: =給与台帳9月!AP$13 -> 0 | I173: =給与台帳9月!AP$14 -> 0 | J173: =給与台帳9月!AP$15 -> 0 | K173: =給与台帳9月!AP$16 -> 0 | L173: =給与台帳9月!AP$17 -> 0 | M173: =給与台帳9月!AP$18 -> 0 | N173: =給与台帳9月!AP$19 -> 0 | O173: =給与台帳9月!AP$20 -> 0 | P173: =給与台帳9月!AP$21 -> 0 | Q173: =給与台帳9月!AP$22 -> 0 | R173: =給与台帳9月!AP$23 -> 0 | S173: =給与台帳9月!AP$24 -> 0 | T173: =給与台帳9月!AP$25 -> 0 | U173: =給与台帳9月!AP$26 -> 0 | V173: =給与台帳9月!AP$27 -> 0 | W173: =給与台帳9月!AP$28 -> 0 | X173: =給与台帳9月!AP$29 -> 0 | Y173: =給与台帳9月!AP$30 -> 0 | Z173: =給与台帳9月!AP$31 -> 0 | AA173: =給与台帳9月!AP$32 -> 0 | AB173: =給与台帳9月!AP$33 -> 0 | AC173: =給与台帳9月!AP$34 -> 0 | AD173: =給与台帳9月!AP$35 -> 0 | AE173: =給与台帳9月!AP$36 -> 0 | AF173: =給与台帳9月!AP$37 -> 0 | AG173: =給与台帳9月!AP$38 -> 0 | AH173: =給与台帳9月!AP$39 -> 0 | AI173: =給与台帳9月!AP$40 -> 0 | AJ173: =給与台帳9月!AP$41 -> 0 | AK173: =給与台帳9月!AP$42 -> 0 | AL173: =給与台帳9月!AP$43 -> 0 | AM173: =給与台帳9月!AP$44 -> 0 | AN173: =給与台帳9月!AP$45 -> 0 | AO173: =給与台帳9月!AP$46 -> 0 | AP173: =給与台帳9月!AP$47 -> 0 | AQ173: =給与台帳9月!AP$48 -> 0 | AR173: =給与台帳9月!AP$49 -> 0 | AS173: =給与台帳9月!AP$50 -> 0 | AT173: =給与台帳9月!AP$51 -> 0 | AU173: =給与台帳9月!AP$52 -> 九月もお疲れ様でした
B174: 9 | C174: =給与台帳9月!AV$8 -> 8 | D174: =給与台帳9月!AV$9 -> 山下 崇 | E174: =給与台帳9月!AV$10 -> 従業員（雇保加入） | F174: =給与台帳9月!AV$11 -> 甲欄 | G174: =給与台帳9月!AV$12 -> 34 | H174: =給与台帳9月!AV$13 -> 0 | I174: =給与台帳9月!AV$14 -> 0 | J174: =給与台帳9月!AV$15 -> 0 | K174: =給与台帳9月!AV$16 -> 0 | L174: =給与台帳9月!AV$17 -> 0 | M174: =給与台帳9月!AV$18 -> 0 | N174: =給与台帳9月!AV$19 -> 0 | O174: =給与台帳9月!AV$20 -> 0 | P174: =給与台帳9月!AV$21 -> 0 | Q174: =給与台帳9月!AV$22 -> 0 | R174: =給与台帳9月!AV$23 -> 0 | S174: =給与台帳9月!AV$24 -> 0 | T174: =給与台帳9月!AV$25 -> 0 | U174: =給与台帳9月!AV$26 -> 0 | V174: =給与台帳9月!AV$27 -> 0 | W174: =給与台帳9月!AV$28 -> 0 | X174: =給与台帳9月!AV$29 -> 0 | Y174: =給与台帳9月!AV$30 -> 0 | Z174: =給与台帳9月!AV$31 -> 0 | AA174: =給与台帳9月!AV$32 -> 0 | AB174: =給与台帳9月!AV$33 -> 0 | AC174: =給与台帳9月!AV$34 -> 0 | AD174: =給与台帳9月!AV$35 -> 0 | AE174: =給与台帳9月!AV$36 -> 0 | AF174: =給与台帳9月!AV$37 -> 0 | AG174: =給与台帳9月!AV$38 -> 0 | AH174: =給与台帳9月!AV$39 -> 0 | AI174: =給与台帳9月!AV$40 -> 0 | AJ174: =給与台帳9月!AV$41 -> 0 | AK174: =給与台帳9月!AV$42 -> 0 | AL174: =給与台帳9月!AV$43 -> 0 | AM174: =給与台帳9月!AV$44 -> 0 | AN174: =給与台帳9月!AV$45 -> 0 | AO174: =給与台帳9月!AV$46 -> 0 | AP174: =給与台帳9月!AV$47 -> 0 | AQ174: =給与台帳9月!AV$48 -> 0 | AR174: =給与台帳9月!AV$49 -> 0 | AS174: =給与台帳9月!AV$50 -> 0 | AT174: =給与台帳9月!AV$51 -> 0 | AU174: =給与台帳9月!AV$52 -> 九月もお疲れ様でした
B175: 9 | C175: =給与台帳9月!BB$8 -> 9 | D175: =給与台帳9月!BB$9 ->  | E175: =給与台帳9月!BB$10 ->  | F175: =給与台帳9月!BB$11 ->  | G175: =給与台帳9月!BB$12 ->  | H175: =給与台帳9月!BB$13 -> 0 | I175: =給与台帳9月!BB$14 -> 0 | J175: =給与台帳9月!BB$15 -> 0 | K175: =給与台帳9月!BB$16 -> 0 | L175: =給与台帳9月!BB$17 -> 0 | M175: =給与台帳9月!BB$18 -> 0 | N175: =給与台帳9月!BB$19 -> 0 | O175: =給与台帳9月!BB$20 -> 0 | P175: =給与台帳9月!BB$21 -> 0 | Q175: =給与台帳9月!BB$22 -> 0 | R175: =給与台帳9月!BB$23 -> 0 | S175: =給与台帳9月!BB$24 -> 0 | T175: =給与台帳9月!BB$25 -> 0 | U175: =給与台帳9月!BB$26 -> 0 | V175: =給与台帳9月!BB$27 -> 0 | W175: =給与台帳9月!BB$28 -> 0 | X175: =給与台帳9月!BB$29 -> 0 | Y175: =給与台帳9月!BB$30 -> 0 | Z175: =給与台帳9月!BB$31 -> 0 | AA175: =給与台帳9月!BB$32 -> 0 | AB175: =給与台帳9月!BB$33 -> 0 | AC175: =給与台帳9月!BB$34 -> 0 | AD175: =給与台帳9月!BB$35 -> 0 | AE175: =給与台帳9月!BB$36 -> 0 | AF175: =給与台帳9月!BB$37 -> 0 | AG175: =給与台帳9月!BB$38 -> 0 | AH175: =給与台帳9月!BB$39 -> 0 | AI175: =給与台帳9月!BB$40 -> 0 | AJ175: =給与台帳9月!BB$41 -> 0 | AK175: =給与台帳9月!BB$42 -> 0 | AL175: =給与台帳9月!BB$43 -> 0 | AM175: =給与台帳9月!BB$44 -> 0 | AN175: =給与台帳9月!BB$45 -> 0 | AO175: =給与台帳9月!BB$46 -> 0 | AP175: =給与台帳9月!BB$47 -> 0 | AQ175: =給与台帳9月!BB$48 -> 0 | AR175: =給与台帳9月!BB$49 -> 0 | AS175: =給与台帳9月!BB$50 -> 0 | AT175: =給与台帳9月!BB$51 -> 0 | AU175: =給与台帳9月!BB$52 -> 九月もお疲れ様でした
B176: 9 | C176: =給与台帳9月!BH$8 -> 10 | D176: =給与台帳9月!BH$9 ->  | E176: =給与台帳9月!BH$10 ->  | F176: =給与台帳9月!BH$11 ->  | G176: =給与台帳9月!BH$12 ->  | H176: =給与台帳9月!BH$13 -> 0 | I176: =給与台帳9月!BH$14 -> 0 | J176: =給与台帳9月!BH$15 -> 0 | K176: =給与台帳9月!BH$16 -> 0 | L176: =給与台帳9月!BH$17 -> 0 | M176: =給与台帳9月!BH$18 -> 0 | N176: =給与台帳9月!BH$19 -> 0 | O176: =給与台帳9月!BH$20 -> 0 | P176: =給与台帳9月!BH$21 -> 0 | Q176: =給与台帳9月!BH$22 -> 0 | R176: =給与台帳9月!BH$23 -> 0 | S176: =給与台帳9月!BH$24 -> 0 | T176: =給与台帳9月!BH$25 -> 0 | U176: =給与台帳9月!BH$26 -> 0 | V176: =給与台帳9月!BH$27 -> 0 | W176: =給与台帳9月!BH$28 -> 0 | X176: =給与台帳9月!BH$29 -> 0 | Y176: =給与台帳9月!BH$30 -> 0 | Z176: =給与台帳9月!BH$31 -> 0 | AA176: =給与台帳9月!BH$32 -> 0 | AB176: =給与台帳9月!BH$33 -> 0 | AC176: =給与台帳9月!BH$34 -> 0 | AD176: =給与台帳9月!BH$35 -> 0 | AE176: =給与台帳9月!BH$36 -> 0 | AF176: =給与台帳9月!BH$37 -> 0 | AG176: =給与台帳9月!BH$38 -> 0 | AH176: =給与台帳9月!BH$39 -> 0 | AI176: =給与台帳9月!BH$40 -> 0 | AJ176: =給与台帳9月!BH$41 -> 0 | AK176: =給与台帳9月!BH$42 -> 0 | AL176: =給与台帳9月!BH$43 -> 0 | AM176: =給与台帳9月!BH$44 -> 0 | AN176: =給与台帳9月!BH$45 -> 0 | AO176: =給与台帳9月!BH$46 -> 0 | AP176: =給与台帳9月!BH$47 -> 0 | AQ176: =給与台帳9月!BH$48 -> 0 | AR176: =給与台帳9月!BH$49 -> 0 | AS176: =給与台帳9月!BH$50 -> 0 | AT176: =給与台帳9月!BH$51 -> 0 | AU176: =給与台帳9月!BH$52 -> 九月もお疲れ様でした
B177: 9 | C177: =給与台帳9月!BN$8 -> 11 | D177: =給与台帳9月!BN$9 ->  | E177: =給与台帳9月!BN$10 ->  | F177: =給与台帳9月!BN$11 ->  | G177: =給与台帳9月!BN$12 ->  | H177: =給与台帳9月!BN$13 -> 0 | I177: =給与台帳9月!BN$14 -> 0 | J177: =給与台帳9月!BN$15 -> 0 | K177: =給与台帳9月!BN$16 -> 0 | L177: =給与台帳9月!BN$17 -> 0 | M177: =給与台帳9月!BN$18 -> 0 | N177: =給与台帳9月!BN$19 -> 0 | O177: =給与台帳9月!BN$20 -> 0 | P177: =給与台帳9月!BN$21 -> 0 | Q177: =給与台帳9月!BN$22 -> 0 | R177: =給与台帳9月!BN$23 -> 0 | S177: =給与台帳9月!BN$24 -> 0 | T177: =給与台帳9月!BN$25 -> 0 | U177: =給与台帳9月!BN$26 -> 0 | V177: =給与台帳9月!BN$27 -> 0 | W177: =給与台帳9月!BN$28 -> 0 | X177: =給与台帳9月!BN$29 -> 0 | Y177: =給与台帳9月!BN$30 -> 0 | Z177: =給与台帳9月!BN$31 -> 0 | AA177: =給与台帳9月!BN$32 -> 0 | AB177: =給与台帳9月!BN$33 -> 0 | AC177: =給与台帳9月!BN$34 -> 0 | AD177: =給与台帳9月!BN$35 -> 0 | AE177: =給与台帳9月!BN$36 -> 0 | AF177: =給与台帳9月!BN$37 -> 0 | AG177: =給与台帳9月!BN$38 -> 0 | AH177: =給与台帳9月!BN$39 -> 0 | AI177: =給与台帳9月!BN$40 -> 0 | AJ177: =給与台帳9月!BN$41 -> 0 | AK177: =給与台帳9月!BN$42 -> 0 | AL177: =給与台帳9月!BN$43 -> 0 | AM177: =給与台帳9月!BN$44 -> 0 | AN177: =給与台帳9月!BN$45 -> 0 | AO177: =給与台帳9月!BN$46 -> 0 | AP177: =給与台帳9月!BN$47 -> 0 | AQ177: =給与台帳9月!BN$48 -> 0 | AR177: =給与台帳9月!BN$49 -> 0 | AS177: =給与台帳9月!BN$50 -> 0 | AT177: =給与台帳9月!BN$51 -> 0 | AU177: =給与台帳9月!BN$52 -> 九月もお疲れ様でした
B178: 9 | C178: =給与台帳9月!BT$8 -> 12 | D178: =給与台帳9月!BT$9 ->  | E178: =給与台帳9月!BT$10 ->  | F178: =給与台帳9月!BT$11 ->  | G178: =給与台帳9月!BT$12 ->  | H178: =給与台帳9月!BT$13 -> 0 | I178: =給与台帳9月!BT$14 -> 0 | J178: =給与台帳9月!BT$15 -> 0 | K178: =給与台帳9月!BT$16 -> 0 | L178: =給与台帳9月!BT$17 -> 0 | M178: =給与台帳9月!BT$18 -> 0 | N178: =給与台帳9月!BT$19 -> 0 | O178: =給与台帳9月!BT$20 -> 0 | P178: =給与台帳9月!BT$21 -> 0 | Q178: =給与台帳9月!BT$22 -> 0 | R178: =給与台帳9月!BT$23 -> 0 | S178: =給与台帳9月!BT$24 -> 0 | T178: =給与台帳9月!BT$25 -> 0 | U178: =給与台帳9月!BT$26 -> 0 | V178: =給与台帳9月!BT$27 -> 0 | W178: =給与台帳9月!BT$28 -> 0 | X178: =給与台帳9月!BT$29 -> 0 | Y178: =給与台帳9月!BT$30 -> 0 | Z178: =給与台帳9月!BT$31 -> 0 | AA178: =給与台帳9月!BT$32 -> 0 | AB178: =給与台帳9月!BT$33 -> 0 | AC178: =給与台帳9月!BT$34 -> 0 | AD178: =給与台帳9月!BT$35 -> 0 | AE178: =給与台帳9月!BT$36 -> 0 | AF178: =給与台帳9月!BT$37 -> 0 | AG178: =給与台帳9月!BT$38 -> 0 | AH178: =給与台帳9月!BT$39 -> 0 | AI178: =給与台帳9月!BT$40 -> 0 | AJ178: =給与台帳9月!BT$41 -> 0 | AK178: =給与台帳9月!BT$42 -> 0 | AL178: =給与台帳9月!BT$43 -> 0 | AM178: =給与台帳9月!BT$44 -> 0 | AN178: =給与台帳9月!BT$45 -> 0 | AO178: =給与台帳9月!BT$46 -> 0 | AP178: =給与台帳9月!BT$47 -> 0 | AQ178: =給与台帳9月!BT$48 -> 0 | AR178: =給与台帳9月!BT$49 -> 0 | AS178: =給与台帳9月!BT$50 -> 0 | AT178: =給与台帳9月!BT$51 -> 0 | AU178: =給与台帳9月!BT$52 -> 九月もお疲れ様でした
B179: 9 | C179: =給与台帳9月!BZ$8 -> 13 | D179: =給与台帳9月!BZ$9 ->  | E179: =給与台帳9月!BZ$10 ->  | F179: =給与台帳9月!BZ$11 ->  | G179: =給与台帳9月!BZ$12 ->  | H179: =給与台帳9月!BZ$13 -> 0 | I179: =給与台帳9月!BZ$14 -> 0 | J179: =給与台帳9月!BZ$15 -> 0 | K179: =給与台帳9月!BZ$16 -> 0 | L179: =給与台帳9月!BZ$17 -> 0 | M179: =給与台帳9月!BZ$18 -> 0 | N179: =給与台帳9月!BZ$19 -> 0 | O179: =給与台帳9月!BZ$20 -> 0 | P179: =給与台帳9月!BZ$21 -> 0 | Q179: =給与台帳9月!BZ$22 -> 0 | R179: =給与台帳9月!BZ$23 -> 0 | S179: =給与台帳9月!BZ$24 -> 0 | T179: =給与台帳9月!BZ$25 -> 0 | U179: =給与台帳9月!BZ$26 -> 0 | V179: =給与台帳9月!BZ$27 -> 0 | W179: =給与台帳9月!BZ$28 -> 0 | X179: =給与台帳9月!BZ$29 -> 0 | Y179: =給与台帳9月!BZ$30 -> 0 | Z179: =給与台帳9月!BZ$31 -> 0 | AA179: =給与台帳9月!BZ$32 -> 0 | AB179: =給与台帳9月!BZ$33 -> 0 | AC179: =給与台帳9月!BZ$34 -> 0 | AD179: =給与台帳9月!BZ$35 -> 0 | AE179: =給与台帳9月!BZ$36 -> 0 | AF179: =給与台帳9月!BZ$37 -> 0 | AG179: =給与台帳9月!BZ$38 -> 0 | AH179: =給与台帳9月!BZ$39 -> 0 | AI179: =給与台帳9月!BZ$40 -> 0 | AJ179: =給与台帳9月!BZ$41 -> 0 | AK179: =給与台帳9月!BZ$42 -> 0 | AL179: =給与台帳9月!BZ$43 -> 0 | AM179: =給与台帳9月!BZ$44 -> 0 | AN179: =給与台帳9月!BZ$45 -> 0 | AO179: =給与台帳9月!BZ$46 -> 0 | AP179: =給与台帳9月!BZ$47 -> 0 | AQ179: =給与台帳9月!BZ$48 -> 0 | AR179: =給与台帳9月!BZ$49 -> 0 | AS179: =給与台帳9月!BZ$50 -> 0 | AT179: =給与台帳9月!BZ$51 -> 0 | AU179: =給与台帳9月!BZ$52 -> 九月もお疲れ様でした
B180: 9 | C180: =給与台帳9月!CF$8 -> 14 | D180: =給与台帳9月!CF$9 ->  | E180: =給与台帳9月!CF$10 ->  | F180: =給与台帳9月!CF$11 ->  | G180: =給与台帳9月!CF$12 ->  | H180: =給与台帳9月!CF$13 -> 0 | I180: =給与台帳9月!CF$14 -> 0 | J180: =給与台帳9月!CF$15 -> 0 | K180: =給与台帳9月!CF$16 -> 0 | L180: =給与台帳9月!CF$17 -> 0 | M180: =給与台帳9月!CF$18 -> 0 | N180: =給与台帳9月!CF$19 -> 0 | O180: =給与台帳9月!CF$20 -> 0 | P180: =給与台帳9月!CF$21 -> 0 | Q180: =給与台帳9月!CF$22 -> 0 | R180: =給与台帳9月!CF$23 -> 0 | S180: =給与台帳9月!CF$24 -> 0 | T180: =給与台帳9月!CF$25 -> 0 | U180: =給与台帳9月!CF$26 -> 0 | V180: =給与台帳9月!CF$27 -> 0 | W180: =給与台帳9月!CF$28 -> 0 | X180: =給与台帳9月!CF$29 -> 0 | Y180: =給与台帳9月!CF$30 -> 0 | Z180: =給与台帳9月!CF$31 -> 0 | AA180: =給与台帳9月!CF$32 -> 0 | AB180: =給与台帳9月!CF$33 -> 0 | AC180: =給与台帳9月!CF$34 -> 0 | AD180: =給与台帳9月!CF$35 -> 0 | AE180: =給与台帳9月!CF$36 -> 0 | AF180: =給与台帳9月!CF$37 -> 0 | AG180: =給与台帳9月!CF$38 -> 0 | AH180: =給与台帳9月!CF$39 -> 0 | AI180: =給与台帳9月!CF$40 -> 0 | AJ180: =給与台帳9月!CF$41 -> 0 | AK180: =給与台帳9月!CF$42 -> 0 | AL180: =給与台帳9月!CF$43 -> 0 | AM180: =給与台帳9月!CF$44 -> 0 | AN180: =給与台帳9月!CF$45 -> 0 | AO180: =給与台帳9月!CF$46 -> 0 | AP180: =給与台帳9月!CF$47 -> 0 | AQ180: =給与台帳9月!CF$48 -> 0 | AR180: =給与台帳9月!CF$49 -> 0 | AS180: =給与台帳9月!CF$50 -> 0 | AT180: =給与台帳9月!CF$51 -> 0 | AU180: =給与台帳9月!CF$52 -> 九月もお疲れ様でした
B181: 9 | C181: =給与台帳9月!CL$8 -> 15 | D181: =給与台帳9月!CL$9 ->  | E181: =給与台帳9月!CL$10 ->  | F181: =給与台帳9月!CL$11 ->  | G181: =給与台帳9月!CL$12 ->  | H181: =給与台帳9月!CL$13 -> 0 | I181: =給与台帳9月!CL$14 -> 0 | J181: =給与台帳9月!CL$15 -> 0 | K181: =給与台帳9月!CL$16 -> 0 | L181: =給与台帳9月!CL$17 -> 0 | M181: =給与台帳9月!CL$18 -> 0 | N181: =給与台帳9月!CL$19 -> 0 | O181: =給与台帳9月!CL$20 -> 0 | P181: =給与台帳9月!CL$21 -> 0 | Q181: =給与台帳9月!CL$22 -> 0 | R181: =給与台帳9月!CL$23 -> 0 | S181: =給与台帳9月!CL$24 -> 0 | T181: =給与台帳9月!CL$25 -> 0 | U181: =給与台帳9月!CL$26 -> 0 | V181: =給与台帳9月!CL$27 -> 0 | W181: =給与台帳9月!CL$28 -> 0 | X181: =給与台帳9月!CL$29 -> 0 | Y181: =給与台帳9月!CL$30 -> 0 | Z181: =給与台帳9月!CL$31 -> 0 | AA181: =給与台帳9月!CL$32 -> 0 | AB181: =給与台帳9月!CL$33 -> 0 | AC181: =給与台帳9月!CL$34 -> 0 | AD181: =給与台帳9月!CL$35 -> 0 | AE181: =給与台帳9月!CL$36 -> 0 | AF181: =給与台帳9月!CL$37 -> 0 | AG181: =給与台帳9月!CL$38 -> 0 | AH181: =給与台帳9月!CL$39 -> 0 | AI181: =給与台帳9月!CL$40 -> 0 | AJ181: =給与台帳9月!CL$41 -> 0 | AK181: =給与台帳9月!CL$42 -> 0 | AL181: =給与台帳9月!CL$43 -> 0 | AM181: =給与台帳9月!CL$44 -> 0 | AN181: =給与台帳9月!CL$45 -> 0 | AO181: =給与台帳9月!CL$46 -> 0 | AP181: =給与台帳9月!CL$47 -> 0 | AQ181: =給与台帳9月!CL$48 -> 0 | AR181: =給与台帳9月!CL$49 -> 0 | AS181: =給与台帳9月!CL$50 -> 0 | AT181: =給与台帳9月!CL$51 -> 0 | AU181: =給与台帳9月!CL$52 -> 九月もお疲れ様でした
B182: 9 | C182: =給与台帳9月!CR$8 -> 16 | D182: =給与台帳9月!CR$9 ->  | E182: =給与台帳9月!CR$10 ->  | F182: =給与台帳9月!CR$11 ->  | G182: =給与台帳9月!CR$12 ->  | H182: =給与台帳9月!CR$13 -> 0 | I182: =給与台帳9月!CR$14 -> 0 | J182: =給与台帳9月!CR$15 -> 0 | K182: =給与台帳9月!CR$16 -> 0 | L182: =給与台帳9月!CR$17 -> 0 | M182: =給与台帳9月!CR$18 -> 0 | N182: =給与台帳9月!CR$19 -> 0 | O182: =給与台帳9月!CR$20 -> 0 | P182: =給与台帳9月!CR$21 -> 0 | Q182: =給与台帳9月!CR$22 -> 0 | R182: =給与台帳9月!CR$23 -> 0 | S182: =給与台帳9月!CR$24 -> 0 | T182: =給与台帳9月!CR$25 -> 0 | U182: =給与台帳9月!CR$26 -> 0 | V182: =給与台帳9月!CR$27 -> 0 | W182: =給与台帳9月!CR$28 -> 0 | X182: =給与台帳9月!CR$29 -> 0 | Y182: =給与台帳9月!CR$30 -> 0 | Z182: =給与台帳9月!CR$31 -> 0 | AA182: =給与台帳9月!CR$32 -> 0 | AB182: =給与台帳9月!CR$33 -> 0 | AC182: =給与台帳9月!CR$34 -> 0 | AD182: =給与台帳9月!CR$35 -> 0 | AE182: =給与台帳9月!CR$36 -> 0 | AF182: =給与台帳9月!CR$37 -> 0 | AG182: =給与台帳9月!CR$38 -> 0 | AH182: =給与台帳9月!CR$39 -> 0 | AI182: =給与台帳9月!CR$40 -> 0 | AJ182: =給与台帳9月!CR$41 -> 0 | AK182: =給与台帳9月!CR$42 -> 0 | AL182: =給与台帳9月!CR$43 -> 0 | AM182: =給与台帳9月!CR$44 -> 0 | AN182: =給与台帳9月!CR$45 -> 0 | AO182: =給与台帳9月!CR$46 -> 0 | AP182: =給与台帳9月!CR$47 -> 0 | AQ182: =給与台帳9月!CR$48 -> 0 | AR182: =給与台帳9月!CR$49 -> 0 | AS182: =給与台帳9月!CR$50 -> 0 | AT182: =給与台帳9月!CR$51 -> 0 | AU182: =給与台帳9月!CR$52 -> 九月もお疲れ様でした
B183: 9 | C183: =給与台帳9月!CX$8 -> 17 | D183: =給与台帳9月!CX$9 ->  | E183: =給与台帳9月!CX$10 ->  | F183: =給与台帳9月!CX$11 ->  | G183: =給与台帳9月!CX$12 ->  | H183: =給与台帳9月!CX$13 -> 0 | I183: =給与台帳9月!CX$14 -> 0 | J183: =給与台帳9月!CX$15 -> 0 | K183: =給与台帳9月!CX$16 -> 0 | L183: =給与台帳9月!CX$17 -> 0 | M183: =給与台帳9月!CX$18 -> 0 | N183: =給与台帳9月!CX$19 -> 0 | O183: =給与台帳9月!CX$20 -> 0 | P183: =給与台帳9月!CX$21 -> 0 | Q183: =給与台帳9月!CX$22 -> 0 | R183: =給与台帳9月!CX$23 -> 0 | S183: =給与台帳9月!CX$24 -> 0 | T183: =給与台帳9月!CX$25 -> 0 | U183: =給与台帳9月!CX$26 -> 0 | V183: =給与台帳9月!CX$27 -> 0 | W183: =給与台帳9月!CX$28 -> 0 | X183: =給与台帳9月!CX$29 -> 0 | Y183: =給与台帳9月!CX$30 -> 0 | Z183: =給与台帳9月!CX$31 -> 0 | AA183: =給与台帳9月!CX$32 -> 0 | AB183: =給与台帳9月!CX$33 -> 0 | AC183: =給与台帳9月!CX$34 -> 0 | AD183: =給与台帳9月!CX$35 -> 0 | AE183: =給与台帳9月!CX$36 -> 0 | AF183: =給与台帳9月!CX$37 -> 0 | AG183: =給与台帳9月!CX$38 -> 0 | AH183: =給与台帳9月!CX$39 -> 0 | AI183: =給与台帳9月!CX$40 -> 0 | AJ183: =給与台帳9月!CX$41 -> 0 | AK183: =給与台帳9月!CX$42 -> 0 | AL183: =給与台帳9月!CX$43 -> 0 | AM183: =給与台帳9月!CX$44 -> 0 | AN183: =給与台帳9月!CX$45 -> 0 | AO183: =給与台帳9月!CX$46 -> 0 | AP183: =給与台帳9月!CX$47 -> 0 | AQ183: =給与台帳9月!CX$48 -> 0 | AR183: =給与台帳9月!CX$49 -> 0 | AS183: =給与台帳9月!CX$50 -> 0 | AT183: =給与台帳9月!CX$51 -> 0 | AU183: =給与台帳9月!CX$52 -> 九月もお疲れ様でした
B184: 9 | C184: =給与台帳9月!DD$8 -> 18 | D184: =給与台帳9月!DD$9 ->  | E184: =給与台帳9月!DD$10 ->  | F184: =給与台帳9月!DD$11 ->  | G184: =給与台帳9月!DD$12 ->  | H184: =給与台帳9月!DD$13 -> 0 | I184: =給与台帳9月!DD$14 -> 0 | J184: =給与台帳9月!DD$15 -> 0 | K184: =給与台帳9月!DD$16 -> 0 | L184: =給与台帳9月!DD$17 -> 0 | M184: =給与台帳9月!DD$18 -> 0 | N184: =給与台帳9月!DD$19 -> 0 | O184: =給与台帳9月!DD$20 -> 0 | P184: =給与台帳9月!DD$21 -> 0 | Q184: =給与台帳9月!DD$22 -> 0 | R184: =給与台帳9月!DD$23 -> 0 | S184: =給与台帳9月!DD$24 -> 0 | T184: =給与台帳9月!DD$25 -> 0 | U184: =給与台帳9月!DD$26 -> 0 | V184: =給与台帳9月!DD$27 -> 0 | W184: =給与台帳9月!DD$28 -> 0 | X184: =給与台帳9月!DD$29 -> 0 | Y184: =給与台帳9月!DD$30 -> 0 | Z184: =給与台帳9月!DD$31 -> 0 | AA184: =給与台帳9月!DD$32 -> 0 | AB184: =給与台帳9月!DD$33 -> 0 | AC184: =給与台帳9月!DD$34 -> 0 | AD184: =給与台帳9月!DD$35 -> 0 | AE184: =給与台帳9月!DD$36 -> 0 | AF184: =給与台帳9月!DD$37 -> 0 | AG184: =給与台帳9月!DD$38 -> 0 | AH184: =給与台帳9月!DD$39 -> 0 | AI184: =給与台帳9月!DD$40 -> 0 | AJ184: =給与台帳9月!DD$41 -> 0 | AK184: =給与台帳9月!DD$42 -> 0 | AL184: =給与台帳9月!DD$43 -> 0 | AM184: =給与台帳9月!DD$44 -> 0 | AN184: =給与台帳9月!DD$45 -> 0 | AO184: =給与台帳9月!DD$46 -> 0 | AP184: =給与台帳9月!DD$47 -> 0 | AQ184: =給与台帳9月!DD$48 -> 0 | AR184: =給与台帳9月!DD$49 -> 0 | AS184: =給与台帳9月!DD$50 -> 0 | AT184: =給与台帳9月!DD$51 -> 0 | AU184: =給与台帳9月!DD$52 -> 九月もお疲れ様でした
B185: 9
B186: 9
B187: 10 | C187: =給与台帳10月!F$8 -> 1 | D187: =給与台帳10月!F$9 -> 今野 友夫 | E187: =給与台帳10月!F$10 -> 役員 | F187: =給与台帳10月!F$11 -> 甲欄 | G187: =給与台帳10月!F$12 -> 45 | H187: =給与台帳10月!F$13 -> 1 | I187: =給与台帳10月!F$14 -> 500000 | J187: =給与台帳10月!F$15 -> 500000 | K187: =給与台帳10月!F$16 -> 0 | L187: =給与台帳10月!F$17 -> 0 | M187: =給与台帳10月!F$18 -> 0 | N187: =給与台帳10月!F$19 -> 0 | O187: =給与台帳10月!F$20 -> 0 | P187: =給与台帳10月!F$21 -> 0 | Q187: =給与台帳10月!F$22 -> 0 | R187: =給与台帳10月!F$23 -> 0 | S187: =給与台帳10月!F$24 -> 500000 | T187: =給与台帳10月!F$25 -> 0 | U187: =給与台帳10月!F$26 -> 0 | V187: =給与台帳10月!F$27 -> 0 | W187: =給与台帳10月!F$28 -> 0 | X187: =給与台帳10月!F$29 -> 0 | Y187: =給与台帳10月!F$30 -> 0 | Z187: =給与台帳10月!F$31 -> 0 | AA187: =給与台帳10月!F$32 -> 10000 | AB187: =給与台帳10月!F$33 -> 0 | AC187: =給与台帳10月!F$34 -> 500000 | AD187: =給与台帳10月!F$35 -> 10000 | AE187: =給与台帳10月!F$36 -> 510000 | AF187: =給与台帳10月!F$37 -> 23800 | AG187: =給与台帳10月!F$38 -> 0 | AH187: =給与台帳10月!F$39 -> 41030 | AI187: =給与台帳10月!F$40 -> 0 | AJ187: =給与台帳10月!F$41 -> 64830 | AK187: =給与台帳10月!F$42 -> 435170 | AL187: =給与台帳10月!F$43 -> 16190 | AM187: =給与台帳10月!F$44 -> 25000 | AN187: =給与台帳10月!F$45 -> 0 | AO187: =給与台帳10月!F$46 -> 0 | AP187: =給与台帳10月!F$47 -> 0 | AQ187: =給与台帳10月!F$48 -> 41190 | AR187: =給与台帳10月!F$49 -> 403980 | AS187: =給与台帳10月!F$50 -> 0 | AT187: =給与台帳10月!F$51 -> 403980 | AU187: =給与台帳10月!F$52 -> 十月もお疲れ様でした
B188: 10 | C188: =給与台帳10月!L$8 -> 2 | D188: =給与台帳10月!L$9 -> 今野 朝子 | E188: =給与台帳10月!L$10 -> 役員 | F188: =給与台帳10月!L$11 -> 甲欄 | G188: =給与台帳10月!L$12 -> 40 | H188: =給与台帳10月!L$13 -> 0 | I188: =給与台帳10月!L$14 -> 300000 | J188: =給与台帳10月!L$15 -> 300000 | K188: =給与台帳10月!L$16 -> 0 | L188: =給与台帳10月!L$17 -> 0 | M188: =給与台帳10月!L$18 -> 0 | N188: =給与台帳10月!L$19 -> 0 | O188: =給与台帳10月!L$20 -> 0 | P188: =給与台帳10月!L$21 -> 0 | Q188: =給与台帳10月!L$22 -> 0 | R188: =給与台帳10月!L$23 -> 0 | S188: =給与台帳10月!L$24 -> 300000 | T188: =給与台帳10月!L$25 -> 0 | U188: =給与台帳10月!L$26 -> 0 | V188: =給与台帳10月!L$27 -> 0 | W188: =給与台帳10月!L$28 -> 0 | X188: =給与台帳10月!L$29 -> 0 | Y188: =給与台帳10月!L$30 -> 0 | Z188: =給与台帳10月!L$31 -> 0 | AA188: =給与台帳10月!L$32 -> 10000 | AB188: =給与台帳10月!L$33 -> 0 | AC188: =給与台帳10月!L$34 -> 300000 | AD188: =給与台帳10月!L$35 -> 10000 | AE188: =給与台帳10月!L$36 -> 310000 | AF188: =給与台帳10月!L$37 -> 14280 | AG188: =給与台帳10月!L$38 -> 0 | AH188: =給与台帳10月!L$39 -> 24618 | AI188: =給与台帳10月!L$40 -> 0 | AJ188: =給与台帳10月!L$41 -> 38898 | AK188: =給与台帳10月!L$42 -> 261102 | AL188: =給与台帳10月!L$43 -> 6950 | AM188: =給与台帳10月!L$44 -> 13000 | AN188: =給与台帳10月!L$45 -> 0 | AO188: =給与台帳10月!L$46 -> 0 | AP188: =給与台帳10月!L$47 -> 0 | AQ188: =給与台帳10月!L$48 -> 19950 | AR188: =給与台帳10月!L$49 -> 251152 | AS188: =給与台帳10月!L$50 -> 0 | AT188: =給与台帳10月!L$51 -> 251152 | AU188: =給与台帳10月!L$52 -> 十月もお疲れ様でした
B189: 10 | C189: =給与台帳10月!R$8 -> 3 | D189: =給与台帳10月!R$9 -> 今野 祥子 | E189: =給与台帳10月!R$10 -> 役員 | F189: =給与台帳10月!R$11 -> 甲欄 | G189: =給与台帳10月!R$12 -> 71 | H189: =給与台帳10月!R$13 -> 0 | I189: =給与台帳10月!R$14 -> 0 | J189: =給与台帳10月!R$15 -> 0 | K189: =給与台帳10月!R$16 -> 0 | L189: =給与台帳10月!R$17 -> 0 | M189: =給与台帳10月!R$18 -> 0 | N189: =給与台帳10月!R$19 -> 0 | O189: =給与台帳10月!R$20 -> 0 | P189: =給与台帳10月!R$21 -> 0 | Q189: =給与台帳10月!R$22 -> 0 | R189: =給与台帳10月!R$23 -> 0 | S189: =給与台帳10月!R$24 -> 80000 | T189: =給与台帳10月!R$25 -> 0 | U189: =給与台帳10月!R$26 -> 0 | V189: =給与台帳10月!R$27 -> 0 | W189: =給与台帳10月!R$28 -> 0 | X189: =給与台帳10月!R$29 -> 0 | Y189: =給与台帳10月!R$30 -> 0 | Z189: =給与台帳10月!R$31 -> 0 | AA189: =給与台帳10月!R$32 -> 0 | AB189: =給与台帳10月!R$33 -> 0 | AC189: =給与台帳10月!R$34 -> 80000 | AD189: =給与台帳10月!R$35 -> 0 | AE189: =給与台帳10月!R$36 -> 80000 | AF189: =給与台帳10月!R$37 -> 0 | AG189: =給与台帳10月!R$38 -> 0 | AH189: =給与台帳10月!R$39 -> 0 | AI189: =給与台帳10月!R$40 -> 0 | AJ189: =給与台帳10月!R$41 -> 0 | AK189: =給与台帳10月!R$42 -> 80000 | AL189: =給与台帳10月!R$43 -> 0 | AM189: =給与台帳10月!R$44 -> 0 | AN189: =給与台帳10月!R$45 -> 0 | AO189: =給与台帳10月!R$46 -> 0 | AP189: =給与台帳10月!R$47 -> 0 | AQ189: =給与台帳10月!R$48 -> 0 | AR189: =給与台帳10月!R$49 -> 80000 | AS189: =給与台帳10月!R$50 -> 0 | AT189: =給与台帳10月!R$51 -> 80000 | AU189: =給与台帳10月!R$52 -> 十月もお疲れ様でした
B190: 10 | C190: =給与台帳10月!X$8 -> 4 | D190: =給与台帳10月!X$9 -> 川西 めぐみ | E190: =給与台帳10月!X$10 -> 従業員（雇保加入） | F190: =給与台帳10月!X$11 -> 甲欄 | G190: =給与台帳10月!X$12 -> 49 | H190: =給与台帳10月!X$13 -> 1 | I190: =給与台帳10月!X$14 -> 220000 | J190: =給与台帳10月!X$15 -> 220000 | K190: =給与台帳10月!X$16 -> 22日 | L190: =給与台帳10月!X$17 -> 159時間 | M190: =給与台帳10月!X$18 -> 3時間 | N190: =給与台帳10月!X$19 -> 2時間 | O190: =給与台帳10月!X$20 -> 0 | P190: =給与台帳10月!X$21 -> 0 | Q190: =給与台帳10月!X$22 -> 0 | R190: =給与台帳10月!X$23 -> 0 | S190: =給与台帳10月!X$24 -> 0 | T190: =給与台帳10月!X$25 -> 225000 | U190: =給与台帳10月!X$26 -> 8778 | V190: =給与台帳10月!X$27 -> 0 | W190: =給与台帳10月!X$28 -> 0 | X190: =給与台帳10月!X$29 -> 0 | Y190: =給与台帳10月!X$30 -> 0 | Z190: =給与台帳10月!X$31 -> 0 | AA190: =給与台帳10月!X$32 -> 18370 | AB190: =給与台帳10月!X$33 -> 0 | AC190: =給与台帳10月!X$34 -> 233778 | AD190: =給与台帳10月!X$35 -> 18370 | AE190: =給与台帳10月!X$36 -> 252148 | AF190: =給与台帳10月!X$37 -> 10472 | AG190: =給与台帳10月!X$38 -> 1661 | AH190: =給与台帳10月!X$39 -> 18053 | AI190: =給与台帳10月!X$40 -> 1260 | AJ190: =給与台帳10月!X$41 -> 31446 | AK190: =給与台帳10月!X$42 -> 202332 | AL190: =給与台帳10月!X$43 -> 3230 | AM190: =給与台帳10月!X$44 -> 9000 | AN190: =給与台帳10月!X$45 -> 0 | AO190: =給与台帳10月!X$46 -> 0 | AP190: =給与台帳10月!X$47 -> 0 | AQ190: =給与台帳10月!X$48 -> 12230 | AR190: =給与台帳10月!X$49 -> 208472 | AS190: =給与台帳10月!X$50 -> 0 | AT190: =給与台帳10月!X$51 -> 208472 | AU190: =給与台帳10月!X$52 -> 十月もお疲れ様でした
B191: 10 | C191: =給与台帳10月!AD$8 -> 5 | D191: =給与台帳10月!AD$9 -> 鳥居 雅之 | E191: =給与台帳10月!AD$10 -> 従業員（雇保非加入） | F191: =給与台帳10月!AD$11 -> 乙欄 | G191: =給与台帳10月!AD$12 -> 35 | H191: =給与台帳10月!AD$13 -> 0 | I191: =給与台帳10月!AD$14 -> 0 | J191: =給与台帳10月!AD$15 -> 0 | K191: =給与台帳10月!AD$16 -> 9日 | L191: =給与台帳10月!AD$17 -> 36時間 | M191: =給与台帳10月!AD$18 -> 0 | N191: =給与台帳10月!AD$19 -> 0 | O191: =給与台帳10月!AD$20 -> 0 | P191: =給与台帳10月!AD$21 -> 0 | Q191: =給与台帳10月!AD$22 -> 0 | R191: =給与台帳10月!AD$23 -> 0 | S191: =給与台帳10月!AD$24 -> 0 | T191: =給与台帳10月!AD$25 -> 45000 | U191: =給与台帳10月!AD$26 -> 0 | V191: =給与台帳10月!AD$27 -> 0 | W191: =給与台帳10月!AD$28 -> 0 | X191: =給与台帳10月!AD$29 -> 0 | Y191: =給与台帳10月!AD$30 -> 0 | Z191: =給与台帳10月!AD$31 -> 0 | AA191: =給与台帳10月!AD$32 -> 0 | AB191: =給与台帳10月!AD$33 -> 0 | AC191: =給与台帳10月!AD$34 -> 45000 | AD191: =給与台帳10月!AD$35 -> 0 | AE191: =給与台帳10月!AD$36 -> 45000 | AF191: =給与台帳10月!AD$37 -> 0 | AG191: =給与台帳10月!AD$38 -> 0 | AH191: =給与台帳10月!AD$39 -> 0 | AI191: =給与台帳10月!AD$40 -> 0 | AJ191: =給与台帳10月!AD$41 -> 0 | AK191: =給与台帳10月!AD$42 -> 45000 | AL191: =給与台帳10月!AD$43 -> 1378 | AM191: =給与台帳10月!AD$44 -> 0 | AN191: =給与台帳10月!AD$45 -> 0 | AO191: =給与台帳10月!AD$46 -> 0 | AP191: =給与台帳10月!AD$47 -> 0 | AQ191: =給与台帳10月!AD$48 -> 1378 | AR191: =給与台帳10月!AD$49 -> 43622 | AS191: =給与台帳10月!AD$50 -> 0 | AT191: =給与台帳10月!AD$51 -> 43622 | AU191: =給与台帳10月!AD$52 -> 十月もお疲れ様でした
B192: 10 | C192: =給与台帳10月!AJ$8 -> 6 | D192: =給与台帳10月!AJ$9 -> 笹部 菜穂美 | E192: =給与台帳10月!AJ$10 -> 従業員（雇保加入） | F192: =給与台帳10月!AJ$11 -> 甲欄 | G192: =給与台帳10月!AJ$12 -> 31 | H192: =給与台帳10月!AJ$13 -> 0 | I192: =給与台帳10月!AJ$14 -> 180000 | J192: =給与台帳10月!AJ$15 -> 180000 | K192: =給与台帳10月!AJ$16 -> 22日 | L192: =給与台帳10月!AJ$17 -> 159時間 | M192: =給与台帳10月!AJ$18 -> 0 | N192: =給与台帳10月!AJ$19 -> 0 | O192: =給与台帳10月!AJ$20 -> 0 | P192: =給与台帳10月!AJ$21 -> 0 | Q192: =給与台帳10月!AJ$22 -> 0 | R192: =給与台帳10月!AJ$23 -> 0 | S192: =給与台帳10月!AJ$24 -> 0 | T192: =給与台帳10月!AJ$25 -> 180000 | U192: =給与台帳10月!AJ$26 -> 0 | V192: =給与台帳10月!AJ$27 -> 0 | W192: =給与台帳10月!AJ$28 -> 0 | X192: =給与台帳10月!AJ$29 -> 0 | Y192: =給与台帳10月!AJ$30 -> 0 | Z192: =給与台帳10月!AJ$31 -> 0 | AA192: =給与台帳10月!AJ$32 -> 0 | AB192: =給与台帳10月!AJ$33 -> 0 | AC192: =給与台帳10月!AJ$34 -> 180000 | AD192: =給与台帳10月!AJ$35 -> 0 | AE192: =給与台帳10月!AJ$36 -> 180000 | AF192: =給与台帳10月!AJ$37 -> 8568 | AG192: =給与台帳10月!AJ$38 -> 0 | AH192: =給与台帳10月!AJ$39 -> 14770 | AI192: =給与台帳10月!AJ$40 -> 900 | AJ192: =給与台帳10月!AJ$41 -> 24238 | AK192: =給与台帳10月!AJ$42 -> 155762 | AL192: =給与台帳10月!AJ$43 -> 3180 | AM192: =給与台帳10月!AJ$44 -> 0 | AN192: =給与台帳10月!AJ$45 -> 0 | AO192: =給与台帳10月!AJ$46 -> 0 | AP192: =給与台帳10月!AJ$47 -> 0 | AQ192: =給与台帳10月!AJ$48 -> 3180 | AR192: =給与台帳10月!AJ$49 -> 152582 | AS192: =給与台帳10月!AJ$50 -> 0 | AT192: =給与台帳10月!AJ$51 -> 152582 | AU192: =給与台帳10月!AJ$52 -> 十月もお疲れ様でした
B193: 10 | C193: =給与台帳10月!AP$8 -> 7 | D193: =給与台帳10月!AP$9 -> 絹延橋 みつ子 | E193: =給与台帳10月!AP$10 -> 従業員（雇保加入） | F193: =給与台帳10月!AP$11 -> 甲欄 | G193: =給与台帳10月!AP$12 -> 47 | H193: =給与台帳10月!AP$13 -> 0 | I193: =給与台帳10月!AP$14 -> 0 | J193: =給与台帳10月!AP$15 -> 0 | K193: =給与台帳10月!AP$16 -> 0 | L193: =給与台帳10月!AP$17 -> 0 | M193: =給与台帳10月!AP$18 -> 0 | N193: =給与台帳10月!AP$19 -> 0 | O193: =給与台帳10月!AP$20 -> 0 | P193: =給与台帳10月!AP$21 -> 0 | Q193: =給与台帳10月!AP$22 -> 0 | R193: =給与台帳10月!AP$23 -> 0 | S193: =給与台帳10月!AP$24 -> 0 | T193: =給与台帳10月!AP$25 -> 0 | U193: =給与台帳10月!AP$26 -> 0 | V193: =給与台帳10月!AP$27 -> 0 | W193: =給与台帳10月!AP$28 -> 0 | X193: =給与台帳10月!AP$29 -> 0 | Y193: =給与台帳10月!AP$30 -> 0 | Z193: =給与台帳10月!AP$31 -> 0 | AA193: =給与台帳10月!AP$32 -> 0 | AB193: =給与台帳10月!AP$33 -> 0 | AC193: =給与台帳10月!AP$34 -> 0 | AD193: =給与台帳10月!AP$35 -> 0 | AE193: =給与台帳10月!AP$36 -> 0 | AF193: =給与台帳10月!AP$37 -> 0 | AG193: =給与台帳10月!AP$38 -> 0 | AH193: =給与台帳10月!AP$39 -> 0 | AI193: =給与台帳10月!AP$40 -> 0 | AJ193: =給与台帳10月!AP$41 -> 0 | AK193: =給与台帳10月!AP$42 -> 0 | AL193: =給与台帳10月!AP$43 -> 0 | AM193: =給与台帳10月!AP$44 -> 0 | AN193: =給与台帳10月!AP$45 -> 0 | AO193: =給与台帳10月!AP$46 -> 0 | AP193: =給与台帳10月!AP$47 -> 0 | AQ193: =給与台帳10月!AP$48 -> 0 | AR193: =給与台帳10月!AP$49 -> 0 | AS193: =給与台帳10月!AP$50 -> 0 | AT193: =給与台帳10月!AP$51 -> 0 | AU193: =給与台帳10月!AP$52 -> 十月もお疲れ様でした
B194: 10 | C194: =給与台帳10月!AV$8 -> 8 | D194: =給与台帳10月!AV$9 -> 山下 崇 | E194: =給与台帳10月!AV$10 -> 従業員（雇保加入） | F194: =給与台帳10月!AV$11 -> 甲欄 | G194: =給与台帳10月!AV$12 -> 34 | H194: =給与台帳10月!AV$13 -> 0 | I194: =給与台帳10月!AV$14 -> 0 | J194: =給与台帳10月!AV$15 -> 0 | K194: =給与台帳10月!AV$16 -> 0 | L194: =給与台帳10月!AV$17 -> 0 | M194: =給与台帳10月!AV$18 -> 0 | N194: =給与台帳10月!AV$19 -> 0 | O194: =給与台帳10月!AV$20 -> 0 | P194: =給与台帳10月!AV$21 -> 0 | Q194: =給与台帳10月!AV$22 -> 0 | R194: =給与台帳10月!AV$23 -> 0 | S194: =給与台帳10月!AV$24 -> 0 | T194: =給与台帳10月!AV$25 -> 0 | U194: =給与台帳10月!AV$26 -> 0 | V194: =給与台帳10月!AV$27 -> 0 | W194: =給与台帳10月!AV$28 -> 0 | X194: =給与台帳10月!AV$29 -> 0 | Y194: =給与台帳10月!AV$30 -> 0 | Z194: =給与台帳10月!AV$31 -> 0 | AA194: =給与台帳10月!AV$32 -> 0 | AB194: =給与台帳10月!AV$33 -> 0 | AC194: =給与台帳10月!AV$34 -> 0 | AD194: =給与台帳10月!AV$35 -> 0 | AE194: =給与台帳10月!AV$36 -> 0 | AF194: =給与台帳10月!AV$37 -> 0 | AG194: =給与台帳10月!AV$38 -> 0 | AH194: =給与台帳10月!AV$39 -> 0 | AI194: =給与台帳10月!AV$40 -> 0 | AJ194: =給与台帳10月!AV$41 -> 0 | AK194: =給与台帳10月!AV$42 -> 0 | AL194: =給与台帳10月!AV$43 -> 0 | AM194: =給与台帳10月!AV$44 -> 0 | AN194: =給与台帳10月!AV$45 -> 0 | AO194: =給与台帳10月!AV$46 -> 0 | AP194: =給与台帳10月!AV$47 -> 0 | AQ194: =給与台帳10月!AV$48 -> 0 | AR194: =給与台帳10月!AV$49 -> 0 | AS194: =給与台帳10月!AV$50 -> 0 | AT194: =給与台帳10月!AV$51 -> 0 | AU194: =給与台帳10月!AV$52 -> 十月もお疲れ様でした
B195: 10 | C195: =給与台帳10月!BB$8 -> 9 | D195: =給与台帳10月!BB$9 ->  | E195: =給与台帳10月!BB$10 ->  | F195: =給与台帳10月!BB$11 ->  | G195: =給与台帳10月!BB$12 ->  | H195: =給与台帳10月!BB$13 -> 0 | I195: =給与台帳10月!BB$14 -> 0 | J195: =給与台帳10月!BB$15 -> 0 | K195: =給与台帳10月!BB$16 -> 0 | L195: =給与台帳10月!BB$17 -> 0 | M195: =給与台帳10月!BB$18 -> 0 | N195: =給与台帳10月!BB$19 -> 0 | O195: =給与台帳10月!BB$20 -> 0 | P195: =給与台帳10月!BB$21 -> 0 | Q195: =給与台帳10月!BB$22 -> 0 | R195: =給与台帳10月!BB$23 -> 0 | S195: =給与台帳10月!BB$24 -> 0 | T195: =給与台帳10月!BB$25 -> 0 | U195: =給与台帳10月!BB$26 -> 0 | V195: =給与台帳10月!BB$27 -> 0 | W195: =給与台帳10月!BB$28 -> 0 | X195: =給与台帳10月!BB$29 -> 0 | Y195: =給与台帳10月!BB$30 -> 0 | Z195: =給与台帳10月!BB$31 -> 0 | AA195: =給与台帳10月!BB$32 -> 0 | AB195: =給与台帳10月!BB$33 -> 0 | AC195: =給与台帳10月!BB$34 -> 0 | AD195: =給与台帳10月!BB$35 -> 0 | AE195: =給与台帳10月!BB$36 -> 0 | AF195: =給与台帳10月!BB$37 -> 0 | AG195: =給与台帳10月!BB$38 -> 0 | AH195: =給与台帳10月!BB$39 -> 0 | AI195: =給与台帳10月!BB$40 -> 0 | AJ195: =給与台帳10月!BB$41 -> 0 | AK195: =給与台帳10月!BB$42 -> 0 | AL195: =給与台帳10月!BB$43 -> 0 | AM195: =給与台帳10月!BB$44 -> 0 | AN195: =給与台帳10月!BB$45 -> 0 | AO195: =給与台帳10月!BB$46 -> 0 | AP195: =給与台帳10月!BB$47 -> 0 | AQ195: =給与台帳10月!BB$48 -> 0 | AR195: =給与台帳10月!BB$49 -> 0 | AS195: =給与台帳10月!BB$50 -> 0 | AT195: =給与台帳10月!BB$51 -> 0 | AU195: =給与台帳10月!BB$52 -> 十月もお疲れ様でした
B196: 10 | C196: =給与台帳10月!BH$8 -> 10 | D196: =給与台帳10月!BH$9 ->  | E196: =給与台帳10月!BH$10 ->  | F196: =給与台帳10月!BH$11 ->  | G196: =給与台帳10月!BH$12 ->  | H196: =給与台帳10月!BH$13 -> 0 | I196: =給与台帳10月!BH$14 -> 0 | J196: =給与台帳10月!BH$15 -> 0 | K196: =給与台帳10月!BH$16 -> 0 | L196: =給与台帳10月!BH$17 -> 0 | M196: =給与台帳10月!BH$18 -> 0 | N196: =給与台帳10月!BH$19 -> 0 | O196: =給与台帳10月!BH$20 -> 0 | P196: =給与台帳10月!BH$21 -> 0 | Q196: =給与台帳10月!BH$22 -> 0 | R196: =給与台帳10月!BH$23 -> 0 | S196: =給与台帳10月!BH$24 -> 0 | T196: =給与台帳10月!BH$25 -> 0 | U196: =給与台帳10月!BH$26 -> 0 | V196: =給与台帳10月!BH$27 -> 0 | W196: =給与台帳10月!BH$28 -> 0 | X196: =給与台帳10月!BH$29 -> 0 | Y196: =給与台帳10月!BH$30 -> 0 | Z196: =給与台帳10月!BH$31 -> 0 | AA196: =給与台帳10月!BH$32 -> 0 | AB196: =給与台帳10月!BH$33 -> 0 | AC196: =給与台帳10月!BH$34 -> 0 | AD196: =給与台帳10月!BH$35 -> 0 | AE196: =給与台帳10月!BH$36 -> 0 | AF196: =給与台帳10月!BH$37 -> 0 | AG196: =給与台帳10月!BH$38 -> 0 | AH196: =給与台帳10月!BH$39 -> 0 | AI196: =給与台帳10月!BH$40 -> 0 | AJ196: =給与台帳10月!BH$41 -> 0 | AK196: =給与台帳10月!BH$42 -> 0 | AL196: =給与台帳10月!BH$43 -> 0 | AM196: =給与台帳10月!BH$44 -> 0 | AN196: =給与台帳10月!BH$45 -> 0 | AO196: =給与台帳10月!BH$46 -> 0 | AP196: =給与台帳10月!BH$47 -> 0 | AQ196: =給与台帳10月!BH$48 -> 0 | AR196: =給与台帳10月!BH$49 -> 0 | AS196: =給与台帳10月!BH$50 -> 0 | AT196: =給与台帳10月!BH$51 -> 0 | AU196: =給与台帳10月!BH$52 -> 十月もお疲れ様でした
B197: 10 | C197: =給与台帳10月!BN$8 -> 11 | D197: =給与台帳10月!BN$9 ->  | E197: =給与台帳10月!BN$10 ->  | F197: =給与台帳10月!BN$11 ->  | G197: =給与台帳10月!BN$12 ->  | H197: =給与台帳10月!BN$13 -> 0 | I197: =給与台帳10月!BN$14 -> 0 | J197: =給与台帳10月!BN$15 -> 0 | K197: =給与台帳10月!BN$16 -> 0 | L197: =給与台帳10月!BN$17 -> 0 | M197: =給与台帳10月!BN$18 -> 0 | N197: =給与台帳10月!BN$19 -> 0 | O197: =給与台帳10月!BN$20 -> 0 | P197: =給与台帳10月!BN$21 -> 0 | Q197: =給与台帳10月!BN$22 -> 0 | R197: =給与台帳10月!BN$23 -> 0 | S197: =給与台帳10月!BN$24 -> 0 | T197: =給与台帳10月!BN$25 -> 0 | U197: =給与台帳10月!BN$26 -> 0 | V197: =給与台帳10月!BN$27 -> 0 | W197: =給与台帳10月!BN$28 -> 0 | X197: =給与台帳10月!BN$29 -> 0 | Y197: =給与台帳10月!BN$30 -> 0 | Z197: =給与台帳10月!BN$31 -> 0 | AA197: =給与台帳10月!BN$32 -> 0 | AB197: =給与台帳10月!BN$33 -> 0 | AC197: =給与台帳10月!BN$34 -> 0 | AD197: =給与台帳10月!BN$35 -> 0 | AE197: =給与台帳10月!BN$36 -> 0 | AF197: =給与台帳10月!BN$37 -> 0 | AG197: =給与台帳10月!BN$38 -> 0 | AH197: =給与台帳10月!BN$39 -> 0 | AI197: =給与台帳10月!BN$40 -> 0 | AJ197: =給与台帳10月!BN$41 -> 0 | AK197: =給与台帳10月!BN$42 -> 0 | AL197: =給与台帳10月!BN$43 -> 0 | AM197: =給与台帳10月!BN$44 -> 0 | AN197: =給与台帳10月!BN$45 -> 0 | AO197: =給与台帳10月!BN$46 -> 0 | AP197: =給与台帳10月!BN$47 -> 0 | AQ197: =給与台帳10月!BN$48 -> 0 | AR197: =給与台帳10月!BN$49 -> 0 | AS197: =給与台帳10月!BN$50 -> 0 | AT197: =給与台帳10月!BN$51 -> 0 | AU197: =給与台帳10月!BN$52 -> 十月もお疲れ様でした
B198: 10 | C198: =給与台帳10月!BT$8 -> 12 | D198: =給与台帳10月!BT$9 ->  | E198: =給与台帳10月!BT$10 ->  | F198: =給与台帳10月!BT$11 ->  | G198: =給与台帳10月!BT$12 ->  | H198: =給与台帳10月!BT$13 -> 0 | I198: =給与台帳10月!BT$14 -> 0 | J198: =給与台帳10月!BT$15 -> 0 | K198: =給与台帳10月!BT$16 -> 0 | L198: =給与台帳10月!BT$17 -> 0 | M198: =給与台帳10月!BT$18 -> 0 | N198: =給与台帳10月!BT$19 -> 0 | O198: =給与台帳10月!BT$20 -> 0 | P198: =給与台帳10月!BT$21 -> 0 | Q198: =給与台帳10月!BT$22 -> 0 | R198: =給与台帳10月!BT$23 -> 0 | S198: =給与台帳10月!BT$24 -> 0 | T198: =給与台帳10月!BT$25 -> 0 | U198: =給与台帳10月!BT$26 -> 0 | V198: =給与台帳10月!BT$27 -> 0 | W198: =給与台帳10月!BT$28 -> 0 | X198: =給与台帳10月!BT$29 -> 0 | Y198: =給与台帳10月!BT$30 -> 0 | Z198: =給与台帳10月!BT$31 -> 0 | AA198: =給与台帳10月!BT$32 -> 0 | AB198: =給与台帳10月!BT$33 -> 0 | AC198: =給与台帳10月!BT$34 -> 0 | AD198: =給与台帳10月!BT$35 -> 0 | AE198: =給与台帳10月!BT$36 -> 0 | AF198: =給与台帳10月!BT$37 -> 0 | AG198: =給与台帳10月!BT$38 -> 0 | AH198: =給与台帳10月!BT$39 -> 0 | AI198: =給与台帳10月!BT$40 -> 0 | AJ198: =給与台帳10月!BT$41 -> 0 | AK198: =給与台帳10月!BT$42 -> 0 | AL198: =給与台帳10月!BT$43 -> 0 | AM198: =給与台帳10月!BT$44 -> 0 | AN198: =給与台帳10月!BT$45 -> 0 | AO198: =給与台帳10月!BT$46 -> 0 | AP198: =給与台帳10月!BT$47 -> 0 | AQ198: =給与台帳10月!BT$48 -> 0 | AR198: =給与台帳10月!BT$49 -> 0 | AS198: =給与台帳10月!BT$50 -> 0 | AT198: =給与台帳10月!BT$51 -> 0 | AU198: =給与台帳10月!BT$52 -> 十月もお疲れ様でした
B199: 10 | C199: =給与台帳10月!BZ$8 -> 13 | D199: =給与台帳10月!BZ$9 ->  | E199: =給与台帳10月!BZ$10 ->  | F199: =給与台帳10月!BZ$11 ->  | G199: =給与台帳10月!BZ$12 ->  | H199: =給与台帳10月!BZ$13 -> 0 | I199: =給与台帳10月!BZ$14 -> 0 | J199: =給与台帳10月!BZ$15 -> 0 | K199: =給与台帳10月!BZ$16 -> 0 | L199: =給与台帳10月!BZ$17 -> 0 | M199: =給与台帳10月!BZ$18 -> 0 | N199: =給与台帳10月!BZ$19 -> 0 | O199: =給与台帳10月!BZ$20 -> 0 | P199: =給与台帳10月!BZ$21 -> 0 | Q199: =給与台帳10月!BZ$22 -> 0 | R199: =給与台帳10月!BZ$23 -> 0 | S199: =給与台帳10月!BZ$24 -> 0 | T199: =給与台帳10月!BZ$25 -> 0 | U199: =給与台帳10月!BZ$26 -> 0 | V199: =給与台帳10月!BZ$27 -> 0 | W199: =給与台帳10月!BZ$28 -> 0 | X199: =給与台帳10月!BZ$29 -> 0 | Y199: =給与台帳10月!BZ$30 -> 0 | Z199: =給与台帳10月!BZ$31 -> 0 | AA199: =給与台帳10月!BZ$32 -> 0 | AB199: =給与台帳10月!BZ$33 -> 0 | AC199: =給与台帳10月!BZ$34 -> 0 | AD199: =給与台帳10月!BZ$35 -> 0 | AE199: =給与台帳10月!BZ$36 -> 0 | AF199: =給与台帳10月!BZ$37 -> 0 | AG199: =給与台帳10月!BZ$38 -> 0 | AH199: =給与台帳10月!BZ$39 -> 0 | AI199: =給与台帳10月!BZ$40 -> 0 | AJ199: =給与台帳10月!BZ$41 -> 0 | AK199: =給与台帳10月!BZ$42 -> 0 | AL199: =給与台帳10月!BZ$43 -> 0 | AM199: =給与台帳10月!BZ$44 -> 0 | AN199: =給与台帳10月!BZ$45 -> 0 | AO199: =給与台帳10月!BZ$46 -> 0 | AP199: =給与台帳10月!BZ$47 -> 0 | AQ199: =給与台帳10月!BZ$48 -> 0 | AR199: =給与台帳10月!BZ$49 -> 0 | AS199: =給与台帳10月!BZ$50 -> 0 | AT199: =給与台帳10月!BZ$51 -> 0 | AU199: =給与台帳10月!BZ$52 -> 十月もお疲れ様でした
B200: 10 | C200: =給与台帳10月!CF$8 -> 14 | D200: =給与台帳10月!CF$9 ->  | E200: =給与台帳10月!CF$10 ->  | F200: =給与台帳10月!CF$11 ->  | G200: =給与台帳10月!CF$12 ->  | H200: =給与台帳10月!CF$13 -> 0 | I200: =給与台帳10月!CF$14 -> 0 | J200: =給与台帳10月!CF$15 -> 0 | K200: =給与台帳10月!CF$16 -> 0 | L200: =給与台帳10月!CF$17 -> 0 | M200: =給与台帳10月!CF$18 -> 0 | N200: =給与台帳10月!CF$19 -> 0 | O200: =給与台帳10月!CF$20 -> 0 | P200: =給与台帳10月!CF$21 -> 0 | Q200: =給与台帳10月!CF$22 -> 0 | R200: =給与台帳10月!CF$23 -> 0 | S200: =給与台帳10月!CF$24 -> 0 | T200: =給与台帳10月!CF$25 -> 0 | U200: =給与台帳10月!CF$26 -> 0 | V200: =給与台帳10月!CF$27 -> 0 | W200: =給与台帳10月!CF$28 -> 0 | X200: =給与台帳10月!CF$29 -> 0 | Y200: =給与台帳10月!CF$30 -> 0 | Z200: =給与台帳10月!CF$31 -> 0 | AA200: =給与台帳10月!CF$32 -> 0 | AB200: =給与台帳10月!CF$33 -> 0 | AC200: =給与台帳10月!CF$34 -> 0 | AD200: =給与台帳10月!CF$35 -> 0 | AE200: =給与台帳10月!CF$36 -> 0 | AF200: =給与台帳10月!CF$37 -> 0 | AG200: =給与台帳10月!CF$38 -> 0 | AH200: =給与台帳10月!CF$39 -> 0 | AI200: =給与台帳10月!CF$40 -> 0 | AJ200: =給与台帳10月!CF$41 -> 0 | AK200: =給与台帳10月!CF$42 -> 0 | AL200: =給与台帳10月!CF$43 -> 0 | AM200: =給与台帳10月!CF$44 -> 0 | AN200: =給与台帳10月!CF$45 -> 0 | AO200: =給与台帳10月!CF$46 -> 0 | AP200: =給与台帳10月!CF$47 -> 0 | AQ200: =給与台帳10月!CF$48 -> 0 | AR200: =給与台帳10月!CF$49 -> 0 | AS200: =給与台帳10月!CF$50 -> 0 | AT200: =給与台帳10月!CF$51 -> 0 | AU200: =給与台帳10月!CF$52 -> 十月もお疲れ様でした
B201: 10 | C201: =給与台帳10月!CL$8 -> 15 | D201: =給与台帳10月!CL$9 ->  | E201: =給与台帳10月!CL$10 ->  | F201: =給与台帳10月!CL$11 ->  | G201: =給与台帳10月!CL$12 ->  | H201: =給与台帳10月!CL$13 -> 0 | I201: =給与台帳10月!CL$14 -> 0 | J201: =給与台帳10月!CL$15 -> 0 | K201: =給与台帳10月!CL$16 -> 0 | L201: =給与台帳10月!CL$17 -> 0 | M201: =給与台帳10月!CL$18 -> 0 | N201: =給与台帳10月!CL$19 -> 0 | O201: =給与台帳10月!CL$20 -> 0 | P201: =給与台帳10月!CL$21 -> 0 | Q201: =給与台帳10月!CL$22 -> 0 | R201: =給与台帳10月!CL$23 -> 0 | S201: =給与台帳10月!CL$24 -> 0 | T201: =給与台帳10月!CL$25 -> 0 | U201: =給与台帳10月!CL$26 -> 0 | V201: =給与台帳10月!CL$27 -> 0 | W201: =給与台帳10月!CL$28 -> 0 | X201: =給与台帳10月!CL$29 -> 0 | Y201: =給与台帳10月!CL$30 -> 0 | Z201: =給与台帳10月!CL$31 -> 0 | AA201: =給与台帳10月!CL$32 -> 0 | AB201: =給与台帳10月!CL$33 -> 0 | AC201: =給与台帳10月!CL$34 -> 0 | AD201: =給与台帳10月!CL$35 -> 0 | AE201: =給与台帳10月!CL$36 -> 0 | AF201: =給与台帳10月!CL$37 -> 0 | AG201: =給与台帳10月!CL$38 -> 0 | AH201: =給与台帳10月!CL$39 -> 0 | AI201: =給与台帳10月!CL$40 -> 0 | AJ201: =給与台帳10月!CL$41 -> 0 | AK201: =給与台帳10月!CL$42 -> 0 | AL201: =給与台帳10月!CL$43 -> 0 | AM201: =給与台帳10月!CL$44 -> 0 | AN201: =給与台帳10月!CL$45 -> 0 | AO201: =給与台帳10月!CL$46 -> 0 | AP201: =給与台帳10月!CL$47 -> 0 | AQ201: =給与台帳10月!CL$48 -> 0 | AR201: =給与台帳10月!CL$49 -> 0 | AS201: =給与台帳10月!CL$50 -> 0 | AT201: =給与台帳10月!CL$51 -> 0 | AU201: =給与台帳10月!CL$52 -> 十月もお疲れ様でした
B202: 10 | C202: =給与台帳10月!CR$8 -> 16 | D202: =給与台帳10月!CR$9 ->  | E202: =給与台帳10月!CR$10 ->  | F202: =給与台帳10月!CR$11 ->  | G202: =給与台帳10月!CR$12 ->  | H202: =給与台帳10月!CR$13 -> 0 | I202: =給与台帳10月!CR$14 -> 0 | J202: =給与台帳10月!CR$15 -> 0 | K202: =給与台帳10月!CR$16 -> 0 | L202: =給与台帳10月!CR$17 -> 0 | M202: =給与台帳10月!CR$18 -> 0 | N202: =給与台帳10月!CR$19 -> 0 | O202: =給与台帳10月!CR$20 -> 0 | P202: =給与台帳10月!CR$21 -> 0 | Q202: =給与台帳10月!CR$22 -> 0 | R202: =給与台帳10月!CR$23 -> 0 | S202: =給与台帳10月!CR$24 -> 0 | T202: =給与台帳10月!CR$25 -> 0 | U202: =給与台帳10月!CR$26 -> 0 | V202: =給与台帳10月!CR$27 -> 0 | W202: =給与台帳10月!CR$28 -> 0 | X202: =給与台帳10月!CR$29 -> 0 | Y202: =給与台帳10月!CR$30 -> 0 | Z202: =給与台帳10月!CR$31 -> 0 | AA202: =給与台帳10月!CR$32 -> 0 | AB202: =給与台帳10月!CR$33 -> 0 | AC202: =給与台帳10月!CR$34 -> 0 | AD202: =給与台帳10月!CR$35 -> 0 | AE202: =給与台帳10月!CR$36 -> 0 | AF202: =給与台帳10月!CR$37 -> 0 | AG202: =給与台帳10月!CR$38 -> 0 | AH202: =給与台帳10月!CR$39 -> 0 | AI202: =給与台帳10月!CR$40 -> 0 | AJ202: =給与台帳10月!CR$41 -> 0 | AK202: =給与台帳10月!CR$42 -> 0 | AL202: =給与台帳10月!CR$43 -> 0 | AM202: =給与台帳10月!CR$44 -> 0 | AN202: =給与台帳10月!CR$45 -> 0 | AO202: =給与台帳10月!CR$46 -> 0 | AP202: =給与台帳10月!CR$47 -> 0 | AQ202: =給与台帳10月!CR$48 -> 0 | AR202: =給与台帳10月!CR$49 -> 0 | AS202: =給与台帳10月!CR$50 -> 0 | AT202: =給与台帳10月!CR$51 -> 0 | AU202: =給与台帳10月!CR$52 -> 十月もお疲れ様でした
B203: 10 | C203: =給与台帳10月!CX$8 -> 17 | D203: =給与台帳10月!CX$9 ->  | E203: =給与台帳10月!CX$10 ->  | F203: =給与台帳10月!CX$11 ->  | G203: =給与台帳10月!CX$12 ->  | H203: =給与台帳10月!CX$13 -> 0 | I203: =給与台帳10月!CX$14 -> 0 | J203: =給与台帳10月!CX$15 -> 0 | K203: =給与台帳10月!CX$16 -> 0 | L203: =給与台帳10月!CX$17 -> 0 | M203: =給与台帳10月!CX$18 -> 0 | N203: =給与台帳10月!CX$19 -> 0 | O203: =給与台帳10月!CX$20 -> 0 | P203: =給与台帳10月!CX$21 -> 0 | Q203: =給与台帳10月!CX$22 -> 0 | R203: =給与台帳10月!CX$23 -> 0 | S203: =給与台帳10月!CX$24 -> 0 | T203: =給与台帳10月!CX$25 -> 0 | U203: =給与台帳10月!CX$26 -> 0 | V203: =給与台帳10月!CX$27 -> 0 | W203: =給与台帳10月!CX$28 -> 0 | X203: =給与台帳10月!CX$29 -> 0 | Y203: =給与台帳10月!CX$30 -> 0 | Z203: =給与台帳10月!CX$31 -> 0 | AA203: =給与台帳10月!CX$32 -> 0 | AB203: =給与台帳10月!CX$33 -> 0 | AC203: =給与台帳10月!CX$34 -> 0 | AD203: =給与台帳10月!CX$35 -> 0 | AE203: =給与台帳10月!CX$36 -> 0 | AF203: =給与台帳10月!CX$37 -> 0 | AG203: =給与台帳10月!CX$38 -> 0 | AH203: =給与台帳10月!CX$39 -> 0 | AI203: =給与台帳10月!CX$40 -> 0 | AJ203: =給与台帳10月!CX$41 -> 0 | AK203: =給与台帳10月!CX$42 -> 0 | AL203: =給与台帳10月!CX$43 -> 0 | AM203: =給与台帳10月!CX$44 -> 0 | AN203: =給与台帳10月!CX$45 -> 0 | AO203: =給与台帳10月!CX$46 -> 0 | AP203: =給与台帳10月!CX$47 -> 0 | AQ203: =給与台帳10月!CX$48 -> 0 | AR203: =給与台帳10月!CX$49 -> 0 | AS203: =給与台帳10月!CX$50 -> 0 | AT203: =給与台帳10月!CX$51 -> 0 | AU203: =給与台帳10月!CX$52 -> 十月もお疲れ様でした
... 43 more rows

Sheet 給与台帳1月
F3: 雇用保険 被保険者負担 | J3: 3 | L3: ／ | M3: 1000
F4: 健康保険 被保険者負担 | J4: 50.7 | L4: ／ | M4: 1000
F5: 介護保険 被保険者負担 | J5: 8.65 | L5: ／ | M5: 1000
F6: 厚生年金保険 被保険者負担 | J6: 81.5 | L6: ／ | M6: 1000
B7: =基本情報!E9&"年１月給与台帳" -> 2020年１月給与台帳 | DJ7: =基本情報!E7 -> 株式会社今野デザイン
B8: 社員番号 | F8: =社員情報!B6 -> 1 | L8: =社員情報!B7 -> 2 | R8: =社員情報!B8 -> 3 | X8: =社員情報!B9 -> 4 | AD8: =社員情報!B10 -> 5 | AJ8: =社員情報!B11 -> 6 | AP8: =社員情報!B12 -> 7 | AV8: =社員情報!B13 -> 8 | BB8: =社員情報!B14 -> 9 | BH8: =社員情報!B15 -> 10 | BN8: =社員情報!B16 -> 11 | BT8: =社員情報!B17 -> 12 | BZ8: =社員情報!B18 -> 13 | CF8: =社員情報!B19 -> 14 | CL8: =社員情報!B20 -> 15 | CR8: =社員情報!B21 -> 16 | CX8: =社員情報!B22 -> 17 | DD8: =社員情報!B23 -> 18 | DJ8: 合計
B9: 氏名 | F9: =IF(社員情報!C6="","",社員情報!C6) -> 今野 友夫 | L9: =IF(社員情報!C7="","",社員情報!C7) -> 今野 朝子 | R9: =IF(社員情報!C8="","",社員情報!C8) -> 今野 祥子 | X9: =IF(社員情報!C9="","",社員情報!C9) -> 川西 めぐみ | AD9: =IF(社員情報!C10="","",社員情報!C10) -> 鳥居 雅之 | AJ9: =IF(社員情報!C11="","",社員情報!C11) -> 笹部 菜穂美 | AP9: =IF(社員情報!C12="","",社員情報!C12) -> 絹延橋 みつ子 | AV9: =IF(社員情報!C13="","",社員情報!C13) -> 山下 崇 | BB9: =IF(社員情報!C14="","",社員情報!C14) ->  | BH9: =IF(社員情報!C15="","",社員情報!C15) ->  | BN9: =IF(社員情報!C16="","",社員情報!C16) ->  | BT9: =IF(社員情報!C17="","",社員情報!C17) ->  | BZ9: =IF(社員情報!C18="","",社員情報!C18) ->  | CF9: =IF(社員情報!C19="","",社員情報!C19) ->  | CL9: =IF(社員情報!C20="","",社員情報!C20) ->  | CR9: =IF(社員情報!C21="","",社員情報!C21) ->  | CX9: =IF(社員情報!C22="","",社員情報!C22) ->  | DD9: =IF(社員情報!C23="","",社員情報!C23) -> 
B10: 役員／従業員 | F10: =IF(社員情報!D6="","",社員情報!D6) -> 役員 | L10: =IF(社員情報!D7="","",社員情報!D7) -> 役員 | R10: =IF(社員情報!D8="","",社員情報!D8) -> 役員 | X10: =IF(社員情報!D9="","",社員情報!D9) -> 従業員（雇保加入） | AD10: =IF(社員情報!D10="","",社員情報!D10) -> 従業員（雇保非加入） | AJ10: =IF(社員情報!D11="","",社員情報!D11) -> 従業員（雇保加入） | AP10: =IF(社員情報!D12="","",社員情報!D12) -> 従業員（雇保加入） | AV10: =IF(社員情報!D13="","",社員情報!D13) -> 従業員（雇保加入） | BB10: =IF(社員情報!D14="","",社員情報!D14) ->  | BH10: =IF(社員情報!D15="","",社員情報!D15) ->  | BN10: =IF(社員情報!D16="","",社員情報!D16) ->  | BT10: =IF(社員情報!D17="","",社員情報!D17) ->  | BZ10: =IF(社員情報!D18="","",社員情報!D18) ->  | CF10: =IF(社員情報!D19="","",社員情報!D19) ->  | CL10: =IF(社員情報!D20="","",社員情報!D20) ->  | CR10: =IF(社員情報!D21="","",社員情報!D21) ->  | CX10: =IF(社員情報!D22="","",社員情報!D22) ->  | DD10: =IF(社員情報!D23="","",社員情報!D23) -> 
B11: 甲欄／乙欄 | F11: =IF(社員情報!E6="","",社員情報!E6) -> 甲欄 | L11: =IF(社員情報!E7="","",社員情報!E7) -> 甲欄 | R11: =IF(社員情報!E8="","",社員情報!E8) -> 甲欄 | X11: =IF(社員情報!E9="","",社員情報!E9) -> 甲欄 | AD11: =IF(社員情報!E10="","",社員情報!E10) -> 乙欄 | AJ11: =IF(社員情報!E11="","",社員情報!E11) -> 甲欄 | AP11: =IF(社員情報!E12="","",社員情報!E12) -> 甲欄 | AV11: =IF(社員情報!E13="","",社員情報!E13) -> 甲欄 | BB11: =IF(社員情報!E14="","",社員情報!E14) ->  | BH11: =IF(社員情報!E15="","",社員情報!E15) ->  | BN11: =IF(社員情報!E16="","",社員情報!E16) ->  | BT11: =IF(社員情報!E17="","",社員情報!E17) ->  | BZ11: =IF(社員情報!E18="","",社員情報!E18) ->  | CF11: =IF(社員情報!E19="","",社員情報!E19) ->  | CL11: =IF(社員情報!E20="","",社員情報!E20) ->  | CR11: =IF(社員情報!E21="","",社員情報!E21) ->  | CX11: =IF(社員情報!E22="","",社員情報!E22) ->  | DD11: =IF(社員情報!E23="","",社員情報!E23) -> 
B12: １日時点での年齢 | F12: =社員情報!H6 -> 44 | L12: =社員情報!H7 -> 39 | R12: =社員情報!H8 -> 70 | X12: =社員情報!H9 -> 48 | AD12: =社員情報!H10 -> 34 | AJ12: =社員情報!H11 -> 30 | AP12: =社員情報!H12 -> 46 | AV12: =社員情報!H13 -> 33 | BB12: =社員情報!H14 ->  | BH12: =社員情報!H15 ->  | BN12: =社員情報!H16 ->  | BT12: =社員情報!H17 ->  | BZ12: =社員情報!H18 ->  | CF12: =社員情報!H19 ->  | CL12: =社員情報!H20 ->  | CR12: =社員情報!H21 ->  | CX12: =社員情報!H22 ->  | DD12: =社員情報!H23 -> 
B13: 扶養家族数 | F13: 1 | L13: 0 | X13: 1 | AP13: 1
B14: 健康保険標準報酬月額 | F14: 500000 | L14: 300000 | X14: 220000 | AP14: 300000
B15: 厚生年金標準報酬月額 | F15: 500000 | L15: 300000 | X15: 220000 | AP15: 300000
B16: 勤怠 | C16: =明細書項目!C8 -> 労働日数 | X16: 21日 | AD16: 9日 | AP16: 21日
C17: =明細書項目!C9 -> 労働時間 | X17: 151時間 | AD17: 36時間 | AP17: 136時間
C18: =明細書項目!C10 -> 時間内残業時間 | X18: 8時間
C19: =明細書項目!C11 -> 時間外残業時間 | X19: 6時間
C20: =明細書項目!C12 -> 休日労働時間 | X20: 3時間
C21: =明細書項目!C13 -> 時間内深夜労働時間
C22: =明細書項目!C14 -> 時間外深夜労働時間 | X22: 1時間
C23: =明細書項目!C15 -> 休日深夜時間
B24: 支給 | C24: =IF(明細書項目!C16="","",明細書項目!C16) -> 役員報酬 | D24: =IF(明細書項目!D16="","",明細書項目!D16) -> 課税 | E24: =IF(明細書項目!E16="","",明細書項目!E16) -> 雇保対象 | F24: 500000 | L24: 300000 | R24: 80000 | DJ24: =SUM(F24:DI24) -> 880000
C25: =IF(明細書項目!C17="","",明細書項目!C17) -> 基本給 | D25: =IF(明細書項目!D17="","",明細書項目!D17) -> 課税 | E25: =IF(明細書項目!E17="","",明細書項目!E17) -> 雇保対象 | X25: 225000 | AD25: 45000 | AP25: 300000 | DJ25: 570000
C26: =IF(明細書項目!C18="","",明細書項目!C18) -> 時間外手当 | D26: =IF(明細書項目!D18="","",明細書項目!D18) -> 課税 | E26: =IF(明細書項目!E18="","",明細書項目!E18) -> 雇保対象 | X26: 33597 | DJ26: 33597
C27: =IF(明細書項目!C19="","",明細書項目!C19) ->  | D27: =IF(明細書項目!D19="","",明細書項目!D19) ->  | E27: =IF(明細書項目!E19="","",明細書項目!E19) ->  | DJ27: 0
C28: =IF(明細書項目!C20="","",明細書項目!C20) ->  | D28: =IF(明細書項目!D20="","",明細書項目!D20) ->  | E28: =IF(明細書項目!E20="","",明細書項目!E20) ->  | DJ28: 0
C29: =IF(明細書項目!C21="","",明細書項目!C21) ->  | D29: =IF(明細書項目!D21="","",明細書項目!D21) ->  | E29: =IF(明細書項目!E21="","",明細書項目!E21) ->  | DJ29: 0
C30: =IF(明細書項目!C22="","",明細書項目!C22) ->  | D30: =IF(明細書項目!D22="","",明細書項目!D22) ->  | E30: =IF(明細書項目!E22="","",明細書項目!E22) ->  | DJ30: 0
C31: =IF(明細書項目!C23="","",明細書項目!C23) ->  | D31: =IF(明細書項目!D23="","",明細書項目!D23) ->  | E31: =IF(明細書項目!E23="","",明細書項目!E23) ->  | DJ31: 0
C32: =IF(明細書項目!C24="","",明細書項目!C24) -> 通勤手当 | D32: =IF(明細書項目!D24="","",明細書項目!D24) -> 非課税 | E32: =IF(明細書項目!E24="","",明細書項目!E24) -> 雇保対象 | F32: 10000 | L32: 10000 | X32: 18370 | AD32: 10300 | DJ32: 48670
C33: =IF(明細書項目!C25="","",明細書項目!C25) ->  | D33: =IF(明細書項目!D25="","",明細書項目!D25) ->  | E33: =IF(明細書項目!E25="","",明細書項目!E25) ->  | DJ33: 0
C34: ① 課税支給額 | F34: =SUMIF($D24:K33,"課税",F24:K33) -> 500000 | L34: =SUMIF($D24:Q33,"課税",L24:Q33) -> 300000 | R34: =SUMIF($D24:W33,"課税",R24:W33) -> 80000 | X34: =SUMIF($D24:AC33,"課税",X24:AC33) -> 258597 | AD34: =SUMIF($D24:AI33,"課税",AD24:AI33) -> 45000 | AJ34: =SUMIF($D24:AO33,"課税",AJ24:AO33) -> 0 | AP34: =SUMIF($D24:AU33,"課税",AP24:AU33) -> 300000 | AV34: =SUMIF($D24:BA33,"課税",AV24:BA33) -> 0 | BB34: =SUMIF($D24:BG33,"課税",BB24:BG33) -> 0 | BH34: =SUMIF($D24:BM33,"課税",BH24:BM33) -> 0 | BN34: =SUMIF($D24:BS33,"課税",BN24:BS33) -> 0 | BT34: =SUMIF($D24:BY33,"課税",BT24:BY33) -> 0 | BZ34: =SUMIF($D24:CE33,"課税",BZ24:CE33) -> 0 | CF34: =SUMIF($D24:CK33,"課税",CF24:CK33) -> 0 | CL34: =SUMIF($D24:CQ33,"課税",CL24:CQ33) -> 0 | CR34: =SUMIF($D24:CW33,"課税",CR24:CW33) -> 0 | CX34: =SUMIF($D24:DC33,"課税",CX24:DC33) -> 0 | DD34: =SUMIF($D24:DI33,"課税",DD24:DI33) -> 0 | DJ34: 1483597
C35: ② 非課税支給額 | F35: =SUMIF($D24:K33,"非課税",F24:K33) -> 10000 | L35: =SUMIF($D24:Q33,"非課税",L24:Q33) -> 10000 | R35: =SUMIF($D24:W33,"非課税",R24:W33) -> 0 | X35: =SUMIF($D24:AC33,"非課税",X24:AC33) -> 18370 | AD35: =SUMIF($D24:AI33,"非課税",AD24:AI33) -> 10300 | AJ35: =SUMIF($D24:AO33,"非課税",AJ24:AO33) -> 0 | AP35: =SUMIF($D24:AU33,"非課税",AP24:AU33) -> 0 | AV35: =SUMIF($D24:BA33,"非課税",AV24:BA33) -> 0 | BB35: =SUMIF($D24:BG33,"非課税",BB24:BG33) -> 0 | BH35: =SUMIF($D24:BM33,"非課税",BH24:BM33) -> 0 | BN35: =SUMIF($D24:BS33,"非課税",BN24:BS33) -> 0 | BT35: =SUMIF($D24:BY33,"非課税",BT24:BY33) -> 0 | BZ35: =SUMIF($D24:CE33,"非課税",BZ24:CE33) -> 0 | CF35: =SUMIF($D24:CK33,"非課税",CF24:CK33) -> 0 | CL35: =SUMIF($D24:CQ33,"非課税",CL24:CQ33) -> 0 | CR35: =SUMIF($D24:CW33,"非課税",CR24:CW33) -> 0 | CX35: =SUMIF($D24:DC33,"非課税",CX24:DC33) -> 0 | DD35: =SUMIF($D24:DI33,"非課税",DD24:DI33) -> 0 | DJ35: 48670
B36: 総支給額 | F36: =SUM(F34:K35) -> 510000 | L36: =SUM(L34:Q35) -> 310000 | R36: =SUM(R34:W35) -> 80000 | X36: =SUM(X34:AC35) -> 276967 | AD36: =SUM(AD34:AI35) -> 55300 | AJ36: =SUM(AJ34:AO35) -> 0 | AP36: =SUM(AP34:AU35) -> 300000 | AV36: =SUM(AV34:BA35) -> 0 | BB36: =SUM(BB34:BG35) -> 0 | BH36: =SUM(BH34:BM35) -> 0 | BN36: =SUM(BN34:BS35) -> 0 | BT36: =SUM(BT34:BY35) -> 0 | BZ36: =SUM(BZ34:CE35) -> 0 | CF36: =SUM(CF34:CK35) -> 0 | CL36: =SUM(CL34:CQ35) -> 0 | CR36: =SUM(CR34:CW35) -> 0 | CX36: =SUM(CX34:DC35) -> 0 | DD36: =SUM(DD34:DI35) -> 0 | DJ36: 1532267
B37: 社会保険控除額 | C37: =明細書項目!C26 -> 健康保険 | F37: 23800 | L37: 14280 | R37: 0 | X37: 10472 | AD37: 0 | AJ37: 0 | AP37: 14280 | AV37: 0 | BB37: 0 | BH37: 0 | BN37: 0 | BT37: 0 | BZ37: 0 | CF37: 0 | CL37: 0 | CR37: 0 | CX37: 0 | DD37: 0 | DJ37: 62832
C38: =明細書項目!C27 -> 介護保険 | F38: 0 | L38: 0 | R38: 0 | X38: 1661 | AD38: 0 | AJ38: 0 | AP38: 0 | AV38: 0 | BB38: 0 | BH38: 0 | BN38: 0 | BT38: 0 | BZ38: 0 | CF38: 0 | CL38: 0 | CR38: 0 | CX38: 0 | DD38: 0 | DJ38: 1661
C39: =明細書項目!C28 -> 厚生年金保険 | F39: 41030 | L39: 24618 | R39: 0 | X39: 18053 | AD39: 0 | AJ39: 0 | AP39: 24618 | AV39: 0 | BB39: 0 | BH39: 0 | BN39: 0 | BT39: 0 | BZ39: 0 | CF39: 0 | CL39: 0 | CR39: 0 | CX39: 0 | DD39: 0 | DJ39: 108319
C40: =明細書項目!C29 -> 雇用保険 | F40: 0 | L40: 0 | R40: 0 | X40: 1384 | AD40: 0 | AJ40: 0 | AP40: 1500 | AV40: 0 | BB40: 0 | BH40: 0 | BN40: 0 | BT40: 0 | BZ40: 0 | CF40: 0 | CL40: 0 | CR40: 0 | CX40: 0 | DD40: 0 | DJ40: 2884
C41: ③ 保険料合計 | F41: =SUM(F37:K40) -> 64830 | L41: =SUM(L37:Q40) -> 38898 | R41: =SUM(R37:W40) -> 0 | X41: =SUM(X37:AC40) -> 31570 | AD41: =SUM(AD37:AI40) -> 0 | AJ41: =SUM(AJ37:AO40) -> 0 | AP41: =SUM(AP37:AU40) -> 40398 | AV41: =SUM(AV37:BA40) -> 0 | BB41: =SUM(BB37:BG40) -> 0 | BH41: =SUM(BH37:BM40) -> 0 | BN41: =SUM(BN37:BS40) -> 0 | BT41: =SUM(BT37:BY40) -> 0 | BZ41: =SUM(BZ37:CE40) -> 0 | CF41: =SUM(CF37:CK40) -> 0 | CL41: =SUM(CL37:CQ40) -> 0 | CR41: =SUM(CR37:CW40) -> 0 | CX41: =SUM(CX37:DC40) -> 0 | DD41: =SUM(DD37:DI40) -> 0 | DJ41: 175696
B42: ④社会保険料控除後の金額 ①－③ | F42: =F34-F41 -> 435170 | L42: =L34-L41 -> 261102 | R42: =R34-R41 -> 80000 | X42: =X34-X41 -> 227027 | AD42: =AD34-AD41 -> 45000 | AJ42: =AJ34-AJ41 -> 0 | AP42: =AP34-AP41 -> 259602 | AV42: =AV34-AV41 -> 0 | BB42: =BB34-BB41 -> 0 | BH42: =BH34-BH41 -> 0 | BN42: =BN34-BN41 -> 0 | BT42: =BT34-BT41 -> 0 | BZ42: =BZ34-BZ41 -> 0 | CF42: =CF34-CF41 -> 0 | CL42: =CL34-CL41 -> 0 | CR42: =CR34-CR41 -> 0 | CX42: =CX34-CX41 -> 0 | DD42: =DD34-DD41 -> 0 | DJ42: 1307901
B43: その他控除金額 | C43: =IF(明細書項目!C31="","",明細書項目!C31) -> 所得税 | F43: 16210 | L43: 6960 | R43: 0 | X43: 4170 | AD43: 1378 | AJ43: 0 | AP43: 5240 | AV43: 0 | BB43: 0 | BH43: 0 | BN43: 0 | BT43: 0 | BZ43: 0 | CF43: 0 | CL43: 0 | CR43: 0 | CX43: 0 | DD43: 0 | DJ43: 33958
C44: =IF(明細書項目!C32="","",明細書項目!C32) -> 住民税 | F44: 22300 | L44: 12400 | X44: 8500 | AP44: 11300 | DJ44: 54500
C45: =IF(明細書項目!C33="","",明細書項目!C33) ->  | DJ45: 0
C46: =IF(明細書項目!C34="","",明細書項目!C34) ->  | DJ46: 0
C47: =IF(明細書項目!C35="","",明細書項目!C35) ->  | DJ47: 0
C48: ⑤ その他控除額計 | F48: =SUM(F43:K47) -> 38510 | L48: =SUM(L43:Q47) -> 19360 | R48: =SUM(R43:W47) -> 0 | X48: =SUM(X43:AC47) -> 12670 | AD48: =SUM(AD43:AI47) -> 1378 | AJ48: =SUM(AJ43:AO47) -> 0 | AP48: =SUM(AP43:AU47) -> 16540 | AV48: =SUM(AV43:BA47) -> 0 | BB48: =SUM(BB43:BG47) -> 0 | BH48: =SUM(BH43:BM47) -> 0 | BN48: =SUM(BN43:BS47) -> 0 | BT48: =SUM(BT43:BY47) -> 0 | BZ48: =SUM(BZ43:CE47) -> 0 | CF48: =SUM(CF43:CK47) -> 0 | CL48: =SUM(CL43:CQ47) -> 0 | CR48: =SUM(CR43:CW47) -> 0 | CX48: =SUM(CX43:DC47) -> 0 | DD48: =SUM(DD43:DI47) -> 0 | DJ48: 88458
B49: ③－⑤+② 差引支給額 | F49: =F42-F48+F35 -> 406660 | L49: =L42-L48+L35 -> 251742 | R49: =R42-R48+R35 -> 80000 | X49: =X42-X48+X35 -> 232727 | AD49: =AD42-AD48+AD35 -> 53922 | AJ49: =AJ42-AJ48+AJ35 -> 0 | AP49: =AP42-AP48+AP35 -> 243062 | AV49: =AV42-AV48+AV35 -> 0 | BB49: =BB42-BB48+BB35 -> 0 | BH49: =BH42-BH48+BH35 -> 0 | BN49: =BN42-BN48+BN35 -> 0 | BT49: =BT42-BT48+BT35 -> 0 | BZ49: =BZ42-BZ48+BZ35 -> 0 | CF49: =CF42-CF48+CF35 -> 0 | CL49: =CL42-CL48+CL35 -> 0 | CR49: =CR42-CR48+CR35 -> 0 | CX49: =CX42-CX48+CX35 -> 0 | DD49: =DD42-DD48+DD35 -> 0 | DJ49: 1268113
B50: 年末調整額 | DJ50: 0
B51: 支給額 | F51: =F49-F50 -> 406660 | L51: =L49-L50 -> 251742 | R51: =R49-R50 -> 80000 | X51: =X49-X50 -> 232727 | AD51: =AD49-AD50 -> 53922 | AJ51: =AJ49-AJ50 -> 0 | AP51: =AP49-AP50 -> 243062 | AV51: =AV49-AV50 -> 0 | BB51: =BB49-BB50 -> 0 | BH51: =BH49-BH50 -> 0 | BN51: =BN49-BN50 -> 0 | BT51: =BT49-BT50 -> 0 | BZ51: =BZ49-BZ50 -> 0 | CF51: =CF49-CF50 -> 0 | CL51: =CL49-CL50 -> 0 | CR51: =CR49-CR50 -> 0 | CX51: =CX49-CX50 -> 0 | DD51: =DD49-DD50 -> 0 | DJ51: 1268113
B52: 給与明細摘要 | F52: 一月もお疲れ様でした | L52: 一月もお疲れ様でした | R52: 一月もお疲れ様でした | X52: 一月もお疲れ様でした | AD52: 一月もお疲れ様でした | AJ52: 一月もお疲れ様でした | AP52: 一月もお疲れ様でした | AV52: 一月もお疲れ様でした | BB52: 一月もお疲れ様でした | BH52: 一月もお疲れ様でした | BN52: 一月もお疲れ様でした | BT52: 一月もお疲れ様でした | BZ52: 一月もお疲れ様でした | CF52: 一月もお疲れ様でした | CL52: 一月もお疲れ様でした | CR52: 一月もお疲れ様でした | CX52: 一月もお疲れ様でした | DD52: 一月もお疲れ様でした
B54: 雇用保険対象金額 | F54: =IF(F10="従業員（雇保加入）",SUMIF($E24:K33,"雇保対象",F24:K33),0) -> 0 | L54: =IF(L10="従業員（雇保加入）",SUMIF($E24:Q33,"雇保対象",L24:Q33),0) -> 0 | R54: =IF(R10="従業員（雇保加入）",SUMIF($E24:W33,"雇保対象",R24:W33),0) -> 0 | X54: =IF(X10="従業員（雇保加入）",SUMIF($E24:AC33,"雇保対象",X24:AC33),0) -> 276967 | AD54: =IF(AD10="従業員（雇保加入）",SUMIF($E24:AI33,"雇保対象",AD24:AI33),0) -> 0 | AJ54: =IF(AJ10="従業員（雇保加入）",SUMIF($E24:AO33,"雇保対象",AJ24:AO33),0) -> 0 | AP54: =IF(AP10="従業員（雇保加入）",SUMIF($E24:AU33,"雇保対象",AP24:AU33),0) -> 300000 | AV54: =IF(AV10="従業員（雇保加入）",SUMIF($E24:BA33,"雇保対象",AV24:BA33),0) -> 0 | BB54: =IF(BB10="従業員（雇保加入）",SUMIF($E24:BG33,"雇保対象",BB24:BG33),0) -> 0 | BH54: =IF(BH10="従業員（雇保加入）",SUMIF($E24:BM33,"雇保対象",BH24:BM33),0) -> 0 | BN54: =IF(BN10="従業員（雇保加入）",SUMIF($E24:BS33,"雇保対象",BN24:BS33),0) -> 0 | BT54: =IF(BT10="従業員（雇保加入）",SUMIF($E24:BY33,"雇保対象",BT24:BY33),0) -> 0 | BZ54: =IF(BZ10="従業員（雇保加入）",SUMIF($E24:CE33,"雇保対象",BZ24:CE33),0) -> 0 | CF54: =IF(CF10="従業員（雇保加入）",SUMIF($E24:CK33,"雇保対象",CF24:CK33),0) -> 0 | CL54: =IF(CL10="従業員（雇保加入）",SUMIF($E24:CQ33,"雇保対象",CL24:CQ33),0) -> 0 | CR54: =IF(CR10="従業員（雇保加入）",SUMIF($E24:CW33,"雇保対象",CR24:CW33),0) -> 0 | CX54: =IF(CX10="従業員（雇保加入）",SUMIF($E24:DC33,"雇保対象",CX24:DC33),0) -> 0 | DD54: =IF(DD10="従業員（雇保加入）",SUMIF($E24:DI33,"雇保対象",DD24:DI33),0) -> 0 | DJ54: =IF(DJ10="従業員（雇保加入）",SUMIF($E24:DO33,"雇保対象",DJ24:DO33),0) -> 0
B62: 甲欄給与所得控除額 | F62: =IF(F42=0,0,ROUNDUP(F42*VLOOKUP(F42,甲欄電算機計算!$A$8:$C$14,3)+VLOOKUP(F42,甲欄電算機計算!$A$8:$D$14,4),0)) -> 132034 | L62: =IF(L42=0,0,ROUNDUP(L42*VLOOKUP(L42,甲欄電算機計算!$A$8:$C$14,3)+VLOOKUP(L42,甲欄電算機計算!$A$8:$D$14,4),0)) -> 93331 | R62: =IF(R42=0,0,ROUNDUP(R42*VLOOKUP(R42,甲欄電算機計算!$A$8:$C$14,3)+VLOOKUP(R42,甲欄電算機計算!$A$8:$D$14,4),0)) -> 54167 | X62: =IF(X42=0,0,ROUNDUP(X42*VLOOKUP(X42,甲欄電算機計算!$A$8:$C$14,3)+VLOOKUP(X42,甲欄電算機計算!$A$8:$D$14,4),0)) -> 83109 | AD62: =IF(AD42=0,0,ROUNDUP(AD42*VLOOKUP(AD42,甲欄電算機計算!$A$8:$C$14,3)+VLOOKUP(AD42,甲欄電算機計算!$A$8:$D$14,4),0)) -> 54167 | AJ62: =IF(AJ42=0,0,ROUNDUP(AJ42*VLOOKUP(AJ42,甲欄電算機計算!$A$8:$C$14,3)+VLOOKUP(AJ42,甲欄電算機計算!$A$8:$D$14,4),0)) -> 0 | AP62: =IF(AP42=0,0,ROUNDUP(AP42*VLOOKUP(AP42,甲欄電算機計算!$A$8:$C$14,3)+VLOOKUP(AP42,甲欄電算機計算!$A$8:$D$14,4),0)) -> 92881 | AV62: =IF(AV42=0,0,ROUNDUP(AV42*VLOOKUP(AV42,甲欄電算機計算!$A$8:$C$14,3)+VLOOKUP(AV42,甲欄電算機計算!$A$8:$D$14,4),0)) -> 0 | BB62: =IF(BB42=0,0,ROUNDUP(BB42*VLOOKUP(BB42,甲欄電算機計算!$A$8:$C$14,3)+VLOOKUP(BB42,甲欄電算機計算!$A$8:$D$14,4),0)) -> 0 | BH62: =IF(BH42=0,0,ROUNDUP(BH42*VLOOKUP(BH42,甲欄電算機計算!$A$8:$C$14,3)+VLOOKUP(BH42,甲欄電算機計算!$A$8:$D$14,4),0)) -> 0 | BN62: =IF(BN42=0,0,ROUNDUP(BN42*VLOOKUP(BN42,甲欄電算機計算!$A$8:$C$14,3)+VLOOKUP(BN42,甲欄電算機計算!$A$8:$D$14,4),0)) -> 0 | BT62: =IF(BT42=0,0,ROUNDUP(BT42*VLOOKUP(BT42,甲欄電算機計算!$A$8:$C$14,3)+VLOOKUP(BT42,甲欄電算機計算!$A$8:$D$14,4),0)) -> 0 | BZ62: =IF(BZ42=0,0,ROUNDUP(BZ42*VLOOKUP(BZ42,甲欄電算機計算!$A$8:$C$14,3)+VLOOKUP(BZ42,甲欄電算機計算!$A$8:$D$14,4),0)) -> 0 | CF62: =IF(CF42=0,0,ROUNDUP(CF42*VLOOKUP(CF42,甲欄電算機計算!$A$8:$C$14,3)+VLOOKUP(CF42,甲欄電算機計算!$A$8:$D$14,4),0)) -> 0 | CL62: =IF(CL42=0,0,ROUNDUP(CL42*VLOOKUP(CL42,甲欄電算機計算!$A$8:$C$14,3)+VLOOKUP(CL42,甲欄電算機計算!$A$8:$D$14,4),0)) -> 0 | CR62: =IF(CR42=0,0,ROUNDUP(CR42*VLOOKUP(CR42,甲欄電算機計算!$A$8:$C$14,3)+VLOOKUP(CR42,甲欄電算機計算!$A$8:$D$14,4),0)) -> 0 | CX62: =IF(CX42=0,0,ROUNDUP(CX42*VLOOKUP(CX42,甲欄電算機計算!$A$8:$C$14,3)+VLOOKUP(CX42,甲欄電算機計算!$A$8:$D$14,4),0)) -> 0 | DD62: =IF(DD42=0,0,ROUNDUP(DD42*VLOOKUP(DD42,甲欄電算機計算!$A$8:$C$14,3)+VLOOKUP(DD42,甲欄電算機計算!$A$8:$D$14,4),0)) -> 0 | DJ62: =IF(DJ42=0,0,ROUNDUP(DJ42*VLOOKUP(DJ42,甲欄電算機計算!$A$8:$C$13,3)+VLOOKUP(DJ42,甲欄電算機計算!$A$8:$D$13,4),0)) -> 183334
B63: 甲欄配偶者控除等の額 | F63: =F13*甲欄電算機計算!$C$18+甲欄電算機計算!$C$19 -> 63334 | L63: =L13*甲欄電算機計算!$C$18+甲欄電算機計算!$C$19 -> 31667 | R63: =R13*甲欄電算機計算!$C$18+甲欄電算機計算!$C$19 -> 31667 | X63: =X13*甲欄電算機計算!$C$18+甲欄電算機計算!$C$19 -> 63334 | AD63: =AD13*甲欄電算機計算!$C$18+甲欄電算機計算!$C$19 -> 31667 | AJ63: =AJ13*甲欄電算機計算!$C$18+甲欄電算機計算!$C$19 -> 31667 | AP63: =AP13*甲欄電算機計算!$C$18+甲欄電算機計算!$C$19 -> 63334 | AV63: =AV13*甲欄電算機計算!$C$18+甲欄電算機計算!$C$19 -> 31667 | BB63: =BB13*甲欄電算機計算!$C$18+甲欄電算機計算!$C$19 -> 31667 | BH63: =BH13*甲欄電算機計算!$C$18+甲欄電算機計算!$C$19 -> 31667 | BN63: =BN13*甲欄電算機計算!$C$18+甲欄電算機計算!$C$19 -> 31667 | BT63: =BT13*甲欄電算機計算!$C$18+甲欄電算機計算!$C$19 -> 31667 | BZ63: =BZ13*甲欄電算機計算!$C$18+甲欄電算機計算!$C$19 -> 31667 | CF63: =CF13*甲欄電算機計算!$C$18+甲欄電算機計算!$C$19 -> 31667 | CL63: =CL13*甲欄電算機計算!$C$18+甲欄電算機計算!$C$19 -> 31667 | CR63: =CR13*甲欄電算機計算!$C$18+甲欄電算機計算!$C$19 -> 31667 | CX63: =CX13*甲欄電算機計算!$C$18+甲欄電算機計算!$C$19 -> 31667 | DD63: =DD13*甲欄電算機計算!$C$18+甲欄電算機計算!$C$19 -> 31667 | DJ63: =DJ13*甲欄電算機計算!$C$18+甲欄電算機計算!BW19 -> 0
B64: 課税給与所得金額 | F64: =F42-SUM(F62:K63) -> 239802 | L64: =L42-SUM(L62:Q63) -> 136104 | R64: =R42-SUM(R62:W63) -> -5834 | X64: =X42-SUM(X62:AC63) -> 80584 | AD64: =AD42-SUM(AD62:AI63) -> -40834 | AJ64: =AJ42-SUM(AJ62:AO63) -> -31667 | AP64: =AP42-SUM(AP62:AU63) -> 103387 | AV64: =AV42-SUM(AV62:BA63) -> -31667 | BB64: =BB42-SUM(BB62:BG63) -> -31667 | BH64: =BH42-SUM(BH62:BM63) -> -31667 | BN64: =BN42-SUM(BN62:BS63) -> -31667 | BT64: =BT42-SUM(BT62:BY63) -> -31667 | BZ64: =BZ42-SUM(BZ62:CE63) -> -31667 | CF64: =CF42-SUM(CF62:CK63) -> -31667 | CL64: =CL42-SUM(CL62:CQ63) -> -31667 | CR64: =CR42-SUM(CR62:CW63) -> -31667 | CX64: =CX42-SUM(CX62:DC63) -> -31667 | DD64: =DD42-SUM(DD62:DI63) -> -31667 | DJ64: =DJ42-SUM(DJ62:DO63) -> 1124567
B65: 甲欄源泉所得税額 | F65: =IF(F64=0,0,ROUND(F64*VLOOKUP(F64,甲欄電算機計算!$A$24:$C$30,3)-VLOOKUP(F64,甲欄電算機計算!$A$24:$D$30,4),-1)) -> 16190 | L65: =IF(L64=0,0,ROUND(L64*VLOOKUP(L64,甲欄電算機計算!$A$24:$C$30,3)-VLOOKUP(L64,甲欄電算機計算!$A$24:$D$30,4),-1)) -> 6950 | R65: =IF(R64=0,0,ROUND(R64*VLOOKUP(R64,甲欄電算機計算!$A$24:$C$30,3)-VLOOKUP(R64,甲欄電算機計算!$A$24:$D$30,4),-1)) ->  | X65: =IF(X64=0,0,ROUND(X64*VLOOKUP(X64,甲欄電算機計算!$A$24:$C$30,3)-VLOOKUP(X64,甲欄電算機計算!$A$24:$D$30,4),-1)) -> 4110 | AD65: =IF(AD64=0,0,ROUND(AD64*VLOOKUP(AD64,甲欄電算機計算!$A$24:$C$30,3)-VLOOKUP(AD64,甲欄電算機計算!$A$24:$D$30,4),-1)) ->  | AJ65: =IF(AJ64=0,0,ROUND(AJ64*VLOOKUP(AJ64,甲欄電算機計算!$A$24:$C$30,3)-VLOOKUP(AJ64,甲欄電算機計算!$A$24:$D$30,4),-1)) ->  | AP65: =IF(AP64=0,0,ROUND(AP64*VLOOKUP(AP64,甲欄電算機計算!$A$24:$C$30,3)-VLOOKUP(AP64,甲欄電算機計算!$A$24:$D$30,4),-1)) -> 5280 | AV65: =IF(AV64=0,0,ROUND(AV64*VLOOKUP(AV64,甲欄電算機計算!$A$24:$C$30,3)-VLOOKUP(AV64,甲欄電算機計算!$A$24:$D$30,4),-1)) ->  | BB65: =IF(BB64=0,0,ROUND(BB64*VLOOKUP(BB64,甲欄電算機計算!$A$24:$C$30,3)-VLOOKUP(BB64,甲欄電算機計算!$A$24:$D$30,4),-1)) ->  | BH65: =IF(BH64=0,0,ROUND(BH64*VLOOKUP(BH64,甲欄電算機計算!$A$24:$C$30,3)-VLOOKUP(BH64,甲欄電算機計算!$A$24:$D$30,4),-1)) ->  | BN65: =IF(BN64=0,0,ROUND(BN64*VLOOKUP(BN64,甲欄電算機計算!$A$24:$C$30,3)-VLOOKUP(BN64,甲欄電算機計算!$A$24:$D$30,4),-1)) ->  | BT65: =IF(BT64=0,0,ROUND(BT64*VLOOKUP(BT64,甲欄電算機計算!$A$24:$C$30,3)-VLOOKUP(BT64,甲欄電算機計算!$A$24:$D$30,4),-1)) ->  | BZ65: =IF(BZ64=0,0,ROUND(BZ64*VLOOKUP(BZ64,甲欄電算機計算!$A$24:$C$30,3)-VLOOKUP(BZ64,甲欄電算機計算!$A$24:$D$30,4),-1)) ->  | CF65: =IF(CF64=0,0,ROUND(CF64*VLOOKUP(CF64,甲欄電算機計算!$A$24:$C$30,3)-VLOOKUP(CF64,甲欄電算機計算!$A$24:$D$30,4),-1)) ->  | CL65: =IF(CL64=0,0,ROUND(CL64*VLOOKUP(CL64,甲欄電算機計算!$A$24:$C$30,3)-VLOOKUP(CL64,甲欄電算機計算!$A$24:$D$30,4),-1)) ->  | CR65: =IF(CR64=0,0,ROUND(CR64*VLOOKUP(CR64,甲欄電算機計算!$A$24:$C$30,3)-VLOOKUP(CR64,甲欄電算機計算!$A$24:$D$30,4),-1)) ->  | CX65: =IF(CX64=0,0,ROUND(CX64*VLOOKUP(CX64,甲欄電算機計算!$A$24:$C$30,3)-VLOOKUP(CX64,甲欄電算機計算!$A$24:$D$30,4),-1)) ->  | DD65: =IF(DD64=0,0,ROUND(DD64*VLOOKUP(DD64,甲欄電算機計算!$A$24:$C$30,3)-VLOOKUP(DD64,甲欄電算機計算!$A$24:$D$30,4),-1)) ->  | DJ65: =IF(DJ64=0,0,ROUND(DJ64*VLOOKUP(DJ64,甲欄電算機計算!$A$24:$C$30,3)-VLOOKUP(DJ64,甲欄電算機計算!$A$24:$D$30,4),-1)) -> 248210
B66: 甲欄源泉所得税額 | F66: =IF(ISERROR(F65),0,F65) -> 16190 | L66: =IF(ISERROR(L65),0,L65) -> 6950 | R66: =IF(ISERROR(R65),0,R65) -> 0 | X66: =IF(ISERROR(X65),0,X65) -> 4110 | AD66: =IF(ISERROR(AD65),0,AD65) -> 0 | AJ66: =IF(ISERROR(AJ65),0,AJ65) -> 0 | AP66: =IF(ISERROR(AP65),0,AP65) -> 5280 | AV66: =IF(ISERROR(AV65),0,AV65) -> 0 | BB66: =IF(ISERROR(BB65),0,BB65) -> 0 | BH66: =IF(ISERROR(BH65),0,BH65) -> 0 | BN66: =IF(ISERROR(BN65),0,BN65) -> 0 | BT66: =IF(ISERROR(BT65),0,BT65) -> 0 | BZ66: =IF(ISERROR(BZ65),0,BZ65) -> 0 | CF66: =IF(ISERROR(CF65),0,CF65) -> 0 | CL66: =IF(ISERROR(CL65),0,CL65) -> 0 | CR66: =IF(ISERROR(CR65),0,CR65) -> 0 | CX66: =IF(ISERROR(CX65),0,CX65) -> 0 | DD66: =IF(ISERROR(DD65),0,DD65) -> 0 | DJ66: =IF(ISERROR(DJ65),0,DJ65) -> 248210
B67: 月額表甲欄源泉所得税額 | F67: =IF(F42<=0,0,IF(F42<=860000,VLOOKUP(F42,月額表!$B$6:$K$292,F13+3),IF(F42<970000,INDEX(月額表!$D292:$K292,F13+1)+ROUNDDOWN((F42-860000)*0.23483,0),IF(F42=970000,INDEX(月額表!$D301:$K301,F13+1),IF(F42<1720000,INDEX(月額表!$D301:$K301,F13+1)+ROUNDDOWN((F42-970000)*0.33693,0),IF(F42=1720000,INDEX(月額表!$D310:$K310,F13+1),IF(F42<3550000,INDEX(月額表!$D310:$K310,F13+1)+ROUNDDOWN((F42-1720000)*0.4084,0),IF(F42=3550000,INDEX(月額表!$D319:$K319,F13+1),INDEX(月額表!$D319:$K319,F13+1)+ROUNDDOWN((F42-3550000)*0.45945,0))))))))) -> 16210 | L67: =IF(L42<=0,0,IF(L42<=860000,VLOOKUP(L42,月額表!$B$6:$K$292,L13+3),IF(L42<970000,INDEX(月額表!$D292:$K292,L13+1)+ROUNDDOWN((L42-860000)*0.23483,0),IF(L42=970000,INDEX(月額表!$D301:$K301,L13+1),IF(L42<1720000,INDEX(月額表!$D301:$K301,L13+1)+ROUNDDOWN((L42-970000)*0.33693,0),IF(L42=1720000,INDEX(月額表!$D310:$K310,L13+1),IF(L42<3550000,INDEX(月額表!$D310:$K310,L13+1)+ROUNDDOWN((L42-1720000)*0.4084,0),IF(L42=3550000,INDEX(月額表!$D319:$K319,L13+1),INDEX(月額表!$D319:$K319,L13+1)+ROUNDDOWN((L42-3550000)*0.45945,0))))))))) -> 6960 | R67: =IF(R42<=0,0,IF(R42<=860000,VLOOKUP(R42,月額表!$B$6:$K$292,R13+3),IF(R42<970000,INDEX(月額表!$D292:$K292,R13+1)+ROUNDDOWN((R42-860000)*0.23483,0),IF(R42=970000,INDEX(月額表!$D301:$K301,R13+1),IF(R42<1720000,INDEX(月額表!$D301:$K301,R13+1)+ROUNDDOWN((R42-970000)*0.33693,0),IF(R42=1720000,INDEX(月額表!$D310:$K310,R13+1),IF(R42<3550000,INDEX(月額表!$D310:$K310,R13+1)+ROUNDDOWN((R42-1720000)*0.4084,0),IF(R42=3550000,INDEX(月額表!$D319:$K319,R13+1),INDEX(月額表!$D319:$K319,R13+1)+ROUNDDOWN((R42-3550000)*0.45945,0))))))))) -> 0 | X67: =IF(X42<=0,0,IF(X42<=860000,VLOOKUP(X42,月額表!$B$6:$K$292,X13+3),IF(X42<970000,INDEX(月額表!$D292:$K292,X13+1)+ROUNDDOWN((X42-860000)*0.23483,0),IF(X42=970000,INDEX(月額表!$D301:$K301,X13+1),IF(X42<1720000,INDEX(月額表!$D301:$K301,X13+1)+ROUNDDOWN((X42-970000)*0.33693,0),IF(X42=1720000,INDEX(月額表!$D310:$K310,X13+1),IF(X42<3550000,INDEX(月額表!$D310:$K310,X13+1)+ROUNDDOWN((X42-1720000)*0.4084,0),IF(X42=3550000,INDEX(月額表!$D319:$K319,X13+1),INDEX(月額表!$D319:$K319,X13+1)+ROUNDDOWN((X42-3550000)*0.45945,0))))))))) -> 4170 | AD67: =IF(AD42<=0,0,IF(AD42<=860000,VLOOKUP(AD42,月額表!$B$6:$K$292,AD13+3),IF(AD42<970000,INDEX(月額表!$D292:$K292,AD13+1)+ROUNDDOWN((AD42-860000)*0.23483,0),IF(AD42=970000,INDEX(月額表!$D301:$K301,AD13+1),IF(AD42<1720000,INDEX(月額表!$D301:$K301,AD13+1)+ROUNDDOWN((AD42-970000)*0.33693,0),IF(AD42=1720000,INDEX(月額表!$D310:$K310,AD13+1),IF(AD42<3550000,INDEX(月額表!$D310:$K310,AD13+1)+ROUNDDOWN((AD42-1720000)*0.4084,0),IF(AD42=3550000,INDEX(月額表!$D319:$K319,AD13+1),INDEX(月額表!$D319:$K319,AD13+1)+ROUNDDOWN((AD42-3550000)*0.45945,0))))))))) -> 0 | AJ67: =IF(AJ42<=0,0,IF(AJ42<=860000,VLOOKUP(AJ42,月額表!$B$6:$K$292,AJ13+3),IF(AJ42<970000,INDEX(月額表!$D292:$K292,AJ13+1)+ROUNDDOWN((AJ42-860000)*0.23483,0),IF(AJ42=970000,INDEX(月額表!$D301:$K301,AJ13+1),IF(AJ42<1720000,INDEX(月額表!$D301:$K301,AJ13+1)+ROUNDDOWN((AJ42-970000)*0.33693,0),IF(AJ42=1720000,INDEX(月額表!$D310:$K310,AJ13+1),IF(AJ42<3550000,INDEX(月額表!$D310:$K310,AJ13+1)+ROUNDDOWN((AJ42-1720000)*0.4084,0),IF(AJ42=3550000,INDEX(月額表!$D319:$K319,AJ13+1),INDEX(月額表!$D319:$K319,AJ13+1)+ROUNDDOWN((AJ42-3550000)*0.45945,0))))))))) -> 0 | AP67: =IF(AP42<=0,0,IF(AP42<=860000,VLOOKUP(AP42,月額表!$B$6:$K$292,AP13+3),IF(AP42<970000,INDEX(月額表!$D292:$K292,AP13+1)+ROUNDDOWN((AP42-860000)*0.23483,0),IF(AP42=970000,INDEX(月額表!$D301:$K301,AP13+1),IF(AP42<1720000,INDEX(月額表!$D301:$K301,AP13+1)+ROUNDDOWN((AP42-970000)*0.33693,0),IF(AP42=1720000,INDEX(月額表!$D310:$K310,AP13+1),IF(AP42<3550000,INDEX(月額表!$D310:$K310,AP13+1)+ROUNDDOWN((AP42-1720000)*0.4084,0),IF(AP42=3550000,INDEX(月額表!$D319:$K319,AP13+1),INDEX(月額表!$D319:$K319,AP13+1)+ROUNDDOWN((AP42-3550000)*0.45945,0))))))))) -> 5240 | AV67: =IF(AV42<=0,0,IF(AV42<=860000,VLOOKUP(AV42,月額表!$B$6:$K$292,AV13+3),IF(AV42<970000,INDEX(月額表!$D292:$K292,AV13+1)+ROUNDDOWN((AV42-860000)*0.23483,0),IF(AV42=970000,INDEX(月額表!$D301:$K301,AV13+1),IF(AV42<1720000,INDEX(月額表!$D301:$K301,AV13+1)+ROUNDDOWN((AV42-970000)*0.33693,0),IF(AV42=1720000,INDEX(月額表!$D310:$K310,AV13+1),IF(AV42<3550000,INDEX(月額表!$D310:$K310,AV13+1)+ROUNDDOWN((AV42-1720000)*0.4084,0),IF(AV42=3550000,INDEX(月額表!$D319:$K319,AV13+1),INDEX(月額表!$D319:$K319,AV13+1)+ROUNDDOWN((AV42-3550000)*0.45945,0))))))))) -> 0 | BB67: =IF(BB42<=0,0,IF(BB42<=860000,VLOOKUP(BB42,月額表!$B$6:$K$292,BB13+3),IF(BB42<970000,INDEX(月額表!$D292:$K292,BB13+1)+ROUNDDOWN((BB42-860000)*0.23483,0),IF(BB42=970000,INDEX(月額表!$D301:$K301,BB13+1),IF(BB42<1720000,INDEX(月額表!$D301:$K301,BB13+1)+ROUNDDOWN((BB42-970000)*0.33693,0),IF(BB42=1720000,INDEX(月額表!$D310:$K310,BB13+1),IF(BB42<3550000,INDEX(月額表!$D310:$K310,BB13+1)+ROUNDDOWN((BB42-1720000)*0.4084,0),IF(BB42=3550000,INDEX(月額表!$D319:$K319,BB13+1),INDEX(月額表!$D319:$K319,BB13+1)+ROUNDDOWN((BB42-3550000)*0.45945,0))))))))) -> 0 | BH67: =IF(BH42<=0,0,IF(BH42<=860000,VLOOKUP(BH42,月額表!$B$6:$K$292,BH13+3),IF(BH42<970000,INDEX(月額表!$D292:$K292,BH13+1)+ROUNDDOWN((BH42-860000)*0.23483,0),IF(BH42=970000,INDEX(月額表!$D301:$K301,BH13+1),IF(BH42<1720000,INDEX(月額表!$D301:$K301,BH13+1)+ROUNDDOWN((BH42-970000)*0.33693,0),IF(BH42=1720000,INDEX(月額表!$D310:$K310,BH13+1),IF(BH42<3550000,INDEX(月額表!$D310:$K310,BH13+1)+ROUNDDOWN((BH42-1720000)*0.4084,0),IF(BH42=3550000,INDEX(月額表!$D319:$K319,BH13+1),INDEX(月額表!$D319:$K319,BH13+1)+ROUNDDOWN((BH42-3550000)*0.45945,0))))))))) -> 0 | BN67: =IF(BN42<=0,0,IF(BN42<=860000,VLOOKUP(BN42,月額表!$B$6:$K$292,BN13+3),IF(BN42<970000,INDEX(月額表!$D292:$K292,BN13+1)+ROUNDDOWN((BN42-860000)*0.23483,0),IF(BN42=970000,INDEX(月額表!$D301:$K301,BN13+1),IF(BN42<1720000,INDEX(月額表!$D301:$K301,BN13+1)+ROUNDDOWN((BN42-970000)*0.33693,0),IF(BN42=1720000,INDEX(月額表!$D310:$K310,BN13+1),IF(BN42<3550000,INDEX(月額表!$D310:$K310,BN13+1)+ROUNDDOWN((BN42-1720000)*0.4084,0),IF(BN42=3550000,INDEX(月額表!$D319:$K319,BN13+1),INDEX(月額表!$D319:$K319,BN13+1)+ROUNDDOWN((BN42-3550000)*0.45945,0))))))))) -> 0 | BT67: =IF(BT42<=0,0,IF(BT42<=860000,VLOOKUP(BT42,月額表!$B$6:$K$292,BT13+3),IF(BT42<970000,INDEX(月額表!$D292:$K292,BT13+1)+ROUNDDOWN((BT42-860000)*0.23483,0),IF(BT42=970000,INDEX(月額表!$D301:$K301,BT13+1),IF(BT42<1720000,INDEX(月額表!$D301:$K301,BT13+1)+ROUNDDOWN((BT42-970000)*0.33693,0),IF(BT42=1720000,INDEX(月額表!$D310:$K310,BT13+1),IF(BT42<3550000,INDEX(月額表!$D310:$K310,BT13+1)+ROUNDDOWN((BT42-1720000)*0.4084,0),IF(BT42=3550000,INDEX(月額表!$D319:$K319,BT13+1),INDEX(月額表!$D319:$K319,BT13+1)+ROUNDDOWN((BT42-3550000)*0.45945,0))))))))) -> 0 | BZ67: =IF(BZ42<=0,0,IF(BZ42<=860000,VLOOKUP(BZ42,月額表!$B$6:$K$292,BZ13+3),IF(BZ42<970000,INDEX(月額表!$D292:$K292,BZ13+1)+ROUNDDOWN((BZ42-860000)*0.23483,0),IF(BZ42=970000,INDEX(月額表!$D301:$K301,BZ13+1),IF(BZ42<1720000,INDEX(月額表!$D301:$K301,BZ13+1)+ROUNDDOWN((BZ42-970000)*0.33693,0),IF(BZ42=1720000,INDEX(月額表!$D310:$K310,BZ13+1),IF(BZ42<3550000,INDEX(月額表!$D310:$K310,BZ13+1)+ROUNDDOWN((BZ42-1720000)*0.4084,0),IF(BZ42=3550000,INDEX(月額表!$D319:$K319,BZ13+1),INDEX(月額表!$D319:$K319,BZ13+1)+ROUNDDOWN((BZ42-3550000)*0.45945,0))))))))) -> 0 | CF67: =IF(CF42<=0,0,IF(CF42<=860000,VLOOKUP(CF42,月額表!$B$6:$K$292,CF13+3),IF(CF42<970000,INDEX(月額表!$D292:$K292,CF13+1)+ROUNDDOWN((CF42-860000)*0.23483,0),IF(CF42=970000,INDEX(月額表!$D301:$K301,CF13+1),IF(CF42<1720000,INDEX(月額表!$D301:$K301,CF13+1)+ROUNDDOWN((CF42-970000)*0.33693,0),IF(CF42=1720000,INDEX(月額表!$D310:$K310,CF13+1),IF(CF42<3550000,INDEX(月額表!$D310:$K310,CF13+1)+ROUNDDOWN((CF42-1720000)*0.4084,0),IF(CF42=3550000,INDEX(月額表!$D319:$K319,CF13+1),INDEX(月額表!$D319:$K319,CF13+1)+ROUNDDOWN((CF42-3550000)*0.45945,0))))))))) -> 0 | CL67: =IF(CL42<=0,0,IF(CL42<=860000,VLOOKUP(CL42,月額表!$B$6:$K$292,CL13+3),IF(CL42<970000,INDEX(月額表!$D292:$K292,CL13+1)+ROUNDDOWN((CL42-860000)*0.23483,0),IF(CL42=970000,INDEX(月額表!$D301:$K301,CL13+1),IF(CL42<1720000,INDEX(月額表!$D301:$K301,CL13+1)+ROUNDDOWN((CL42-970000)*0.33693,0),IF(CL42=1720000,INDEX(月額表!$D310:$K310,CL13+1),IF(CL42<3550000,INDEX(月額表!$D310:$K310,CL13+1)+ROUNDDOWN((CL42-1720000)*0.4084,0),IF(CL42=3550000,INDEX(月額表!$D319:$K319,CL13+1),INDEX(月額表!$D319:$K319,CL13+1)+ROUNDDOWN((CL42-3550000)*0.45945,0))))))))) -> 0 | CR67: =IF(CR42<=0,0,IF(CR42<=860000,VLOOKUP(CR42,月額表!$B$6:$K$292,CR13+3),IF(CR42<970000,INDEX(月額表!$D292:$K292,CR13+1)+ROUNDDOWN((CR42-860000)*0.23483,0),IF(CR42=970000,INDEX(月額表!$D301:$K301,CR13+1),IF(CR42<1720000,INDEX(月額表!$D301:$K301,CR13+1)+ROUNDDOWN((CR42-970000)*0.33693,0),IF(CR42=1720000,INDEX(月額表!$D310:$K310,CR13+1),IF(CR42<3550000,INDEX(月額表!$D310:$K310,CR13+1)+ROUNDDOWN((CR42-1720000)*0.4084,0),IF(CR42=3550000,INDEX(月額表!$D319:$K319,CR13+1),INDEX(月額表!$D319:$K319,CR13+1)+ROUNDDOWN((CR42-3550000)*0.45945,0))))))))) -> 0 | CX67: =IF(CX42<=0,0,IF(CX42<=860000,VLOOKUP(CX42,月額表!$B$6:$K$292,CX13+3),IF(CX42<970000,INDEX(月額表!$D292:$K292,CX13+1)+ROUNDDOWN((CX42-860000)*0.23483,0),IF(CX42=970000,INDEX(月額表!$D301:$K301,CX13+1),IF(CX42<1720000,INDEX(月額表!$D301:$K301,CX13+1)+ROUNDDOWN((CX42-970000)*0.33693,0),IF(CX42=1720000,INDEX(月額表!$D310:$K310,CX13+1),IF(CX42<3550000,INDEX(月額表!$D310:$K310,CX13+1)+ROUNDDOWN((CX42-1720000)*0.4084,0),IF(CX42=3550000,INDEX(月額表!$D319:$K319,CX13+1),INDEX(月額表!$D319:$K319,CX13+1)+ROUNDDOWN((CX42-3550000)*0.45945,0))))))))) -> 0 | DD67: =IF(DD42<=0,0,IF(DD42<=860000,VLOOKUP(DD42,月額表!$B$6:$K$292,DD13+3),IF(DD42<970000,INDEX(月額表!$D292:$K292,DD13+1)+ROUNDDOWN((DD42-860000)*0.23483,0),IF(DD42=970000,INDEX(月額表!$D301:$K301,DD13+1),IF(DD42<1720000,INDEX(月額表!$D301:$K301,DD13+1)+ROUNDDOWN((DD42-970000)*0.33693,0),IF(DD42=1720000,INDEX(月額表!$D310:$K310,DD13+1),IF(DD42<3550000,INDEX(月額表!$D310:$K310,DD13+1)+ROUNDDOWN((DD42-1720000)*0.4084,0),IF(DD42=3550000,INDEX(月額表!$D319:$K319,DD13+1),INDEX(月額表!$D319:$K319,DD13+1)+ROUNDDOWN((DD42-3550000)*0.45945,0))))))))) -> 0 | DJ67: =IF(ISERROR(DJ66),0,DJ66) -> 248210
B69: 乙欄源泉所得税額 | F69: =IF(F42=0,0,IF(F42<88000,ROUNDDOWN(F42*0.03063,0),IF(F42<740000,VLOOKUP(F42,月額表乙欄!$A$13:$C$257,3),IF(F42=740000,259800,IF(F42<1700000,ROUNDDOWN((F42-740000)*0.4084,0)+259800,IF(F42=1700000,651900,ROUNDDOWN((F42-1700000)*0.45945,0)+651900)))))) -> 110300 | L69: =IF(L42=0,0,IF(L42<88000,ROUNDDOWN(L42*0.03063,0),IF(L42<740000,VLOOKUP(L42,月額表乙欄!$A$13:$C$257,3),IF(L42=740000,259800,IF(L42<1700000,ROUNDDOWN((L42-740000)*0.4084,0)+259800,IF(L42=1700000,651900,ROUNDDOWN((L42-1700000)*0.45945,0)+651900)))))) -> 40400 | R69: =IF(R42=0,0,IF(R42<88000,ROUNDDOWN(R42*0.03063,0),IF(R42<740000,VLOOKUP(R42,月額表乙欄!$A$13:$C$257,3),IF(R42=740000,259800,IF(R42<1700000,ROUNDDOWN((R42-740000)*0.4084,0)+259800,IF(R42=1700000,651900,ROUNDDOWN((R42-1700000)*0.45945,0)+651900)))))) -> 2450 | X69: =IF(X42=0,0,IF(X42<88000,ROUNDDOWN(X42*0.03063,0),IF(X42<740000,VLOOKUP(X42,月額表乙欄!$A$13:$C$257,3),IF(X42=740000,259800,IF(X42<1700000,ROUNDDOWN((X42-740000)*0.4084,0)+259800,IF(X42=1700000,651900,ROUNDDOWN((X42-1700000)*0.45945,0)+651900)))))) -> 29300 | AD69: =IF(AD42=0,0,IF(AD42<88000,ROUNDDOWN(AD42*0.03063,0),IF(AD42<740000,VLOOKUP(AD42,月額表乙欄!$A$13:$C$257,3),IF(AD42=740000,259800,IF(AD42<1700000,ROUNDDOWN((AD42-740000)*0.4084,0)+259800,IF(AD42=1700000,651900,ROUNDDOWN((AD42-1700000)*0.45945,0)+651900)))))) -> 1378 | AJ69: =IF(AJ42=0,0,IF(AJ42<88000,ROUNDDOWN(AJ42*0.03063,0),IF(AJ42<740000,VLOOKUP(AJ42,月額表乙欄!$A$13:$C$257,3),IF(AJ42=740000,259800,IF(AJ42<1700000,ROUNDDOWN((AJ42-740000)*0.4084,0)+259800,IF(AJ42=1700000,651900,ROUNDDOWN((AJ42-1700000)*0.45945,0)+651900)))))) -> 0 | AP69: =IF(AP42=0,0,IF(AP42<88000,ROUNDDOWN(AP42*0.03063,0),IF(AP42<740000,VLOOKUP(AP42,月額表乙欄!$A$13:$C$257,3),IF(AP42=740000,259800,IF(AP42<1700000,ROUNDDOWN((AP42-740000)*0.4084,0)+259800,IF(AP42=1700000,651900,ROUNDDOWN((AP42-1700000)*0.45945,0)+651900)))))) -> 39400 | AV69: =IF(AV42=0,0,IF(AV42<88000,ROUNDDOWN(AV42*0.03063,0),IF(AV42<740000,VLOOKUP(AV42,月額表乙欄!$A$13:$C$257,3),IF(AV42=740000,259800,IF(AV42<1700000,ROUNDDOWN((AV42-740000)*0.4084,0)+259800,IF(AV42=1700000,651900,ROUNDDOWN((AV42-1700000)*0.45945,0)+651900)))))) -> 0 | BB69: =IF(BB42=0,0,IF(BB42<88000,ROUNDDOWN(BB42*0.03063,0),IF(BB42<740000,VLOOKUP(BB42,月額表乙欄!$A$13:$C$257,3),IF(BB42=740000,259800,IF(BB42<1700000,ROUNDDOWN((BB42-740000)*0.4084,0)+259800,IF(BB42=1700000,651900,ROUNDDOWN((BB42-1700000)*0.45945,0)+651900)))))) -> 0 | BH69: =IF(BH42=0,0,IF(BH42<88000,ROUNDDOWN(BH42*0.03063,0),IF(BH42<740000,VLOOKUP(BH42,月額表乙欄!$A$13:$C$257,3),IF(BH42=740000,259800,IF(BH42<1700000,ROUNDDOWN((BH42-740000)*0.4084,0)+259800,IF(BH42=1700000,651900,ROUNDDOWN((BH42-1700000)*0.45945,0)+651900)))))) -> 0 | BN69: =IF(BN42=0,0,IF(BN42<88000,ROUNDDOWN(BN42*0.03063,0),IF(BN42<740000,VLOOKUP(BN42,月額表乙欄!$A$13:$C$257,3),IF(BN42=740000,259800,IF(BN42<1700000,ROUNDDOWN((BN42-740000)*0.4084,0)+259800,IF(BN42=1700000,651900,ROUNDDOWN((BN42-1700000)*0.45945,0)+651900)))))) -> 0 | BT69: =IF(BT42=0,0,IF(BT42<88000,ROUNDDOWN(BT42*0.03063,0),IF(BT42<740000,VLOOKUP(BT42,月額表乙欄!$A$13:$C$257,3),IF(BT42=740000,259800,IF(BT42<1700000,ROUNDDOWN((BT42-740000)*0.4084,0)+259800,IF(BT42=1700000,651900,ROUNDDOWN((BT42-1700000)*0.45945,0)+651900)))))) -> 0 | BZ69: =IF(BZ42=0,0,IF(BZ42<88000,ROUNDDOWN(BZ42*0.03063,0),IF(BZ42<740000,VLOOKUP(BZ42,月額表乙欄!$A$13:$C$257,3),IF(BZ42=740000,259800,IF(BZ42<1700000,ROUNDDOWN((BZ42-740000)*0.4084,0)+259800,IF(BZ42=1700000,651900,ROUNDDOWN((BZ42-1700000)*0.45945,0)+651900)))))) -> 0 | CF69: =IF(CF42=0,0,IF(CF42<88000,ROUNDDOWN(CF42*0.03063,0),IF(CF42<740000,VLOOKUP(CF42,月額表乙欄!$A$13:$C$257,3),IF(CF42=740000,259800,IF(CF42<1700000,ROUNDDOWN((CF42-740000)*0.4084,0)+259800,IF(CF42=1700000,651900,ROUNDDOWN((CF42-1700000)*0.45945,0)+651900)))))) -> 0 | CL69: =IF(CL42=0,0,IF(CL42<88000,ROUNDDOWN(CL42*0.03063,0),IF(CL42<740000,VLOOKUP(CL42,月額表乙欄!$A$13:$C$257,3),IF(CL42=740000,259800,IF(CL42<1700000,ROUNDDOWN((CL42-740000)*0.4084,0)+259800,IF(CL42=1700000,651900,ROUNDDOWN((CL42-1700000)*0.45945,0)+651900)))))) -> 0 | CR69: =IF(CR42=0,0,IF(CR42<88000,ROUNDDOWN(CR42*0.03063,0),IF(CR42<740000,VLOOKUP(CR42,月額表乙欄!$A$13:$C$257,3),IF(CR42=740000,259800,IF(CR42<1700000,ROUNDDOWN((CR42-740000)*0.4084,0)+259800,IF(CR42=1700000,651900,ROUNDDOWN((CR42-1700000)*0.45945,0)+651900)))))) -> 0 | CX69: =IF(CX42=0,0,IF(CX42<88000,ROUNDDOWN(CX42*0.03063,0),IF(CX42<740000,VLOOKUP(CX42,月額表乙欄!$A$13:$C$257,3),IF(CX42=740000,259800,IF(CX42<1700000,ROUNDDOWN((CX42-740000)*0.4084,0)+259800,IF(CX42=1700000,651900,ROUNDDOWN((CX42-1700000)*0.45945,0)+651900)))))) -> 0 | DD69: =IF(DD42=0,0,IF(DD42<88000,ROUNDDOWN(DD42*0.03063,0),IF(DD42<740000,VLOOKUP(DD42,月額表乙欄!$A$13:$C$257,3),IF(DD42=740000,259800,IF(DD42<1700000,ROUNDDOWN((DD42-740000)*0.4084,0)+259800,IF(DD42=1700000,651900,ROUNDDOWN((DD42-1700000)*0.45945,0)+651900)))))) -> 0 | DJ69: =IF(DJ42=0,0,IF(DJ42<88000,ROUNDDOWN(DJ42*0.03,0),IF(DJ42>1010000,367400+ROUNDDOWN((DJ42-1010000)*0.38,0),VLOOKUP(DJ42,月額表乙欄!$A$13:$C$308,3)))) -> 480602
B72: 雇用保険料 | F72: =IF(F132>=64,0,ROUNDDOWN(F54*$J3/1000,0)) -> 0 | L72: =IF(L132>=64,0,ROUNDDOWN(L54*$J3/1000,0)) -> 0 | R72: =IF(R132>=64,0,ROUNDDOWN(R54*$J3/1000,0)) -> 0 | X72: =IF(X132>=64,0,ROUNDDOWN(X54*$J3/1000,0)) -> 830 | AD72: =IF(AD132>=64,0,ROUNDDOWN(AD54*$J3/1000,0)) -> 0 | AJ72: =IF(AJ132>=64,0,ROUNDDOWN(AJ54*$J3/1000,0)) -> 0 | AP72: =IF(AP132>=64,0,ROUNDDOWN(AP54*$J3/1000,0)) -> 900 | AV72: =IF(AV132>=64,0,ROUNDDOWN(AV54*$J3/1000,0)) -> 0 | BB72: =IF(BB132>=64,0,ROUNDDOWN(BB54*$J3/1000,0)) -> 0 | BH72: =IF(BH132>=64,0,ROUNDDOWN(BH54*$J3/1000,0)) -> 0 | BN72: =IF(BN132>=64,0,ROUNDDOWN(BN54*$J3/1000,0)) -> 0 | BT72: =IF(BT132>=64,0,ROUNDDOWN(BT54*$J3/1000,0)) -> 0 | BZ72: =IF(BZ132>=64,0,ROUNDDOWN(BZ54*$J3/1000,0)) -> 0 | CF72: =IF(CF132>=64,0,ROUNDDOWN(CF54*$J3/1000,0)) -> 0 | CL72: =IF(CL132>=64,0,ROUNDDOWN(CL54*$J3/1000,0)) -> 0 | CR72: =IF(CR132>=64,0,ROUNDDOWN(CR54*$J3/1000,0)) -> 0 | CX72: =IF(CX132>=64,0,ROUNDDOWN(CX54*$J3/1000,0)) -> 0 | DD72: =IF(DD132>=64,0,ROUNDDOWN(DD54*$J3/1000,0)) -> 0 | DJ72: =IF(DJ12>=65,0,ROUNDDOWN(DJ54*$J4/1000,0)) -> 0
B73: 所得税 | F73: =IF(F11="甲欄",F66,F69) -> 16190 | L73: =IF(L11="甲欄",L66,L69) -> 6950 | R73: =IF(R11="甲欄",R66,R69) -> 0 | X73: =IF(X11="甲欄",X66,X69) -> 4110 | AD73: =IF(AD11="甲欄",AD66,AD69) -> 1378 | AJ73: =IF(AJ11="甲欄",AJ66,AJ69) -> 0 | AP73: =IF(AP11="甲欄",AP66,AP69) -> 5280 | AV73: =IF(AV11="甲欄",AV66,AV69) -> 0 | BB73: =IF(BB11="甲欄",BB66,BB69) -> 0 | BH73: =IF(BH11="甲欄",BH66,BH69) -> 0 | BN73: =IF(BN11="甲欄",BN66,BN69) -> 0 | BT73: =IF(BT11="甲欄",BT66,BT69) -> 0 | BZ73: =IF(BZ11="甲欄",BZ66,BZ69) -> 0 | CF73: =IF(CF11="甲欄",CF66,CF69) -> 0 | CL73: =IF(CL11="甲欄",CL66,CL69) -> 0 | CR73: =IF(CR11="甲欄",CR66,CR69) -> 0 | CX73: =IF(CX11="甲欄",CX66,CX69) -> 0 | DD73: =IF(DD11="甲欄",DD66,DD69) -> 0 | DJ73: =ROUNDDOWN(DJ55*$J5/1000,0) -> 0
B74: 1
B75: 月額表所得税 | F75: =IF(F11="甲欄",F67,F69) -> 16210 | L75: =IF(L11="甲欄",L67,L69) -> 6960 | R75: =IF(R11="甲欄",R67,R69) -> 0 | X75: =IF(X11="甲欄",X67,X69) -> 4170 | AD75: =IF(AD11="甲欄",AD67,AD69) -> 1378 | AJ75: =IF(AJ11="甲欄",AJ67,AJ69) -> 0 | AP75: =IF(AP11="甲欄",AP67,AP69) -> 5240 | AV75: =IF(AV11="甲欄",AV67,AV69) -> 0 | BB75: =IF(BB11="甲欄",BB67,BB69) -> 0 | BH75: =IF(BH11="甲欄",BH67,BH69) -> 0 | BN75: =IF(BN11="甲欄",BN67,BN69) -> 0 | BT75: =IF(BT11="甲欄",BT67,BT69) -> 0 | BZ75: =IF(BZ11="甲欄",BZ67,BZ69) -> 0 | CF75: =IF(CF11="甲欄",CF67,CF69) -> 0 | CL75: =IF(CL11="甲欄",CL67,CL69) -> 0 | CR75: =IF(CR11="甲欄",CR67,CR69) -> 0 | CX75: =IF(CX11="甲欄",CX67,CX69) -> 0 | DD75: =IF(DD11="甲欄",DD67,DD69) -> 0
B76: 健康保険料 | F76: =IF(F9="",0,ROUNDDOWN(F14*$J4/1000,0)) -> 25350 | L76: =IF(L9="",0,ROUNDDOWN(L14*$J4/1000,0)) -> 15210 | R76: =IF(R9="",0,ROUNDDOWN(R14*$J4/1000,0)) -> 0 | X76: =IF(X9="",0,ROUNDDOWN(X14*$J4/1000,0)) -> 11154 | AD76: =IF(AD9="",0,ROUNDDOWN(AD14*$J4/1000,0)) -> 0 | AJ76: =IF(AJ9="",0,ROUNDDOWN(AJ14*$J4/1000,0)) -> 0 | AP76: =IF(AP9="",0,ROUNDDOWN(AP14*$J4/1000,0)) -> 15210 | AV76: =IF(AV9="",0,ROUNDDOWN(AV14*$J4/1000,0)) -> 0 | BB76: =IF(BB9="",0,ROUNDDOWN(BB14*$J4/1000,0)) -> 0 | BH76: =IF(BH9="",0,ROUNDDOWN(BH14*$J4/1000,0)) -> 0 | BN76: =IF(BN9="",0,ROUNDDOWN(BN14*$J4/1000,0)) -> 0 | BT76: =IF(BT9="",0,ROUNDDOWN(BT14*$J4/1000,0)) -> 0 | BZ76: =IF(BZ9="",0,ROUNDDOWN(BZ14*$J4/1000,0)) -> 0 | CF76: =IF(CF9="",0,ROUNDDOWN(CF14*$J4/1000,0)) -> 0 | CL76: =IF(CL9="",0,ROUNDDOWN(CL14*$J4/1000,0)) -> 0 | CR76: =IF(CR9="",0,ROUNDDOWN(CR14*$J4/1000,0)) -> 0 | CX76: =IF(CX9="",0,ROUNDDOWN(CX14*$J4/1000,0)) -> 0 | DD76: =IF(DD9="",0,ROUNDDOWN(DD14*$J4/1000,0)) -> 0 | DJ76: =IF(DJ9="",0,ROUNDDOWN(DJ14*$J4/1000,0)) -> 0
B77: 介護保険料 | F77: =IF(F9="",0,IF(F12<40,0,IF(F12>=65,0,ROUNDDOWN(F14*$J5/1000,0)))) -> 4325 | L77: =IF(L9="",0,IF(L12<40,0,IF(L12>=65,0,ROUNDDOWN(L14*$J5/1000,0)))) -> 0 | R77: =IF(R9="",0,IF(R12<40,0,IF(R12>=65,0,ROUNDDOWN(R14*$J5/1000,0)))) -> 0 | X77: =IF(X9="",0,IF(X12<40,0,IF(X12>=65,0,ROUNDDOWN(X14*$J5/1000,0)))) -> 1903 | AD77: =IF(AD9="",0,IF(AD12<40,0,IF(AD12>=65,0,ROUNDDOWN(AD14*$J5/1000,0)))) -> 0 | AJ77: =IF(AJ9="",0,IF(AJ12<40,0,IF(AJ12>=65,0,ROUNDDOWN(AJ14*$J5/1000,0)))) -> 0 | AP77: =IF(AP9="",0,IF(AP12<40,0,IF(AP12>=65,0,ROUNDDOWN(AP14*$J5/1000,0)))) -> 2595 | AV77: =IF(AV9="",0,IF(AV12<40,0,IF(AV12>=65,0,ROUNDDOWN(AV14*$J5/1000,0)))) -> 0 | BB77: =IF(BB9="",0,IF(BB12<40,0,IF(BB12>=65,0,ROUNDDOWN(BB14*$J5/1000,0)))) -> 0 | BH77: =IF(BH9="",0,IF(BH12<40,0,IF(BH12>=65,0,ROUNDDOWN(BH14*$J5/1000,0)))) -> 0 | BN77: =IF(BN9="",0,IF(BN12<40,0,IF(BN12>=65,0,ROUNDDOWN(BN14*$J5/1000,0)))) -> 0 | BT77: =IF(BT9="",0,IF(BT12<40,0,IF(BT12>=65,0,ROUNDDOWN(BT14*$J5/1000,0)))) -> 0 | BZ77: =IF(BZ9="",0,IF(BZ12<40,0,IF(BZ12>=65,0,ROUNDDOWN(BZ14*$J5/1000,0)))) -> 0 | CF77: =IF(CF9="",0,IF(CF12<40,0,IF(CF12>=65,0,ROUNDDOWN(CF14*$J5/1000,0)))) -> 0 | CL77: =IF(CL9="",0,IF(CL12<40,0,IF(CL12>=65,0,ROUNDDOWN(CL14*$J5/1000,0)))) -> 0 | CR77: =IF(CR9="",0,IF(CR12<40,0,IF(CR12>=65,0,ROUNDDOWN(CR14*$J5/1000,0)))) -> 0 | CX77: =IF(CX9="",0,IF(CX12<40,0,IF(CX12>=65,0,ROUNDDOWN(CX14*$J5/1000,0)))) -> 0 | DD77: =IF(DD9="",0,IF(DD12<40,0,IF(DD12>=65,0,ROUNDDOWN(DD14*$J5/1000,0)))) -> 0 | DJ77: =IF(DJ9="",0,IF(DJ12<40,0,IF(DJ12>=65,0,ROUNDDOWN(DJ14*$J5/1000,0)))) -> 0
B78: 厚生年金保険料 | F78: =IF(F9="",0,ROUNDDOWN(F15*$J6/1000,0)) -> 40750 | L78: =IF(L9="",0,ROUNDDOWN(L15*$J6/1000,0)) -> 24450 | R78: =IF(R9="",0,ROUNDDOWN(R15*$J6/1000,0)) -> 0 | X78: =IF(X9="",0,ROUNDDOWN(X15*$J6/1000,0)) -> 17930 | AD78: =IF(AD9="",0,ROUNDDOWN(AD15*$J6/1000,0)) -> 0 | AJ78: =IF(AJ9="",0,ROUNDDOWN(AJ15*$J6/1000,0)) -> 0 | AP78: =IF(AP9="",0,ROUNDDOWN(AP15*$J6/1000,0)) -> 24450 | AV78: =IF(AV9="",0,ROUNDDOWN(AV15*$J6/1000,0)) -> 0 | BB78: =IF(BB9="",0,ROUNDDOWN(BB15*$J6/1000,0)) -> 0 | BH78: =IF(BH9="",0,ROUNDDOWN(BH15*$J6/1000,0)) -> 0 | BN78: =IF(BN9="",0,ROUNDDOWN(BN15*$J6/1000,0)) -> 0 | BT78: =IF(BT9="",0,ROUNDDOWN(BT15*$J6/1000,0)) -> 0 | BZ78: =IF(BZ9="",0,ROUNDDOWN(BZ15*$J6/1000,0)) -> 0 | CF78: =IF(CF9="",0,ROUNDDOWN(CF15*$J6/1000,0)) -> 0 | CL78: =IF(CL9="",0,ROUNDDOWN(CL15*$J6/1000,0)) -> 0 | CR78: =IF(CR9="",0,ROUNDDOWN(CR15*$J6/1000,0)) -> 0 | CX78: =IF(CX9="",0,ROUNDDOWN(CX15*$J6/1000,0)) -> 0 | DD78: =IF(DD9="",0,ROUNDDOWN(DD15*$J6/1000,0)) -> 0 | DJ78: =IF(DJ9="",0,ROUNDDOWN(DJ15*$J6/1000,0)) -> 0
F81: 1 | G81: 58000
F82: 2 | G82: 68000
F83: 3 | G83: 78000
F84: 4（1） | G84: 88000 | H84: 88000
F85: 5（2） | G85: 98000 | H85: 98000
F86: 6（3） | G86: 104000 | H86: 104000
F87: 7（4） | G87: 110000 | H87: 110000
F88: 8（5） | G88: 118000 | H88: 118000
F89: 9（6） | G89: 126000 | H89: 126000
F90: 10（7） | G90: 134000 | H90: 134000
F91: 11（8） | G91: 142000 | H91: 142000
F92: 12（9） | G92: 150000 | H92: 150000
F93: 13（10） | G93: 160000 | H93: 160000
F94: 14（11） | G94: 170000 | H94: 170000
F95: 15（12） | G95: 180000 | H95: 180000
F96: 16（13） | G96: 190000 | H96: 190000
F97: 17（14） | G97: 200000 | H97: 200000
F98: 18（15） | G98: 220000 | H98: 220000
F99: 19（16） | G99: 240000 | H99: 240000
F100: 20（17） | G100: 260000 | H100: 260000
F101: 21（18） | G101: 280000 | H101: 280000
F102: 22（19） | G102: 300000 | H102: 300000
F103: 23（20） | G103: 320000 | H103: 320000
F104: 24（21） | G104: 340000 | H104: 340000
F105: 25（22） | G105: 360000 | H105: 360000
F106: 26（23） | G106: 380000 | H106: 380000
F107: 27（24） | G107: 410000 | H107: 410000
F108: 28（25） | G108: 440000 | H108: 440000
F109: 29（26） | G109: 470000 | H109: 470000
F110: 30（27） | G110: 500000 | H110: 500000
F111: 31（28） | G111: 530000 | H111: 530000
F112: 32（29） | G112: 560000 | H112: 560000
F113: 33（30） | G113: 590000 | H113: 590000
F114: 34（31） | G114: 620000 | H114: 620000
F115: 35（32） | G115: 650000 | H115: 650000
F116: 36 | G116: 680000
F117: 37 | G117: 710000
F118: 38 | G118: 750000
F119: 39 | G119: 790000
F120: 40 | G120: 830000
F121: 41 | G121: 880000
F122: 42 | G122: 930000
F123: 43 | G123: 980000
F124: 44 | G124: 1030000
F125: 45 | G125: 1090000
F126: 46 | G126: 1150000
F127: 47 | G127: 1210000
F128: 48 | G128: 1270000
F129: 49 | G129: 1330000
F130: 50 | G130: 1390000
F132: =社員情報!W6 -> 44 | L132: =社員情報!W7 -> 38 | R132: =社員情報!W8 -> 70 | X132: =社員情報!W9 -> 48 | AD132: =社員情報!W10 -> 34 | AJ132: =社員情報!W11 -> 29 | AP132: =社員情報!W12 -> 45 | AV132: =社員情報!W13 -> 32 | BB132: =社員情報!W14 ->  | BH132: =社員情報!W15 ->  | BN132: =社員情報!W16 ->  | BT132: =社員情報!W17 ->  | BZ132: =社員情報!W18 ->  | CF132: =社員情報!W19 ->  | CL132: =社員情報!W20 ->  | CR132: =社員情報!W21 ->  | CX132: =社員情報!W22 ->  | DD132: =社員情報!W23 -> 
F133: =社員情報!X6 -> 45 | L133: =社員情報!X7 -> 39 | R133: =社員情報!X8 -> 71 | X133: =社員情報!X9 -> 49 | AD133: =社員情報!X10 -> 35 | AJ133: =社員情報!X11 -> 30 | AP133: =社員情報!X12 -> 46 | AV133: =社員情報!X13 -> 33 | BB133: =社員情報!X14 ->  | BH133: =社員情報!X15 ->  | BN133: =社員情報!X16 ->  | BT133: =社員情報!X17 ->  | BZ133: =社員情報!X18 ->  | CF133: =社員情報!X19 ->  | CL133: =社員情報!X20 ->  | CR133: =社員情報!X21 ->  | CX133: =社員情報!X22 ->  | DD133: =社員情報!X23 -> 

Sheet 給与台帳2月
F3: 雇用保険 被保険者負担 | J3: 3 | L3: ／ | M3: 1000
F4: 健康保険 被保険者負担 | J4: 50.7 | L4: ／ | M4: 1000
F5: 介護保険 被保険者負担 | J5: 8.65 | L5: ／ | M5: 1000
F6: 厚生年金保険 被保険者負担 | J6: 81.5 | L6: ／ | M6: 1000
B7: =基本情報!E9&"年２月給与台帳" -> 2020年２月給与台帳 | DJ7: =基本情報!E7 -> 株式会社今野デザイン
B8: 社員番号 | F8: =社員情報!B6 -> 1 | L8: =社員情報!B7 -> 2 | R8: =社員情報!B8 -> 3 | X8: =社員情報!B9 -> 4 | AD8: =社員情報!B10 -> 5 | AJ8: =社員情報!B11 -> 6 | AP8: =社員情報!B12 -> 7 | AV8: =社員情報!B13 -> 8 | BB8: =社員情報!B14 -> 9 | BH8: =社員情報!B15 -> 10 | BN8: =社員情報!B16 -> 11 | BT8: =社員情報!B17 -> 12 | BZ8: =社員情報!B18 -> 13 | CF8: =社員情報!B19 -> 14 | CL8: =社員情報!B20 -> 15 | CR8: =社員情報!B21 -> 16 | CX8: =社員情報!B22 -> 17 | DD8: =社員情報!B23 -> 18 | DJ8: 合計
B9: 氏名 | F9: =IF(社員情報!C6="","",社員情報!C6) -> 今野 友夫 | L9: =IF(社員情報!C7="","",社員情報!C7) -> 今野 朝子 | R9: =IF(社員情報!C8="","",社員情報!C8) -> 今野 祥子 | X9: =IF(社員情報!C9="","",社員情報!C9) -> 川西 めぐみ | AD9: =IF(社員情報!C10="","",社員情報!C10) -> 鳥居 雅之 | AJ9: =IF(社員情報!C11="","",社員情報!C11) -> 笹部 菜穂美 | AP9: =IF(社員情報!C12="","",社員情報!C12) -> 絹延橋 みつ子 | AV9: =IF(社員情報!C13="","",社員情報!C13) -> 山下 崇 | BB9: =IF(社員情報!C14="","",社員情報!C14) ->  | BH9: =IF(社員情報!C15="","",社員情報!C15) ->  | BN9: =IF(社員情報!C16="","",社員情報!C16) ->  | BT9: =IF(社員情報!C17="","",社員情報!C17) ->  | BZ9: =IF(社員情報!C18="","",社員情報!C18) ->  | CF9: =IF(社員情報!C19="","",社員情報!C19) ->  | CL9: =IF(社員情報!C20="","",社員情報!C20) ->  | CR9: =IF(社員情報!C21="","",社員情報!C21) ->  | CX9: =IF(社員情報!C22="","",社員情報!C22) ->  | DD9: =IF(社員情報!C23="","",社員情報!C23) -> 
B10: 役員／従業員 | F10: =IF(社員情報!D6="","",社員情報!D6) -> 役員 | L10: =IF(社員情報!D7="","",社員情報!D7) -> 役員 | R10: =IF(社員情報!D8="","",社員情報!D8) -> 役員 | X10: =IF(社員情報!D9="","",社員情報!D9) -> 従業員（雇保加入） | AD10: =IF(社員情報!D10="","",社員情報!D10) -> 従業員（雇保非加入） | AJ10: =IF(社員情報!D11="","",社員情報!D11) -> 従業員（雇保加入） | AP10: =IF(社員情報!D12="","",社員情報!D12) -> 従業員（雇保加入） | AV10: =IF(社員情報!D13="","",社員情報!D13) -> 従業員（雇保加入） | BB10: =IF(社員情報!D14="","",社員情報!D14) ->  | BH10: =IF(社員情報!D15="","",社員情報!D15) ->  | BN10: =IF(社員情報!D16="","",社員情報!D16) ->  | BT10: =IF(社員情報!D17="","",社員情報!D17) ->  | BZ10: =IF(社員情報!D18="","",社員情報!D18) ->  | CF10: =IF(社員情報!D19="","",社員情報!D19) ->  | CL10: =IF(社員情報!D20="","",社員情報!D20) ->  | CR10: =IF(社員情報!D21="","",社員情報!D21) ->  | CX10: =IF(社員情報!D22="","",社員情報!D22) ->  | DD10: =IF(社員情報!D23="","",社員情報!D23) -> 
B11: 甲欄／乙欄 | F11: =IF(社員情報!E6="","",社員情報!E6) -> 甲欄 | L11: =IF(社員情報!E7="","",社員情報!E7) -> 甲欄 | R11: =IF(社員情報!E8="","",社員情報!E8) -> 甲欄 | X11: =IF(社員情報!E9="","",社員情報!E9) -> 甲欄 | AD11: =IF(社員情報!E10="","",社員情報!E10) -> 乙欄 | AJ11: =IF(社員情報!E11="","",社員情報!E11) -> 甲欄 | AP11: =IF(社員情報!E12="","",社員情報!E12) -> 甲欄 | AV11: =IF(社員情報!E13="","",社員情報!E13) -> 甲欄 | BB11: =IF(社員情報!E14="","",社員情報!E14) ->  | BH11: =IF(社員情報!E15="","",社員情報!E15) ->  | BN11: =IF(社員情報!E16="","",社員情報!E16) ->  | BT11: =IF(社員情報!E17="","",社員情報!E17) ->  | BZ11: =IF(社員情報!E18="","",社員情報!E18) ->  | CF11: =IF(社員情報!E19="","",社員情報!E19) ->  | CL11: =IF(社員情報!E20="","",社員情報!E20) ->  | CR11: =IF(社員情報!E21="","",社員情報!E21) ->  | CX11: =IF(社員情報!E22="","",社員情報!E22) ->  | DD11: =IF(社員情報!E23="","",社員情報!E23) -> 
B12: １日時点での年齢 | F12: =社員情報!I6 -> 44 | L12: =社員情報!I7 -> 39 | R12: =社員情報!I8 -> 70 | X12: =社員情報!I9 -> 48 | AD12: =社員情報!I10 -> 34 | AJ12: =社員情報!I11 -> 30 | AP12: =社員情報!I12 -> 46 | AV12: =社員情報!I13 -> 33 | BB12: =社員情報!I14 ->  | BH12: =社員情報!I15 ->  | BN12: =社員情報!I16 ->  | BT12: =社員情報!I17 ->  | BZ12: =社員情報!H18 ->  | CF12: =社員情報!H19 ->  | CL12: =社員情報!H20 ->  | CR12: =社員情報!H21 ->  | CX12: =社員情報!H22 ->  | DD12: =社員情報!H23 -> 
B13: 扶養家族数 | F13: 1 | L13: 0 | X13: 1 | AP13: 1
B14: 健康保険標準報酬月額 | F14: 500000 | L14: 300000 | X14: 220000 | AP14: 300000
B15: 厚生年金標準報酬月額 | F15: 500000 | L15: 300000 | X15: 220000 | AP15: 300000
B16: 勤怠 | C16: =明細書項目!C8 -> 労働日数 | X16: 19日 | AD16: 9日 | AP16: 19日
C17: =明細書項目!C9 -> 労働時間 | X17: 142時間 | AD17: 36時間 | AP17: 133時間
C18: =明細書項目!C10 -> 時間内残業時間 | X18: 3時間
C19: =明細書項目!C11 -> 時間外残業時間 | X19: 6時間
C20: =明細書項目!C12 -> 休日労働時間
C21: =明細書項目!C13 -> 時間内深夜労働時間
C22: =明細書項目!C14 -> 時間外深夜労働時間
C23: =明細書項目!C15 -> 休日深夜時間
B24: 支給 | C24: =IF(明細書項目!C16="","",明細書項目!C16) -> 役員報酬 | D24: =IF(明細書項目!D16="","",明細書項目!D16) -> 課税 | E24: =IF(明細書項目!E16="","",明細書項目!E16) -> 雇保対象 | F24: 500000 | L24: 300000 | R24: 80000 | DJ24: =SUM(F24:DI24) -> 880000
C25: =IF(明細書項目!C17="","",明細書項目!C17) -> 基本給 | D25: =IF(明細書項目!D17="","",明細書項目!D17) -> 課税 | E25: =IF(明細書項目!E17="","",明細書項目!E17) -> 雇保対象 | X25: 225000 | AD25: 45000 | AP25: 300000 | DJ25: 570000
C26: =IF(明細書項目!C18="","",明細書項目!C18) -> 時間外手当 | D26: =IF(明細書項目!D18="","",明細書項目!D18) -> 課税 | E26: =IF(明細書項目!E18="","",明細書項目!E18) -> 雇保対象 | X26: 16758 | DJ26: 16758
C27: =IF(明細書項目!C19="","",明細書項目!C19) ->  | D27: =IF(明細書項目!D19="","",明細書項目!D19) ->  | E27: =IF(明細書項目!E19="","",明細書項目!E19) ->  | DJ27: 0
C28: =IF(明細書項目!C20="","",明細書項目!C20) ->  | D28: =IF(明細書項目!D20="","",明細書項目!D20) ->  | E28: =IF(明細書項目!E20="","",明細書項目!E20) ->  | DJ28: 0
C29: =IF(明細書項目!C21="","",明細書項目!C21) ->  | D29: =IF(明細書項目!D21="","",明細書項目!D21) ->  | E29: =IF(明細書項目!E21="","",明細書項目!E21) ->  | DJ29: 0
C30: =IF(明細書項目!C22="","",明細書項目!C22) ->  | D30: =IF(明細書項目!D22="","",明細書項目!D22) ->  | E30: =IF(明細書項目!E22="","",明細書項目!E22) ->  | DJ30: 0
C31: =IF(明細書項目!C23="","",明細書項目!C23) ->  | D31: =IF(明細書項目!D23="","",明細書項目!D23) ->  | E31: =IF(明細書項目!E23="","",明細書項目!E23) ->  | DJ31: 0
C32: =IF(明細書項目!C24="","",明細書項目!C24) -> 通勤手当 | D32: =IF(明細書項目!D24="","",明細書項目!D24) -> 非課税 | E32: =IF(明細書項目!E24="","",明細書項目!E24) -> 雇保対象 | F32: 10000 | L32: 10000 | X32: 18370 | DJ32: 38370
C33: =IF(明細書項目!C25="","",明細書項目!C25) ->  | D33: =IF(明細書項目!D25="","",明細書項目!D25) ->  | E33: =IF(明細書項目!E25="","",明細書項目!E25) ->  | DJ33: 0
C34: ① 課税支給額 | F34: =SUMIF($D24:K33,"課税",F24:K33) -> 500000 | L34: =SUMIF($D24:Q33,"課税",L24:Q33) -> 300000 | R34: =SUMIF($D24:W33,"課税",R24:W33) -> 80000 | X34: =SUMIF($D24:AC33,"課税",X24:AC33) -> 241758 | AD34: =SUMIF($D24:AI33,"課税",AD24:AI33) -> 45000 | AJ34: =SUMIF($D24:AO33,"課税",AJ24:AO33) -> 0 | AP34: =SUMIF($D24:AU33,"課税",AP24:AU33) -> 300000 | AV34: =SUMIF($D24:BA33,"課税",AV24:BA33) -> 0 | BB34: =SUMIF($D24:BG33,"課税",BB24:BG33) -> 0 | BH34: =SUMIF($D24:BM33,"課税",BH24:BM33) -> 0 | BN34: =SUMIF($D24:BS33,"課税",BN24:BS33) -> 0 | BT34: =SUMIF($D24:BY33,"課税",BT24:BY33) -> 0 | BZ34: =SUMIF($D24:CE33,"課税",BZ24:CE33) -> 0 | CF34: =SUMIF($D24:CK33,"課税",CF24:CK33) -> 0 | CL34: =SUMIF($D24:CQ33,"課税",CL24:CQ33) -> 0 | CR34: =SUMIF($D24:CW33,"課税",CR24:CW33) -> 0 | CX34: =SUMIF($D24:DC33,"課税",CX24:DC33) -> 0 | DD34: =SUMIF($D24:DI33,"課税",DD24:DI33) -> 0 | DJ34: 1466758
C35: ② 非課税支給額 | F35: =SUMIF($D24:K33,"非課税",F24:K33) -> 10000 | L35: =SUMIF($D24:Q33,"非課税",L24:Q33) -> 10000 | R35: =SUMIF($D24:W33,"非課税",R24:W33) -> 0 | X35: =SUMIF($D24:AC33,"非課税",X24:AC33) -> 18370 | AD35: =SUMIF($D24:AI33,"非課税",AD24:AI33) -> 0 | AJ35: =SUMIF($D24:AO33,"非課税",AJ24:AO33) -> 0 | AP35: =SUMIF($D24:AU33,"非課税",AP24:AU33) -> 0 | AV35: =SUMIF($D24:BA33,"非課税",AV24:BA33) -> 0 | BB35: =SUMIF($D24:BG33,"非課税",BB24:BG33) -> 0 | BH35: =SUMIF($D24:BM33,"非課税",BH24:BM33) -> 0 | BN35: =SUMIF($D24:BS33,"非課税",BN24:BS33) -> 0 | BT35: =SUMIF($D24:BY33,"非課税",BT24:BY33) -> 0 | BZ35: =SUMIF($D24:CE33,"非課税",BZ24:CE33) -> 0 | CF35: =SUMIF($D24:CK33,"非課税",CF24:CK33) -> 0 | CL35: =SUMIF($D24:CQ33,"非課税",CL24:CQ33) -> 0 | CR35: =SUMIF($D24:CW33,"非課税",CR24:CW33) -> 0 | CX35: =SUMIF($D24:DC33,"非課税",CX24:DC33) -> 0 | DD35: =SUMIF($D24:DI33,"非課税",DD24:DI33) -> 0 | DJ35: 38370
B36: 総支給額 | F36: =SUM(F34:K35) -> 510000 | L36: =SUM(L34:Q35) -> 310000 | R36: =SUM(R34:W35) -> 80000 | X36: =SUM(X34:AC35) -> 260128 | AD36: =SUM(AD34:AI35) -> 45000 | AJ36: =SUM(AJ34:AO35) -> 0 | AP36: =SUM(AP34:AU35) -> 300000 | AV36: =SUM(AV34:BA35) -> 0 | BB36: =SUM(BB34:BG35) -> 0 | BH36: =SUM(BH34:BM35) -> 0 | BN36: =SUM(BN34:BS35) -> 0 | BT36: =SUM(BT34:BY35) -> 0 | BZ36: =SUM(BZ34:CE35) -> 0 | CF36: =SUM(CF34:CK35) -> 0 | CL36: =SUM(CL34:CQ35) -> 0 | CR36: =SUM(CR34:CW35) -> 0 | CX36: =SUM(CX34:DC35) -> 0 | DD36: =SUM(DD34:DI35) -> 0 | DJ36: 1505128
B37: 社会保険控除額 | C37: =明細書項目!C26 -> 健康保険 | F37: 23800 | L37: 14280 | R37: 0 | X37: 10472 | AD37: 0 | AJ37: 0 | AP37: 14280 | AV37: 0 | BB37: 0 | BH37: 0 | BN37: 0 | BT37: 0 | BZ37: 0 | CF37: 0 | CL37: 0 | CR37: 0 | CX37: 0 | DD37: 0 | DJ37: 62832
C38: =明細書項目!C27 -> 介護保険 | F38: 0 | L38: 0 | R38: 0 | X38: 1661 | AD38: 0 | AJ38: 0 | AP38: 0 | AV38: 0 | BB38: 0 | BH38: 0 | BN38: 0 | BT38: 0 | BZ38: 0 | CF38: 0 | CL38: 0 | CR38: 0 | CX38: 0 | DD38: 0 | DJ38: 1661
C39: =明細書項目!C28 -> 厚生年金保険 | F39: 41030 | L39: 24618 | R39: 0 | X39: 18053 | AD39: 0 | AJ39: 0 | AP39: 24618 | AV39: 0 | BB39: 0 | BH39: 0 | BN39: 0 | BT39: 0 | BZ39: 0 | CF39: 0 | CL39: 0 | CR39: 0 | CX39: 0 | DD39: 0 | DJ39: 108319
C40: =明細書項目!C29 -> 雇用保険 | F40: 0 | L40: 0 | R40: 0 | X40: 1300 | AD40: 0 | AJ40: 0 | AP40: 1500 | AV40: 0 | BB40: 0 | BH40: 0 | BN40: 0 | BT40: 0 | BZ40: 0 | CF40: 0 | CL40: 0 | CR40: 0 | CX40: 0 | DD40: 0 | DJ40: 2800
C41: ③ 保険料合計 | F41: =SUM(F37:K40) -> 64830 | L41: =SUM(L37:Q40) -> 38898 | R41: =SUM(R37:W40) -> 0 | X41: =SUM(X37:AC40) -> 31486 | AD41: =SUM(AD37:AI40) -> 0 | AJ41: =SUM(AJ37:AO40) -> 0 | AP41: =SUM(AP37:AU40) -> 40398 | AV41: =SUM(AV37:BA40) -> 0 | BB41: =SUM(BB37:BG40) -> 0 | BH41: =SUM(BH37:BM40) -> 0 | BN41: =SUM(BN37:BS40) -> 0 | BT41: =SUM(BT37:BY40) -> 0 | BZ41: =SUM(BZ37:CE40) -> 0 | CF41: =SUM(CF37:CK40) -> 0 | CL41: =SUM(CL37:CQ40) -> 0 | CR41: =SUM(CR37:CW40) -> 0 | CX41: =SUM(CX37:DC40) -> 0 | DD41: =SUM(DD37:DI40) -> 0 | DJ41: 175612
B42: ④社会保険料控除後の金額 ①－③ | F42: =F34-F41 -> 435170 | L42: =L34-L41 -> 261102 | R42: =R34-R41 -> 80000 | X42: =X34-X41 -> 210272 | AD42: =AD34-AD41 -> 45000 | AJ42: =AJ34-AJ41 -> 0 | AP42: =AP34-AP41 -> 259602 | AV42: =AV34-AV41 -> 0 | BB42: =BB34-BB41 -> 0 | BH42: =BH34-BH41 -> 0 | BN42: =BN34-BN41 -> 0 | BT42: =BT34-BT41 -> 0 | BZ42: =BZ34-BZ41 -> 0 | CF42: =CF34-CF41 -> 0 | CL42: =CL34-CL41 -> 0 | CR42: =CR34-CR41 -> 0 | CX42: =CX34-CX41 -> 0 | DD42: =DD34-DD41 -> 0 | DJ42: 1291146
B43: その他控除金額 | C43: =IF(明細書項目!C31="","",明細書項目!C31) -> 所得税 | F43: 16190 | L43: 6950 | R43: 0 | X43: 3520 | AD43: 1378 | AJ43: 0 | AP43: 5280 | AV43: 0 | BB43: 0 | BH43: 0 | BN43: 0 | BT43: 0 | BZ43: 0 | CF43: 0 | CL43: 0 | CR43: 0 | CX43: 0 | DD43: 0 | DJ43: 33318
C44: =IF(明細書項目!C32="","",明細書項目!C32) -> 住民税 | F44: 22300 | L44: 12400 | X44: 8500 | AP44: 11300 | DJ44: 54500
C45: =IF(明細書項目!C33="","",明細書項目!C33) ->  | DJ45: 0
C46: =IF(明細書項目!C34="","",明細書項目!C34) ->  | DJ46: 0
C47: =IF(明細書項目!C35="","",明細書項目!C35) ->  | DJ47: 0
C48: ⑤ その他控除額計 | F48: =SUM(F43:K47) -> 38490 | L48: =SUM(L43:Q47) -> 19350 | R48: =SUM(R43:W47) -> 0 | X48: =SUM(X43:AC47) -> 12020 | AD48: =SUM(AD43:AI47) -> 1378 | AJ48: =SUM(AJ43:AO47) -> 0 | AP48: =SUM(AP43:AU47) -> 16580 | AV48: =SUM(AV43:BA47) -> 0 | BB48: =SUM(BB43:BG47) -> 0 | BH48: =SUM(BH43:BM47) -> 0 | BN48: =SUM(BN43:BS47) -> 0 | BT48: =SUM(BT43:BY47) -> 0 | BZ48: =SUM(BZ43:CE47) -> 0 | CF48: =SUM(CF43:CK47) -> 0 | CL48: =SUM(CL43:CQ47) -> 0 | CR48: =SUM(CR43:CW47) -> 0 | CX48: =SUM(CX43:DC47) -> 0 | DD48: =SUM(DD43:DI47) -> 0 | DJ48: 87818
B49: ③－⑤+② 差引支給額 | F49: =F42-F48+F35 -> 406680 | L49: =L42-L48+L35 -> 251752 | R49: =R42-R48+R35 -> 80000 | X49: =X42-X48+X35 -> 216622 | AD49: =AD42-AD48+AD35 -> 43622 | AJ49: =AJ42-AJ48+AJ35 -> 0 | AP49: =AP42-AP48+AP35 -> 243022 | AV49: =AV42-AV48+AV35 -> 0 | BB49: =BB42-BB48+BB35 -> 0 | BH49: =BH42-BH48+BH35 -> 0 | BN49: =BN42-BN48+BN35 -> 0 | BT49: =BT42-BT48+BT35 -> 0 | BZ49: =BZ42-BZ48+BZ35 -> 0 | CF49: =CF42-CF48+CF35 -> 0 | CL49: =CL42-CL48+CL35 -> 0 | CR49: =CR42-CR48+CR35 -> 0 | CX49: =CX42-CX48+CX35 -> 0 | DD49: =DD42-DD48+DD35 -> 0 | DJ49: 1241698
B50: 年末調整額 | DJ50: 0
B51: 支給額 | F51: =F49-F50 -> 406680 | L51: =L49-L50 -> 251752 | R51: =R49-R50 -> 80000 | X51: =X49-X50 -> 216622 | AD51: =AD49-AD50 -> 43622 | AJ51: =AJ49-AJ50 -> 0 | AP51: =AP49-AP50 -> 243022 | AV51: =AV49-AV50 -> 0 | BB51: =BB49-BB50 -> 0 | BH51: =BH49-BH50 -> 0 | BN51: =BN49-BN50 -> 0 | BT51: =BT49-BT50 -> 0 | BZ51: =BZ49-BZ50 -> 0 | CF51: =CF49-CF50 -> 0 | CL51: =CL49-CL50 -> 0 | CR51: =CR49-CR50 -> 0 | CX51: =CX49-CX50 -> 0 | DD51: =DD49-DD50 -> 0 | DJ51: 1241698
B52: 給与明細摘要 | F52: 二月もお疲れ様でした | L52: 二月もお疲れ様でした | R52: 二月もお疲れ様でした | X52: 二月もお疲れ様でした | AD52: 二月もお疲れ様でした | AJ52: 二月もお疲れ様でした | AP52: 二月もお疲れ様でした | AV52: 二月もお疲れ様でした | BB52: 二月もお疲れ様でした | BH52: 二月もお疲れ様でした | BN52: 二月もお疲れ様でした | BT52: 二月もお疲れ様でした | BZ52: 二月もお疲れ様でした | CF52: 二月もお疲れ様でした | CL52: 二月もお疲れ様でした | CR52: 二月もお疲れ様でした | CX52: 二月もお疲れ様でした | DD52: 二月もお疲れ様でした
B54: 雇用保険対象金額 | F54: =IF(F10="従業員（雇保加入）",SUMIF($E24:K33,"雇保対象",F24:K33),0) -> 0 | L54: =IF(L10="従業員（雇保加入）",SUMIF($E24:Q33,"雇保対象",L24:Q33),0) -> 0 | R54: =IF(R10="従業員（雇保加入）",SUMIF($E24:W33,"雇保対象",R24:W33),0) -> 0 | X54: =IF(X10="従業員（雇保加入）",SUMIF($E24:AC33,"雇保対象",X24:AC33),0) -> 260128 | AD54: =IF(AD10="従業員（雇保加入）",SUMIF($E24:AI33,"雇保対象",AD24:AI33),0) -> 0 | AJ54: =IF(AJ10="従業員（雇保加入）",SUMIF($E24:AO33,"雇保対象",AJ24:AO33),0) -> 0 | AP54: =IF(AP10="従業員（雇保加入）",SUMIF($E24:AU33,"雇保対象",AP24:AU33),0) -> 300000 | AV54: =IF(AV10="従業員（雇保加入）",SUMIF($E24:BA33,"雇保対象",AV24:BA33),0) -> 0 | BB54: =IF(BB10="従業員（雇保加入）",SUMIF($E24:BG33,"雇保対象",BB24:BG33),0) -> 0 | BH54: =IF(BH10="従業員（雇保加入）",SUMIF($E24:BM33,"雇保対象",BH24:BM33),0) -> 0 | BN54: =IF(BN10="従業員（雇保加入）",SUMIF($E24:BS33,"雇保対象",BN24:BS33),0) -> 0 | BT54: =IF(BT10="従業員（雇保加入）",SUMIF($E24:BY33,"雇保対象",BT24:BY33),0) -> 0 | BZ54: =IF(BZ10="従業員（雇保加入）",SUMIF($E24:CE33,"雇保対象",BZ24:CE33),0) -> 0 | CF54: =IF(CF10="従業員（雇保加入）",SUMIF($E24:CK33,"雇保対象",CF24:CK33),0) -> 0 | CL54: =IF(CL10="従業員（雇保加入）",SUMIF($E24:CQ33,"雇保対象",CL24:CQ33),0) -> 0 | CR54: =IF(CR10="従業員（雇保加入）",SUMIF($E24:CW33,"雇保対象",CR24:CW33),0) -> 0 | CX54: =IF(CX10="従業員（雇保加入）",SUMIF($E24:DC33,"雇保対象",CX24:DC33),0) -> 0 | DD54: =IF(DD10="従業員（雇保加入）",SUMIF($E24:DI33,"雇保対象",DD24:DI33),0) -> 0 | DJ54: =IF(DJ10="従業員（雇保加入）",SUMIF($E24:DO33,"雇保対象",DJ24:DO33),0) -> 0
B62: 甲欄給与所得控除額 | F62: =IF(F42=0,0,ROUNDUP(F42*VLOOKUP(F42,甲欄電算機計算!$A$8:$C$14,3)+VLOOKUP(F42,甲欄電算機計算!$A$8:$D$14,4),0)) -> 132034 | L62: =IF(L42=0,0,ROUNDUP(L42*VLOOKUP(L42,甲欄電算機計算!$A$8:$C$14,3)+VLOOKUP(L42,甲欄電算機計算!$A$8:$D$14,4),0)) -> 93331 | R62: =IF(R42=0,0,ROUNDUP(R42*VLOOKUP(R42,甲欄電算機計算!$A$8:$C$14,3)+VLOOKUP(R42,甲欄電算機計算!$A$8:$D$14,4),0)) -> 54167 | X62: =IF(X42=0,0,ROUNDUP(X42*VLOOKUP(X42,甲欄電算機計算!$A$8:$C$14,3)+VLOOKUP(X42,甲欄電算機計算!$A$8:$D$14,4),0)) -> 78082 | AD62: =IF(AD42=0,0,ROUNDUP(AD42*VLOOKUP(AD42,甲欄電算機計算!$A$8:$C$14,3)+VLOOKUP(AD42,甲欄電算機計算!$A$8:$D$14,4),0)) -> 54167 | AJ62: =IF(AJ42=0,0,ROUNDUP(AJ42*VLOOKUP(AJ42,甲欄電算機計算!$A$8:$C$14,3)+VLOOKUP(AJ42,甲欄電算機計算!$A$8:$D$14,4),0)) -> 0 | AP62: =IF(AP42=0,0,ROUNDUP(AP42*VLOOKUP(AP42,甲欄電算機計算!$A$8:$C$14,3)+VLOOKUP(AP42,甲欄電算機計算!$A$8:$D$14,4),0)) -> 92881 | AV62: =IF(AV42=0,0,ROUNDUP(AV42*VLOOKUP(AV42,甲欄電算機計算!$A$8:$C$14,3)+VLOOKUP(AV42,甲欄電算機計算!$A$8:$D$14,4),0)) -> 0 | BB62: =IF(BB42=0,0,ROUNDUP(BB42*VLOOKUP(BB42,甲欄電算機計算!$A$8:$C$14,3)+VLOOKUP(BB42,甲欄電算機計算!$A$8:$D$14,4),0)) -> 0 | BH62: =IF(BH42=0,0,ROUNDUP(BH42*VLOOKUP(BH42,甲欄電算機計算!$A$8:$C$14,3)+VLOOKUP(BH42,甲欄電算機計算!$A$8:$D$14,4),0)) -> 0 | BN62: =IF(BN42=0,0,ROUNDUP(BN42*VLOOKUP(BN42,甲欄電算機計算!$A$8:$C$14,3)+VLOOKUP(BN42,甲欄電算機計算!$A$8:$D$14,4),0)) -> 0 | BT62: =IF(BT42=0,0,ROUNDUP(BT42*VLOOKUP(BT42,甲欄電算機計算!$A$8:$C$14,3)+VLOOKUP(BT42,甲欄電算機計算!$A$8:$D$14,4),0)) -> 0 | BZ62: =IF(BZ42=0,0,ROUNDUP(BZ42*VLOOKUP(BZ42,甲欄電算機計算!$A$8:$C$14,3)+VLOOKUP(BZ42,甲欄電算機計算!$A$8:$D$14,4),0)) -> 0 | CF62: =IF(CF42=0,0,ROUNDUP(CF42*VLOOKUP(CF42,甲欄電算機計算!$A$8:$C$14,3)+VLOOKUP(CF42,甲欄電算機計算!$A$8:$D$14,4),0)) -> 0 | CL62: =IF(CL42=0,0,ROUNDUP(CL42*VLOOKUP(CL42,甲欄電算機計算!$A$8:$C$14,3)+VLOOKUP(CL42,甲欄電算機計算!$A$8:$D$14,4),0)) -> 0 | CR62: =IF(CR42=0,0,ROUNDUP(CR42*VLOOKUP(CR42,甲欄電算機計算!$A$8:$C$14,3)+VLOOKUP(CR42,甲欄電算機計算!$A$8:$D$14,4),0)) -> 0 | CX62: =IF(CX42=0,0,ROUNDUP(CX42*VLOOKUP(CX42,甲欄電算機計算!$A$8:$C$14,3)+VLOOKUP(CX42,甲欄電算機計算!$A$8:$D$14,4),0)) -> 0 | DD62: =IF(DD42=0,0,ROUNDUP(DD42*VLOOKUP(DD42,甲欄電算機計算!$A$8:$C$14,3)+VLOOKUP(DD42,甲欄電算機計算!$A$8:$D$14,4),0)) -> 0 | DJ62: =IF(DJ42=0,0,ROUNDUP(DJ42*VLOOKUP(DJ42,甲欄電算機計算!$A$8:$C$13,3)+VLOOKUP(DJ42,甲欄電算機計算!$A$8:$D$13,4),0)) -> 183334
B63: 甲欄配偶者控除等の額 | F63: =F13*甲欄電算機計算!$C$18+甲欄電算機計算!$C$19 -> 63334 | L63: =L13*甲欄電算機計算!$C$18+甲欄電算機計算!$C$19 -> 31667 | R63: =R13*甲欄電算機計算!$C$18+甲欄電算機計算!$C$19 -> 31667 | X63: =X13*甲欄電算機計算!$C$18+甲欄電算機計算!$C$19 -> 63334 | AD63: =AD13*甲欄電算機計算!$C$18+甲欄電算機計算!$C$19 -> 31667 | AJ63: =AJ13*甲欄電算機計算!$C$18+甲欄電算機計算!$C$19 -> 31667 | AP63: =AP13*甲欄電算機計算!$C$18+甲欄電算機計算!$C$19 -> 63334 | AV63: =AV13*甲欄電算機計算!$C$18+甲欄電算機計算!$C$19 -> 31667 | BB63: =BB13*甲欄電算機計算!$C$18+甲欄電算機計算!$C$19 -> 31667 | BH63: =BH13*甲欄電算機計算!$C$18+甲欄電算機計算!$C$19 -> 31667 | BN63: =BN13*甲欄電算機計算!$C$18+甲欄電算機計算!$C$19 -> 31667 | BT63: =BT13*甲欄電算機計算!$C$18+甲欄電算機計算!$C$19 -> 31667 | BZ63: =BZ13*甲欄電算機計算!$C$18+甲欄電算機計算!$C$19 -> 31667 | CF63: =CF13*甲欄電算機計算!$C$18+甲欄電算機計算!$C$19 -> 31667 | CL63: =CL13*甲欄電算機計算!$C$18+甲欄電算機計算!$C$19 -> 31667 | CR63: =CR13*甲欄電算機計算!$C$18+甲欄電算機計算!$C$19 -> 31667 | CX63: =CX13*甲欄電算機計算!$C$18+甲欄電算機計算!$C$19 -> 31667 | DD63: =DD13*甲欄電算機計算!$C$18+甲欄電算機計算!$C$19 -> 31667 | DJ63: =DJ13*甲欄電算機計算!$C$18+甲欄電算機計算!BW19 -> 0
B64: 課税給与所得金額 | F64: =F42-SUM(F62:K63) -> 239802 | L64: =L42-SUM(L62:Q63) -> 136104 | R64: =R42-SUM(R62:W63) -> -5834 | X64: =X42-SUM(X62:AC63) -> 68856 | AD64: =AD42-SUM(AD62:AI63) -> -40834 | AJ64: =AJ42-SUM(AJ62:AO63) -> -31667 | AP64: =AP42-SUM(AP62:AU63) -> 103387 | AV64: =AV42-SUM(AV62:BA63) -> -31667 | BB64: =BB42-SUM(BB62:BG63) -> -31667 | BH64: =BH42-SUM(BH62:BM63) -> -31667 | BN64: =BN42-SUM(BN62:BS63) -> -31667 | BT64: =BT42-SUM(BT62:BY63) -> -31667 | BZ64: =BZ42-SUM(BZ62:CE63) -> -31667 | CF64: =CF42-SUM(CF62:CK63) -> -31667 | CL64: =CL42-SUM(CL62:CQ63) -> -31667 | CR64: =CR42-SUM(CR62:CW63) -> -31667 | CX64: =CX42-SUM(CX62:DC63) -> -31667 | DD64: =DD42-SUM(DD62:DI63) -> -31667 | DJ64: =DJ42-SUM(DJ62:DO63) -> 1107812
B65: 甲欄源泉所得税額 | F65: =IF(F64=0,0,ROUND(F64*VLOOKUP(F64,甲欄電算機計算!$A$24:$C$30,3)-VLOOKUP(F64,甲欄電算機計算!$A$24:$D$30,4),-1)) -> 16190 | L65: =IF(L64=0,0,ROUND(L64*VLOOKUP(L64,甲欄電算機計算!$A$24:$C$30,3)-VLOOKUP(L64,甲欄電算機計算!$A$24:$D$30,4),-1)) -> 6950 | R65: =IF(R64=0,0,ROUND(R64*VLOOKUP(R64,甲欄電算機計算!$A$24:$C$30,3)-VLOOKUP(R64,甲欄電算機計算!$A$24:$D$30,4),-1)) ->  | X65: =IF(X64=0,0,ROUND(X64*VLOOKUP(X64,甲欄電算機計算!$A$24:$C$30,3)-VLOOKUP(X64,甲欄電算機計算!$A$24:$D$30,4),-1)) -> 3520 | AD65: =IF(AD64=0,0,ROUND(AD64*VLOOKUP(AD64,甲欄電算機計算!$A$24:$C$30,3)-VLOOKUP(AD64,甲欄電算機計算!$A$24:$D$30,4),-1)) ->  | AJ65: =IF(AJ64=0,0,ROUND(AJ64*VLOOKUP(AJ64,甲欄電算機計算!$A$24:$C$30,3)-VLOOKUP(AJ64,甲欄電算機計算!$A$24:$D$30,4),-1)) ->  | AP65: =IF(AP64=0,0,ROUND(AP64*VLOOKUP(AP64,甲欄電算機計算!$A$24:$C$30,3)-VLOOKUP(AP64,甲欄電算機計算!$A$24:$D$30,4),-1)) -> 5280 | AV65: =IF(AV64=0,0,ROUND(AV64*VLOOKUP(AV64,甲欄電算機計算!$A$24:$C$30,3)-VLOOKUP(AV64,甲欄電算機計算!$A$24:$D$30,4),-1)) ->  | BB65: =IF(BB64=0,0,ROUND(BB64*VLOOKUP(BB64,甲欄電算機計算!$A$24:$C$30,3)-VLOOKUP(BB64,甲欄電算機計算!$A$24:$D$30,4),-1)) ->  | BH65: =IF(BH64=0,0,ROUND(BH64*VLOOKUP(BH64,甲欄電算機計算!$A$24:$C$30,3)-VLOOKUP(BH64,甲欄電算機計算!$A$24:$D$30,4),-1)) ->  | BN65: =IF(BN64=0,0,ROUND(BN64*VLOOKUP(BN64,甲欄電算機計算!$A$24:$C$30,3)-VLOOKUP(BN64,甲欄電算機計算!$A$24:$D$30,4),-1)) ->  | BT65: =IF(BT64=0,0,ROUND(BT64*VLOOKUP(BT64,甲欄電算機計算!$A$24:$C$30,3)-VLOOKUP(BT64,甲欄電算機計算!$A$24:$D$30,4),-1)) ->  | BZ65: =IF(BZ64=0,0,ROUND(BZ64*VLOOKUP(BZ64,甲欄電算機計算!$A$24:$C$30,3)-VLOOKUP(BZ64,甲欄電算機計算!$A$24:$D$30,4),-1)) ->  | CF65: =IF(CF64=0,0,ROUND(CF64*VLOOKUP(CF64,甲欄電算機計算!$A$24:$C$30,3)-VLOOKUP(CF64,甲欄電算機計算!$A$24:$D$30,4),-1)) ->  | CL65: =IF(CL64=0,0,ROUND(CL64*VLOOKUP(CL64,甲欄電算機計算!$A$24:$C$30,3)-VLOOKUP(CL64,甲欄電算機計算!$A$24:$D$30,4),-1)) ->  | CR65: =IF(CR64=0,0,ROUND(CR64*VLOOKUP(CR64,甲欄電算機計算!$A$24:$C$30,3)-VLOOKUP(CR64,甲欄電算機計算!$A$24:$D$30,4),-1)) ->  | CX65: =IF(CX64=0,0,ROUND(CX64*VLOOKUP(CX64,甲欄電算機計算!$A$24:$C$30,3)-VLOOKUP(CX64,甲欄電算機計算!$A$24:$D$30,4),-1)) ->  | DD65: =IF(DD64=0,0,ROUND(DD64*VLOOKUP(DD64,甲欄電算機計算!$A$24:$C$30,3)-VLOOKUP(DD64,甲欄電算機計算!$A$24:$D$30,4),-1)) ->  | DJ65: =IF(DJ64=0,0,ROUND(DJ64*VLOOKUP(DJ64,甲欄電算機計算!$A$24:$C$30,3)-VLOOKUP(DJ64,甲欄電算機計算!$A$24:$D$30,4),-1)) -> 242570
B66: 甲欄源泉所得税額 | F66: =IF(ISERROR(F65),0,F65) -> 16190 | L66: =IF(ISERROR(L65),0,L65) -> 6950 | R66: =IF(ISERROR(R65),0,R65) -> 0 | X66: =IF(ISERROR(X65),0,X65) -> 3520 | AD66: =IF(ISERROR(AD65),0,AD65) -> 0 | AJ66: =IF(ISERROR(AJ65),0,AJ65) -> 0 | AP66: =IF(ISERROR(AP65),0,AP65) -> 5280 | AV66: =IF(ISERROR(AV65),0,AV65) -> 0 | BB66: =IF(ISERROR(BB65),0,BB65) -> 0 | BH66: =IF(ISERROR(BH65),0,BH65) -> 0 | BN66: =IF(ISERROR(BN65),0,BN65) -> 0 | BT66: =IF(ISERROR(BT65),0,BT65) -> 0 | BZ66: =IF(ISERROR(BZ65),0,BZ65) -> 0 | CF66: =IF(ISERROR(CF65),0,CF65) -> 0 | CL66: =IF(ISERROR(CL65),0,CL65) -> 0 | CR66: =IF(ISERROR(CR65),0,CR65) -> 0 | CX66: =IF(ISERROR(CX65),0,CX65) -> 0 | DD66: =IF(ISERROR(DD65),0,DD65) -> 0 | DJ66: =IF(ISERROR(DJ65),0,DJ65) -> 242570
